Workbook

Sheet PI vs gap
A1: Measurement | B1: Hall
A2: Type | B2: Off-axis
A4: PS type | B4: HXR
A5: PS serial no | B5: 16319
A7: Measurement date | B7: ='DF raw data'!B2 -> 15. jun 2017
C11: Nominal gap [mm] | D11: Encoder [counts] | E11: Encoder [mm] | F11: PI [T^2mm^3] | G11: y [mm] | H11: Encoder offset
C12: 10 | D12: =' 10 y=-0.2'!B3 -> 14640943 | E12: =(D12-$H$12)*-0.00025+10 -> 10.00175 | F12: =' 10 y=-0.2'!Q3 -> 706.0576344 | G12: -0.2 | H12: 14640950
C13: 10 | D13: ='10 y=-0.1'!B3 -> 14640947 | E13: =(D13-$H$12)*-0.00025+10 -> 10.00075 | F13: ='10 y=-0.1'!Q3 -> 705.4241961 | G13: -0.1
C14: 10 | D14: ='10 y=0'!B3 -> 14640943 | E14: 10.00175 | F14: ='10 y=0'!Q3 -> 705.6178594 | G14: 0
C15: 10 | D15: ='10 y=0.1'!B3 -> 14640946 | E15: 10.001 | F15: ='10 y=0.1'!Q3 -> 705.9343439 | G15: 0.1
C16: 10 | D16: ='10 y=0.2'!B3 -> 14640958 | E16: 9.998 | F16: ='10 y=0.2'!Q3 -> 706.4049333 | G16: 0.2
A41: Measuring series at 10 mm gap:
A42: Reference magnet
A43: Tref | B43: 21.1 | C43: degC
A44: Hall ref field | B44: 0.505235 | C44: T
A45: NMR ref field | B45: 0.5064 | C45: T
A53: Offset from Faro | B53: 0.254

Sheet 10 y=-0.2
A1: dz | B1: ='DF raw data'!B7 -> 0.50021 | C1: mm | F1: T_coeff | G1: -0.0008 | H1: /degC | L1: Hallref | M1: ='PI vs gap'!B44 -> 0.505235 | N1: T | P1: IBy total | Q1: =L1203*1000 -> -9.710056085 | R1: muTm | X1: DF ref | Y1: 18
A2: Tref | B2: ='DF raw data'!B8 -> 21.79 | C2: degC | F2: Tcorr | G2: 20 | H2: degC | L2: NMRref | M2: ='PI vs gap'!B45 -> 0.5064 | N2: T | P2: JBy total | Q2: =M1203 -> -3.819738052 | R2: muTm^2
A3: Encoder | B3: ='DF raw data'!B9 -> 14640943 | P3: PI total | Q3: =N1203 -> 706.0576344 | R3: T^2mm^3
A5: z [mm] | B5: Bx | C5: By | D5: Bz | F5: Bx_corr | G5: By_corr | H5: Bz_corr | J5: Ix | K5: Jx | L5: Iy | M5: Jy | N5: PI
A6: ='[1]PI vs x'!B53 -> -0.068 | B6: ='DF raw data'!A11 -> -3.6025467e-06 | C6: ='DF raw data'!B11 -> -3.113583e-06 | D6: ='DF raw data'!C11 -> 7.6633654e-07 | F6: =(1-$G$1*($B$2-$G$2))*B6 -> -3.607705547e-06 | G6: =(1-$G$1*($B$2-$G$2))*C6*$M$2/$M$1 -> -3.125231411e-06 | H6: =(1-$G$1*($B$2-$G$2))*D6 -> 7.674339339e-07 | J6: =F6*$B$1 -> -1.804610392e-06 | K6: =J6*$B$1 -> -9.02684164e-07 | L6: =G6*$B$1 -> -1.563272004e-06 | M6: =L6*$B$1 -> -7.819642892e-07 | N6: =(J6^2+L6)^2*$B$1 -> 1.222417788e-12
A7: =A6+$B$1 -> 0.43221 | B7: ='DF raw data'!A12 -> -3.8244198e-06 | C7: ='DF raw data'!B12 -> 1.8293598e-06 | D7: ='DF raw data'!C12 -> -5.410413e-06 | F7: =(1-$G$1*($B$2-$G$2))*B7 -> -3.829896369e-06 | G7: =(1-$G$1*($B$2-$G$2))*C7*$M$2/$M$1 -> 1.836203727e-06 | H7: =(1-$G$1*($B$2-$G$2))*D7 -> -5.418160711e-06 | J7: =F7*$B$1+J6 -> -3.720362854e-06 | K7: =J7*$B$1+K6 -> -2.763646867e-06 | L7: =G7*$B$1+L6 -> -6.447845378e-07 | M7: =L7*$B$1+M6 -> -1.104491963e-06 | N7: =(J7^2+L7^2)*$B$1+N6 -> 8.353835161e-12
A8: =A7+$B$1 -> 0.93242 | B8: ='DF raw data'!A13 -> -4.0119212e-06 | C8: ='DF raw data'!B13 -> 8.3396717e-06 | D8: ='DF raw data'!C13 -> 3.7275931e-06 | F8: -4.017666271e-06 | G8: 8.370871743e-06 | H8: 3.732931013e-06 | J8: =F8*$B$1+J7 -> -5.7300397e-06 | K8: =J8*$B$1+K7 -> -5.629870026e-06 | L8: =G8*$B$1+L7 -> 3.542409217e-06 | M8: =L8*$B$1+M7 -> 6.674565515e-07 | N8: =(J8^2+L8^2)*$B$1+N7 -> 3.10543744e-11
A9: 1.43263 | B9: ='DF raw data'!A14 -> -3.2794796e-06 | C9: ='DF raw data'!B14 -> -9.8584605e-06 | D9: ='DF raw data'!C14 -> 1.4502828e-05 | F9: -3.284175815e-06 | G9: -9.895342575e-06 | H9: 1.452359605e-05 | J9: -7.372817284e-06 | K9: -9.317826959e-06 | L9: -1.407340092e-06 | M9: -3.650903609e-08 | N9: 5.923572602e-11
A10: 1.93284 | B10: ='DF raw data'!A15 -> -3.4941495e-06 | C10: ='DF raw data'!B15 -> -3.57831e-06 | D10: ='DF raw data'!C15 -> 1.6567868e-05 | F10: -3.499153122e-06 | G10: -3.591697029e-06 | H10: 1.659159319e-05 | J10: -9.123128667e-06 | K10: -1.388130715e-05 | L10: -3.203942863e-06 | M10: -1.639153296e-06 | N10: 1.060037236e-10
A11: 2.43305 | B11: ='DF raw data'!A16 -> -3.6292495e-06 | C11: ='DF raw data'!B16 -> -1.9530337e-06 | D11: ='DF raw data'!C16 -> 4.1064886e-06 | F11: =(1-$G$1*($B$2-$G$2))*B11 -> -3.634446585e-06 | G11: -1.960340311e-06 | H11: =(1-$G$1*($B$2-$G$2))*D11 -> 4.112369092e-06 | J11: -1.094111519e-05 | K11: -1.935416238e-05 | L11: -4.18452469e-06 | M11: -3.732294391e-06 | N11: 1.746416637e-10
A12: 2.93326 | B12: ='DF raw data'!A17 -> -3.7240989e-06 | C12: ='DF raw data'!B17 -> -9.3231563e-07 | D12: ='DF raw data'!C17 -> -4.9794726e-06 | F12: -3.72943181e-06 | G12: -9.358035716e-07 | H12: -4.986603205e-06 | J12: -1.280661428e-05 | K12: -2.576015891e-05 | L12: -4.652622995e-06 | M12: -6.059582939e-06 | N12: 2.675087866e-10
A13: 3.43347 | B13: ='DF raw data'!A18 -> -3.5626963e-06 | C13: ='DF raw data'!B18 -> -6.0751327e-06 | D13: ='DF raw data'!C18 -> -9.3399685e-06 | F13: -3.567798081e-06 | G13: -6.097860741e-06 | H13: -9.353343335e-06 | J13: -1.459126256e-05 | K13: -3.305885435e-05 | L13: -7.702833916e-06 | M13: -9.912617492e-06 | N13: 4.036852533e-10
A14: 3.93368 | B14: ='DF raw data'!A19 -> -3.5741123e-06 | C14: ='DF raw data'!B19 -> -5.8009396e-06 | D14: ='DF raw data'!C19 -> -9.823747e-06 | F14: -3.579230429e-06 | G14: -5.822641841e-06 | H14: -9.837814606e-06 | J14: -1.638162941e-05 | K14: -4.12531092e-05 | L14: -1.061537759e-05 | M14: -1.522253552e-05 | N14: 5.942872844e-10
A15: 4.43389 | B15: ='DF raw data'!A20 -> -3.6078218e-06 | C15: ='DF raw data'!B20 -> -5.1059178e-06 | D15: ='DF raw data'!C20 -> -1.1301581e-05 | F15: -3.612988201e-06 | G15: -5.125019854e-06 | H15: -1.131776486e-05 | J15: -1.818888224e-05 | K15: -5.035136999e-05 | L15: -1.317896377e-05 | M15: -2.181478499e-05 | N15: 8.466534953e-10
A16: 4.9341 | B16: ='DF raw data'!A21 -> -3.809002e-06 | C16: ='DF raw data'!B21 -> 5.0162623e-07 | D16: ='DF raw data'!C21 -> -1.0403495e-05 | F16: -3.814456491e-06 | G16: 5.035028938e-07 | H16: -1.04183928e-05 | J16: -2.009691152e-05 | K16: -6.04040461e-05 | L16: -1.292710659e-05 | M16: -2.828105297e-05 | N16: 1.132271373e-09
A17: 5.43431 | B17: ='DF raw data'!A22 -> -3.5088979e-06 | C17: ='DF raw data'!B22 -> -6.4092342e-06 | D17: ='DF raw data'!C22 -> -2.6369053e-06 | F17: -3.513922642e-06 | G17: -6.433212168e-06 | H17: -2.640681348e-06 | J17: -2.185461076e-05 | K17: -7.133594095e-05 | L17: -1.614506365e-05 | M17: -3.635697526e-05 | N17: 1.501569959e-09
A18: 5.93452 | B18: ='DF raw data'!A23 -> -3.584255e-06 | C18: ='DF raw data'!B23 -> -4.3517871e-06 | D18: ='DF raw data'!C23 -> -2.8134054e-06 | F18: -3.589387653e-06 | G18: -4.36806783e-06 | H18: -2.817434197e-06 | J18: -2.365005836e-05 | K18: -8.316593664e-05 | L18: -1.833001486e-05 | M18: -4.552583199e-05 | N18: 1.949415328e-09
A19: 6.43473 | B19: ='DF raw data'!A24 -> -3.5229186e-06 | C19: ='DF raw data'!B24 -> -5.3115291e-06 | D19: ='DF raw data'!C24 -> 1.0867988e-06 | F19: -3.527963419e-06 | G19: -5.331400378e-06 | H19: 1.088355096e-06 | J19: -2.541478094e-05 | K19: -9.587866422e-05 | L19: -2.099683464e-05 | M19: -5.602865865e-05 | N19: 2.493032629e-09
A20: 6.93494 | B20: ='DF raw data'!A25 -> -3.6138244e-06 | C20: ='DF raw data'!B25 -> -2.2561801e-06 | D20: ='DF raw data'!C25 -> 4.3995278e-06 | F20: -3.618999397e-06 | G20: -2.26462083e-06 | H20: 4.405827924e-06 | J20: -2.722504063e-05 | K20: -0.0001094969018 | L20: -2.212962063e-05 | M20: -6.709811618e-05 | N20: 3.108752596e-09
A21: 7.43515 | B21: ='DF raw data'!A26 -> -3.9515162e-06 | C21: ='DF raw data'!B26 -> 6.062337e-06 | D21: ='DF raw data'!C26 -> -7.7338706e-07 | F21: -3.957174771e-06 | G21: 6.085017171e-06 | H21: -7.744945503e-07 | J21: -2.920445902e-05 | K21: -0.0001241052642 | L21: -1.908583419e-05 | M21: -7.66450413e-05 | N21: 3.717592949e-09
A22: 7.93536 | B22: ='DF raw data'!A27 -> -8.6401445e-07 | C22: ='DF raw data'!B27 -> -1.8418888e-06 | D22: ='DF raw data'!C27 -> -3.1827767e-06 | F22: -8.652517187e-07 | G22: -1.8487796e-06 | H22: -3.187334436e-06 | J22: -2.963726659e-05 | K22: -0.0001389301214 | L22: -2.001061223e-05 | M22: -8.665454965e-05 | N22: 4.357257581e-09
A23: 8.43557 | B23: ='DF raw data'!A28 -> 3.7289483e-06 | C23: ='DF raw data'!B28 -> 3.6178174e-06 | D23: ='DF raw data'!C28 -> -5.5603559e-06 | F23: 3.734288154e-06 | G23: 3.631352233e-06 | H23: -5.56831833e-06 | J23: -2.776933831e-05 | K23: -0.0001528206221 | L23: -1.819417353e-05 | M23: -9.575545719e-05 | N23: 4.908571086e-09
A24: 8.93578 | B24: ='DF raw data'!A29 -> 5.4524189e-06 | C24: ='DF raw data'!B29 -> 9.3215622e-06 | D24: ='DF raw data'!C29 -> -8.9489586e-06 | F24: 5.460226764e-06 | G24: 9.356435652e-06 | H24: -8.961773509e-06 | J24: -2.503807828e-05 | K24: -0.0001653449192 | L24: -1.351399085e-05 | M24: -0.0001025152906 | N24: 5.313507744e-09
A25: 9.43599 | B25: ='DF raw data'!A30 -> 8.0679292e-06 | C25: ='DF raw data'!B30 -> 5.6012123e-06 | D25: ='DF raw data'!C30 -> -9.7025998e-07 | F25: 8.079482475e-06 | G25: 5.622167329e-06 | H25: -9.716493923e-07 | J25: -2.099664035e-05 | K25: -0.0001758476487 | L25: -1.070172653e-05 | M25: -0.0001078684012 | N25: 5.591317304e-09
A26: 9.9362 | B26: ='DF raw data'!A31 -> 4.7640333e-06 | C26: ='DF raw data'!B31 -> 9.7515986e-06 | D26: ='DF raw data'!C31 -> -3.2927892e-06 | F26: 4.770855396e-06 | G26: 9.788080887e-06 | H26: -3.297504474e-06 | J26: -1.861021077e-05 | K26: -0.0001851566622 | L26: -5.805630593e-06 | M26: -0.0001107724357 | N26: 5.781419759e-09
A27: 10.43641 | B27: ='DF raw data'!A32 -> 8.035841e-07 | C27: ='DF raw data'!B32 -> 3.7652546e-06 | D27: ='DF raw data'!C32 -> -8.4245075e-06 | F27: 8.047348324e-07 | G27: 3.779341019e-06 | H27: -8.436571395e-06 | J27: -1.820767436e-05 | K27: -0.000194264323 | L27: -3.915166422e-06 | M27: -0.0001127308411 | N27: 5.954916564e-09
A28: 10.93662 | B28: ='DF raw data'!A33 -> -1.7196816e-06 | C28: ='DF raw data'!B33 -> -6.7440745e-08 | D28: ='DF raw data'!C33 -> -8.9250061e-06 | F28: -1.722144184e-06 | G28: -6.769305159e-08 | H28: -8.937786709e-06 | J28: -1.906910811e-05 | K28: -0.0002038028816 | L28: -3.949027164e-06 | M28: -0.0001147061839 | N28: 6.144609051e-09
A29: 11.43683 | B29: ='DF raw data'!A34 -> -1.3112384e-06 | C29: ='DF raw data'!B34 -> 5.2017322e-06 | D29: ='DF raw data'!C34 -> -4.8206093e-06 | F29: -1.313116093e-06 | G29: 5.221192711e-06 | H29: -4.827512413e-06 | J29: -1.972594191e-05 | K29: -0.000213669995 | L29: -1.337334358e-06 | M29: -0.000115375132 | N29: 6.340141764e-09
A30: 11.93704 | B30: ='DF raw data'!A35 -> 3.0262717e-07 | C30: ='DF raw data'!B35 -> 3.3628382e-06 | D30: ='DF raw data'!C35 -> -2.014287e-06 | F30: 3.030605321e-07 | G30: 3.375419115e-06 | H30: -2.017171459e-06 | J30: -1.9574348e-05 | K30: -0.0002234612796 | L30: 3.510840374e-07 | M30: -0.0001151995162 | N30: 6.531861432e-09
A31: 12.43725 | B31: ='DF raw data'!A36 -> -3.3682764e-07 | C31: ='DF raw data'!B36 -> 2.3696064e-06 | D31: ='DF raw data'!C36 -> -2.0320549e-06 | F31: -3.373099772e-07 | G31: 2.378471476e-06 | H31: -2.034964803e-06 | J31: -1.974307382e-05 | K31: -0.0002333369625 | L31: 1.540819254e-06 | M31: -0.000114428783 | N31: 6.728025331e-09
A32: 12.93746 | B32: ='DF raw data'!A37 -> -4.9793907e-06 | C32: ='DF raw data'!B37 -> -3.9314918e-06 | D32: ='DF raw data'!C37 -> 4.3323053e-06 | F32: -4.986521187e-06 | G32: -3.946200139e-06 | H32: 4.338509161e-06 | J32: -2.223738158e-05 | K32: -0.0002444603232 | L32: -4.331095169e-07 | M32: -0.0001146454287 | N32: 6.975473577e-09
A33: 13.43767 | B33: ='DF raw data'!A38 -> -7.1171035e-06 | C33: ='DF raw data'!B38 -> -1.2633485e-06 | D33: ='DF raw data'!C38 -> 2.5681547e-06 | F33: -7.127295192e-06 | G33: -1.268074888e-06 | H33: 2.571832298e-06 | J33: -2.580252591e-05 | K33: -0.0002573670047 | L33: -1.067413257e-06 | M33: -0.0001151793595 | N33: 7.309068485e-09
A34: 13.93788 | B34: ='DF raw data'!A39 -> -3.8411108e-06 | C34: ='DF raw data'!B39 -> -1.269352e-05 | D34: ='DF raw data'!C39 -> -4.1291751e-06 | F34: -3.846611271e-06 | G34: -1.274100848e-05 | H34: -4.135088079e-06 | J34: -2.772663934e-05 | K34: -0.0002712361469 | L34: -7.440593111e-06 | M34: -0.0001189012186 | N34: 7.72130603e-09
A35: 14.43809 | B35: ='DF raw data'!A40 -> -2.5071222e-06 | C35: ='DF raw data'!B40 -> -2.8576699e-06 | D35: ='DF raw data'!C40 -> -1.3410282e-06 | F35: -2.510712399e-06 | G35: -2.868360899e-06 | H35: -1.342948552e-06 | J35: -2.898252279e-05 | K35: -0.0002857334947 | L35: -8.875375917e-06 | M35: -0.0001233407704 | N35: 8.180878432e-09
A36: 14.9383 | B36: ='DF raw data'!A41 -> 6.0340068e-07 | C36: ='DF raw data'!B41 -> 9.1114143e-06 | D36: ='DF raw data'!C41 -> 5.4744663e-07 | F36: 6.042647498e-07 | G36: 9.145501556e-06 | H36: 5.482305736e-07 | J36: -2.868026352e-05 | K36: -0.0003000796493 | L36: -4.300704583e-06 | M36: -0.0001254920258 | N36: 8.60158184e-09
A37: 15.43851 | B37: ='DF raw data'!A42 -> 4.6372716e-06 | C37: ='DF raw data'!B42 -> 4.3928958e-06 | D37: ='DF raw data'!C42 -> 1.3491552e-06 | F37: 4.643912173e-06 | G37: 4.409330325e-06 | H37: 1.35108719e-06 | J37: -2.635733221e-05 | K37: -0.0003132638504 | L37: -2.095113462e-06 | M37: -0.0001265400225 | N37: 8.951277882e-09
A38: 15.93872 | B38: ='DF raw data'!A43 -> 3.689629e-06 | C38: ='DF raw data'!B43 -> 1.8463051e-06 | D38: ='DF raw data'!C43 -> 1.6436569e-06 | F38: 3.694912549e-06 | G38: 1.853212422e-06 | H38: 1.646010617e-06 | J38: -2.45091e-05 | K38: -0.0003255235473 | L38: -1.168118076e-06 | M38: -0.0001271243269 | N38: 9.252434556e-09
A39: 16.43893 | B39: ='DF raw data'!A44 -> -1.0310922e-06 | C39: ='DF raw data'!B44 -> -2.1941436e-07 | D39: ='DF raw data'!C44 -> 4.42901e-06 | F39: -1.032568724e-06 | G39: -2.202352242e-07 | H39: 4.435352342e-06 | J39: -2.50256012e-05 | K39: -0.0003380416033 | L39: -1.278281938e-06 | M39: -0.0001277637363 | N39: 9.566523778e-09
A40: 16.93914 | B40: ='DF raw data'!A45 -> -2.9707608e-06 | C40: ='DF raw data'!B45 -> -5.7499706e-06 | D40: ='DF raw data'!C45 -> -4.6804425e-07 | F40: -2.975014929e-06 | G40: -5.771482158e-06 | H40: -4.687144894e-07 | J40: -2.651373342e-05 | K40: -0.0003513040379 | L40: -4.165235028e-06 | M40: -0.0001298472285 | N40: 9.926838668e-09
A41: 17.43935 | B41: ='DF raw data'!A46 -> -8.9805866e-07 | C41: ='DF raw data'!B46 -> -7.3800502e-06 | D41: ='DF raw data'!C46 -> -1.1066641e-05 | F41: -8.9934468e-07 | G41: -7.407660146e-06 | H41: -1.108248843e-05 | J41: -2.696359462e-05 | K41: -0.0003647914976 | L41: -7.87062071e-06 | M41: -0.0001337841917 | N41: 1.032149541e-08
A42: 17.93956 | B42: ='DF raw data'!A47 -> 1.5007155e-06 | C42: ='DF raw data'!B47 -> -5.6393596e-06 | D42: ='DF raw data'!C47 -> -6.3770385e-06 | F42: 1.502864525e-06 | G42: -5.660457345e-06 | H42: -6.386170419e-06 | J42: -2.621184676e-05 | K42: -0.0003779029254 | L42: -1.070203808e-05 | M42: -0.0001391374581 | N42: 1.072246101e-08
A43: 18.43977 | B43: ='DF raw data'!A48 -> -3.9088573e-06 | C43: ='DF raw data'!B48 -> 2.2473871e-06 | D43: ='DF raw data'!C48 -> -1.7899954e-07 | F43: -3.914454784e-06 | G43: 2.255794934e-06 | H43: -1.792558673e-07 | J43: -2.816989619e-05 | K43: -0.0003919937892 | L43: -9.573666894e-06 | M43: -0.0001439263021 | N43: 1.116524597e-08
A44: 18.93998 | B44: ='DF raw data'!A49 -> -7.2229032e-06 | C44: ='DF raw data'!B49 -> -9.875539e-06 | D44: ='DF raw data'!C49 -> -2.251556e-06 | F44: -7.233246397e-06 | G44: -9.912484968e-06 | H44: -2.254780228e-06 | J44: -3.178803837e-05 | K44: -0.0004078944839 | L44: -1.4531991e-05 | M44: -0.0001511953493 | N44: 1.177633159e-08
A45: 19.44019 | B45: ='DF raw data'!A50 -> -3.8830276e-06 | C45: ='DF raw data'!B50 -> 9.703557e-07 | D45: ='DF raw data'!C50 -> -2.1498672e-06 | F45: -3.888588096e-06 | G45: 9.739859556e-07 | H45: -2.15294581e-06 | J45: -3.373314902e-05 | K45: -0.0004247681423 | L45: -1.404479349e-05 | M45: -0.0001582206954 | N45: 1.244420277e-08
A46: 19.9404 | B46: ='DF raw data'!A51 -> -1.3243861e-06 | C46: ='DF raw data'!B51 -> 1.3945215e-05 | D46: ='DF raw data'!C51 -> 8.2734368e-06 | F46: -1.326282621e-06 | G46: 1.399738628e-05 | H46: 8.285284361e-06 | J46: -3.439656885e-05 | K46: -0.00044197365 | L46: -7.043160896e-06 | M46: -0.0001617437549 | N46: 1.306082667e-08
A47: 20.44061 | B47: ='DF raw data'!A52 -> 3.5384419e-06 | C47: ='DF raw data'!B52 -> 7.0833221e-06 | D47: ='DF raw data'!C52 -> 1.1582571e-05 | F47: 3.543508949e-06 | G47: 7.109821939e-06 | H47: 1.159915724e-05 | J47: -3.262407024e-05 | K47: -0.0004582925362 | L47: -3.486756864e-06 | M47: -0.0001634878656 | N47: 1.359929645e-08
A48: 20.94082 | B48: ='DF raw data'!A53 -> 8.4938565e-06 | C48: ='DF raw data'!B53 -> -8.8529532e-06 | D48: ='DF raw data'!C53 -> 5.9700651e-06 | F48: 8.506019703e-06 | G48: -8.886073511e-06 | H48: 5.978614233e-06 | J48: -2.836927412e-05 | K48: -0.0004724831308 | L48: -7.931659695e-06 | M48: -0.0001674553611 | N48: 1.403334214e-08
A49: 21.44103 | B49: ='DF raw data'!A54 -> 7.5488842e-06 | C49: ='DF raw data'!B54 -> -1.6336617e-05 | D49: ='DF raw data'!C54 -> 6.2388099e-06 | F49: 7.559694202e-06 | G49: -1.639773489e-05 | H49: 6.247743876e-06 | J49: -2.458783948e-05 | K49: -0.000484782214 | L49: -1.613397067e-05 | M49: -0.0001755257345 | N49: 1.446595719e-08
A50: 21.94124 | B50: ='DF raw data'!A55 -> 3.1082436e-06 | C50: ='DF raw data'!B55 -> 4.8424126e-06 | D50: ='DF raw data'!C55 -> 2.3344539e-07 | F50: 3.112694605e-06 | G50: 4.860528839e-06 | H50: 2.337796838e-07 | J50: -2.303083852e-05 | K50: -0.0004963024697 | L50: -1.370268554e-05 | M50: -0.0001823799549 | N50: 1.482519957e-08
A51: 22.44145 | B51: ='DF raw data'!A56 -> -1.6272332e-06 | C51: ='DF raw data'!B56 -> 8.6282753e-06 | D51: ='DF raw data'!C56 -> 4.4557637e-06 | F51: -1.629563398e-06 | G51: 8.660555055e-06 | H51: 4.462144354e-06 | J51: -2.384596242e-05 | K51: -0.0005082304586 | L51: -9.370589291e-06 | M51: -0.0001870672173 | N51: 1.515355635e-08
A52: 22.94166 | B52: ='DF raw data'!A57 -> 8.6926417e-07 | C52: ='DF raw data'!B57 -> -7.0348813e-07 | D52: ='DF raw data'!C57 -> 8.9320565e-06 | F52: 8.705089563e-07 | G52: -7.061199914e-07 | H52: 8.944847205e-06 | J52: -2.341052514e-05 | K52: -0.0005199406374 | L52: -9.723797572e-06 | M52: -0.0001919311581 | N52: 1.547499376e-08
A53: 23.44187 | B53: ='DF raw data'!A58 -> 4.6667756e-06 | C53: ='DF raw data'!B58 -> 2.1832086e-06 | D53: ='DF raw data'!C58 -> 4.4525041e-06 | F53: 4.673458423e-06 | G53: 2.191376332e-06 | H53: 4.458880086e-06 | J53: -2.10728145e-05 | K53: -0.0005304814699 | L53: -8.627649217e-06 | M53: -0.0001962467945 | N53: 1.573435257e-08
A54: 23.94208 | B54: ='DF raw data'!A59 -> 6.6330158e-06 | C54: ='DF raw data'!B59 -> 4.2429238e-06 | D54: ='DF raw data'!C59 -> 9.4975658e-06 | F54: 6.642514279e-06 | G54: 4.258797255e-06 | H54: 9.511166314e-06 | J54: -1.775016243e-05 | K54: -0.0005393602787 | L54: -6.497356242e-06 | M54: -0.0001994968371 | N54: 1.591306955e-08
A55: 24.44229 | B55: ='DF raw data'!A60 -> 6.1352675e-06 | C55: ='DF raw data'!B60 -> -8.6337323e-06 | D55: ='DF raw data'!C60 -> 1.1073167e-05 | F55: 6.144053203e-06 | G55: -8.666032471e-06 | H55: 1.108902378e-05 | J55: -1.467684558e-05 | K55: -0.0005467017836 | L55: -1.083219234e-05 | M55: -0.000204915208 | N55: 1.607951252e-08
A56: 24.9425 | B56: ='DF raw data'!A61 -> 1.7342082e-06 | C56: ='DF raw data'!B61 -> -1.004806e-05 | D56: ='DF raw data'!C61 -> 8.6155233e-06 | F56: 1.736691586e-06 | G56: -1.00856514e-05 | H56: 8.627860729e-06 | J56: -1.380813508e-05 | K56: -0.0005536087509 | L56: -1.587713603e-05 | M56: -0.0002128571103 | N56: 1.630097952e-08
A57: 25.44271 | B57: ='DF raw data'!A62 -> -2.8992745e-06 | C57: ='DF raw data'!B62 -> -1.2518739e-06 | D57: ='DF raw data'!C62 -> -1.7215172e-06 | F57: -2.903426261e-06 | G57: -1.25655736e-06 | H57: -1.723982413e-06 | J57: -1.526045793e-05 | K57: -0.0005612421845 | L57: -1.650567859e-05 | M57: -0.0002211134157 | N57: 1.655374514e-08
A58: 25.94292 | B58: ='DF raw data'!A63 -> -6.4348018e-07 | C58: ='DF raw data'!B63 -> -2.1228864e-06 | D58: ='DF raw data'!C63 -> -9.018182e-06 | F58: -6.444016436e-07 | G58: -2.130828457e-06 | H58: -9.031096037e-06 | J58: -1.558279408e-05 | K58: -0.0005690368539 | L58: -1.757154029e-05 | M58: -0.0002299028759 | N58: 1.682965222e-08
A59: 26.44313 | B59: ='DF raw data'!A64 -> -6.6543902e-07 | C59: ='DF raw data'!B64 -> 3.7524458e-06 | D59: ='DF raw data'!C64 -> -3.1056516e-06 | F59: -6.663919287e-07 | G59: 3.766484299e-06 | H59: -3.110098893e-06 | J59: -1.591612999e-05 | K59: -0.0005769982613 | L59: -1.568750718e-05 | M59: -0.0002377499239 | N59: 1.707946764e-08
A60: 26.94334 | B60: ='DF raw data'!A65 -> -6.1947594e-06 | C60: ='DF raw data'!B65 -> 7.6805418e-06 | D60: ='DF raw data'!C65 -> -6.2205763e-06 | F60: -6.203630295e-06 | G60: 7.709275933e-06 | H60: -6.229484165e-06 | J60: -1.90192479e-05 | K60: -0.0005865118793 | L60: -1.183125026e-05 | M60: -0.0002436680336 | N60: 1.733042813e-08
A61: 27.44355 | B61: ='DF raw data'!A66 -> -8.9692639e-06 | C61: ='DF raw data'!B66 -> 2.5225138e-06 | D61: ='DF raw data'!C66 -> -1.184006e-05 | F61: -8.982107886e-06 | G61: 2.531950927e-06 | H61: -1.185701497e-05 | J61: -2.351218808e-05 | K61: -0.0005982729109 | L61: -1.056474309e-05 | M61: -0.0002489526237 | N61: 1.766278606e-08
A62: 27.94376 | B62: ='DF raw data'!A67 -> -6.7152741e-06 | C62: ='DF raw data'!B67 -> 3.4463635e-06 | D62: ='DF raw data'!C67 -> -8.5409229e-06 | F62: -6.724890373e-06 | G62: 3.459256896e-06 | H62: -8.553153502e-06 | J62: -2.687604549e-05 | K62: -0.0006117165776 | L62: -8.834388198e-06 | M62: -0.000253371673 | N62: 1.806313825e-08
A63: 28.44397 | B63: ='DF raw data'!A68 -> 3.6569891e-06 | C63: ='DF raw data'!B68 -> -1.7925267e-07 | D63: ='DF raw data'!C68 -> -1.846911e-06 | F63: 3.662225908e-06 | G63: -1.799232829e-07 | H63: -1.849555777e-06 | J63: -2.504416347e-05 | K63: -0.0006242439186 | L63: -8.924387623e-06 | M63: -0.000257835741 | N63: 1.84167141e-08
A64: 28.94418 | B64: ='DF raw data'!A69 -> 6.4958422e-06 | C64: ='DF raw data'!B69 -> -6.0106872e-06 | D64: ='DF raw data'!C69 -> -3.4947261e-06 | F64: 6.505144246e-06 | G64: -6.03317414e-06 | H64: -3.499730548e-06 | J64: -2.179022527e-05 | K64: -0.0006351436072 | L64: -1.194224166e-05 | M64: -0.0002638093697 | N64: 1.872555929e-08
A65: 29.44439 | B65: ='DF raw data'!A70 -> 6.0500224e-06 | C65: ='DF raw data'!B70 -> 9.4597926e-06 | D65: ='DF raw data'!C70 -> -5.3572403e-06 | F65: 6.058686032e-06 | G65: 9.495183194e-06 | H65: -5.364911868e-06 | J65: -1.875960993e-05 | K65: -0.0006445273517 | L65: -7.192656074e-06 | M65: -0.0002674072082 | N65: 1.892747269e-08
A66: 29.9446 | B66: ='DF raw data'!A71 -> 5.3672466e-06 | C66: ='DF raw data'!B71 -> 1.3149322e-05 | D66: ='DF raw data'!C71 -> -2.8207978e-06 | F66: 5.374932497e-06 | G66: 1.319851571e-05 | H66: -2.824837182e-06 | J66: -1.607101494e-05 | K66: -0.0006525662341 | L66: -5.906265297e-07 | M66: -0.0002677026455 | N66: 1.905684018e-08
A67: 30.44481 | B67: ='DF raw data'!A72 -> 4.5169927e-06 | C67: ='DF raw data'!B72 -> 1.2133674e-05 | D67: ='DF raw data'!C72 -> -2.2831628e-06 | F67: 4.523461034e-06 | G67: 1.217906801e-05 | H67: -2.286432289e-06 | J67: -1.38083345e-05 | K67: -0.0006594733011 | L67: 5.50146508e-06 | M67: -0.0002649507576 | N67: 1.916735469e-08
A68: 30.94502 | B68: ='DF raw data'!A73 -> 5.9035065e-06 | C68: ='DF raw data'!B73 -> 1.1973161e-05 | D68: ='DF raw data'!C73 -> 5.7618666e-07 | F68: 5.911960321e-06 | G68: 1.201795451e-05 | H68: 5.770117593e-07 | J68: -1.085111283e-05 | K68: -0.0006649011362 | L68: 1.15129661e-05 | M68: -0.0002591918568 | N68: 1.929255477e-08
A69: 31.44523 | B69: ='DF raw data'!A74 -> 5.6344415e-06 | C69: ='DF raw data'!B74 -> 3.351897e-06 | D69: ='DF raw data'!C74 -> 7.5536555e-06 | F69: 5.64251002e-06 | G69: 3.364436982e-06 | H69: 7.564472335e-06 | J69: -8.028672891e-06 | K69: -0.0006689171587 | L69: 1.319589113e-05 | M69: -0.0002525911401 | N69: 1.941190044e-08
A70: 31.94544 | B70: ='DF raw data'!A75 -> 6.0012953e-06 | C70: ='DF raw data'!B75 -> -1.1088392e-05 | D70: ='DF raw data'!C75 -> 5.9053746e-06 | F70: 6.009889155e-06 | G70: -1.112987544e-05 | H70: 5.913831096e-06 | J70: -5.022466237e-06 | K70: -0.0006714294465 | L70: 7.628616131e-06 | M70: -0.0002487752301 | N70: 1.945362843e-08
A71: 32.44565 | B71: ='DF raw data'!A76 -> 7.2125968e-06 | C71: ='DF raw data'!B76 -> -8.7056496e-06 | D71: ='DF raw data'!C76 -> -3.991805e-06 | F71: 7.222925239e-06 | G71: =(1-$G$1*($B$2-$G$2))*C71*$M$2/$M$1 -> -8.738218825e-06 | H71: -3.997521265e-06 | J71: -1.409486804e-06 | K71: -0.0006721344859 | L71: 3.257671692e-06 | M71: -0.0002471457101 | N71: 1.945993062e-08
A72: =A71+$B$1 -> 32.94586 | B72: ='DF raw data'!A77 -> 6.3481257e-06 | C72: ='DF raw data'!B77 -> -1.2153147e-06 | D72: ='DF raw data'!C77 -> -8.1877448e-07 | F72: 6.357216216e-06 | G72: -1.219861386e-06 | H72: -8.199469651e-07 | J72: =F72*$B$1+J71 -> 1.77045632e-06 | K72: =J72*$B$1+K71 -> -0.000671248886 | L72: =G72*$B$1+L71 -> 2.647484828e-06 | M72: =L72*$B$1+M71 -> -0.0002458214117 | N72: =(J72^2+L72^2)*$B$1+N71 -> 1.946500459e-08
A73: 33.44607 | B73: ='DF raw data'!A78 -> 2.1197466e-06 | C73: ='DF raw data'!B78 -> 2.8025777e-06 | D73: ='DF raw data'!C78 -> 2.3619104e-06 | F73: 2.122782077e-06 | G73: 2.813062591e-06 | H73: 2.365292656e-06 | J73: 2.832293143e-06 | K73: -0.0006698321446 | L73: 4.054606867e-06 | M73: -0.0002437932568 | N73: 1.947724059e-08
A74: 33.94628 | B74: ='DF raw data'!A79 -> 4.9961145e-06 | C74: ='DF raw data'!B79 -> 3.1241368e-06 | D74: ='DF raw data'!C79 -> 3.8529142e-06 | F74: 5.003268936e-06 | G74: 3.135824695e-06 | H74: 3.858431573e-06 | J74: 5.334978297e-06 | K74: -0.0006671635351 | L74: 5.623177737e-06 | M74: -0.0002409804871 | N74: 1.950729427e-08
A75: 34.44649 | B75: ='DF raw data'!A80 -> 1.3109979e-05 | C75: ='DF raw data'!B80 -> -2.1838625e-06 | D75: ='DF raw data'!C80 -> 4.5388188e-06 | F75: =(1-$G$1*($B$2-$G$2))*B75 -> 1.312875249e-05 | G75: -2.192032678e-06 | H75: =(1-$G$1*($B$2-$G$2))*D75 -> 4.545318389e-06 | J75: 1.190211158e-05 | K75: -0.0006612099799 | L75: 4.526701071e-06 | M75: -0.0002387161859 | N75: 1.958840396e-08
A76: 34.9467 | B76: ='DF raw data'!A81 -> 1.2933966e-05 | C76: ='DF raw data'!B81 -> -4.2503825e-06 | D76: ='DF raw data'!C81 -> 2.3490611e-06 | F76: 1.295248744e-05 | G76: -4.26628386e-06 | H76: 2.352424955e-06 | J76: 1.838107532e-05 | K76: -0.0006520155822 | L76: 2.392663222e-06 | M76: -0.0002375193519 | N76: 1.97602705e-08
A77: 35.44691 | B77: ='DF raw data'!A82 -> 1.264356e-06 | C77: ='DF raw data'!B82 -> -9.0723131e-07 | D77: ='DF raw data'!C82 -> -2.132693e-07 | F77: 1.266166558e-06 | G77: -9.106254072e-07 | H77: -2.135747016e-07 | J77: 1.90144245e-05 | K77: -0.0006425043769 | L77: 1.937159287e-06 | M77: -0.0002365503654 | N77: 1.994299768e-08
A78: 35.94712 | B78: ='DF raw data'!A83 -> -6.2129857e-06 | C78: ='DF raw data'!B83 -> 7.4006027e-07 | D78: ='DF raw data'!C83 -> -3.1772615e-06 | F78: -6.221882696e-06 | G78: 7.428289536e-07 | H78: -3.181811338e-06 | J78: 1.590217655e-05 | K78: -0.0006345499492 | L78: 2.308729758e-06 | M78: -0.0002353955157 | N78: 2.007215663e-08
A79: 36.44733 | B79: ='DF raw data'!A84 -> -2.515133e-06 | C79: ='DF raw data'!B84 -> 9.1573138e-06 | D79: ='DF raw data'!C84 -> -3.8238866e-08 | F79: -2.51873467e-06 | G79: 9.191572773e-06 | H79: -3.829362406e-08 | J79: 1.464228028e-05 | K79: -0.0006272257342 | L79: 6.906446374e-06 | M79: -0.0002319408422 | N79: 2.020325935e-08
A80: 36.94754 | B80: ='DF raw data'!A85 -> 2.1500509e-06 | C80: ='DF raw data'!B85 -> 1.2182635e-06 | D80: ='DF raw data'!C85 -> 2.7291499e-06 | F80: 2.153129773e-06 | G80: 1.222821218e-06 | H80: 2.733058043e-06 | J80: 1.571929733e-05 | K80: -0.0006193627845 | L80: 7.518113776e-06 | M80: -0.0002281802065 | N80: 2.035513228e-08
A81: 37.44775 | B81: ='DF raw data'!A86 -> -4.206685e-07 | C81: ='DF raw data'!B86 -> -6.1475896e-07 | D81: ='DF raw data'!C86 -> -3.871417e-06 | F81: -4.212708973e-07 | G81: -6.170588714e-07 | H81: -3.876960869e-06 | J81: 1.550857341e-05 | K81: -0.000611605241 | L81: 7.209454758e-06 | M81: -0.0002245739651 | N81: 2.050143975e-08
A82: 37.94796 | B82: ='DF raw data'!A87 -> -3.9803508e-06 | C82: ='DF raw data'!B87 -> 5.8982214e-06 | D82: ='DF raw data'!C87 -> -7.8422272e-06 | F82: -3.986050662e-06 | G82: 5.920287588e-06 | H82: -7.853457269e-06 | J82: 1.351471101e-05 | K82: -0.0006048450474 | L82: 1.017084181e-05 | M82: -0.0002194864083 | N82: 2.064454655e-08
A83: 38.44817 | B83: ='DF raw data'!A88 -> -5.0434046e-06 | C83: ='DF raw data'!B88 -> 1.5267473e-06 | D83: ='DF raw data'!C88 -> -3.3768556e-06 | F83: -5.050626755e-06 | G83: 1.532459105e-06 | H83: -3.381691257e-06 | J83: 1.0988337e-05 | K83: -0.0005993485713 | L83: 1.093739318e-05 | M83: -0.0002140154149 | N83: 2.076478209e-08
A84: 38.94838 | B84: ='DF raw data'!A89 -> -2.4846249e-06 | C84: ='DF raw data'!B89 -> -1.5473075e-05 | D84: ='DF raw data'!C89 -> -1.3324426e-06 | F84: -2.488182883e-06 | G84: -1.553096224e-05 | H84: -1.334350658e-06 | J84: 9.74372304e-06 | K84: -0.0005944746636 | L84: 3.168650557e-06 | M84: -0.0002124304242 | N84: 2.081729437e-08
A85: 39.44859 | B85: ='DF raw data'!A90 -> 2.6405004e-07 | C85: ='DF raw data'!B90 -> -1.5451327e-05 | D85: ='DF raw data'!C90 -> 3.9721162e-06 | F85: 2.644281597e-07 | G85: -1.550913288e-05 | H85: 3.97780427e-06 | J85: 9.87599265e-06 | K85: -0.0005895345933 | L85: -4.589172801e-06 | M85: -0.0002147259743 | N85: 2.087661715e-08
A86: 39.9488 | B86: ='DF raw data'!A91 -> -2.3895063e-06 | C86: ='DF raw data'!B91 -> -1.4434753e-06 | D86: ='DF raw data'!C91 -> 2.0791231e-06 | F86: -2.392928073e-06 | G86: -1.448875572e-06 | H86: 2.082100404e-06 | J86: 8.679026099e-06 | K86: -0.0005851932577 | L86: -5.313914851e-06 | M86: -0.0002173840477 | N86: 2.092842049e-08
A87: 40.44901 | B87: ='DF raw data'!A92 -> -6.9487669e-06 | C87: ='DF raw data'!B92 -> 2.0611226e-06 | D87: ='DF raw data'!C92 -> -3.0453592e-08 | F87: -6.958717534e-06 | G87: 2.068833589e-06 | H87: -3.049720154e-08 | J87: 5.198206001e-06 | K87: -0.0005825930631 | L87: -4.279063601e-06 | M87: -0.0002195244781 | N87: 2.095109587e-08
A88: 40.94922 | B88: ='DF raw data'!A93 -> -7.6380838e-06 | C88: ='DF raw data'!B93 -> 1.6430957e-06 | D88: ='DF raw data'!C93 -> 3.1883064e-06 | F88: -7.649021536e-06 | G88: 1.649242783e-06 | H88: 3.192872055e-06 | J88: 1.372088938e-06 | K88: -0.0005819067305 | L88: -3.454095869e-06 | M88: -0.0002212522514 | N88: 2.095800548e-08
A89: 41.44943 | B89: ='DF raw data'!A94 -> -4.6955047e-06 | C89: ='DF raw data'!B94 -> -2.0487086e-07 | D89: ='DF raw data'!C94 -> -7.9488024e-07 | F89: -4.702228663e-06 | G89: -2.056373146e-07 | H89: -7.960185085e-07 | J89: -9.800128609e-07 | K89: -0.0005823969427 | L89: -3.55695771e-06 | M89: -0.0002230314772 | N89: 2.096481452e-08
A90: 41.94964 | B90: ='DF raw data'!A95 -> 1.6995601e-06 | C90: ='DF raw data'!B95 -> 2.1208903e-07 | D90: ='DF raw data'!C95 -> -1.6368687e-06 | F90: 1.70199387e-06 | G90: 2.128824889e-07 | H90: -1.639212696e-06 | J90: -1.286585072e-07 | K90: -0.000582461299 | L90: -3.45047176e-06 | M90: -0.0002247574377 | N90: 2.097077818e-08
A91: 42.44985 | B91: ='DF raw data'!A96 -> 4.485415e-06 | C91: ='DF raw data'!B96 -> -1.591446e-06 | D91: ='DF raw data'!C96 -> -8.1251716e-07 | F91: 4.491838114e-06 | G91: -1.597399854e-06 | H91: -8.136806846e-07 | J91: 2.118203836e-06 | K91: -0.0005814017522 | L91: -4.249507141e-06 | M91: -0.0002268830836 | N91: 2.098205547e-08
A92: 42.95006 | B92: ='DF raw data'!A97 -> 1.523009e-06 | C92: ='DF raw data'!B97 -> 7.1401619e-06 | D92: ='DF raw data'!C97 -> 2.1386113e-06 | F92: 1.525189949e-06 | G92: 7.166874386e-06 | H92: 2.141673791e-06 | J92: 2.8811191e-06 | K92: -0.0005799605876 | L92: -6.645649043e-07 | M92: -0.0002272155056 | N92: 2.098642855e-08
A93: 43.45027 | B93: ='DF raw data'!A98 -> 1.0472111e-07 | C93: ='DF raw data'!B98 -> 4.1744761e-06 | D93: ='DF raw data'!C98 -> 3.4655714e-06 | F93: 1.048710706e-07 | G93: 4.190093482e-06 | H93: 3.470534098e-06 | J93: 2.933576659e-06 | K93: -0.0005784931833 | L93: 1.431361756e-06 | M93: -0.0002264995242 | N93: 2.099175812e-08
A94: 43.95048 | B94: ='DF raw data'!A99 -> -1.6380453e-06 | C94: ='DF raw data'!B99 -> 4.8529528e-06 | D94: ='DF raw data'!C99 -> 1.0320971e-05 | F94: -1.640390981e-06 | G94: 4.871108471e-06 | H94: 1.033575063e-05 | J94: 2.113036686e-06 | K94: -0.0005774362212 | L94: 3.867938924e-06 | M94: -0.0002245647424 | N94: 2.100147514e-08
A95: 44.45069 | B95: ='DF raw data'!A100 -> -5.5276705e-06 | C95: ='DF raw data'!B100 -> 6.8081945e-06 | D95: ='DF raw data'!C100 -> 9.9257777e-06 | F95: -5.535586124e-06 | G95: 6.833665043e-06 | H95: 9.939991414e-06 | J95: -6.559188492e-07 | K95: -0.0005777643183 | L95: 7.286206515e-06 | M95: -0.0002209201091 | N95: 2.102824589e-08
A96: 44.9509 | B96: ='DF raw data'!A101 -> -7.9068868e-06 | C96: ='DF raw data'!B101 -> 1.209151e-05 | D96: ='DF raw data'!C101 -> -2.7285532e-06 | F96: -7.918209462e-06 | G96: 1.213674627e-05 | H96: -2.732460488e-06 | J96: -4.616686404e-06 | K96: -0.000580073631 | L96: 1.335712837e-05 | M96: -0.0002142387399 | N96: 2.112815117e-08
A97: 45.45111 | B97: ='DF raw data'!A102 -> -4.2452102e-06 | C97: ='DF raw data'!B102 -> 6.3958976e-07 | D97: ='DF raw data'!C102 -> -1.6022757e-07 | F97: -4.251289341e-06 | G97: 6.419825674e-07 | H97: -1.604570159e-07 | J97: -6.743223845e-06 | K97: -0.000583446659 | L97: 1.367825447e-05 | M97: -0.0002073967402 | N97: 2.124448287e-08
A98: 45.95132 | B98: ='DF raw data'!A103 -> -6.4292109e-08 | C98: ='DF raw data'!B103 -> -7.5137441e-06 | D98: ='DF raw data'!C103 -> 2.6957778e-07 | F98: -6.43841753e-08 | G98: -7.541854216e-06 | H98: 2.699638154e-07 | J98: -6.775429454e-06 | K98: -0.0005868357966 | L98: 9.905743569e-06 | M98: -0.0002024417882 | N98: 2.131652821e-08
A99: 46.45153 | B99: ='DF raw data'!A104 -> 2.5217796e-06 | C99: ='DF raw data'!B104 -> -5.363039e-07 | D99: ='DF raw data'!C104 -> -3.9471597e-06 | F99: 2.525390788e-06 | G99: -5.383102985e-07 | H99: -3.952812033e-06 | J99: -5.512203727e-06 | K99: -0.000589593056 | L99: 9.636475375e-06 | M99: -0.0001976215269 | N99: 2.137817712e-08
A100: 46.95174 | B100: ='DF raw data'!A105 -> 3.5052053e-06 | C100: ='DF raw data'!B105 -> -2.2958079e-06 | D100: ='DF raw data'!C105 -> 2.0812477e-06 | F100: 3.510224754e-06 | G100: -2.304396884e-06 | H100: 2.084228047e-06 | J100: -3.756354203e-06 | K100: -0.000591472022 | L100: 8.48379301e-06 | M100: -0.0001933778488 | N100: 2.142123767e-08
A101: 47.45195 | B101: ='DF raw data'!A106 -> -9.7161853e-07 | C101: ='DF raw data'!B106 -> 6.0489947e-06 | D101: ='DF raw data'!C106 -> -3.0199234e-07 | F101: -9.730098877e-07 | G101: 6.071624955e-06 | H101: -3.02424793e-07 | J101: -4.243063479e-06 | K101: -0.0005935944448 | L101: 1.152088053e-05 | M101: -0.0001876149891 | N101: 2.149663646e-08
A102: 47.95216 | B102: ='DF raw data'!A107 -> -2.963754e-06 | C102: ='DF raw data'!B107 -> 2.694627e-07 | D102: ='DF raw data'!C107 -> -3.879406e-06 | F102: -2.967998096e-06 | G102: 2.70470803e-07 | H102: -3.884961309e-06 | J102: -5.727685807e-06 | K102: -0.0005964594905 | L102: 1.165617273e-05 | M102: -0.000181784455 | N102: 2.158100825e-08
A103: 48.45237 | B103: ='DF raw data'!A108 -> -2.1147746e-07 | C103: ='DF raw data'!B108 -> -1.2165016e-05 | D103: ='DF raw data'!C108 -> 2.6126836e-06 | F103: -2.117802957e-07 | G103: -1.221052727e-05 | H103: 2.616424963e-06 | J103: -5.833620428e-06 | K103: -0.0005993775258 | L103: 5.548344884e-06 | M103: -0.0001790091174 | N103: 2.161342949e-08
A104: 48.95258 | B104: ='DF raw data'!A109 -> 7.649997e-07 | C104: ='DF raw data'!B109 -> -4.5580655e-06 | D104: ='DF raw data'!C109 -> 7.1301729e-06 | F104: 7.660951796e-07 | G104: -4.575117951e-06 | H104: 7.140383308e-06 | J104: -5.450411959e-06 | K104: -0.0006021038763 | L104: 3.259825134e-06 | M104: -0.0001773785203 | N104: 2.163360469e-08
A105: 49.45279 | B105: ='DF raw data'!A110 -> 1.8924676e-06 | C105: ='DF raw data'!B110 -> -9.1573002e-06 | D105: ='DF raw data'!C110 -> 6.7742403e-06 | F105: 1.895177614e-06 | G105: -9.191559122e-06 | H105: 6.783941012e-06 | J105: -4.502425165e-06 | K105: -0.0006043560344 | L105: -1.337884654e-06 | M105: -0.0001780477435 | N105: 2.164464021e-08
A106: 49.953 | B106: ='DF raw data'!A111 -> 4.8949933e-06 | C106: ='DF raw data'!B111 -> -1.3118753e-05 | D106: ='DF raw data'!C111 -> 1.8930943e-07 | F106: 4.90200293e-06 | G106: -1.316783235e-05 | H106: 1.895805211e-07 | J106: -2.050394279e-06 | K106: -0.0006053816621 | L106: -7.924566074e-06 | M106: -0.0001820116907 | N106: 2.167815571e-08
A107: 50.45321 | B107: ='DF raw data'!A112 -> 3.4843088e-06 | C107: ='DF raw data'!B112 -> 4.380754e-06 | D107: ='DF raw data'!C112 -> -4.2840511e-06 | F107: 3.48929833e-06 | G107: 4.3971431e-06 | H107: -4.290185861e-06 | J107: -3.050123609e-07 | K107: -0.0006055342324 | L107: -5.725071124e-06 | M107: -0.0001848754286 | N107: 2.169459735e-08
A108: 50.95342 | B108: ='DF raw data'!A113 -> -7.8312036e-07 | C108: ='DF raw data'!B113 -> -1.5306031e-06 | D108: ='DF raw data'!C113 -> -5.1950447e-06 | F108: -7.842417884e-07 | G108: -1.536329331e-06 | H108: -5.202484004e-06 | J108: -6.972979459e-07 | K108: -0.0006058830278 | L108: -6.493558418e-06 | M108: -0.0001881235714 | N108: 2.171593257e-08
A109: 51.45363 | B109: ='DF raw data'!A114 -> -3.544943e-06 | C109: ='DF raw data'!B114 -> -4.6170403e-06 | D109: ='DF raw data'!C114 -> -4.1276471e-06 | F109: -3.550019358e-06 | G109: -4.634313385e-06 | H109: -4.133557891e-06 | J109: -2.473053129e-06 | K109: -0.0006071200737 | L109: -8.811688316e-06 | M109: -0.000192531266 | N109: 2.175783108e-08
A110: 51.95384 | B110: ='DF raw data'!A115 -> -3.217001e-06 | C110: ='DF raw data'!B115 -> 4.4391954e-06 | D110: ='DF raw data'!C115 -> -1.3861537e-06 | F110: -3.221607745e-06 | G110: 4.455803139e-06 | H110: -1.388138672e-06 | J110: -4.084533539e-06 | K110: -0.0006091631982 | L110: -6.582851028e-06 | M110: -0.0001958240739 | N110: 2.178785235e-08
A111: 52.45405 | B111: ='DF raw data'!A116 -> -1.0968378e-06 | C111: ='DF raw data'!B116 -> 1.294291e-05 | D111: ='DF raw data'!C116 -> -3.8702237e-06 | F111: -1.098408472e-06 | G111: 1.299133149e-05 | H111: -3.87576586e-06 | J111: -4.633968441e-06 | K111: -0.0006114811556 | L111: -8.445710226e-08 | M111: -0.0001958663202 | N111: 2.179859726e-08
A112: 52.95426 | B112: ='DF raw data'!A117 -> 2.9393686e-06 | C112: ='DF raw data'!B117 -> 4.4310564e-06 | D112: ='DF raw data'!C117 -> -4.6048481e-06 | F112: 2.943577776e-06 | G112: 4.447633689e-06 | H112: -4.611442242e-06 | J112: -3.161561402e-06 | K112: -0.0006130626002 | L112: 2.140293746e-06 | M112: -0.0001947957239 | N112: 2.180588849e-08
A113: 53.45447 | B113: ='DF raw data'!A118 -> 4.449108e-06 | C113: ='DF raw data'!B118 -> -2.2712575e-06 | D113: ='DF raw data'!C118 -> -5.9769918e-06 | F113: 4.455479123e-06 | G113: -2.279754637e-06 | H113: -5.985550852e-06 | J113: -9.328861899e-07 | K113: -0.0006135292392 | L113: 9.999376786e-07 | M113: -0.0001942955451 | N113: 2.180682396e-08
A114: 53.95468 | B114: ='DF raw data'!A119 -> 2.8494524e-06 | C114: ='DF raw data'!B119 -> -3.9206839e-06 | D114: ='DF raw data'!C119 -> -3.586767e-06 | F114: 2.853532816e-06 | G114: -3.935351804e-06 | H114: -3.59190325e-06 | J114: 4.944794599e-07 | K114: -0.0006132818956 | L114: -9.685646475e-07 | M114: -0.0001947800308 | N114: 2.180741552e-08
A115: 54.45489 | B115: ='DF raw data'!A120 -> 1.4430462e-06 | C115: ='DF raw data'!B120 -> -3.4150014e-07 | D115: ='DF raw data'!C120 -> -2.7929136e-07 | F115: 1.445112642e-06 | G115: -3.427777465e-07 | H115: -2.796913052e-07 | J115: 1.217339255e-06 | K115: -0.0006126729703 | L115: -1.140025504e-06 | M115: -0.0001953502829 | N115: 2.180880689e-08
A116: 54.9551 | B116: ='DF raw data'!A121 -> -5.6751918e-07 | C116: ='DF raw data'!B121 -> -3.7220111e-06 | D116: ='DF raw data'!C121 -> -2.6113521e-06 | F116: -5.683318675e-07 | G116: -3.735935738e-06 | H116: -2.615091556e-06 | J116: 9.330539712e-07 | K116: -0.0006122062474 | L116: -3.008777919e-06 | M116: -0.0001968553038 | N116: 2.181377064e-08
A117: 55.45531 | B117: ='DF raw data'!A122 -> -6.1475675e-06 | C117: ='DF raw data'!B122 -> -8.243991e-06 | D117: ='DF raw data'!C122 -> -2.9801267e-06 | F117: -6.156370817e-06 | G117: -8.274833087e-06 | H117: -2.984394241e-06 | J117: -2.146424275e-06 | K117: -0.0006132799103 | L117: -7.147932178e-06 | M117: -0.0002004307709 | N117: 2.184163237e-08
A118: 55.95552 | B118: ='DF raw data'!A123 -> -6.9372854e-06 | C118: ='DF raw data'!B123 -> -2.4284345e-06 | D118: ='DF raw data'!C123 -> 4.4527005e-06 | F118: -6.947219593e-06 | G118: -2.437519661e-06 | H118: 4.459076767e-06 | J118: -5.621492987e-06 | K118: -0.0006160918373 | L118: -8.367203887e-06 | M118: -0.00020461613 | N118: 2.189245935e-08
A119: 56.45573 | B119: ='DF raw data'!A124 -> -4.6010555e-06 | C119: ='DF raw data'!B124 -> -4.2447787e-06 | D119: ='DF raw data'!C124 -> 1.1056527e-05 | F119: -4.607644211e-06 | G119: -4.260659095e-06 | H119: 1.107235995e-05 | J119: -7.926282698e-06 | K119: -0.0006200566432 | L119: -1.049842817e-05 | M119: -0.0002098675487 | N119: 2.197901717e-08
A120: 56.95594 | B120: ='DF raw data'!A125 -> -7.6482993e-06 | C120: ='DF raw data'!B125 -> 3.8518492e-06 | D120: ='DF raw data'!C125 -> 5.7464458e-06 | F120: -7.659251665e-06 | G120: 3.866259583e-06 | H120: 5.75467471e-06 | J120: -1.175751697e-05 | K120: -0.0006259378707 | L120: -8.564486467e-06 | M120: -0.0002141515905 | N120: 2.208485642e-08
A121: 57.45615 | B121: ='DF raw data'!A126 -> -5.7457382e-06 | C121: ='DF raw data'!B126 -> 3.6779863e-07 | D121: ='DF raw data'!C126 -> -1.0359152e-07 | F121: -5.753966097e-06 | G121: 3.691746234e-07 | H121: -1.037398631e-07 | J121: -1.463570836e-05 | K121: -0.0006332587984 | L121: -8.379821629e-06 | M121: -0.0002183432611 | N121: 2.222712883e-08
A122: 57.95636 | B122: ='DF raw data'!A127 -> -3.896248e-06 | C122: ='DF raw data'!B127 -> 4.6590831e-06 | D122: ='DF raw data'!C127 -> -6.5985301e-07 | F122: -3.901827427e-06 | G122: 4.676513474e-06 | H122: -6.607979195e-07 | J122: -1.658744145e-05 | K122: -0.0006415560025 | L122: -6.040582824e-06 | M122: -0.000221364821 | N122: 2.23830102e-08
A123: 58.45657 | B123: ='DF raw data'!A128 -> -7.1086997e-06 | C123: ='DF raw data'!B128 -> -1.8206162e-08 | D123: ='DF raw data'!C128 -> -8.0493561e-07 | F123: -7.118879358e-06 | G123: -1.827427416e-08 | H123: -8.060882778e-07 | J123: -2.01483761e-05 | K123: -0.0006516344217 | L123: -6.049723799e-06 | M123: -0.0002243909533 | N123: 2.260438125e-08
A124: 58.95678 | B124: ='DF raw data'!A129 -> -5.0468752e-06 | C124: ='DF raw data'!B129 -> -3.569904e-06 | D124: ='DF raw data'!C129 -> -2.5222362e-06 | F124: -5.054102325e-06 | G124: -3.583259581e-06 | H124: -2.525848042e-06 | J124: -2.267648862e-05 | K124: -0.0006629774281 | L124: -7.842106074e-06 | M124: -0.0002283136532 | N124: 2.289236303e-08
A125: 59.45699 | B125: ='DF raw data'!A130 -> 3.3534798e-06 | C125: ='DF raw data'!B130 -> -5.6955323e-06 | D125: ='DF raw data'!C130 -> -3.7962709e-06 | F125: 3.358281983e-06 | G125: -5.716840196e-06 | H125: -3.80170716e-06 | J125: -2.099664239e-05 | K125: -0.0006734801586 | L125: -1.070172671e-05 | M125: -0.0002336667639 | N125: 2.317017264e-08
A126: 59.9572 | B126: ='DF raw data'!A131 -> 1.4467788e-06 | C126: ='DF raw data'!B131 -> -1.1121755e-06 | D126: ='DF raw data'!C131 -> -1.7706299e-06 | F126: 1.448850587e-06 | G126: -1.116336326e-06 | H126: -1.773165442e-06 | J126: -2.027191284e-05 | K126: -0.0006836203721 | L126: -1.12601293e-05 | M126: -0.0002392991932 | N126: 2.343915604e-08
A127: 60.45741 | B127: ='DF raw data'!A132 -> -4.4659482e-06 | C127: ='DF raw data'!B132 -> -2.7499941e-06 | D127: ='DF raw data'!C132 -> -5.2189971e-06 | F127: -4.472343438e-06 | G127: -2.760282267e-06 | H127: -5.226470704e-06 | J127: -2.250902375e-05 | K127: -0.0006948796109 | L127: -1.264085009e-05 | M127: -0.0002456222728 | N127: 2.377251962e-08
A128: 60.95762 | B128: ='DF raw data'!A133 -> -7.7677572e-07 | C128: ='DF raw data'!B133 -> -6.3840166e-06 | D128: ='DF raw data'!C133 -> -8.5861793e-06 | F128: -7.778880628e-07 | G128: -6.407900225e-06 | H128: -8.598474709e-06 | J128: -2.289813114e-05 | K128: -0.000706333485 | L128: -1.584614587e-05 | M128: -0.0002535486735 | N128: 2.416039483e-08
A129: 61.45783 | B129: ='DF raw data'!A134 -> 4.4043172e-06 | C129: ='DF raw data'!B134 -> 8.5991878e-06 | D129: ='DF raw data'!C134 -> -4.1322455e-06 | F129: 4.410624182e-06 | G129: 8.631358734e-06 | H129: -4.138162876e-06 | J129: -2.069189281e-05 | K129: -0.0007166837767 | L129: -1.152865391e-05 | M129: -0.0002593154214 | N129: 2.44410448e-08
A130: 61.95804 | B130: ='DF raw data'!A135 -> 4.5478282e-06 | C130: ='DF raw data'!B135 -> 9.6931572e-06 | D130: ='DF raw data'!C135 -> -4.4215639e-07 | F130: 4.55434069e-06 | G130: 9.729420849e-06 | H130: -4.42789558e-07 | J130: -1.841376606e-05 | K130: -0.0007258945267 | L130: -6.661900311e-06 | M130: -0.0002626477706 | N130: 2.463284917e-08
A131: 62.45825 | B131: ='DF raw data'!A136 -> 1.2054135e-06 | C131: ='DF raw data'!B136 -> -4.767413e-06 | D131: ='DF raw data'!C136 -> -8.9124915e-06 | F131: 1.207139652e-06 | G131: -4.785248653e-06 | H131: -8.925254188e-06 | J131: -1.780994273e-05 | K131: -0.0007348032381 | L131: -9.05552954e-06 | M131: -0.000267177437 | N131: 2.483253134e-08
A132: 62.95846 | B132: ='DF raw data'!A137 -> -1.9051093e-06 | C132: ='DF raw data'!B137 -> -6.2533913e-06 | D132: ='DF raw data'!C137 -> -8.0060818e-06 | F132: -1.907837417e-06 | G132: -6.276786235e-06 | H132: -8.017546509e-06 | J132: -1.876426209e-05 | K132: -0.0007441893097 | L132: -1.219524078e-05 | M132: -0.0002732776184 | N132: 2.508304723e-08
A133: 63.45867 | B133: ='DF raw data'!A138 -> -1.1100582e-06 | C133: ='DF raw data'!B138 -> 1.876593e-06 | D133: ='DF raw data'!C138 -> 2.9290786e-06 | F133: -1.111647803e-06 | G133: 1.883613634e-06 | H133: 2.933273041e-06 | J133: -1.932031943e-05 | K133: -0.0007538535266 | L133: -1.125303841e-05 | M133: -0.0002789065008 | N133: 2.533310502e-08
A134: 63.95888 | B134: ='DF raw data'!A139 -> -2.3957855e-06 | C134: ='DF raw data'!B139 -> 5.2146743e-06 | D134: ='DF raw data'!C139 -> 7.7597761e-06 | F134: -2.399216265e-06 | G134: 5.234183229e-06 | H134: 7.770888099e-06 | J134: -2.05204314e-05 | K134: -0.0007641180516 | L134: -8.634847614e-06 | M134: -0.0002832257379 | N134: 2.558103345e-08
A135: 64.45909 | B135: ='DF raw data'!A140 -> -1.9937524e-06 | C135: ='DF raw data'!B140 -> -5.5873229e-06 | D135: ='DF raw data'!C140 -> 5.4604643e-06 | F135: -1.996607453e-06 | G135: =(1-$G$1*($B$2-$G$2))*C135*$M$2/$M$1 -> -5.608225967e-06 | H135: 5.468283685e-06 | J135: -2.151915442e-05 | K135: -0.0007748821479 | L135: -1.144013832e-05 | M135: -0.0002889482095 | N135: 2.587813357e-08
A136: =A135+$B$1 -> 64.9593 | B136: ='DF raw data'!A141 -> 9.9922738e-07 | C136: ='DF raw data'!B141 -> -2.6984912e-06 | D136: ='DF raw data'!C141 -> -1.2895872e-06 | F136: 1.000658274e-06 | G136: -2.708586686e-06 | H136: -1.291433889e-06 | J136: =F136*$B$1+J135 -> -2.101861514e-05 | K136: =J136*$B$1+K135 -> -0.0007853958693 | L136: =G136*$B$1+L135 -> -1.279500047e-05 | M136: =L136*$B$1+M135 -> -0.0002953483967 | N136: =(J136^2+L136^2)*$B$1+N135 -> 2.618100783e-08
A137: 65.45951 | B137: ='DF raw data'!A142 -> -1.207978e-06 | C137: ='DF raw data'!B142 -> 3.0063209e-06 | D137: ='DF raw data'!C142 -> -7.9096577e-07 | F137: -1.209707824e-06 | G137: 3.017568026e-06 | H137: -7.92098433e-07 | J137: -2.162372309e-05 | K137: -0.0007962122719 | L137: -1.128558277e-05 | M137: -0.000300993558 | N137: 2.647860766e-08
A138: 65.95972 | B138: ='DF raw data'!A143 -> -1.459959e-06 | C138: ='DF raw data'!B143 -> 2.4357862e-06 | D138: ='DF raw data'!C143 -> 9.1501346e-07 | F138: -1.462049661e-06 | G138: 2.444898865e-06 | H138: 9.163237593e-07 | J138: -2.235505495e-05 | K138: -0.0008073944939 | L138: -1.006261991e-05 | M138: -0.0003060269811 | N138: 2.677923627e-08
A139: 66.45993 | B139: ='DF raw data'!A144 -> 4.1108851e-06 | C139: ='DF raw data'!B144 -> -4.5193719e-06 | D139: ='DF raw data'!C144 -> 4.0926533e-09 | F139: =(1-$G$1*($B$2-$G$2))*B139 -> 4.116771887e-06 | G139: -4.536279592e-06 | H139: =(1-$G$1*($B$2-$G$2))*D139 -> 4.09851398e-09 | J139: -2.029580449e-05 | K139: -0.0008175466583 | L139: -1.233171232e-05 | M139: -0.0003121954269 | N139: 2.706135011e-08
A140: 66.96014 | B140: ='DF raw data'!A145 -> 2.9368948e-06 | C140: ='DF raw data'!B145 -> -5.6057356e-06 | D140: ='DF raw data'!C145 -> -2.7962605e-07 | F140: 2.941100433e-06 | G140: -5.626707552e-06 | H140: -2.800264745e-07 | J140: -1.882463664e-05 | K140: -0.0008269629298 | L140: -1.514624771e-05 | M140: -0.0003197717315 | N140: 2.735336059e-08
A141: 67.46035 | B141: ='DF raw data'!A146 -> -3.6735673e-06 | C141: ='DF raw data'!B146 -> -1.9537008e-06 | D141: ='DF raw data'!C146 -> -3.1184399e-07 | F141: -3.678827848e-06 | G141: -1.961009907e-06 | H141: -3.122905506e-07 | J141: -2.066482312e-05 | K141: -0.0008372996809 | L141: -1.612716447e-05 | M141: -0.0003278387005 | N141: 2.769706506e-08
A142: 67.96056 | B142: ='DF raw data'!A147 -> -5.3072599e-06 | C142: ='DF raw data'!B147 -> 8.0263014e-08 | D142: ='DF raw data'!C147 -> -4.5993183e-06 | F142: -5.314859896e-06 | G142: 8.056329075e-08 | H142: -4.605904524e-06 | J142: -2.332336919e-05 | K142: -0.0008489662634 | L142: -1.608686591e-05 | M142: -0.0003358855116 | N142: 2.809861704e-08
A143: 68.46077 | B143: ='DF raw data'!A148 -> -4.720534e-06 | C143: ='DF raw data'!B148 -> 1.1964221e-05 | D143: ='DF raw data'!C148 -> -4.5407469e-06 | F143: -4.727293805e-06 | G143: 1.200898106e-05 | H143: -4.54724925e-06 | J143: -2.568800882e-05 | K143: -0.0008618156623 | L143: -1.007985349e-05 | M143: -0.0003409275552 | N143: 2.847951557e-08
A144: 68.96098 | B144: ='DF raw data'!A149 -> -1.8938243e-06 | C144: ='DF raw data'!B149 -> 8.1762237e-06 | D144: ='DF raw data'!C149 -> 3.6386155e-06 | F144: -1.896536256e-06 | G144: 8.206812258e-06 | H144: 3.643825997e-06 | J144: -2.663667522e-05 | K144: -0.0008751395936 | L144: -5.974723932e-06 | M144: -0.0003439161718 | N144: 2.885227696e-08
A145: 69.46119 | B145: ='DF raw data'!A150 -> -2.7900696e-06 | C145: ='DF raw data'!B150 -> -6.9842493e-08 | D145: ='DF raw data'!C150 -> 4.8056354e-06 | F145: -2.79406498e-06 | G145: -7.010378492e-08 | H145: 4.81251707e-06 | J145: -2.803429446e-05 | K145: -0.0008891626281 | L145: -6.009790546e-06 | M145: -0.0003469223292 | N145: 2.926346922e-08
A146: 69.9614 | B146: ='DF raw data'!A151 -> -3.66723e-06 | C146: ='DF raw data'!B151 -> 1.0157208e-06 | D146: ='DF raw data'!C151 -> 7.8877529e-06 | F146: -3.672481473e-06 | G146: 1.019520774e-06 | H146: 7.899048162e-06 | J146: -2.987130642e-05 | K146: -0.0009041045543 | L146: -5.49981606e-06 | M146: -0.0003496733921 | N146: 2.972493441e-08
A147: 70.46161 | B147: ='DF raw data'!A152 -> -6.0884286e-06 | C147: ='DF raw data'!B152 -> 2.5600068e-06 | D147: ='DF raw data'!C152 -> -8.0646356e-07 | F147: -6.09714723e-06 | G147: 2.569584194e-06 | H147: -8.076184158e-07 | J147: -3.292116044e-05 | K147: -0.0009205720479 | L147: -4.21448435e-06 | M147: -0.0003517815194 | N147: 3.027594808e-08
A148: 70.96182 | B148: ='DF raw data'!A153 -> -6.137825e-06 | C148: ='DF raw data'!B153 -> 1.5718455e-06 | D148: ='DF raw data'!C153 -> -7.8524135e-06 | F148: -6.146614365e-06 | G148: 1.577726025e-06 | H148: -7.863658156e-06 | J148: -3.599575841e-05 | K148: -0.0009385774862 | L148: -3.425290015e-06 | M148: -0.0003534948837 | N148: 3.092993626e-08
A149: 71.46203 | B149: ='DF raw data'!A154 -> 2.0796997e-06 | C149: ='DF raw data'!B154 -> 9.0088088e-06 | D149: ='DF raw data'!C154 -> -1.0313521e-05 | F149: 2.08267783e-06 | G149: 9.042512192e-06 | H149: -1.032828996e-05 | J149: -3.495398213e-05 | K149: -0.0009560618176 | L149: 1.097865008e-06 | M149: -0.0003529457206 | N149: 3.154168617e-08
A150: 71.96224 | B150: ='DF raw data'!A155 -> 2.1692813e-06 | C150: ='DF raw data'!B155 -> -1.6288055e-06 | D150: ='DF raw data'!C155 -> -8.7353801e-06 | F150: 2.172387711e-06 | G150: -1.634899121e-06 | H150: -8.747889164e-06 | J150: -3.386733208e-05 | K150: -0.0009730025958 | L150: 2.800721188e-07 | M150: -0.0003528056257 | N150: 3.211546437e-08
A151: 72.46245 | B151: ='DF raw data'!A156 -> -6.7680103e-06 | C151: ='DF raw data'!B156 -> 5.4998081e-06 | D151: ='DF raw data'!C156 -> -5.4664524e-06 | F151: -6.777702091e-06 | G151: 5.52038376e-06 | H151: -5.47428036e-06 | J151: -3.725760644e-05 | K151: -0.0009916392231 | L151: 3.041423279e-06 | M151: -0.0003512842754 | N151: 3.281444757e-08
A152: 72.96266 | B152: ='DF raw data'!A157 -> -5.6239242e-06 | C152: ='DF raw data'!B157 -> 1.3569617e-05 | D152: ='DF raw data'!C157 -> -7.2466319e-06 | F152: -5.631977659e-06 | G152: 1.36203831e-05 | H152: -7.257009077e-06 | J152: -4.007477798e-05 | K152: -0.001011685028 | L152: 9.854475112e-06 | M152: -0.0003463549684 | N152: 3.366635447e-08
A153: 73.46287 | B153: ='DF raw data'!A158 -> 4.9660794e-06 | C153: ='DF raw data'!B158 -> -4.074659e-06 | D153: ='DF raw data'!C158 -> -8.2530829e-07 | F153: 4.973190826e-06 | G153: -4.08990295e-06 | H153: -8.264901315e-07 | J153: -3.75871382e-05 | K153: -0.00103048649 | L153: 7.808664757e-06 | M153: -0.0003424489962 | N153: 3.440354807e-08
A154: 73.96308 | B154: ='DF raw data'!A159 -> 9.5993582e-06 | C154: ='DF raw data'!B159 -> 1.6118737e-06 | D154: ='DF raw data'!C159 -> 1.5008881e-06 | F154: 9.613104481e-06 | G154: 1.617903977e-06 | H154: 1.503037372e-06 | J154: -3.277856721e-05 | K154: -0.001046882657 | L154: 8.617956506e-06 | M154: -0.0003381382082 | N154: 3.497814111e-08
A155: 74.46329 | B155: ='DF raw data'!A160 -> 9.1751699e-06 | C155: ='DF raw data'!B160 -> -9.7181021e-07 | D155: ='DF raw data'!C160 -> -5.034377e-06 | F155: 9.188308743e-06 | G155: -9.754459072e-07 | H155: -5.041586228e-06 | J155: -2.818248329e-05 | K155: -0.001060979817 | L155: 8.130028708e-06 | M155: -0.0003340714865 | N155: 3.540849665e-08
A156: 74.9635 | B156: ='DF raw data'!A161 -> 7.9900328e-06 | C156: ='DF raw data'!B161 -> -1.0938687e-05 | D156: ='DF raw data'!C161 -> -4.7015455e-06 | F156: 8.001474527e-06 | G156: -1.097961037e-05 | H156: -4.708278113e-06 | J156: -2.418006572e-05 | K156: -0.001073074928 | L156: 2.637917803e-06 | M156: -0.0003327519737 | N156: 3.570443799e-08
A157: 75.46371 | B157: ='DF raw data'!A162 -> 3.8591079e-06 | C157: ='DF raw data'!B162 -> -9.655384e-06 | D157: ='DF raw data'!C162 -> -3.0571763e-07 | F157: 3.864634143e-06 | G157: -9.691506333e-06 | H157: -3.061554176e-07 | J157: -2.224693707e-05 | K157: -0.001084203068 | L157: -2.20987058e-06 | M157: -0.000333857373 | N157: 3.595444782e-08
A158: 75.96392 | B158: ='DF raw data'!A163 -> 7.2600578e-06 | C158: ='DF raw data'!B163 -> -5.4281445e-06 | D158: ='DF raw data'!C163 -> 3.1077425e-07 | F158: 7.270454203e-06 | G158: -5.448452055e-06 | H158: 3.112192787e-07 | J158: -1.861018318e-05 | K158: -0.001093512068 | L158: -4.935240783e-06 | M158: -0.0003363260298 | N158: 3.613987343e-08
A159: 76.46413 | B159: ='DF raw data'!A164 -> 1.0733971e-05 | C159: ='DF raw data'!B164 -> 3.2825149e-06 | D159: ='DF raw data'!C164 -> -4.3815461e-07 | F159: 1.074934205e-05 | G159: 3.294795312e-06 | H159: -4.387820474e-07 | J159: -1.323325479e-05 | K159: -0.001100131474 | L159: -3.287151219e-06 | M159: -0.0003379702957 | N159: 3.623287467e-08
A160: 76.96434 | B160: ='DF raw data'!A165 -> 7.2008534e-06 | C160: ='DF raw data'!B165 -> -6.0585876e-06 | D160: ='DF raw data'!C165 -> 1.9509353e-06 | F160: 7.211165022e-06 | G160: -6.081253744e-06 | H160: 1.953729039e-06 | J160: -9.626157936e-06 | K160: -0.001104946575 | L160: -6.329055154e-06 | M160: -0.0003411361524 | N160: 3.629926247e-08
A161: 77.46455 | B161: ='DF raw data'!A166 -> -2.4357897e-07 | C161: ='DF raw data'!B166 -> -4.851739e-06 | D161: ='DF raw data'!C166 -> 8.5725691e-07 | F161: -2.439277751e-07 | G161: -4.86989013e-06 | H161: 8.584845019e-07 | J161: -9.748173049e-06 | K161: -0.001109822709 | L161: -8.765022896e-06 | M161: -0.0003455205045 | N161: 3.638522481e-08
A162: 77.96476 | B162: ='DF raw data'!A167 -> -3.8347007e-06 | C162: ='DF raw data'!B167 -> 4.3960981e-06 | D162: ='DF raw data'!C167 -> 1.6033918e-06 | F162: -3.840191991e-06 | G162: 4.412544605e-06 | H162: 1.605687857e-06 | J162: -1.166907548e-05 | K162: -0.001115659697 | L162: -6.55782396e-06 | M162: -0.0003488007936 | N162: 3.647484862e-08
A163: 78.46497 | B163: ='DF raw data'!A168 -> -2.3512639e-06 | C163: ='DF raw data'!B168 -> -4.3033533e-06 | D163: ='DF raw data'!C168 -> 4.733829e-06 | F163: -2.35463091e-06 | G163: -4.319452832e-06 | H163: 4.740607843e-06 | J163: -1.284688541e-05 | K163: -0.001122085837 | L163: -8.718457461e-06 | M163: -0.0003531618532 | N163: 3.659542623e-08
A164: 78.96518 | B164: ='DF raw data'!A169 -> 7.2212131e-08 | C164: ='DF raw data'!B169 -> -6.2479207e-06 | D164: ='DF raw data'!C169 -> 1.0461262e-06 | F164: 7.231553877e-08 | G164: -6.271295169e-06 | H164: 1.047624253e-06 | J164: -1.281071246e-05 | K164: -0.001128493884 | L164: -1.185542202e-05 | M164: -0.0003590920539 | N164: 3.67478229e-08
A165: 79.46539 | B165: ='DF raw data'!A170 -> 3.9845963e-06 | C165: ='DF raw data'!B170 -> 8.3744962e-06 | D165: ='DF raw data'!C170 -> 2.2748463e-06 | F165: 3.990302242e-06 | G165: 8.405826527e-06 | H165: 2.27810388e-06 | J165: -1.081472337e-05 | K165: -0.001133903517 | L165: -7.65074353e-06 | M165: -0.0003629190323 | N165: 3.683560581e-08
A166: 79.9656 | B166: ='DF raw data'!A171 -> 6.7916753e-06 | C166: ='DF raw data'!B171 -> 1.5390223e-06 | D166: ='DF raw data'!C171 -> 8.2442893e-06 | F166: 6.801400979e-06 | G166: 1.544780028e-06 | H166: 8.256095122e-06 | J166: -7.412594588e-06 | K166: -0.001137611371 | L166: -6.878029112e-06 | M166: -0.0003663594913 | N166: 3.688675421e-08
A167: 80.46581 | B167: ='DF raw data'!A172 -> 4.6612386e-06 | C167: ='DF raw data'!B172 -> -1.3297412e-05 | D167: ='DF raw data'!C172 -> 5.6169993e-06 | F167: 4.667913494e-06 | G167: -1.334715974e-05 | H167: 5.625042843e-06 | J167: -5.07765758e-06 | K167: -0.001140151266 | L167: -1.355441189e-05 | M167: -0.0003731395436 | N167: 3.699155055e-08
A168: 80.96602 | B168: ='DF raw data'!A173 -> -2.6926882e-06 | C168: ='DF raw data'!B173 -> -4.4177004e-06 | D168: ='DF raw data'!C173 -> 4.7509448e-07 | F168: -2.69654413e-06 | G168: -4.434227723e-06 | H168: 4.757748153e-07 | J168: -6.426495919e-06 | K168: -0.001143365863 | L168: -1.577245694e-05 | M168: -0.0003810290843 | N168: 3.713664658e-08
A169: 81.46623 | B169: ='DF raw data'!A174 -> -8.6030796e-06 | C169: ='DF raw data'!B174 -> 3.2570304e-06 | D169: ='DF raw data'!C174 -> 4.6026507e-06 | F169: -8.61539921e-06 | G169: 3.269215471e-06 | H169: 4.609241696e-06 | J169: -1.073600476e-05 | K169: -0.00114873612 | L169: -1.413716266e-05 | M169: -0.0003881006344 | N169: 3.729427334e-08
A170: 81.96644 | B170: ='DF raw data'!A175 -> -7.1490813e-06 | C170: ='DF raw data'!B175 -> 5.4428347e-06 | D170: ='DF raw data'!C175 -> 6.8611589e-06 | F170: -7.159318784e-06 | G170: 5.463197214e-06 | H170: 6.87098408e-06 | J170: -1.431716761e-05 | K170: -0.001155897711 | L170: -1.140441679e-05 | M170: -0.0003938052378 | N170: 3.746186471e-08
A171: 82.46665 | B171: ='DF raw data'!A176 -> 1.1926575e-07 | C171: ='DF raw data'!B176 -> -1.9995998e-06 | D171: ='DF raw data'!C176 -> 1.3731805e-06 | F171: 1.194365386e-07 | G171: -2.007080622e-06 | H171: 1.375146894e-06 | J171: -1.425742426e-05 | K171: -0.001163029417 | L171: -1.240837858e-05 | M171: -0.0004000120328 | N171: 3.764056073e-08
A172: 82.96686 | B172: ='DF raw data'!A177 -> 4.6372061e-06 | C172: ='DF raw data'!B177 -> -8.7642238e-06 | D172: ='DF raw data'!C177 -> -5.937527e-06 | F172: 4.643846579e-06 | G172: -8.797012161e-06 | H172: -5.946029539e-06 | J172: -1.193452576e-05 | K172: -0.001168999186 | L172: -1.680873204e-05 | M172: -0.0004084199287 | N172: 3.785313316e-08
A173: 83.46707 | B173: ='DF raw data'!A178 -> 2.5085665e-06 | C173: ='DF raw data'!B178 -> 2.3958917e-06 | D173: ='DF raw data'!C178 -> -5.9487611e-06 | F173: 2.512158767e-06 | G173: 2.404855113e-06 | H173: -5.957279726e-06 | J173: -1.067791882e-05 | K173: -0.001174340388 | L173: -1.560579946e-05 | M173: -0.0004162261056 | N173: 3.803198771e-08
A174: 83.96728 | B174: ='DF raw data'!A179 -> -3.2345579e-06 | C174: ='DF raw data'!B179 -> -5.6049353e-06 | D174: ='DF raw data'!C179 -> -1.5775696e-06 | F174: -3.239189787e-06 | G174: -5.625904258e-06 | H174: -1.57982868e-06 | J174: -1.229819394e-05 | K174: -0.001180492067 | L174: -1.841993303e-05 | M174: -0.0004254399403 | N174: 3.827736048e-08
A175: 84.46749 | B175: ='DF raw data'!A180 -> -7.89347e-06 | C175: ='DF raw data'!B180 -> 3.6048752e-06 | D175: ='DF raw data'!C180 -> 1.245924e-06 | F175: -7.904773449e-06 | G175: 3.618361614e-06 | H175: 1.247708163e-06 | J175: -1.625224067e-05 | K175: -0.001188621601 | L175: -1.660999237e-05 | M175: -0.0004337484246 | N175: 3.854748747e-08
A176: 84.9677 | B176: ='DF raw data'!A181 -> -6.2501658e-06 | C176: ='DF raw data'!B181 -> 1.7583507e-05 | D176: ='DF raw data'!C181 -> 4.0055957e-07 | F176: -6.259116037e-06 | G176: 1.764928971e-05 | H176: 4.011331713e-07 | J176: -1.93831131e-05 | K176: -0.001198317228 | L176: -7.781641163e-06 | M176: -0.0004376408793 | N176: 3.876570859e-08
A177: 85.46791 | B177: ='DF raw data'!A182 -> -5.5097789e-06 | C177: ='DF raw data'!B182 -> 4.8660286e-06 | D177: ='DF raw data'!C182 -> 2.454216e-07 | F177: -5.517668903e-06 | G177: 4.88423319e-06 | H177: 2.457730437e-07 | J177: -2.214310627e-05 | K177: -0.001209393431 | L177: -5.338498879e-06 | M177: -0.0004403112499 | N177: 3.902522591e-08
A178: 85.96812 | B178: ='DF raw data'!A183 -> -1.2329709e-05 | C178: ='DF raw data'!B183 -> 5.3478343e-06 | D178: ='DF raw data'!C183 -> 5.5234887e-06 | F178: -1.234736514e-05 | G178: 5.367841402e-06 | H178: 5.531398336e-06 | J178: -2.831938179e-05 | K178: -0.001223559069 | L178: -2.653450931e-06 | M178: -0.0004416385325 | N178: 3.94299099e-08
A179: 86.46833 | B179: ='DF raw data'!A184 -> -1.5452986e-05 | C179: ='DF raw data'!B184 -> 3.4551697e-06 | D179: ='DF raw data'!C184 -> 4.5523302e-06 | F179: -1.547511468e-05 | G179: 3.468096041e-06 | H179: 4.558849137e-06 | J179: -3.60601889e-05 | K179: -0.001241596736 | L179: -9.186746101e-07 | M179: -0.0004420980628 | N179: 4.008077374e-08
A180: 86.96854 | B180: ='DF raw data'!A185 -> -1.0181438e-05 | C180: ='DF raw data'!B185 -> 2.1597255e-06 | D180: ='DF raw data'!C185 -> -3.1795898e-06 | F180: -1.019601782e-05 | G180: 2.167805378e-06 | H180: -3.184142973e-06 | J180: -4.116033897e-05 | K180: -0.001262185549 | L180: 1.65683318e-07 | M180: -0.0004420151863 | N180: 4.092823e-08
A181: 87.46875 | B181: ='DF raw data'!A186 -> -8.374338e-06 | C181: ='DF raw data'!B186 -> 3.3288145e-06 | D181: ='DF raw data'!C186 -> -6.2611034e-06 | F181: -8.386330052e-06 | G181: 3.341268127e-06 | H181: -6.2700693e-06 | J181: -4.535526513e-05 | K181: -0.001284872706 | L181: 1.837019048e-06 | M181: -0.000441096291 | N181: 4.195890005e-08
A182: 87.96896 | B182: ='DF raw data'!A187 -> -7.018718e-06 | C182: ='DF raw data'!B187 -> -3.3868419e-06 | D182: ='DF raw data'!C187 -> -2.4965375e-06 | F182: -7.028768804e-06 | G182: -3.399512616e-06 | H182: -2.500112542e-06 | J182: -4.887112557e-05 | K182: -0.001309318532 | L182: 1.365488417e-07 | M182: -0.0004410279879 | N182: 4.31536044e-08
A183: 88.46917 | B183: ='DF raw data'!A188 -> -2.6976213e-06 | C183: ='DF raw data'!B188 -> -5.0314652e-06 | D183: ='DF raw data'!C188 -> -4.0523701e-06 | F183: -2.701484294e-06 | G183: -5.050288715e-06 | H183: -4.058173094e-06 | J183: -5.022243503e-05 | K183: -0.001334440296 | L183: -2.389656076e-06 | M183: -0.0004422233178 | N183: 4.4418137e-08
A184: 88.96938 | B184: ='DF raw data'!A189 -> -2.5744757e-06 | C184: ='DF raw data'!B189 -> 2.2995571e-06 | D184: ='DF raw data'!C189 -> -7.3400115e-06 | F184: -2.578162349e-06 | G184: 2.30816011e-06 | H184: -7.350522396e-06 | J184: -5.151205762e-05 | K184: -0.001360207142 | L184: -1.235091307e-06 | M184: -0.0004428411228 | N184: 4.574620332e-08
A185: 89.46959 | B185: ='DF raw data'!A190 -> -3.6682923e-06 | C185: ='DF raw data'!B190 -> 2.8491438e-06 | D185: ='DF raw data'!C190 -> 1.4244905e-06 | F185: -3.673545295e-06 | G185: 2.859802902e-06 | H185: 1.42653037e-06 | J185: -5.334960171e-05 | K185: -0.001386893147 | L185: 1.954107021e-07 | M185: -0.0004427433764 | N185: 4.716991012e-08
A186: 89.9698 | B186: ='DF raw data'!A191 -> -1.9705203e-06 | C186: ='DF raw data'!B191 -> 6.906931e-06 | D186: ='DF raw data'!C191 -> 1.7527381e-06 | F186: -1.973342085e-06 | G186: 6.932770932e-06 | H186: 1.755248021e-06 | J186: -5.433668715e-05 | K186: -0.001414072901 | L186: 3.66325205e-06 | M186: -0.0004409109811 | N186: 4.865348045e-08
A187: 90.47001 | B187: ='DF raw data'!A192 -> -3.0955216e-06 | C187: ='DF raw data'!B192 -> 1.1524578e-05 | D187: ='DF raw data'!C192 -> -2.0584812e-06 | F187: -3.099954387e-06 | G187: 1.156769329e-05 | H187: -2.061428945e-06 | J187: -5.588731534e-05 | K187: -0.001442028295 | L187: 9.449527909e-06 | M187: -0.0004361842328 | N187: 5.026049791e-08
A188: 90.97022 | B188: ='DF raw data'!A193 -> -5.5138535e-06 | C188: ='DF raw data'!B193 -> 1.0079696e-05 | D188: ='DF raw data'!C193 -> -4.9149785e-06 | F188: -5.521749338e-06 | G188: 1.011740575e-05 | H188: -4.922016749e-06 | J188: -5.864934957e-05 | K188: -0.001471365286 | L188: 1.451035544e-05 | M188: -0.0004289260079 | N188: 5.208641278e-08
A189: 91.47043 | B189: ='DF raw data'!A194 -> -1.6820285e-06 | C189: ='DF raw data'!B194 -> 7.1909972e-06 | D189: ='DF raw data'!C194 -> -3.6343517e-06 | F189: -1.684437165e-06 | G189: 7.217899869e-06 | H189: -3.639556092e-06 | J189: -5.949192189e-05 | K189: -0.00150112374 | L189: 1.812082113e-05 | M189: -0.0004198617919 | N189: 5.402105145e-08
A190: 91.97064 | B190: ='DF raw data'!A195 -> 1.1044232e-06 | C190: ='DF raw data'!B195 -> 5.6621893e-06 | D190: ='DF raw data'!C195 -> -5.1018687e-06 | F190: 1.106004734e-06 | G190: 5.683372454e-06 | H190: -5.109174576e-06 | J190: -5.893868726e-05 | K190: -0.001530605461 | L190: 2.096370087e-05 | M190: -0.0004093755391 | N190: 5.597849604e-08
A191: 92.47085 | B191: ='DF raw data'!A196 -> -2.7341393e-06 | C191: ='DF raw data'!B196 -> 1.1831862e-05 | D191: ='DF raw data'!C196 -> -1.0069325e-05 | F191: -2.738054587e-06 | G191: 1.187612688e-05 | H191: -1.008374427e-05 | J191: -6.030828954e-05 | K191: -0.001560772271 | L191: 2.69042583e-05 | M191: -0.0003959177601 | N191: 5.815987629e-08
A192: 92.97106 | B192: ='DF raw data'!A197 -> -1.4416672e-06 | C192: ='DF raw data'!B197 -> 1.2508337e-05 | D192: ='DF raw data'!C197 -> -1.0693006e-05 | F192: -1.443731667e-06 | G192: 1.255513269e-05 | H192: -1.070831838e-05 | J192: -6.103045856e-05 | K192: -0.001591300316 | L192: 3.318446122e-05 | M192: -0.0003793185607 | N192: 6.05738524e-08
A193: 93.47127 | B193: ='DF raw data'!A198 -> 7.481122e-07 | C193: ='DF raw data'!B198 -> 1.2860852e-05 | D193: ='DF raw data'!C198 -> -5.5489181e-06 | F193: 7.491834967e-07 | G193: 1.29089665e-05 | H193: -5.556864151e-06 | J193: -6.065570949e-05 | K193: -0.001621640909 | L193: 3.964165535e-05 | M193: -0.0003594894083 | N193: 6.320024299e-08
A194: 93.97148 | B194: ='DF raw data'!A199 -> -5.6201843e-06 | C194: ='DF raw data'!B199 -> 4.6085142e-06 | D194: ='DF raw data'!C199 -> -2.8108734e-06 | F194: -5.628232404e-06 | G194: 4.625755387e-06 | H194: -2.814898571e-06 | J194: -6.347100762e-05 | K194: -0.001653389741 | L194: 4.195550445e-05 | M194: -0.0003385028454 | N194: 6.609587522e-08
A195: 94.47169 | B195: ='DF raw data'!A200 -> -7.7922105e-06 | C195: ='DF raw data'!B200 -> -3.3612239e-06 | D195: ='DF raw data'!C200 -> -5.4252092e-07 | F195: -7.803368945e-06 | G195: -3.373798775e-06 | H195: -5.4329781e-07 | J195: -6.73743308e-05 | K195: -0.001687091055 | L195: 4.026789657e-05 | M195: -0.0003183604409 | N195: 6.917757096e-08
A196: 94.9719 | B196: ='DF raw data'!A201 -> -5.084521e-06 | C196: ='DF raw data'!B201 -> 9.7806851e-06 | D196: ='DF raw data'!C201 -> -1.5440856e-06 | F196: -5.091802034e-06 | G196: 9.817276205e-06 | H196: -1.546296731e-06 | J196: -6.992130109e-05 | K196: -0.001722066389 | L196: 4.51785963e-05 | M196: -0.0002957616552 | N196: 7.264407324e-08
A197: 95.47211 | B197: ='DF raw data'!A202 -> -6.1954288e-06 | C197: ='DF raw data'!B202 -> 1.0577779e-05 | D197: ='DF raw data'!C202 -> -1.9406107e-06 | F197: -6.204300654e-06 | G197: 1.061735216e-05 | H197: -1.943389655e-06 | J197: -7.302475432e-05 | K197: -0.001758594102 | L197: 5.048950202e-05 | M197: -0.0002705063014 | N197: 7.65866307e-08
A198: 95.97232 | B198: ='DF raw data'!A203 -> -8.1112757e-06 | C198: ='DF raw data'!B203 -> 4.9168648e-06 | D198: ='DF raw data'!C203 -> 6.5681925e-06 | F198: -8.122891047e-06 | G198: 4.935259576e-06 | H198: 6.577598152e-06 | J198: -7.708790565e-05 | K198: -0.001797154243 | L198: 5.295816822e-05 | M198: -0.0002440160961 | N198: 8.096202398e-08
A199: 96.47253 | B199: ='DF raw data'!A204 -> -6.714743e-06 | C199: ='DF raw data'!B204 -> 2.7098456e-06 | D199: ='DF raw data'!C204 -> 7.5132593e-06 | F199: -6.724358512e-06 | G199: =(1-$G$1*($B$2-$G$2))*C199*$M$2/$M$1 -> 2.719983565e-06 | H199: 7.524018287e-06 | J199: -8.045149702e-05 | K199: -0.001837396886 | L199: 5.431873119e-05 | M199: -0.0002168453236 | N199: 8.567548677e-08
A200: =A199+$B$1 -> 96.97274 | B200: ='DF raw data'!A205 -> -2.08046e-06 | C200: ='DF raw data'!B205 -> 1.9418387e-06 | D200: ='DF raw data'!C205 -> 9.3831108e-07 | F200: -2.083439219e-06 | G200: 1.949103429e-06 | H200: 9.396547415e-07 | J200: =F200*$B$1+J199 -> -8.149365416e-05 | K200: =J200*$B$1+K199 -> -0.001878160827 | L200: =G200*$B$1+L199 -> 5.529369222e-05 | M200: =L200*$B$1+M199 -> -0.0001891868658 | N200: =(J200^2+L200^2)*$B$1+N199 -> 9.052682751e-08
A201: 97.47295 | B201: ='DF raw data'!A206 -> -4.9418104e-06 | C201: ='DF raw data'!B206 -> 2.940408e-06 | D201: ='DF raw data'!C206 -> 9.753893e-07 | F201: -4.948887072e-06 | G201: 2.951408536e-06 | H201: 9.767860575e-07 | J201: -8.396913696e-05 | K201: -0.001920163029 | L201: 5.677001628e-05 | M201: -0.0001607899359 | N201: 9.566581033e-08
... 1002 more rows

Sheet 10 y=-0.1
A1: dz | B1: ='DF raw data'!E7 -> 0.50027 | C1: mm | F1: T_coeff | G1: -0.0008 | H1: /degC | L1: Hallref | M1: ='PI vs gap'!B44 -> 0.505235 | N1: T | P1: IBy total | Q1: =L1203*1000 -> -5.853974042 | R1: muTm | X1: DF ref | Y1: 19
A2: Tref | B2: ='DF raw data'!E8 -> 21.84 | C2: degC | F2: Tcorr | G2: 20 | H2: degC | L2: NMRref | M2: ='PI vs gap'!B45 -> 0.5064 | N2: T | P2: JBy total | Q2: =M1203 -> -2.629306792 | R2: muTm^2
A3: Encoder | B3: ='DF raw data'!E9 -> 14640947 | P3: PI total | Q3: =N1203 -> 705.4241961 | R3: T^2mm^3
A5: z [mm] | B5: Bx | C5: By | D5: Bz | F5: Bx_corr | G5: By_corr | H5: Bz_corr | J5: Ix | K5: Jx | L5: Iy | M5: Jy | N5: PI
A6: ='[1]PI vs x'!B53 -> -0.068 | B6: ='DF raw data'!D11 -> -1.306423e-05 | C6: ='DF raw data'!E11 -> 9.4022571e-06 | D6: ='DF raw data'!F11 -> 1.2477518e-05 | F6: =(1-$G$1*($B$2-$G$2))*B6 -> -1.308346055e-05 | G6: =(1-$G$1*($B$2-$G$2))*C6*$M$2/$M$1 -> 9.437809402e-06 | H6: =(1-$G$1*($B$2-$G$2))*D6 -> 1.249588491e-05 | J6: =F6*$B$1 -> -6.545262808e-06 | K6: =J6*$B$1 -> -3.274398625e-06 | L6: =G6*$B$1 -> 4.72145291e-06 | M6: =L6*$B$1 -> 2.362001247e-06 | N6: =(J6^2+L6)^2*$B$1 -> 1.115228004e-11
A7: =A6+$B$1 -> 0.43227 | B7: ='DF raw data'!D12 -> -1.265065e-05 | C7: ='DF raw data'!E12 -> -2.2028371e-06 | D7: ='DF raw data'!F12 -> 9.9990502e-06 | F7: =(1-$G$1*($B$2-$G$2))*B7 -> -1.266927176e-05 | G7: =(1-$G$1*($B$2-$G$2))*C7*$M$2/$M$1 -> -2.211166582e-06 | H7: 1.00137688e-05 | J7: =F7*$B$1+J6 -> -1.288331939e-05 | K7: =J7*$B$1+K6 -> -9.719536816e-06 | L7: =G7*$B$1+L6 -> 3.615272604e-06 | M7: =L7*$B$1+M6 -> 4.170613673e-06 | N7: =(J7^2+L7^2)*$B$1+N6 -> 1.007256808e-10
A8: =A7+$B$1 -> 0.93254 | B8: ='DF raw data'!D13 -> -1.282667e-05 | C8: ='DF raw data'!E13 -> 1.2407845e-06 | D8: ='DF raw data'!F13 -> 1.0144506e-06 | F8: -1.284555086e-05 | G8: 1.245476219e-06 | H8: 1.015943871e-06 | J8: =F8*$B$1+J7 -> -1.930956312e-05 | K8: =J8*$B$1+K7 -> -1.937953196e-05 | L8: =G8*$B$1+L7 -> 4.238346992e-06 | M8: =L8*$B$1+M7 -> 6.290931522e-06 | N8: =(J8^2+L8^2)*$B$1+N7 -> 2.962426095e-10
A9: 1.43281 | B9: ='DF raw data'!D14 -> -1.3089259e-05 | C9: ='DF raw data'!E14 -> 8.213422e-06 | D9: ='DF raw data'!F14 -> -3.0052593e-07 | F9: -1.310852639e-05 | G9: 8.244479017e-06 | H9: -3.009683042e-07 | J9: -2.586736561e-05 | K9: -3.232019895e-05 | L9: 8.36281251e-06 | M9: 1.047459574e-05 | N9: 6.659707734e-10
A10: 1.93308 | B10: ='DF raw data'!D15 -> -1.3028709e-05 | C10: ='DF raw data'!E15 -> 6.1952023e-06 | D10: ='DF raw data'!F15 -> -2.0650766e-06 | F10: -1.304788726e-05 | G10: 6.21862792e-06 | H10: -2.068116393e-06 | J10: -3.239483217e-05 | K10: -4.852636164e-05 | L10: 1.14738055e-05 | M10: 1.621459641e-05 | N10: 1.256826345e-09
A11: 2.43335 | B11: ='DF raw data'!D16 -> -1.3023048e-05 | C11: ='DF raw data'!E16 -> 5.9958629e-06 | D11: ='DF raw data'!F16 -> -1.8752614e-06 | F11: -1.304221793e-05 | G11: 6.018534768e-06 | H11: -1.878021785e-06 | J11: -3.891946254e-05 | K11: -6.799660117e-05 | L11: 1.448469789e-05 | M11: 2.346085623e-05 | N11: 2.119557487e-09
A12: 2.93362 | B12: ='DF raw data'!D17 -> -1.2818929e-05 | C12: ='DF raw data'!E17 -> 2.0086582e-06 | D12: ='DF raw data'!F17 -> 7.6999349e-06 | F12: -1.283779846e-05 | G12: 2.016253443e-06 | H12: 7.711269204e-06 | J12: -4.534182797e-05 | K12: -9.067975745e-05 | L12: 1.5493369e-05 | M12: 3.121172393e-05 | N12: 3.268140311e-09
A13: 3.43389 | B13: ='DF raw data'!D18 -> -1.2546182e-05 | C13: ='DF raw data'!E18 -> -4.7801163e-06 | D13: ='DF raw data'!F18 -> 1.1234093e-05 | F13: -1.256464998e-05 | G13: -4.798191124e-06 | H13: 1.125062958e-05 | J13: -5.162754542e-05 | K13: -0.0001165074696 | L13: 1.309297792e-05 | M13: 3.7761748e-05 | N13: 4.687321013e-09
A14: 3.93416 | B14: ='DF raw data'!D19 -> -1.2578618e-05 | C14: ='DF raw data'!E19 -> -3.5740686e-06 | D14: ='DF raw data'!F19 -> 1.2774217e-05 | F14: -1.259713373e-05 | G14: -3.587583054e-06 | H14: 1.279302065e-05 | J14: -5.792951351e-05 | K14: -0.0001454878673 | L14: 1.129821775e-05 | M14: 4.341390739e-05 | N14: 6.430000682e-09
A15: 4.43443 | B15: ='DF raw data'!D20 -> -1.2873789e-05 | C15: ='DF raw data'!E20 -> 5.0729459e-06 | D15: ='DF raw data'!F20 -> 1.6276557e-05 | F15: -1.289273922e-05 | G15: 5.092127986e-06 | H15: 1.630051609e-05 | J15: -6.437936416e-05 | K15: -0.0001776949318 | L15: 1.384565662e-05 | M15: 5.034047403e-05 | N15: 8.599373879e-09
A16: 4.9347 | B16: ='DF raw data'!D21 -> -1.245954e-05 | C16: ='DF raw data'!E21 -> -6.4558285e-06 | D16: ='DF raw data'!F21 -> 1.4732504e-05 | F16: -1.247788044e-05 | G16: -6.480239614e-06 | H16: 1.475419025e-05 | J16: -7.06216734e-05 | K16: -0.0002130248364 | L16: 1.060378715e-05 | M16: 5.564523063e-05 | N16: 1.115068137e-08
A17: 5.43497 | B17: ='DF raw data'!D22 -> -1.279502e-05 | C17: ='DF raw data'!E22 -> 1.843342e-06 | D17: ='DF raw data'!F22 -> 9.3144699e-06 | F17: -1.281385427e-05 | G17: 1.85031214e-06 | H17: 9.3281808e-06 | J17: -7.703206028e-05 | K17: -0.0002515616652 | L17: 1.15294428e-05 | M17: 6.141306498e-05 | N17: 1.41857526e-08
A18: 5.93524 | B18: ='DF raw data'!D23 -> -1.3019105e-05 | C18: ='DF raw data'!E23 -> 7.6256756e-06 | D18: ='DF raw data'!F23 -> 7.6251308e-06 | F18: -1.303826912e-05 | G18: 7.6545102e-06 | H18: 7.636354993e-06 | J18: -8.355471517e-05 | K18: -0.0002933615825 | L18: 1.535876462e-05 | M18: 6.909659415e-05 | N18: 1.779634231e-08
A19: 6.43551 | B19: ='DF raw data'!D24 -> -1.3127036e-05 | C19: ='DF raw data'!E24 -> 9.9453055e-06 | D19: ='DF raw data'!F24 -> 4.6831119e-06 | F19: -1.3146359e-05 | G19: 9.982911205e-06 | H19: 4.690005441e-06 | J19: -9.013144419e-05 | K19: -0.0003384516401 | L19: 2.035291561e-05 | M19: 7.927854724e-05 | N19: 2.206760675e-08
A20: 6.93578 | B20: ='DF raw data'!D25 -> -1.2661128e-05 | C20: ='DF raw data'!E25 -> -2.7843125e-06 | D20: ='DF raw data'!F25 -> 4.9237642e-06 | F20: -1.267976518e-05 | G20: -2.794840687e-06 | H20: 4.931011981e-06 | J20: -9.647475032e-05 | K20: -0.0003867150635 | L20: 1.895474066e-05 | M20: 8.876103535e-05 | N20: 2.690354657e-08
A21: 7.43605 | B21: ='DF raw data'!D26 -> -1.274109e-05 | C21: ='DF raw data'!E26 -> -1.0797803e-06 | D21: ='DF raw data'!F26 -> 1.8258727e-06 | F21: -1.275984488e-05 | G21: -1.083863221e-06 | H21: 1.828560385e-06 | J21: -0.0001028581179 | K21: -0.0004381718941 | L21: 1.84125164e-05 | M21: 9.797226493e-05 | N21: 3.236590124e-08
A22: 7.93632 | B22: ='DF raw data'!D27 -> -9.6508602e-06 | C22: ='DF raw data'!E27 -> -7.85668e-06 | D22: ='DF raw data'!F27 -> 1.0725491e-06 | F22: -9.665066266e-06 | G22: -7.886388086e-06 | H22: 1.074127892e-06 | J22: -0.0001076932606 | K22: -0.0004920476016 | L22: 1.446719304e-05 | M22: 0.0001052097676 | N22: 3.82726582e-08
A23: 8.43659 | B23: ='DF raw data'!D28 -> -3.9168817e-06 | C23: ='DF raw data'!E28 -> 1.4161193e-07 | D23: ='DF raw data'!F28 -> 1.8846406e-06 | F23: =(1-$G$1*($B$2-$G$2))*B23 -> -3.92264735e-06 | G23: 1.421474004e-07 | H23: 1.887414791e-06 | J23: -0.0001096556434 | K23: -0.0005469050303 | L23: 1.453830512e-05 | M23: 0.0001124828455 | N23: 4.439382306e-08
A24: 8.93686 | B24: ='DF raw data'!D29 -> -1.5388005e-06 | C24: ='DF raw data'!E29 -> -9.2758119e-06 | D24: ='DF raw data'!F29 -> 6.3248008e-06 | F24: -1.541065614e-06 | G24: -9.310886081e-06 | H24: 6.334110907e-06 | J24: -0.0001104265923 | K24: -0.0006021481417 | L24: 9.880348135e-06 | M24: 0.0001174256873 | N24: 5.054296859e-08
A25: 9.43713 | B25: ='DF raw data'!D30 -> -1.6963249e-06 | C25: ='DF raw data'!E30 -> -6.9308289e-06 | D25: ='DF raw data'!F30 -> 3.6069325e-06 | F25: -1.69882189e-06 | G25: -6.95703611e-06 | H25: 3.612241905e-06 | J25: -0.0001112764619 | K25: -0.0006578164173 | L25: 6.39995168e-06 | M25: 0.0001206273911 | N25: 5.67580281e-08
A26: 9.9374 | B26: ='DF raw data'!D31 -> -1.7625434e-06 | C26: ='DF raw data'!E31 -> 3.5159856e-06 | D26: ='DF raw data'!F31 -> 1.2573075e-06 | F26: -1.765137864e-06 | G26: 3.529280427e-06 | H26: 1.259158257e-06 | J26: -0.0001121595074 | K26: -0.0007139264541 | L26: 8.1655448e-06 | M26: 0.0001247123682 | N26: 6.308465825e-08
A27: 10.43767 | B27: ='DF raw data'!D32 -> -1.80593e-06 | C27: ='DF raw data'!E32 -> -1.0305457e-06 | D27: ='DF raw data'!F32 -> 4.1562016e-06 | F27: -1.808588329e-06 | G27: -1.034442453e-06 | H27: 4.162319529e-06 | J27: -0.0001130642899 | K27: -0.0007704891264 | L27: 7.648044274e-06 | M27: 0.0001285384553 | N27: 6.950913872e-08
A28: 10.93794 | B28: ='DF raw data'!D33 -> -1.0710146e-06 | C28: ='DF raw data'!E33 -> -1.3131448e-06 | D28: ='DF raw data'!F33 -> 4.7587164e-06 | F28: -1.072591133e-06 | G28: -1.318110131e-06 | H28: 4.765721231e-06 | J28: -0.0001136008751 | K28: -0.0008273202362 | L28: 6.988633319e-06 | M28: 0.0001320346589 | N28: 7.59896362e-08
A29: 11.43821 | B29: ='DF raw data'!D34 -> 2.9266075e-06 | C29: ='DF raw data'!E34 -> -5.1618517e-06 | D29: ='DF raw data'!F34 -> 9.1794232e-07 | F29: 2.930915466e-06 | G29: -5.181369962e-06 | H29: 9.192935311e-07 | J29: -0.000112134626 | K29: -0.0008834178255 | L29: 4.396549368e-06 | M29: 0.0001342341206 | N29: 8.228978845e-08
A30: 11.93848 | B30: ='DF raw data'!D35 -> 7.2741301e-07 | C30: ='DF raw data'!E35 -> -1.0812626e-05 | D30: ='DF raw data'!F35 -> -2.4000472e-06 | F30: 7.28483762e-07 | G30: -1.085351126e-05 | H30: -2.403580069e-06 | J30: -0.0001117701874 | K30: -0.0009393330972 | L30: -1.033136711e-06 | M30: 0.0001337172733 | N30: 8.853998282e-08
A31: 12.43875 | B31: ='DF raw data'!D36 -> -4.7178046e-06 | C31: ='DF raw data'!E36 -> 2.2733775e-06 | D31: ='DF raw data'!F36 -> 3.6913866e-07 | F31: -4.724749208e-06 | G31: 2.281973713e-06 | H31: 3.696820321e-07 | J31: -0.0001141338377 | K31: -0.0009964308322 | L31: 1.08466278e-07 | M31: 0.0001337715358 | N31: 9.505677233e-08
A32: 12.93902 | B32: ='DF raw data'!D37 -> -3.3609913e-06 | C32: ='DF raw data'!E37 -> 4.5954102e-06 | D32: ='DF raw data'!F37 -> -3.4927941e-06 | F32: -3.365938679e-06 | G32: 4.612786604e-06 | H32: -3.497935493e-06 | J32: -0.0001158177159 | K32: -0.001054370961 | L32: 2.416105032e-06 | M32: 0.0001349802406 | N32: 1.017701861e-07
A33: 13.43929 | B33: ='DF raw data'!D38 -> 2.6927219e-06 | C33: ='DF raw data'!E38 -> -6.5815166e-06 | D33: ='DF raw data'!F38 -> -9.8616147e-06 | F33: 2.696685587e-06 | G33: -6.606402972e-06 | H33: -9.876130997e-06 | J33: -0.000114468645 | K33: -0.00111163619 | L33: -8.888801827e-07 | M33: 0.0001345355605 | N33: 1.083256545e-07
A34: 13.93956 | B34: ='DF raw data'!D39 -> 3.5103358e-06 | C34: ='DF raw data'!E39 -> -1.1793172e-06 | D34: ='DF raw data'!F39 -> -8.5693318e-06 | F34: 3.515503014e-06 | G34: -1.183776495e-06 | H34: -8.581945856e-06 | J34: -0.0001127099443 | K34: -0.001168021594 | L34: -1.48108805e-06 | M34: 0.0001337946166 | N34: 1.146819476e-07
A35: 14.43983 | B35: ='DF raw data'!D40 -> 1.4566531e-06 | C35: ='DF raw data'!E40 -> -1.3004595e-07 | D35: ='DF raw data'!F40 -> -3.4424154e-06 | F35: 1.458797293e-06 | G35: -1.305376865e-07 | H35: -3.447482635e-06 | J35: -0.0001119801518 | K35: -0.001224041904 | L35: -1.546392139e-06 | M35: 0.000133021003 | N35: 1.209563068e-07
A36: 14.9401 | B36: ='DF raw data'!D41 -> 1.6092445e-06 | C36: ='DF raw data'!E41 -> -3.4806638e-07 | D36: ='DF raw data'!F41 -> -2.1166486e-06 | F36: 1.611613308e-06 | G36: -3.493825067e-07 | H36: -2.119764307e-06 | J36: -0.00011117391 | K36: -0.001279658876 | L36: -1.721177725e-06 | M36: 0.0001321599494 | N36: 1.271409451e-07
A37: 15.44037 | B37: ='DF raw data'!D42 -> 4.8840366e-06 | C37: ='DF raw data'!E42 -> -3.6550582e-06 | D37: ='DF raw data'!F42 -> -6.3942862e-06 | F37: 4.891225902e-06 | G37: -3.668878896e-06 | H37: -6.403698589e-06 | J37: -0.0001087269764 | K37: -0.001334051721 | L37: -3.55660777e-06 | M37: 0.0001303806853 | N37: 1.330612427e-07
A38: 15.94064 | B38: ='DF raw data'!D43 -> 6.9443258e-06 | C38: ='DF raw data'!E43 -> -8.2893848e-06 | D38: ='DF raw data'!F43 -> -7.432056e-06 | F38: 6.954547848e-06 | G38: -8.320729052e-06 | H38: -7.442995986e-06 | J38: -0.0001052478247 | K38: -0.00138670405 | L38: -7.719218893e-06 | M38: 0.0001265189916 | N38: 1.386325951e-07
A39: 16.44091 | B39: ='DF raw data'!D44 -> 3.2821181e-06 | C39: ='DF raw data'!E44 -> -2.5536174e-06 | D39: ='DF raw data'!F44 -> -2.1985177e-06 | F39: 3.286949378e-06 | G39: -2.563273271e-06 | H39: -2.201753918e-06 | J39: -0.0001036034626 | K39: -0.001438533754 | L39: -9.001547612e-06 | M39: 0.0001220157874 | N39: 1.440428677e-07
A40: 16.94118 | B40: ='DF raw data'!D45 -> -1.9164008e-06 | C40: ='DF raw data'!E45 -> -9.7584052e-07 | D40: ='DF raw data'!F45 -> 4.3514665e-06 | F40: -1.919221742e-06 | G40: -9.795304188e-07 | H40: 4.357871859e-06 | J40: -0.0001045635916 | K40: -0.001490843782 | L40: -9.491577295e-06 | M40: 0.000117267436 | N40: 1.495576615e-07
A41: 17.44145 | B41: ='DF raw data'!D46 -> -6.9219395e-06 | C41: ='DF raw data'!E46 -> -5.6912904e-06 | D41: ='DF raw data'!F46 -> 5.3793337e-06 | F41: -6.932128595e-06 | G41: -5.712810603e-06 | H41: 5.387252079e-06 | J41: -0.0001080315276 | K41: -0.001544888715 | L41: -1.234952505e-05 | M41: 0.0001110893391 | N41: 1.554725146e-07
A42: 17.94172 | B42: ='DF raw data'!D47 -> -9.1465054e-06 | C42: ='DF raw data'!E47 -> -2.8073955e-06 | D42: ='DF raw data'!F47 -> -3.2462119e-06 | F42: -9.159969056e-06 | G42: -2.81801097e-06 | H42: -3.250990324e-06 | J42: -0.0001126139853 | K42: -0.001601226113 | L42: -1.37592914e-05 | M42: 0.0001042059784 | N42: 1.619116038e-07
A43: 18.44199 | B43: ='DF raw data'!D48 -> -3.4364139e-06 | C43: ='DF raw data'!E48 -> 1.6505392e-06 | D43: ='DF raw data'!F48 -> -6.6478533e-06 | F43: -3.441472301e-06 | G43: 1.656780304e-06 | H43: -6.65763894e-06 | J43: -0.0001143356507 | K43: -0.001658424809 | L43: -1.293045392e-05 | M43: 9.773726024e-05 | N43: 1.685350974e-07
A44: 18.94226 | B44: ='DF raw data'!D49 -> 5.2522946e-06 | C44: ='DF raw data'!E49 -> -3.9874258e-06 | D44: ='DF raw data'!F49 -> 7.2402472e-06 | F44: 5.260025978e-06 | G44: -4.002503261e-06 | H44: 7.250904844e-06 | J44: -0.0001117042175 | K44: -0.001714307078 | L44: -1.493278623e-05 | M44: 9.026683527e-05 | N44: 1.748889367e-07
A45: 19.44253 | B45: ='DF raw data'!D50 -> 8.570677e-06 | C45: ='DF raw data'!E50 -> -1.7435805e-06 | D45: ='DF raw data'!F50 -> 1.229949e-05 | F45: 8.583293037e-06 | G45: -1.750173417e-06 | H45: 1.231759485e-05 | J45: -0.0001074102535 | K45: -0.001768041205 | L45: -1.580834548e-05 | M45: 8.235839428e-05 | N45: 1.807855523e-07
A46: 19.9428 | B46: ='DF raw data'!D51 -> 4.7708299e-06 | C46: ='DF raw data'!E51 -> 6.230166e-07 | D46: ='DF raw data'!F51 -> 1.4304753e-06 | F46: 4.777852562e-06 | G46: 6.253723827e-07 | H46: 1.43258096e-06 | J46: -0.0001050200372 | K46: -0.001820579579 | L46: -1.549549044e-05 | M46: 7.460646528e-05 | N46: 1.864232543e-07
A47: 20.44307 | B47: ='DF raw data'!D52 -> -7.8699753e-07 | C47: ='DF raw data'!E52 -> 1.6157146e-06 | D47: ='DF raw data'!F52 -> 1.1318482e-06 | F47: -7.881559904e-07 | G47: 1.621824024e-06 | H47: 1.133514281e-06 | J47: -0.000105414328 | K47: -0.001873315205 | L47: -1.468414054e-05 | M47: 6.726043029e-05 | N47: 1.92090215e-07
A48: 20.94334 | B48: ='DF raw data'!D53 -> -5.7065054e-06 | C48: ='DF raw data'!E53 -> 1.3974673e-05 | D48: ='DF raw data'!F53 -> 6.261369e-06 | F48: -5.714905376e-06 | G48: 1.402751476e-05 | H48: 6.270585735e-06 | J48: -0.0001082733237 | K48: -0.001927481101 | L48: -7.666595727e-06 | M48: 6.342506245e-05 | N48: 1.979843408e-07
A49: 21.44361 | B49: ='DF raw data'!D54 -> -3.4517661e-06 | C49: ='DF raw data'!E54 -> 3.2313847e-06 | D49: ='DF raw data'!F54 -> 3.5900887e-06 | F49: -3.4568471e-06 | G49: 3.24360338e-06 | H49: 3.595373311e-06 | J49: -0.0001100026806 | K49: -0.001982512142 | L49: -6.043918264e-06 | M49: 6.040147146e-05 | N49: 2.040561772e-07
A50: 21.94388 | B50: ='DF raw data'!D55 -> 3.2687012e-06 | C50: ='DF raw data'!E55 -> 1.1839527e-07 | D50: ='DF raw data'!F55 -> -5.686743e-06 | F50: 3.273512728e-06 | G50: 1.188429523e-07 | H50: -5.695113886e-06 | J50: -0.0001083650404 | K50: -0.002036723921 | L50: -5.984464701e-06 | M50: 5.74076233e-05 | N50: 2.099487553e-07
A51: 22.44415 | B51: ='DF raw data'!D56 -> 5.9468866e-06 | C51: ='DF raw data'!E56 -> 9.3934514e-06 | D51: ='DF raw data'!F56 -> -2.4289909e-06 | F51: 5.955640417e-06 | G51: 9.428970406e-06 | H51: -2.432566375e-06 | J51: -0.0001053856121 | K51: -0.002089445181 | L51: -1.267433676e-06 | M51: 5.677356426e-05 | N51: 2.155056213e-07
A52: 22.94442 | B52: ='DF raw data'!D57 -> 5.7390998e-06 | C52: ='DF raw data'!E57 -> 1.0519844e-05 | D52: ='DF raw data'!F57 -> 1.0579754e-06 | F52: 5.747547755e-06 | G52: 1.055962218e-05 | H52: 1.05953274e-06 | J52: -0.0001025102864 | K52: -0.002140728002 | L52: 4.015228512e-06 | M52: 5.878226262e-05 | N52: 2.207707033e-07
A53: 23.44469 | B53: ='DF raw data'!D58 -> 2.9381545e-06 | C53: ='DF raw data'!E58 -> -2.3181183e-06 | D53: ='DF raw data'!F58 -> 1.2304811e-06 | F53: 2.942479463e-06 | G53: -2.326883689e-06 | H53: 1.232292368e-06 | J53: -0.0001010382522 | K53: -0.002191274408 | L53: 2.851158409e-06 | M53: 6.020861164e-05 | N53: 2.258818906e-07
A54: 23.94496 | B54: ='DF raw data'!D59 -> -1.4908737e-06 | C54: ='DF raw data'!E59 -> -6.8100776e-06 | D54: ='DF raw data'!F59 -> 3.9782776e-07 | F54: -1.493068266e-06 | G54: -6.835828219e-06 | H54: 3.984133625e-07 | J54: -0.0001017851895 | K54: -0.002242194485 | L54: -5.686013739e-07 | M54: 5.992415743e-05 | N54: 2.31064962e-07
A55: 24.44523 | B55: ='DF raw data'!D60 -> -4.4688286e-06 | C55: ='DF raw data'!E60 -> -5.5571963e-06 | D55: ='DF raw data'!F60 -> -5.2394316e-06 | F55: -4.475406716e-06 | G55: -5.578209459e-06 | H55: -5.247144043e-06 | J55: -0.0001040241012 | K55: -0.002294234622 | L55: -3.35921222e-06 | M55: 5.824364433e-05 | N55: 2.364840357e-07
A56: 24.9455 | B56: ='DF raw data'!D61 -> -2.0768648e-06 | C56: ='DF raw data'!E61 -> 6.9013095e-07 | D56: ='DF raw data'!F61 -> -7.0213573e-06 | F56: -2.079921945e-06 | G56: 6.92740509e-07 | H56: -7.031692738e-06 | J56: -0.0001050646237 | K56: -0.002346795301 | L56: -3.012654926e-06 | M56: 5.673650345e-05 | N56: 2.420108442e-07
A57: 25.44577 | B57: ='DF raw data'!D62 -> 2.3831371e-06 | C57: ='DF raw data'!E62 -> -6.5349504e-06 | D57: ='DF raw data'!F62 -> -9.0951216e-06 | F57: 2.386645078e-06 | G57: -6.559660694e-06 | H57: -9.108509619e-06 | J57: -0.0001038706568 | K57: -0.002398758675 | L57: -6.294256381e-06 | M57: 5.358767581e-05 | N57: 2.474281335e-07
A58: 25.94604 | B58: ='DF raw data'!D63 -> 2.6876432e-06 | C58: ='DF raw data'!E63 -> -1.4290938e-05 | D58: ='DF raw data'!F63 -> -7.0883107e-06 | F58: 2.691599411e-06 | G58: -1.434497564e-05 | H58: -7.098744693e-06 | J58: -0.0001025241304 | K58: -0.002450048422 | L58: -1.347061734e-05 | M58: 4.684873008e-05 | N58: 2.527773479e-07
A59: 26.44631 | B59: ='DF raw data'!D64 -> 1.8403944e-06 | C59: ='DF raw data'!E64 -> -2.3444036e-06 | D59: ='DF raw data'!F64 -> -6.1023165e-06 | F59: 1.843103461e-06 | G59: -2.353268381e-06 | H59: -6.11129911e-06 | J59: -0.000101602081 | K59: -0.002500876895 | L59: -1.464788692e-05 | M59: 3.952083169e-05 | N59: 2.580489648e-07
A60: 26.94658 | B60: ='DF raw data'!D65 -> 1.7779812e-06 | C60: ='DF raw data'!E65 -> -5.8739524e-06 | D60: ='DF raw data'!F65 -> -1.1879543e-05 | F60: 1.780598388e-06 | G60: -5.896163294e-06 | H60: -1.189702969e-05 | J60: -0.0001007113011 | K60: -0.002551259737 | L60: -1.759756053e-05 | M60: 3.071730009e-05 | N60: 2.632780071e-07
A61: 27.44685 | B61: ='DF raw data'!D66 -> 9.9681256e-07 | C61: ='DF raw data'!E66 -> 4.3755333e-07 | D61: ='DF raw data'!F66 -> -1.1680604e-05 | F61: 9.982798681e-07 | G61: 4.392078294e-07 | H61: -1.169779785e-05 | J61: -0.0001002118916 | K61: -0.00260139274 | L61: -1.737783803e-05 | M61: 2.202368906e-05 | N61: 2.684530063e-07
A62: 27.94712 | B62: ='DF raw data'!D67 -> -1.951275e-07 | C62: ='DF raw data'!E67 -> 1.6114978e-05 | D62: ='DF raw data'!F67 -> -6.2333565e-06 | F62: -1.954147277e-07 | G62: 1.617591279e-05 | H62: -6.242532001e-06 | J62: -0.0001003096517 | K62: -0.00265157465 | L62: -9.285514133e-06 | M62: 1.73784249e-05 | N62: 2.735298698e-07
A63: 28.44739 | B63: ='DF raw data'!D68 -> 2.6742919e-06 | C63: ='DF raw data'!E68 -> 1.16313e-06 | D63: ='DF raw data'!F68 -> -1.6525735e-06 | F63: 2.678228458e-06 | G63: 1.167528088e-06 | H63: -1.655006088e-06 | J63: -9.896981436e-05 | K63: -0.002701086279 | L63: -8.701434857e-06 | M63: 1.302535809e-05 | N63: 2.784679045e-07
A64: 28.94766 | B64: ='DF raw data'!D69 -> 3.5314943e-06 | C64: ='DF raw data'!E69 -> 4.2223483e-06 | D64: ='DF raw data'!F69 -> -3.8478152e-07 | F64: 3.53669266e-06 | G64: 4.238314063e-06 | H64: -3.853479184e-07 | J64: -9.720051312e-05 | K64: -0.002749712779 | L64: -6.581133481e-06 | M64: 9.733014439e-06 | N64: 2.832160927e-07
A65: 29.44793 | B65: ='DF raw data'!D70 -> 6.618523e-06 | C65: ='DF raw data'!E70 -> 4.2691818e-06 | D65: ='DF raw data'!F70 -> -2.8056818e-06 | F65: 6.628265466e-06 | G65: 4.285324652e-06 | H65: -2.809811764e-06 | J65: -9.388459076e-05 | K65: -0.002796680424 | L65: -4.437314117e-06 | M65: 7.513159306e-06 | N65: 2.876354809e-07
A66: 29.9482 | B66: ='DF raw data'!D71 -> 7.6163551e-06 | C66: ='DF raw data'!E71 -> 2.5582449e-06 | D66: ='DF raw data'!F71 -> 5.4206612e-06 | F66: 7.627566375e-06 | G66: 2.567918268e-06 | H66: 5.428640413e-06 | J66: -9.006874813e-05 | K66: -0.002841739116 | L66: -3.152661645e-06 | M66: 5.935977264e-06 | N66: 2.916988333e-07
A67: 30.44847 | B67: ='DF raw data'!D72 -> -1.416448e-06 | C67: ='DF raw data'!E72 -> 9.2736445e-07 | D67: ='DF raw data'!F72 -> 5.9643426e-06 | F67: -1.418533011e-06 | G67: 9.308710486e-07 | H67: 5.973122112e-06 | J67: -9.077839764e-05 | K67: -0.002887152825 | L67: -2.686974786e-06 | M67: 4.591764388e-06 | N67: 2.958250289e-07
A68: 30.94874 | B68: ='DF raw data'!D73 -> -7.4746213e-06 | C68: ='DF raw data'!E73 -> -1.0697745e-05 | D68: ='DF raw data'!F73 -> 3.453257e-06 | F68: -7.485623943e-06 | G68: -1.073819587e-05 | H68: 3.458340194e-06 | J68: -9.452323073e-05 | K68: -0.002934439962 | L68: -8.058972033e-06 | M68: 5.601024495e-07 | N68: 3.003272528e-07
A69: 31.44901 | B69: ='DF raw data'!D74 -> -6.0355678e-06 | C69: ='DF raw data'!E74 -> -2.3211869e-06 | D69: ='DF raw data'!F74 -> -1.7185228e-06 | F69: -6.044452156e-06 | G69: -2.329963892e-06 | H69: -1.721052466e-06 | J69: -9.754708881e-05 | K69: -0.002983239844 | L69: -9.224583069e-06 | M69: -4.054679723e-06 | N69: 3.051301087e-07
A70: 31.94928 | B70: ='DF raw data'!D75 -> -3.818227e-06 | C70: ='DF raw data'!E75 -> 8.8122424e-06 | D70: ='DF raw data'!F75 -> 4.4467765e-07 | F70: -3.82384743e-06 | G70: 8.845563708e-06 | H70: 4.453322155e-07 | J70: -9.946004496e-05 | K70: -0.003032996721 | L70: -4.799412913e-06 | M70: -6.45568202e-06 | N70: 3.100904533e-07
A71: 32.44955 | B71: ='DF raw data'!D76 -> -2.6326898e-06 | C71: ='DF raw data'!E76 -> 8.4585272e-06 | D71: ='DF raw data'!F76 -> 9.3664494e-06 | F71: -2.636565119e-06 | G71: =(1-$G$1*($B$2-$G$2))*C71*$M$2/$M$1 -> 8.490511022e-06 | H71: 9.380236814e-06 | J71: -0.0001007790394 | K71: -0.003083413451 | L71: -5.518649639e-07 | M71: -6.731763506e-06 | N71: 3.151715553e-07
A72: =A71+$B$1 -> 32.94982 | B72: ='DF raw data'!D77 -> -1.8321598e-06 | C72: ='DF raw data'!E77 -> 6.6976891e-06 | D72: ='DF raw data'!F77 -> 5.5799246e-06 | F72: -1.834856739e-06 | G72: 6.72301475e-06 | H72: 5.588138249e-06 | J72: =F72*$B$1+J71 -> -0.0001016969632 | K72: =J72*$B$1+K71 -> -0.00313428939 | L72: =G72*$B$1+L71 -> 2.811457625e-06 | M72: =L72*$B$1+M71 -> -5.3252756e-06 | N72: =(J72^2+L72^2)*$B$1+N71 -> 3.203494381e-07
A73: 33.45009 | B73: ='DF raw data'!D78 -> -7.478165e-07 | C73: ='DF raw data'!E78 -> 4.8728061e-06 | D73: ='DF raw data'!F78 -> -6.3588936e-07 | F73: -7.489172859e-07 | G73: 4.891231407e-06 | H73: -6.368253891e-07 | J73: -0.000102071624 | K73: -0.003185352762 | L73: 5.258393961e-06 | M73: -2.694658853e-06 | N73: 3.255753922e-07
A74: 33.95036 | B74: ='DF raw data'!D79 -> -1.9791414e-06 | C74: ='DF raw data'!E79 -> -2.5540176e-06 | D74: ='DF raw data'!F79 -> 9.0450362e-07 | F74: -1.982054696e-06 | G74: -2.563674984e-06 | H74: 9.058350493e-07 | J74: -0.0001030631865 | K74: -0.003236912182 | L74: 3.975864277e-06 | M74: -7.056532314e-07 | N74: 3.308971784e-07
A75: 34.45063 | B75: ='DF raw data'!D80 -> -4.6994473e-06 | C75: ='DF raw data'!E80 -> -1.0718026e-05 | D75: ='DF raw data'!F80 -> -7.7798882e-07 | F75: -4.706364886e-06 | G75: -1.075855356e-05 | H75: -7.791340195e-07 | J75: -0.0001054176397 | K75: -0.003289649465 | L75: -1.406317311e-06 | M75: -1.409191592e-06 | N75: 3.364576076e-07
A76: 34.9509 | B76: ='DF raw data'!D81 -> -3.0863166e-06 | C76: ='DF raw data'!E81 -> -2.7828455e-06 | D76: ='DF raw data'!F81 -> -2.4803737e-06 | F76: -3.090859658e-06 | G76: -2.79336814e-06 | H76: -2.48402481e-06 | J76: -0.0001069639041 | K76: -0.003343160297 | L76: -2.80375559e-06 | M76: -2.811826401e-06 | N76: 3.421852678e-07
A77: 35.45117 | B77: ='DF raw data'!D82 -> 4.4522303e-06 | C77: ='DF raw data'!E82 -> -8.9271543e-07 | D77: ='DF raw data'!F82 -> -2.8688517e-06 | F77: 4.458783983e-06 | G77: -8.960910119e-07 | H77: -2.87307465e-06 | J77: -0.0001047333082 | K77: -0.003395555229 | L77: -3.252043041e-06 | M77: -4.438725973e-06 | N77: 3.476780531e-07
A78: 35.95144 | B78: ='DF raw data'!D83 -> 7.6545393e-06 | C78: ='DF raw data'!E83 -> 1.2637338e-06 | D78: ='DF raw data'!F83 -> 2.4719195e-06 | F78: 7.665806782e-06 | G78: 1.268512296e-06 | H78: 2.475558166e-06 | J78: -0.000100898335 | K78: -0.003446031639 | L78: -2.617444394e-06 | M78: -5.74815488e-06 | N78: 3.527744662e-07
A79: 36.45171 | B79: ='DF raw data'!D84 -> 8.5910784e-07 | C79: ='DF raw data'!E84 -> 1.5084397e-06 | D79: ='DF raw data'!F84 -> 9.6341973e-06 | F79: 8.603724467e-07 | G79: 1.51414349e-06 | H79: 9.648378838e-06 | J79: -0.0001004679165 | K79: -0.003496292724 | L79: -1.85996383e-06 | M79: -6.678638986e-06 | N79: 3.578258233e-07
A80: 36.95198 | B80: ='DF raw data'!D85 -> -4.5483985e-06 | C80: ='DF raw data'!E85 -> 4.5599181e-06 | D80: ='DF raw data'!F85 -> 8.1545659e-06 | F80: -4.555093743e-06 | G80: 4.577160299e-06 | H80: 8.166569421e-06 | J80: -0.0001027466933 | K80: -0.003547693812 | L80: 4.298521524e-07 | M80: -6.46359685e-06 | N80: 3.631072076e-07
A81: 37.45225 | B81: ='DF raw data'!D86 -> -2.9871962e-06 | C81: ='DF raw data'!E86 -> 9.2106557e-06 | D81: ='DF raw data'!F86 -> 5.6213175e-06 | F81: -2.991593353e-06 | G81: 9.245483509e-06 | H81: 5.629592079e-06 | J81: -0.0001042432977 | K81: -0.003599843607 | L81: 5.055090188e-06 | M81: -3.934686881e-06 | N81: 3.68556258e-07
A82: 37.95252 | B82: ='DF raw data'!D87 -> -1.7589346e-06 | C82: ='DF raw data'!E87 -> -2.3414677e-06 | D82: ='DF raw data'!F87 -> 7.0316019e-06 | F82: -1.761523752e-06 | G82: -2.350321379e-06 | H82: 7.041952418e-06 | J82: -0.0001051245351 | K82: -0.003652434258 | L82: 3.879294911e-06 | M82: -1.993992016e-06 | N82: 3.740923543e-07
A83: 38.45279 | B83: ='DF raw data'!D88 -> -2.120586e-06 | C83: ='DF raw data'!E88 -> -5.5088958e-06 | D83: ='DF raw data'!F88 -> 6.0544553e-06 | F83: -2.123707503e-06 | G83: -5.529726323e-06 | H83: 6.063367458e-06 | J83: -0.0001061869623 | K83: -0.003705556409 | L83: 1.112938724e-06 | M83: -1.437222161e-06 | N83: 3.797338539e-07
A84: 38.95306 | B84: ='DF raw data'!D89 -> -1.1579259e-06 | C84: ='DF raw data'!E89 -> -2.5746986e-06 | D84: ='DF raw data'!F89 -> -3.7466793e-07 | F84: -1.159630367e-06 | G84: -2.584434184e-06 | H84: -3.752194412e-07 | J84: -0.0001067670906 | K84: -0.003758968782 | L84: -1.799761654e-07 | M84: -1.527258837e-06 | N84: 3.854365537e-07
A85: 39.45333 | B85: ='DF raw data'!D90 -> -2.6964344e-06 | C85: ='DF raw data'!E90 -> -2.0196421e-06 | D85: ='DF raw data'!F90 -> -3.6461984e-07 | F85: -2.700403551e-06 | G85: -2.027278876e-06 | H85: -3.651565604e-07 | J85: -0.0001081180215 | K85: -0.003813056984 | L85: -1.194162968e-06 | M85: -2.124662745e-06 | N85: 3.912851765e-07
A86: 39.9536 | B86: ='DF raw data'!D91 -> -4.4140988e-06 | C86: ='DF raw data'!E91 -> 9.0801768e-07 | D86: ='DF raw data'!F91 -> -2.4482119e-07 | F86: -4.420596353e-06 | G86: 9.114511236e-07 | H86: -2.451815668e-07 | J86: -0.0001103295132 | K86: -0.00386825153 | L86: -7.381913149e-07 | M86: -2.493957714e-06 | N86: 3.973750365e-07
A87: 40.45387 | B87: ='DF raw data'!D92 -> 3.2682728e-08 | C87: ='DF raw data'!E92 -> 2.6493753e-06 | D87: ='DF raw data'!F92 -> -6.5299514e-07 | F87: =(1-$G$1*($B$2-$G$2))*B87 -> 3.273083698e-08 | G87: 2.659393255e-06 | H87: -6.539563488e-07 | J87: -0.0001103131389 | K87: -0.003923437884 | L87: 5.92223349e-07 | M87: -2.19768614e-06 | N87: 4.034629919e-07
A88: 40.95414 | B88: ='DF raw data'!D93 -> 6.9773005e-06 | C88: ='DF raw data'!E93 -> 1.544157e-05 | D88: ='DF raw data'!F93 -> 5.5865821e-06 | F88: 6.987571086e-06 | G88: 1.549995847e-05 | H88: 5.594805549e-06 | J88: -0.0001068174668 | K88: -0.003976875458 | L88: 8.346387571e-06 | M88: 1.97776117e-06 | N88: 4.092059081e-07
A89: 41.45441 | B89: ='DF raw data'!D94 -> 7.1790191e-06 | C89: ='DF raw data'!E94 -> 2.04962e-06 | D89: ='DF raw data'!F94 -> 7.2147595e-06 | F89: 7.189586616e-06 | G89: 2.05737013e-06 | H89: 7.225379626e-06 | J89: -0.0001032207323 | K89: -0.004028513694 | L89: 9.375628125e-06 | M89: 6.668106653e-06 | N89: 4.145800195e-07
A90: 41.95468 | B90: ='DF raw data'!D95 -> 5.5776973e-06 | C90: ='DF raw data'!E95 -> 4.8959009e-07 | D90: ='DF raw data'!F95 -> 9.208452e-06 | F90: 5.58590767e-06 | G90: 4.914413535e-07 | H90: 9.222006841e-06 | J90: -0.0001004262702 | K90: -0.004078753944 | L90: 9.621481491e-06 | M90: 1.14814452e-05 | N90: 4.196717719e-07
A91: 42.45495 | B91: ='DF raw data'!D96 -> 6.2225654e-06 | C91: ='DF raw data'!E96 -> 6.7177034e-06 | D91: ='DF raw data'!F96 -> 1.0806951e-05 | F91: 6.231725016e-06 | G91: 6.743104729e-06 | H91: 1.082285883e-05 | J91: -9.730872516e-05 | K91: -0.00412743458 | L91: 1.299485449e-05 | M91: 1.798238106e-05 | N91: 4.244933013e-07
A92: 42.95522 | B92: ='DF raw data'!D97 -> 5.3253816e-06 | C92: ='DF raw data'!E97 -> -2.5594882e-06 | D92: ='DF raw data'!F97 -> 1.2907723e-05 | F92: 5.333220562e-06 | G92: -2.56916627e-06 | H92: 1.292672317e-05 | J92: -9.464067491e-05 | K92: -0.00417478047 | L92: 1.170957768e-05 | M92: 2.384033148e-05 | N92: 4.290427424e-07
A93: 43.45549 | B93: ='DF raw data'!D98 -> 2.6322441e-06 | C93: ='DF raw data'!E98 -> -2.126917e-06 | D93: ='DF raw data'!F98 -> 7.0733295e-06 | F93: 2.636118763e-06 | G93: -2.134959409e-06 | H93: 7.083741441e-06 | J93: -9.332190378e-05 | K93: -0.004221466619 | L93: 1.064152154e-05 | M93: 2.916396547e-05 | N93: 4.334562343e-07
A94: 43.95576 | B94: ='DF raw data'!D99 -> -1.3729887e-06 | C94: ='DF raw data'!E99 -> -1.1482289e-06 | D94: ='DF raw data'!F99 -> -4.1533349e-06 | F94: -1.375009739e-06 | G94: -1.152570643e-06 | H94: -4.159448609e-06 | J94: -9.40097799e-05 | K94: -0.004268496892 | L94: 1.006492503e-05 | M94: 3.419914551e-05 | N94: 4.379282185e-07
A95: 44.45603 | B95: ='DF raw data'!D100 -> -1.7987195e-06 | C95: ='DF raw data'!E100 -> 2.2141357e-06 | D95: ='DF raw data'!F100 -> -2.4081671e-06 | F95: -1.801367215e-06 | G95: 2.222507905e-06 | H95: -2.411711922e-06 | J95: -9.491094988e-05 | K95: -0.004315977993 | L95: 1.117677905e-05 | M95: 3.979055277e-05 | N95: 4.424971889e-07
A96: 44.9563 | B96: ='DF raw data'!D101 -> 1.5745309e-06 | C96: ='DF raw data'!E101 -> -1.0482794e-05 | D96: ='DF raw data'!F101 -> 1.1523518e-06 | F96: 1.576848609e-06 | G96: -1.052243208e-05 | H96: 1.154048062e-06 | J96: -9.412209982e-05 | K96: -0.004363064455 | L96: 5.912721956e-06 | M96: 4.274851018e-05 | N96: 4.469465552e-07
A97: 45.45657 | B97: ='DF raw data'!D102 -> -1.6690256e-06 | C97: ='DF raw data'!E102 -> -7.4892218e-06 | D97: ='DF raw data'!F102 -> -2.8701177e-06 | F97: -1.671482406e-06 | G97: -7.517540434e-06 | H97: -2.874342513e-06 | J97: -9.495829232e-05 | K97: -0.00441056924 | L97: 2.151922003e-06 | M97: 4.38250522e-05 | N97: 4.514598451e-07
A98: 45.95684 | B98: ='DF raw data'!D103 -> -8.3797504e-06 | C98: ='DF raw data'!E103 -> 7.5937896e-07 | D98: ='DF raw data'!F103 -> -4.9746886e-06 | F98: -8.392085393e-06 | G98: 7.622503631e-07 | H98: -4.982011342e-06 | J98: -9.915660088e-05 | K98: -0.004460174313 | L98: 2.533252992e-06 | M98: 4.509236267e-05 | N98: 4.563817259e-07
A99: 46.45711 | B99: ='DF raw data'!D104 -> -7.8633029e-06 | C99: ='DF raw data'!E104 -> 1.6829626e-06 | D99: ='DF raw data'!F104 -> -5.9811864e-06 | F99: -7.874877682e-06 | G99: 1.689326306e-06 | H99: -5.989990706e-06 | J99: -0.0001030961659 | K99: -0.004511750232 | L99: 3.378372263e-06 | M99: 4.678246096e-05 | N99: 4.617047152e-07
A100: 46.95738 | B100: ='DF raw data'!D105 -> -3.6952706e-06 | C100: ='DF raw data'!E105 -> 7.1546774e-06 | D100: ='DF raw data'!F105 -> -7.764902e-06 | F100: -3.700710038e-06 | G100: 7.181731037e-06 | H100: -7.776331936e-06 | J100: -0.0001049475202 | K100: -0.004564252328 | L100: 6.971176849e-06 | M100: 5.026993161e-05 | N100: 4.672389917e-07
A101: 47.45765 | B101: ='DF raw data'!D106 -> -5.7725128e-06 | C101: ='DF raw data'!E106 -> 4.611421e-06 | D101: ='DF raw data'!F106 -> -6.3713233e-06 | F101: -5.781009939e-06 | G101: 4.628857944e-06 | H101: -6.380701888e-06 | J101: -0.000107839586 | K101: -0.004618201238 | L101: 9.286855613e-06 | M101: 5.491586686e-05 | N101: 4.730999659e-07
A102: 47.95792 | B102: ='DF raw data'!D107 -> -6.6369839e-06 | C102: ='DF raw data'!E107 -> 1.3327162e-06 | D102: ='DF raw data'!F107 -> -2.5963816e-06 | F102: -6.64675354e-06 | G102: 1.337755536e-06 | H102: -2.600203474e-06 | J102: -0.0001111647574 | K102: -0.004673813631 | L102: 9.956094575e-06 | M102: 5.98966023e-05 | N102: 4.793316928e-07
A103: 48.45819 | B103: ='DF raw data'!D108 -> -3.6133949e-07 | C103: ='DF raw data'!E108 -> 8.8270526e-06 | D103: ='DF raw data'!F108 -> 7.1973993e-08 | F103: -3.618713817e-07 | G103: 8.860429909e-06 | H103: 7.207993872e-08 | J103: -0.0001113457908 | K103: -0.00472951659 | L103: 1.438870185e-05 | M103: 6.709483817e-05 | N103: 4.856375561e-07
A104: 48.95846 | B104: ='DF raw data'!D109 -> 8.6878199e-06 | C104: ='DF raw data'!E109 -> 5.0215776e-06 | D104: ='DF raw data'!F109 -> 3.5344494e-06 | F104: 8.700608371e-06 | G104: 5.04056545e-06 | H104: 3.53965211e-06 | J104: -0.0001069931374 | K104: -0.004783042046 | L104: 1.691034552e-05 | M104: 7.555457672e-05 | N104: 4.915074697e-07
A105: 49.45873 | B105: ='DF raw data'!D110 -> 9.9692106e-06 | C105: ='DF raw data'!E110 -> -5.7889592e-06 | D105: ='DF raw data'!F110 -> 5.8271762e-06 | F105: 9.983885278e-06 | G105: -5.810848713e-06 | H105: 5.835753803e-06 | J105: -0.0001019984991 | K105: -0.004834068836 | L105: 1.400335224e-05 | M105: 8.256003375e-05 | N105: 4.968102255e-07
A106: 49.959 | B106: ='DF raw data'!D111 -> 1.0697686e-06 | C106: ='DF raw data'!E111 -> -5.5096962e-06 | D106: ='DF raw data'!F111 -> 2.2044335e-06 | F106: 1.071343299e-06 | G106: -5.530529749e-06 | H106: 2.207678426e-06 | J106: -0.0001014625382 | K106: -0.0048848275 | L106: 1.123659412e-05 | M106: 8.818136469e-05 | N106: 5.02023493e-07
A107: 50.45927 | B107: ='DF raw data'!D112 -> -5.5845458e-06 | C107: ='DF raw data'!E112 -> -1.6927336e-07 | D107: ='DF raw data'!F112 -> -3.7507559e-06 | F107: -5.592766251e-06 | G107: -1.699134252e-07 | H107: -3.756277013e-06 | J107: -0.0001042604314 | K107: -0.004936985866 | L107: 1.115159153e-05 | M107: 9.376017138e-05 | N107: 5.075237593e-07
A108: 50.95954 | B108: ='DF raw data'!D113 -> -2.9692392e-06 | C108: ='DF raw data'!E113 -> -3.4054165e-06 | D108: ='DF raw data'!F113 -> -4.8600778e-06 | F108: -2.97360992e-06 | G108: -3.418293238e-06 | H108: -4.867231835e-06 | J108: -0.0001057480392 | K108: -0.004989888437 | L108: 9.441521973e-06 | M108: 9.848348158e-05 | N108: 5.131626978e-07
A109: 51.45981 | B109: ='DF raw data'!D114 -> -6.364798e-07 | C109: ='DF raw data'!E114 -> -3.9044344e-06 | D109: ='DF raw data'!F114 -> -5.2259275e-06 | F109: -6.374166983e-07 | G109: -3.91919805e-06 | H109: -5.233620065e-06 | J109: -0.0001060669197 | K109: -0.005042950535 | L109: 7.480864764e-06 | M109: 0.0001022259338 | N109: 5.188188279e-07
A110: 51.96008 | B110: ='DF raw data'!D115 -> -6.7598749e-06 | C110: ='DF raw data'!E115 -> -5.6257777e-06 | D110: ='DF raw data'!F115 -> -6.8807253e-07 | F110: -6.769825436e-06 | G110: -5.647050183e-06 | H110: -6.890853728e-07 | J110: -0.0001094536603 | K110: -0.005097706918 | L110: 4.655814969e-06 | M110: 0.0001045550984 | N110: 5.248229585e-07
A111: 52.46035 | B111: ='DF raw data'!D116 -> -1.0409932e-05 | C111: ='DF raw data'!E116 -> -2.1570671e-07 | D111: ='DF raw data'!F116 -> 3.8910512e-06 | F111: -1.042525542e-05 | G111: -2.165223514e-07 | H111: 3.896778827e-06 | J111: -0.0001146691028 | K111: -0.00515507243 | L111: 4.547495332e-06 | M111: 0.0001068300738 | N111: 5.314113558e-07
A112: 52.96062 | B112: ='DF raw data'!D117 -> -7.2215053e-06 | C112: ='DF raw data'!E117 -> -9.3314429e-07 | D112: ='DF raw data'!F117 -> 5.1869865e-06 | F112: -7.232135356e-06 | G112: -9.366727436e-07 | H112: 5.194621744e-06 | J112: -0.0001182871231 | K112: -0.005214247929 | L112: 4.078906059e-06 | M112: 0.0001088706282 | N112: 5.384193785e-07
A113: 53.46089 | B113: ='DF raw data'!D118 -> -3.6733118e-06 | C113: ='DF raw data'!E118 -> -1.8508563e-06 | D113: ='DF raw data'!F118 -> 2.3697578e-06 | F113: -3.678718915e-06 | G113: -1.857854854e-06 | H113: 2.373246083e-06 | J113: -0.0001201274759 | K113: -0.005274344101 | L113: 3.149477011e-06 | M113: 0.000110446217 | N113: 5.456435423e-07
A114: 53.96116 | B114: ='DF raw data'!D119 -> -3.2150065e-06 | C114: ='DF raw data'!E119 -> -4.2169204e-06 | D114: ='DF raw data'!F119 -> -5.6680437e-06 | F114: -3.21973899e-06 | G114: -4.232865638e-06 | H114: -5.67638706e-06 | J114: -0.0001217382147 | K114: -0.005335246078 | L114: 1.031901318e-06 | M114: 0.0001109624463 | N114: 5.530581729e-07
A115: 54.46143 | B115: ='DF raw data'!D120 -> -4.2768597e-06 | C115: ='DF raw data'!E120 -> -1.6540516e-06 | D115: ='DF raw data'!F120 -> -5.8552687e-06 | F115: -4.283155237e-06 | G115: -1.660305986e-06 | H115: -5.863887656e-06 | J115: -0.0001238809488 | K115: -0.00539722 | L115: 2.013000429e-07 | M115: 0.0001110631507 | N115: 5.607355815e-07
A116: 54.9617 | B116: ='DF raw data'!D121 -> -2.508933e-06 | C116: ='DF raw data'!E121 -> -5.2080172e-06 | D116: ='DF raw data'!F121 -> -3.6085983e-06 | F116: -2.512626149e-06 | G116: -5.227710025e-06 | H116: -3.613910157e-06 | J116: -0.0001251379402 | K116: -0.005459822758 | L116: -2.413966451e-06 | M116: 0.0001098555157 | N116: 5.685724768e-07
A117: 55.46197 | B117: ='DF raw data'!D122 -> -1.1753446e-06 | C117: ='DF raw data'!E122 -> -9.0732692e-06 | D117: ='DF raw data'!F122 -> -8.8354136e-06 | F117: -1.177074707e-06 | G117: -9.107577516e-06 | H117: -8.848419329e-06 | J117: -0.0001257267954 | K117: -0.005522720101 | L117: -6.970214255e-06 | M117: 0.0001063685266 | N117: 5.765046633e-07
A118: 55.96224 | B118: ='DF raw data'!D123 -> -2.6280113e-06 | C118: ='DF raw data'!E123 -> 9.7152861e-07 | D118: ='DF raw data'!F123 -> -9.4029238e-06 | F118: -2.631879733e-06 | G118: 9.752022044e-07 | H118: -9.416764904e-06 | J118: -0.0001270434459 | K118: -0.005586276126 | L118: -6.482349849e-06 | M118: 0.0001031256014 | N118: 5.846000615e-07
A119: 56.46251 | B119: ='DF raw data'!D124 -> -7.9119637e-08 | C119: ='DF raw data'!E124 -> 6.8185818e-07 | D119: ='DF raw data'!F124 -> -3.9936858e-06 | F119: -7.923610111e-08 | G119: 6.844364575e-07 | H119: -3.999564505e-06 | J119: -0.0001270830853 | K119: -0.005649851981 | L119: -6.139946822e-06 | M119: 0.0001000539702 | N119: 5.926983369e-07
A120: 56.96278 | B120: ='DF raw data'!D125 -> 5.3516187e-06 | C120: ='DF raw data'!E125 -> -3.1480349e-06 | D120: ='DF raw data'!F125 -> -1.3319802e-06 | F120: 5.359496283e-06 | G120: -3.159938413e-06 | H120: -1.333940875e-06 | J120: -0.0001244018901 | K120: -0.005712086515 | L120: -7.720769212e-06 | M120: 9.619150103e-05 | N120: 6.004702518e-07
A121: 57.46305 | B121: ='DF raw data'!D126 -> 8.4716876e-06 | C121: ='DF raw data'!E126 -> 5.2386631e-06 | D121: ='DF raw data'!F126 -> 3.4348197e-06 | F121: 8.484157924e-06 | G121: 5.258471805e-06 | H121: 3.439875755e-06 | J121: -0.0001201575204 | K121: -0.005772197718 | L121: -5.090113522e-06 | M121: 9.364506994e-05 | N121: 6.077060265e-07
A122: 57.96332 | B122: ='DF raw data'!D127 -> 8.9174418e-06 | C122: ='DF raw data'!E127 -> 4.9606015e-06 | D122: ='DF raw data'!F127 -> 7.2853727e-06 | F122: 8.930568274e-06 | G122: 4.979358784e-06 | H122: 7.296096769e-06 | J122: -0.000115689825 | K122: -0.005830073866 | L122: -2.599089703e-06 | M122: 9.234482334e-05 | N122: 6.144050875e-07
A123: 58.46359 | B123: ='DF raw data'!D128 -> 5.542387e-06 | C123: ='DF raw data'!E128 -> 8.6762802e-06 | D123: ='DF raw data'!F128 -> 9.8993478e-06 | F123: 5.550545394e-06 | G123: 8.709087401e-06 | H123: 9.91391964e-06 | J123: -0.0001129130537 | K123: -0.00588656088 | L123: 1.757805451e-06 | M123: 9.322420067e-05 | N123: 6.207847544e-07
A124: 58.96386 | B124: ='DF raw data'!D129 -> 2.7543929e-06 | C124: ='DF raw data'!E129 -> 8.8809584e-06 | D124: ='DF raw data'!F129 -> 8.4505373e-06 | F124: 2.758447366e-06 | G124: 8.914539541e-06 | H124: 8.462976491e-06 | J124: -0.0001115330852 | K124: -0.005942357536 | L124: 6.217482147e-06 | M124: 9.633462046e-05 | N124: 6.270272666e-07
A125: 59.46413 | B125: ='DF raw data'!D130 -> 5.1221201e-07 | C125: ='DF raw data'!E130 -> 3.6336766e-07 | D125: ='DF raw data'!F130 -> 1.5223197e-06 | F125: 5.129659861e-07 | G125: 3.647416447e-07 | H125: 1.524560555e-06 | J125: -0.0001112764637 | K125: -0.005998025813 | L125: 6.399951449e-06 | M125: 9.953632417e-05 | N125: 6.332423263e-07
A126: 59.9644 | B126: ='DF raw data'!D131 -> -1.0815647e-06 | C126: ='DF raw data'!E131 -> 4.8403826e-06 | D126: ='DF raw data'!F131 -> -1.2694215e-06 | F126: -1.083156763e-06 | G126: 4.858685306e-06 | H126: -1.271290088e-06 | J126: -0.0001118183346 | K126: -0.006053965171 | L126: 8.830605947e-06 | M126: 0.0001039540114 | N126: 6.395363831e-07
A127: 60.46467 | B127: ='DF raw data'!D132 -> 2.5785766e-06 | C127: ='DF raw data'!E132 -> -1.5618534e-06 | D127: ='DF raw data'!F132 -> -5.1775692e-07 | F127: 2.582372265e-06 | G127: -1.567759161e-06 | H127: -5.185190582e-07 | J127: -0.0001105264512 | K127: -0.006109258239 | L127: 8.046303072e-06 | M127: 0.0001079793354 | N127: 6.456801186e-07
A128: 60.96494 | B128: ='DF raw data'!D133 -> 8.8313964e-06 | C128: ='DF raw data'!E133 -> -3.1248192e-06 | D128: ='DF raw data'!F133 -> 2.9795267e-06 | F128: 8.844396216e-06 | G128: -3.136634929e-06 | H128: 2.983912563e-06 | J128: -0.0001061018651 | K128: -0.006162337819 | L128: 6.477138716e-06 | M128: 0.0001112196536 | N128: 6.51332949e-07
A129: 61.46521 | B129: ='DF raw data'!D134 -> 1.1861622e-05 | C129: ='DF raw data'!E134 -> -2.778834e-07 | D129: ='DF raw data'!F134 -> 4.9152513e-06 | F129: 1.187908231e-05 | G129: -2.789341471e-07 | H129: 4.92248655e-06 | J129: -0.0001001591166 | K129: -0.00621244442 | L129: 6.33759633e-06 | M129: 0.000114390163 | N129: 6.563716754e-07
A130: 61.96548 | B130: ='DF raw data'!D135 -> 8.0502277e-06 | C130: ='DF raw data'!E135 -> 3.7713644e-06 | D130: ='DF raw data'!F135 -> 3.3898325e-06 | F130: 8.062077635e-06 | G130: 3.785624879e-06 | H130: 3.394822333e-06 | J130: -9.612590102e-05 | K130: -0.006260533325 | L130: 8.231430889e-06 | M130: 0.0001185081009 | N130: 6.610281612e-07
A131: 62.46575 | B131: ='DF raw data'!D136 -> 3.6705305e-06 | C131: ='DF raw data'!E136 -> -2.7948536e-06 | D131: ='DF raw data'!F136 -> -3.2781077e-07 | F131: 3.675933521e-06 | G131: -2.805421645e-06 | H131: -3.282933075e-07 | J131: -9.428694176e-05 | K131: -0.006307702253 | L131: 6.827962602e-06 | M131: 0.0001219239257 | N131: 6.654988983e-07
A132: 62.96602 | B132: ='DF raw data'!D137 -> 3.6239426e-06 | C132: ='DF raw data'!E137 -> -6.4536935e-06 | D132: ='DF raw data'!F137 -> -1.7177952e-06 | F132: 3.629277044e-06 | G132: -6.478096541e-06 | H132: -1.720323795e-06 | J132: -9.247132333e-05 | K132: -0.006353962882 | L132: 3.587165246e-06 | M132: 0.0001237184769 | N132: 6.697831172e-07
A133: 63.46629 | B133: ='DF raw data'!D138 -> 4.7706262e-06 | C133: ='DF raw data'!E138 -> 4.3601785e-06 | D133: ='DF raw data'!F138 -> 3.628091e-06 | F133: 4.777648562e-06 | G133: 4.376665433e-06 | H133: 3.63343155e-06 | J133: -9.008120908e-05 | K133: -0.006399027808 | L133: 5.776679662e-06 | M133: 0.0001266083764 | N133: 6.738593143e-07
A134: 63.96656 | B134: ='DF raw data'!D139 -> 4.1015292e-06 | C134: ='DF raw data'!E139 -> 5.3057765e-06 | D134: ='DF raw data'!F139 -> 9.0451285e-06 | F134: 4.107566651e-06 | G134: 5.325838977e-06 | H134: 9.058442929e-06 | J134: -8.802631672e-05 | K134: -0.006443064734 | L134: 8.441037127e-06 | M134: 0.0001308311741 | N134: 6.777713674e-07
A135: 64.46683 | B135: ='DF raw data'!D140 -> 4.5384722e-06 | C135: ='DF raw data'!E140 -> -1.0389433e-07 | D135: ='DF raw data'!F140 -> 5.9526938e-06 | F135: 4.545152831e-06 | G135: =(1-$G$1*($B$2-$G$2))*C135*$M$2/$M$1 -> -1.042871806e-07 | H135: 5.961456165e-06 | J135: -8.575251311e-05 | K135: -0.006485964143 | L135: 8.388865379e-06 | M135: 0.0001350278718 | N135: 6.814853052e-07
A136: =A135+$B$1 -> 64.9671 | B136: ='DF raw data'!D141 -> 6.3618709e-06 | C136: ='DF raw data'!E141 -> 5.9074e-06 | D136: ='DF raw data'!F141 -> -2.2552847e-06 | F136: 6.371235574e-06 | G136: 5.929737367e-06 | H136: -2.258604479e-06 | J136: =F136*$B$1+J135 -> -8.256517509e-05 | K136: =J136*$B$1+K135 -> -0.006527269024 | L136: =G136*$B$1+L135 -> 1.135533509e-05 | M136: =L136*$B$1+M135 -> 0.0001407086052 | N136: =(J136^2+L136^2)*$B$1+N135 -> 6.849601565e-07
A137: 65.46737 | B137: ='DF raw data'!D142 -> 3.3460592e-06 | C137: ='DF raw data'!E142 -> 3.2955622e-06 | D137: ='DF raw data'!F142 -> -2.9814544e-06 | F137: 3.350984599e-06 | G137: 3.308023551e-06 | H137: -2.985843101e-06 | J137: -8.088877802e-05 | K137: -0.006567735253 | L137: 1.301024003e-05 | M137: 0.000147217238 | N137: 6.883180991e-07
A138: 65.96764 | B138: ='DF raw data'!D143 -> 1.7281191e-06 | C138: ='DF raw data'!E143 -> -1.0418871e-06 | D138: ='DF raw data'!F143 -> 5.964539e-06 | F138: 1.730662891e-06 | G138: -1.045826738e-06 | H138: 5.973318801e-06 | J138: -8.00229793e-05 | K138: -0.006607768348 | L138: 1.248704429e-05 | M138: 0.0001534641317 | N138: 6.91599672e-07
A139: 66.46791 | B139: ='DF raw data'!D144 -> 6.9843727e-06 | C139: ='DF raw data'!E144 -> -3.7541852e-07 | D139: ='DF raw data'!F144 -> 6.1886967e-06 | F139: 6.994653697e-06 | G139: -3.76838072e-07 | H139: 6.197806462e-06 | J139: -7.652376389e-05 | K139: -0.006646050892 | L139: 1.229852351e-05 | M139: 0.000159616714 | N139: 6.94604864e-07
A140: 66.96818 | B140: ='DF raw data'!D145 -> 1.1998592e-05 | C140: ='DF raw data'!E145 -> -1.8639321e-06 | D140: ='DF raw data'!F145 -> -2.2962192e-06 | F140: 1.201625393e-05 | G140: -1.870980097e-06 | H140: -2.299599235e-06 | J140: -7.051239254e-05 | K140: -0.006681326126 | L140: 1.13625283e-05 | M140: 0.0001653010461 | N140: 6.971567935e-07
A141: 67.46845 | B141: ='DF raw data'!D146 -> 1.2800257e-05 | C141: ='DF raw data'!E146 -> -6.4200594e-07 | D141: ='DF raw data'!F146 -> -5.2621326e-06 | F141: 1.281909898e-05 | G141: -6.444335262e-07 | H141: -5.269878459e-06 | J141: -6.40993819e-05 | K141: -0.006713393124 | L141: 1.104013754e-05 | M141: 0.0001708240957 | N141: 6.992732435e-07
A142: 67.96872 | B142: ='DF raw data'!D147 -> 1.0645584e-05 | C142: ='DF raw data'!E147 -> 6.1687933e-07 | D142: ='DF raw data'!F147 -> 2.8934323e-07 | F142: 1.06612543e-05 | G142: 6.192119061e-07 | H142: 2.897691432e-07 | J142: -5.876587621e-05 | K142: -0.006742791929 | L142: 1.134991068e-05 | M142: 0.0001765021155 | N142: 7.010653351e-07
A143: 68.46899 | B143: ='DF raw data'!D148 -> 3.3857132e-06 | C143: ='DF raw data'!E148 -> 2.9858784e-06 | D143: ='DF raw data'!F148 -> 6.0032107e-06 | F143: 3.39069697e-06 | G143: 2.997168758e-06 | H143: 6.012047426e-06 | J143: -5.706961223e-05 | K143: -0.006771342144 | L143: 1.284930429e-05 | M143: 0.0001829302369 | N143: 7.027772816e-07
A144: 68.96926 | B144: ='DF raw data'!D149 -> -3.5165149e-06 | C144: ='DF raw data'!E149 -> -1.3729205e-06 | D144: ='DF raw data'!F149 -> -2.4592518e-08 | F144: -3.52169121e-06 | G144: -1.378111858e-06 | H144: -2.462871819e-08 | J144: -5.88314087e-05 | K144: -0.006800773733 | L144: 1.215987627e-05 | M144: 0.0001890134582 | N144: 7.045827547e-07
A145: 69.46953 | B145: ='DF raw data'!D150 -> -4.5588758e-06 | C145: ='DF raw data'!E150 -> 2.5198178e-06 | D145: ='DF raw data'!F150 -> -7.0954993e-06 | F145: -4.565586465e-06 | G145: 2.529345866e-06 | H145: -7.105943875e-06 | J145: -6.111543464e-05 | K145: -0.006831347951 | L145: 1.342523213e-05 | M145: 0.0001957296991 | N145: 7.065414784e-07
A146: 69.9698 | B146: ='DF raw data'!D151 -> -4.0252135e-06 | C146: ='DF raw data'!E151 -> 1.6166487e-06 | D146: ='DF raw data'!F151 -> -4.9360242e-06 | F146: -4.031138614e-06 | G146: 1.622761656e-06 | H146: -4.943290028e-06 | J146: -6.313209235e-05 | K146: -0.006862931043 | L146: 1.42370511e-05 | M146: 0.0002028520687 | N146: 7.086367866e-07
A147: 70.47007 | B147: ='DF raw data'!D152 -> -1.6050117e-06 | C147: ='DF raw data'!E152 -> -3.8806838e-06 | D147: ='DF raw data'!F152 -> 2.0675363e-06 | F147: -1.607374277e-06 | G147: -3.895357643e-06 | H147: 2.070579713e-06 | J147: -6.393621348e-05 | K147: -0.006894916413 | L147: 1.228832053e-05 | M147: 0.0002089995468 | N147: 7.107573522e-07
A148: 70.97034 | B148: ='DF raw data'!D153 -> 3.2259768e-06 | C148: ='DF raw data'!E153 -> 9.0708363e-07 | D148: ='DF raw data'!F153 -> -1.1723728e-07 | F148: 3.230725438e-06 | G148: 9.105135417e-07 | H148: -1.174098533e-07 | J148: -6.231997847e-05 | K148: -0.006926093228 | L148: 1.274382314e-05 | M148: 0.0002153748992 | N148: 7.127815371e-07
A149: 71.47061 | B149: ='DF raw data'!D154 -> 5.3979375e-06 | C149: ='DF raw data'!E154 -> -5.684486e-06 | D149: ='DF raw data'!F154 -> -7.5858698e-06 | F149: 5.405883264e-06 | G149: -5.705980473e-06 | H149: -7.5970362e-06 | J149: -5.961557725e-05 | K149: -0.006955917113 | L149: 9.889292292e-06 | M149: 0.0002203222154 | N149: 7.146084306e-07
A150: 71.97088 | B150: ='DF raw data'!D155 -> 3.1137088e-06 | C150: ='DF raw data'!E155 -> -4.1571448e-06 | D150: ='DF raw data'!F155 -> -6.5693894e-06 | F150: 3.118292179e-06 | G150: -4.172864012e-06 | H150: -6.579059541e-06 | J150: -5.805558922e-05 | K150: -0.006984960583 | L150: 7.801733613e-06 | M150: 0.0002242251887 | N150: 7.163250163e-07
A151: 72.47115 | B151: ='DF raw data'!D156 -> 4.3675309e-06 | C151: ='DF raw data'!E156 -> -4.1045751e-06 | D151: ='DF raw data'!F156 -> -3.0545341e-06 | F151: =(1-$G$1*($B$2-$G$2))*B151 -> 4.373959905e-06 | G151: -4.120095532e-06 | H151: -3.059030374e-06 | J151: -5.586742829e-05 | K151: -0.007012909381 | L151: 5.740573421e-06 | M151: 0.0002270970254 | N151: 7.179029298e-07
A152: 72.97142 | B152: ='DF raw data'!D157 -> 7.0529923e-06 | C152: ='DF raw data'!E157 -> -2.7901833e-06 | D152: ='DF raw data'!F157 -> -2.3062018e-06 | F152: 7.063374305e-06 | G152: -2.800733686e-06 | H152: -2.309596529e-06 | J152: -5.233383403e-05 | K152: -0.007039090428 | L152: 4.33945038e-06 | M152: 0.0002292679222 | N152: 7.192825049e-07
A153: 73.47169 | B153: ='DF raw data'!D158 -> 8.1608368e-06 | C153: ='DF raw data'!E158 -> -3.2715889e-06 | D153: ='DF raw data'!F158 -> 4.4369881e-06 | F153: 8.172849552e-06 | G153: -3.283959602e-06 | H153: 4.443519346e-06 | J153: -4.824520259e-05 | K153: -0.007063226056 | L153: 2.69658391e-06 | M153: 0.0002306169423 | N153: 7.204505709e-07
A154: 73.97196 | B154: ='DF raw data'!D159 -> 4.22629e-06 | C154: ='DF raw data'!E159 -> -4.3438095e-06 | D154: ='DF raw data'!F159 -> 9.6350632e-06 | F154: 4.232511099e-06 | G154: -4.360234538e-06 | H154: 9.649246013e-06 | J154: -4.612780426e-05 | K154: -0.007086302412 | L154: 5.152893776e-07 | M154: 0.0002308747261 | N154: 7.215151654e-07
A155: 74.47223 | B155: ='DF raw data'!D160 -> 1.6601034e-06 | C155: ='DF raw data'!E160 -> 1.2677365e-06 | D155: ='DF raw data'!F160 -> 5.0401068e-06 | F155: 1.662547072e-06 | G155: 1.272530131e-06 | H155: 5.047525837e-06 | J155: -4.529608183e-05 | K155: -0.007108962683 | L155: 1.151898026e-06 | M155: 0.0002314509861 | N155: 7.225422507e-07
A156: 74.9725 | B156: ='DF raw data'!D161 -> 3.9878569e-06 | C156: ='DF raw data'!E161 -> -1.1037973e-06 | D156: ='DF raw data'!F161 -> 2.097084e-06 | F156: 3.993727025e-06 | G156: -1.107971036e-06 | H156: 2.100170908e-06 | J156: -4.329814002e-05 | K156: -0.007130623444 | L156: 5.976133563e-07 | M156: 0.0002317499541 | N156: 7.234803e-07
A157: 75.47277 | B157: ='DF raw data'!D162 -> 1.8508717e-06 | C157: ='DF raw data'!E162 -> -2.9665744e-06 | D157: ='DF raw data'!F162 -> 2.757901e-06 | F157: 1.853596183e-06 | G157: -2.977791765e-06 | H157: 2.76196063e-06 | J157: -4.237084145e-05 | K157: -0.007151820305 | L157: -8.9208653e-07 | M157: 0.00023130367 | N157: 7.243788269e-07
A158: 75.97304 | B158: ='DF raw data'!D163 -> -1.8053915e-06 | C158: ='DF raw data'!E163 -> 1.0815785e-05 | D158: ='DF raw data'!F163 -> 1.7652421e-06 | F158: -1.808049036e-06 | G158: 1.085668221e-05 | H158: 1.767840536e-06 | J158: -4.327535414e-05 | K158: -0.007173469666 | L158: 4.539185878e-06 | M158: 0.0002335744885 | N158: 7.253260184e-07
A159: 76.47331 | B159: ='DF raw data'!D164 -> -5.0237222e-06 | C159: ='DF raw data'!E164 -> 1.643707e-05 | D159: ='DF raw data'!F164 -> 4.5248453e-06 | F159: -5.031117119e-06 | G159: 1.64992227e-05 | H159: 4.531505872e-06 | J159: -4.579227111e-05 | K159: -0.007196378166 | L159: 1.279325202e-05 | M159: 0.0002399745687 | N159: 7.264569284e-07
A160: 76.97358 | B160: ='DF raw data'!D165 -> -7.4113778e-08 | C160: ='DF raw data'!E165 -> 1.2067466e-05 | D160: ='DF raw data'!F165 -> 6.7215951e-06 | F160: -7.422287348e-08 | G160: 1.211309613e-05 | H160: 6.731489288e-06 | J160: -4.582940258e-05 | K160: -0.007219305241 | L160: 1.885307062e-05 | M160: 0.0002494061943 | N160: 7.276854777e-07
A161: 77.47385 | B161: ='DF raw data'!D166 -> 8.3459954e-06 | C161: ='DF raw data'!E166 -> 6.6790099e-06 | D161: ='DF raw data'!F166 -> 4.1198582e-06 | F161: 8.358280705e-06 | G161: 6.704264919e-06 | H161: 4.125922631e-06 | J161: -4.164800549e-05 | K161: -0.007240140488 | L161: 2.220701323e-05 | M161: 0.0002605156969 | N161: 7.287999331e-07
A162: 77.97412 | B162: ='DF raw data'!D167 -> 5.5003975e-06 | C162: ='DF raw data'!E167 -> -1.0656279e-07 | D162: ='DF raw data'!F167 -> 5.0638628e-06 | F162: 5.508494085e-06 | G162: -1.069657308e-07 | H162: 5.071316806e-06 | J162: -3.889227116e-05 | K162: -0.007259597125 | L162: 2.215350148e-05 | M162: 0.000271598429 | N162: 7.298021672e-07
A163: 78.47439 | B163: ='DF raw data'!D168 -> -2.8354707e-06 | C163: ='DF raw data'!E168 -> 9.0246585e-06 | D163: ='DF raw data'!F168 -> 4.3453474e-06 | F163: -2.839644513e-06 | G163: 9.058783007e-06 | H163: 4.351743751e-06 | J163: -4.031286012e-05 | K163: -0.007279764439 | L163: 2.668533886e-05 | M163: 0.0002849483035 | N163: 7.309714152e-07
A164: 78.97466 | B164: ='DF raw data'!D169 -> -1.8577275e-06 | C164: ='DF raw data'!E169 -> 1.741736e-05 | D164: ='DF raw data'!F169 -> -6.6823827e-07 | F164: -1.860462075e-06 | G164: 1.748321943e-05 | H164: -6.692219167e-07 | J164: -4.124359348e-05 | K164: -0.007300397372 | L164: 3.543166904e-05 | M164: 0.0003026737046 | N164: 7.324504321e-07
A165: 79.47493 | B165: ='DF raw data'!D170 -> 3.9004144e-06 | C165: ='DF raw data'!E170 -> 5.9532986e-06 | D165: ='DF raw data'!F170 -> 1.9062065e-06 | F165: 3.90615581e-06 | G165: 5.975809522e-06 | H165: 1.909012436e-06 | J165: -3.928946091e-05 | K165: -0.007320052711 | L165: 3.842118727e-05 | M165: 0.0003218946719 | N165: 7.339611721e-07
A166: 79.9752 | B166: ='DF raw data'!D171 -> 3.4207542e-06 | C166: ='DF raw data'!E171 -> -2.1836991e-08 | D166: ='DF raw data'!F171 -> 1.4105099e-05 | F166: 3.42578955e-06 | G166: -2.191956216e-08 | H166: 1.412586171e-05 | J166: -3.757564118e-05 | K166: -0.007338850677 | L166: 3.841022157e-05 | M166: 0.0003411101535 | N166: 7.354055886e-07
A167: 80.47547 | B167: ='DF raw data'!D172 -> -1.4923362e-06 | C167: ='DF raw data'!E172 -> -5.9688191e-06 | D167: ='DF raw data'!F172 -> 1.9829618e-05 | F167: -1.494532919e-06 | G167: -5.991388709e-06 | H167: 1.98588072e-05 | J167: -3.832331116e-05 | K167: -0.007358022679 | L167: 3.541290954e-05 | M167: 0.0003588261697 | N167: 7.367676989e-07
A168: 80.97574 | B168: ='DF raw data'!D173 -> -2.6065909e-06 | C168: ='DF raw data'!E173 -> -5.1264933e-06 | D168: ='DF raw data'!F173 -> 1.2487239e-05 | F168: -2.610427802e-06 | G168: -5.145877862e-06 | H168: 1.250562022e-05 | J168: -3.962922988e-05 | K168: -0.007377847994 | L168: 3.283858122e-05 | M168: 0.0003752543268 | N168: 7.380928383e-07
A169: 81.47601 | B169: ='DF raw data'!D174 -> 2.3213934e-06 | C169: ='DF raw data'!E174 -> -3.4160903e-06 | D169: ='DF raw data'!F174 -> 5.2040923e-06 | F169: 2.324810491e-06 | G169: -3.429007398e-06 | H169: 5.211752724e-06 | J169: -3.846619693e-05 | K169: -0.007397091479 | L169: 3.112315169e-05 | M169: 0.0003908243059 | N169: 7.393176487e-07
A170: 81.97628 | B170: ='DF raw data'!D175 -> 3.2478702e-06 | C170: ='DF raw data'!E175 -> -7.9039137e-06 | D170: ='DF raw data'!F175 -> 3.6198401e-06 | F170: 3.252651065e-06 | G170: -7.933800389e-06 | H170: 3.625168505e-06 | J170: -3.683899318e-05 | K170: -0.007415520922 | L170: 2.715410937e-05 | M170: 0.0004044086922 | N170: 7.403654428e-07
A171: 82.47655 | B171: ='DF raw data'!D176 -> -3.7028164e-07 | C171: ='DF raw data'!E176 -> -2.1318538e-06 | D171: ='DF raw data'!F176 -> 4.245514e-06 | F171: -3.708266946e-07 | G171: -2.139914876e-06 | H171: 4.251763397e-06 | J171: -3.702450665e-05 | K171: -0.007434043172 | L171: 2.608357416e-05 | M171: 0.0004174575218 | N171: 7.413915801e-07
A172: 82.97682 | B172: ='DF raw data'!D177 -> 2.2292797e-06 | C172: ='DF raw data'!E177 -> -2.1417272e-06 | D172: ='DF raw data'!F177 -> 3.7822322e-06 | F172: 2.2325612e-06 | G172: -2.14982561e-06 | H172: 3.787799646e-06 | J172: -3.590762326e-05 | K172: -0.007452006678 | L172: 2.50080809e-05 | M172: 0.0004299683144 | N172: 7.423494778e-07
A173: 83.47709 | B173: ='DF raw data'!D178 -> 8.3281111e-06 | C173: ='DF raw data'!E178 -> -3.1225509e-06 | D173: ='DF raw data'!F178 -> 8.4952649e-07 | F173: 8.34037008e-06 | G173: -3.134358052e-06 | H173: 8.50776993e-07 | J173: -3.173518632e-05 | K173: -0.00746788284 | L173: 2.34400556e-05 | M173: 0.0004416946711 | N173: 7.431281772e-07
A174: 83.97736 | B174: ='DF raw data'!D179 -> 8.6788123e-06 | C174: ='DF raw data'!E179 -> 5.384366e-06 | D174: ='DF raw data'!F179 -> -8.4281032e-07 | F174: 8.691587512e-06 | G174: 5.404725644e-06 | H174: -8.440509368e-07 | J174: -2.738704584e-05 | K174: -0.007481583757 | L174: 2.614387769e-05 | M174: 0.0004547736687 | N174: 7.438453406e-07
A175: 84.47763 | B175: ='DF raw data'!D180 -> 3.8623029e-06 | C175: ='DF raw data'!E180 -> 2.9250359e-06 | D175: ='DF raw data'!F180 -> -4.4421881e-07 | F175: 3.86798821e-06 | G175: 2.936096198e-06 | H175: -4.448727001e-07 | J175: -2.545200738e-05 | K175: -0.007494316633 | L175: 2.761271854e-05 | M175: 0.0004685874834 | N175: 7.445508548e-07
A176: 84.9779 | B176: ='DF raw data'!D181 -> 7.4764017e-07 | C176: ='DF raw data'!E181 -> 3.9257402e-06 | D176: ='DF raw data'!F181 -> -8.5751503e-07 | F176: 7.487406963e-07 | G176: 3.940584413e-06 | H176: -8.587772921e-07 | J176: -2.507743487e-05 | K176: -0.007506862122 | L176: 2.95840747e-05 | M176: 0.0004833875085 | N176: 7.453033085e-07
A177: 85.47817 | B177: ='DF raw data'!D182 -> -1.3036415e-06 | C177: ='DF raw data'!E182 -> 5.5838382e-06 | D177: ='DF raw data'!F182 -> -3.9047591e-06 | F177: -1.30556046e-06 | G177: 5.604952099e-06 | H177: -3.910506905e-06 | J177: -2.57305676e-05 | K177: -0.007519734353 | L177: 3.238806409e-05 | M177: 0.0004995902853 | N177: 7.461592949e-07
A178: 85.97844 | B178: ='DF raw data'!D183 -> -4.6104042e-06 | C178: ='DF raw data'!E183 -> 2.5088863e-07 | D178: ='DF raw data'!F183 -> -3.0189256e-06 | F178: -4.617190715e-06 | G178: 2.518373031e-07 | H178: -3.023369458e-06 | J178: -2.80404096e-05 | K178: -0.007533762128 | L178: 3.251405074e-05 | M178: 0.0005158560895 | N178: 7.470815067e-07
A179: 86.47871 | B179: ='DF raw data'!D184 -> 2.9868445e-07 | C179: ='DF raw data'!E184 -> 2.5395648e-06 | D179: ='DF raw data'!F184 -> 2.4912808e-06 | F179: 2.991241135e-07 | G179: 2.549167534e-06 | H179: 2.494947965e-06 | J179: -2.789076678e-05 | K179: -0.007547715042 | L179: 3.378932278e-05 | M179: 0.000532759874 | N179: 7.480418316e-07
A180: 86.97898 | B180: ='DF raw data'!D185 -> 9.7057482e-06 | C180: ='DF raw data'!E185 -> -2.8161961e-07 | D180: ='DF raw data'!F185 -> -3.1323702e-07 | F180: 9.720035061e-06 | G180: -2.826844847e-07 | H180: -3.136981049e-07 | J180: -2.302812484e-05 | K180: -0.007559235322 | L180: 3.364790421e-05 | M180: 0.000549592911 | N180: 7.488735184e-07
A181: 87.47925 | B181: ='DF raw data'!D186 -> 8.9573577e-06 | C181: ='DF raw data'!E186 -> 7.286103e-06 | D181: ='DF raw data'!F186 -> -4.0979066e-06 | F181: 8.970542931e-06 | G181: 7.313653591e-06 | H181: -4.103938719e-06 | J181: -1.854043133e-05 | K181: -0.007568510544 | L181: 3.730670569e-05 | M181: 0.0005682563367 | N181: 7.49741756e-07
A182: 87.97952 | B182: ='DF raw data'!D187 -> 1.4067909e-06 | C182: ='DF raw data'!E187 -> 1.0162926e-05 | D182: ='DF raw data'!F187 -> 9.7511679e-07 | F182: 1.408861696e-06 | G182: 1.020135458e-05 | H182: 9.765521619e-07 | J182: -1.783562009e-05 | K182: -0.007577433169 | L182: 4.241013735e-05 | M182: 0.0005894728561 | N182: 7.50800692e-07
A183: 88.47979 | B183: ='DF raw data'!D188 -> 5.1027661e-07 | C183: ='DF raw data'!E188 -> -3.1796571e-06 | D183: ='DF raw data'!F188 -> -5.996842e-07 | F183: 5.110277372e-07 | G183: -3.191680184e-06 | H183: -6.005669351e-07 | J183: -1.757996824e-05 | K183: -0.0075862279 | L183: 4.081343551e-05 | M183: 0.0006098905935 | N183: 7.517886211e-07
A184: 88.98006 | B184: ='DF raw data'!D189 -> 4.0798395e-06 | C184: ='DF raw data'!E189 -> -7.5591374e-06 | D184: ='DF raw data'!F189 -> -9.5950672e-06 | F184: 4.085845024e-06 | G184: -7.587720403e-06 | H184: -9.609191139e-06 | J184: -1.553594255e-05 | K184: -0.007594000066 | L184: 3.701752662e-05 | M184: 0.0006284093515 | N184: 7.525948877e-07
A185: 89.48033 | B185: ='DF raw data'!D190 -> 3.0107103e-06 | C185: ='DF raw data'!E190 -> -1.3603785e-06 | D185: ='DF raw data'!F190 -> -1.2466407e-05 | F185: 3.015142066e-06 | G185: -1.365522434e-06 | H185: -1.248475755e-05 | J185: -1.402755743e-05 | K185: -0.007601017632 | L185: 3.633439671e-05 | M185: 0.0006465863602 | N185: 7.533537776e-07
A186: 89.9806 | B186: ='DF raw data'!D191 -> 1.5646501e-06 | C186: ='DF raw data'!E191 -> -8.9484296e-08 | D186: ='DF raw data'!F191 -> -7.6884317e-06 | F186: 1.566953265e-06 | G186: -8.982265866e-08 | H186: -7.699749071e-06 | J186: -1.324365772e-05 | K186: -0.007607643037 | L186: 3.628946113e-05 | M186: 0.0006647408889 | N186: 7.541003403e-07
A187: 90.48087 | B187: ='DF raw data'!D192 -> -3.8649975e-07 | C187: ='DF raw data'!E192 -> -2.8322032e-07 | D187: ='DF raw data'!F192 -> -1.7879499e-06 | F187: -3.870686776e-07 | G187: -2.842912474e-07 | H187: -1.790581762e-06 | J187: -1.343729657e-05 | K187: -0.007614365313 | L187: 3.614723875e-05 | M187: 0.000682824268 | N187: 7.548443337e-07
A188: 90.98114 | B188: ='DF raw data'!D193 -> -3.4171253e-06 | C188: ='DF raw data'!E193 -> 1.8944447e-06 | D188: ='DF raw data'!F193 -> 1.4211621e-06 | F188: -3.422155308e-06 | G188: 1.901608073e-06 | H188: 1.423254051e-06 | J188: -1.51492982e-05 | K188: -0.007621944053 | L188: 3.709855622e-05 | M188: 0.0007013835627 | N188: 7.556476693e-07
A189: 91.48141 | B189: ='DF raw data'!D194 -> -3.2335674e-06 | C189: ='DF raw data'!E194 -> -1.1937212e-07 | D189: ='DF raw data'!F194 -> 8.9488894e-06 | F189: -3.238327211e-06 | G189: -1.198234961e-07 | H189: 8.962062165e-06 | J189: -1.676933616e-05 | K189: -0.007630333249 | L189: 3.703861212e-05 | M189: 0.0007199128692 | N189: 7.564746504e-07
A190: 91.98168 | B190: ='DF raw data'!D195 -> -8.049546e-07 | C190: ='DF raw data'!E195 -> -5.2166902e-06 | D190: ='DF raw data'!F195 -> 1.6931786e-05 | F190: -8.061394932e-07 | G190: -5.23641582e-06 | H190: 1.695670959e-05 | J190: -1.717262356e-05 | K190: -0.007638924197 | L190: 3.441899038e-05 | M190: 0.0007371316575 | N190: 7.572148328e-07
A191: 92.48195 | B191: ='DF raw data'!D196 -> 3.4185496e-06 | C191: ='DF raw data'!E196 -> -1.3675839e-05 | D191: ='DF raw data'!F196 -> 9.0212343e-06 | F191: 3.423581705e-06 | G191: -1.372755079e-05 | H191: 9.034513557e-06 | J191: -1.545990834e-05 | K191: -0.007646658325 | L191: 2.755150854e-05 | M191: 0.0007509148507 | N191: 7.577141495e-07
A192: 92.98222 | B192: ='DF raw data'!D197 -> 3.9831202e-06 | C192: ='DF raw data'!E197 -> -4.06041e-06 | D192: ='DF raw data'!F197 -> -7.2341186e-07 | F192: 3.988983353e-06 | G192: -4.075763433e-06 | H192: -7.244767223e-07 | J192: -1.346433964e-05 | K192: -0.00765339413 | L192: 2.551252637e-05 | M192: 0.0007636780023 | N192: 7.581304629e-07
A193: 93.48249 | B193: ='DF raw data'!D198 -> 1.6039039e-06 | C193: ='DF raw data'!E198 -> 2.8644599e-06 | D193: ='DF raw data'!F198 -> -1.8258994e-07 | F193: 1.606264847e-06 | G193: 2.875291144e-06 | H193: -1.828587124e-07 | J193: -1.266077352e-05 | K193: -0.007659727936 | L193: 2.695094827e-05 | M193: 0.0007771607532 | N193: 7.585740267e-07
A194: 93.98276 | B194: ='DF raw data'!D199 -> 4.4079118e-07 | C194: ='DF raw data'!E199 -> 2.7146216e-06 | D194: ='DF raw data'!F199 -> 2.2617389e-06 | F194: 4.414400246e-07 | G194: 2.724886268e-06 | H194: 2.26506818e-06 | J194: -1.243993432e-05 | K194: -0.007665951262 | L194: 2.831412712e-05 | M194: 0.0007913254616 | N194: 7.590525058e-07
A195: 94.48303 | B195: ='DF raw data'!D200 -> -1.6562126e-06 | C195: ='DF raw data'!E200 -> 2.9361099e-06 | D195: ='DF raw data'!F200 -> 5.2744435e-06 | F195: -1.658650545e-06 | G195: 2.947212071e-06 | H195: 5.282207481e-06 | J195: -1.326970743e-05 | K195: -0.007672589698 | L195: 2.978852891e-05 | M195: 0.0008062277689 | N195: 7.595845137e-07
A196: 94.9833 | B196: ='DF raw data'!D201 -> -5.1058241e-06 | C196: ='DF raw data'!E201 -> -1.397204e-06 | D196: ='DF raw data'!F201 -> 9.8581513e-06 | F196: -5.113339873e-06 | G196: -1.40248718e-06 | H196: 9.872662499e-06 | J196: -1.582775797e-05 | K196: -0.007680507851 | L196: 2.908690664e-05 | M196: 0.0008207790757 | N196: 7.601330928e-07
A197: 95.48357 | B197: ='DF raw data'!D202 -> -6.3164489e-06 | C197: ='DF raw data'!E202 -> 1.7033763e-06 | D197: ='DF raw data'!F202 -> 9.1731781e-06 | F197: -6.325746713e-06 | G197: 1.709817195e-06 | H197: 9.186681018e-06 | J197: -1.899233928e-05 | K197: -0.007690009148 | L197: 2.994227689e-05 | M197: 0.0008357582986 | N197: 7.607620568e-07
A198: 95.98384 | B198: ='DF raw data'!D203 -> -2.7649157e-06 | C198: ='DF raw data'!E203 -> -4.5987784e-07 | D198: ='DF raw data'!F203 -> 4.2296087e-06 | F198: -2.768985656e-06 | G198: -4.61616754e-07 | H198: 4.235834684e-06 | J198: -2.037757973e-05 | K198: -0.00770020344 | L198: 2.971134388e-05 | M198: 0.0008506219926 | N198: 7.614114121e-07
A199: 96.48411 | B199: ='DF raw data'!D204 -> -2.7971555e-06 | C199: ='DF raw data'!E204 -> -1.869269e-06 | D199: ='DF raw data'!F204 -> 1.9096044e-06 | F199: -2.801272913e-06 | G199: =(1-$G$1*($B$2-$G$2))*C199*$M$2/$M$1 -> -1.876337177e-06 | H199: 1.912415338e-06 | J199: -2.177897253e-05 | K199: -0.007711098807 | L199: 2.877266868e-05 | M199: 0.0008650160955 | N199: 7.620628587e-07
A200: =A199+$B$1 -> 96.98438 | B200: ='DF raw data'!D205 -> -3.2144098e-06 | C200: ='DF raw data'!E205 -> -6.8147474e-06 | D200: ='DF raw data'!F205 -> 4.2682077e-06 | F200: -3.219141411e-06 | G200: -6.840515677e-06 | H200: 4.274490502e-06 | J200: =F200*$B$1+J199 -> -2.33894124e-05 | K200: =J200*$B$1+K199 -> -0.007722799828 | L200: =G200*$B$1+L199 -> 2.53505639e-05 | M200: =L200*$B$1+M199 -> 0.0008776982221 | N200: =(J200^2+L200^2)*$B$1+N199 -> 7.626580378e-07
A201: 97.48465 | B201: ='DF raw data'!D206 -> -2.9093653e-06 | C201: ='DF raw data'!E206 -> -6.3026541e-06 | D201: ='DF raw data'!F206 -> 3.0173253e-06 | F201: -2.913647886e-06 | G201: -6.326486023e-06 | H201: 3.021766803e-06 | J201: -2.484702303e-05 | K201: -0.007735230048 | L201: 2.218561274e-05 | M201: 0.0008887970186 | N201: 7.632131254e-07
... 1002 more rows

Sheet 10 y=0
A1: dz | B1: ='DF raw data'!H7 -> 0.50015 | C1: mm | F1: T_coeff | G1: -0.0008 | H1: /degC | L1: Hallref | M1: ='PI vs gap'!B44 -> 0.505235 | N1: T | P1: IBy total | Q1: =L1203*1000 -> -10.76633518 | R1: muTm | X1: DF ref | Y1: 20
A2: Tref | B2: ='DF raw data'!H8 -> 21.98 | C2: degC | F2: Tcorr | G2: 20 | H2: degC | L2: NMRref | M2: ='PI vs gap'!B45 -> 0.5064 | N2: T | P2: JBy total | Q2: =M1203 -> -4.100350015 | R2: muTm^2
A3: Encoder | B3: ='DF raw data'!H9 -> 14640943 | P3: PI total | Q3: =N1203 -> 705.6178594 | R3: T^2mm^3
A5: z [mm] | B5: Bx | C5: By | D5: Bz | F5: Bx_corr | G5: By_corr | H5: Bz_corr | J5: Ix | K5: Jx | L5: Iy | M5: Jy | N5: PI
A6: ='[1]PI vs x'!B53 -> -0.068 | B6: ='DF raw data'!G11 -> -1.9479621e-06 | C6: ='DF raw data'!H11 -> -1.8803598e-06 | D6: ='DF raw data'!I11 -> 8.1805165e-06 | F6: =(1-$G$1*($B$2-$G$2))*B6 -> -1.951047672e-06 | G6: =(1-$G$1*($B$2-$G$2))*C6*$M$2/$M$1 -> -1.887681e-06 | H6: =(1-$G$1*($B$2-$G$2))*D6 -> 8.193474438e-06 | J6: =F6*$B$1 -> -9.758164931e-07 | K6: =J6*$B$1 -> -4.88054619e-07 | L6: =G6*$B$1 -> -9.441236521e-07 | M6: =L6*$B$1 -> -4.722034446e-07 | N6: =(J6^2+L6)^2*$B$1 -> 4.458175414e-13
A7: =A6+$B$1 -> 0.43215 | B7: ='DF raw data'!G12 -> -1.8627242e-06 | C7: ='DF raw data'!H12 -> -6.2058016e-06 | D7: ='DF raw data'!I12 -> -3.9595502e-06 | F7: =(1-$G$1*($B$2-$G$2))*B7 -> -1.865674755e-06 | G7: =(1-$G$1*($B$2-$G$2))*C7*$M$2/$M$1 -> -6.229963952e-06 | H7: -3.965822128e-06 | J7: =F7*$B$1+J6 -> -1.908933722e-06 | K7: =J7*$B$1+K6 -> -1.44280782e-06 | L7: =G7*$B$1+L6 -> -4.060040122e-06 | M7: =L7*$B$1+M6 -> -2.502832512e-06 | N7: =(J7^2+L7^2)*$B$1+N6 -> 1.051281361e-11
A8: =A7+$B$1 -> 0.9323 | B8: ='DF raw data'!G13 -> -2.0338039e-06 | C8: ='DF raw data'!H13 -> -1.4955558e-06 | D8: ='DF raw data'!I13 -> -3.9377805e-06 | F8: -2.037025445e-06 | G8: -1.501378762e-06 | H8: -3.944017944e-06 | J8: =F8*$B$1+J7 -> -2.927751998e-06 | K8: =J8*$B$1+K7 -> -2.907122982e-06 | L8: =G8*$B$1+L7 -> -4.81095471e-06 | M8: =L8*$B$1+M7 -> -4.90903151e-06 | N8: =(J8^2+L8^2)*$B$1+N7 -> 2.637607966e-11
A9: 1.43245 | B9: ='DF raw data'!G14 -> -2.1251171e-06 | C9: ='DF raw data'!H14 -> 6.2179998e-07 | D9: ='DF raw data'!I14 -> -6.1956994e-06 | F9: -2.128483285e-06 | G9: 6.242209645e-07 | H9: -6.205513388e-06 | J9: -3.992312914e-06 | K9: -4.903878286e-06 | L9: -4.498750595e-06 | M9: -7.15908162e-06 | N9: 4.447016591e-11
A10: 1.9326 | B10: ='DF raw data'!G15 -> -1.9894132e-06 | C10: ='DF raw data'!H15 -> -2.8890693e-06 | D10: ='DF raw data'!I15 -> -5.1185812e-06 | F10: -1.992564431e-06 | G10: -2.900317921e-06 | H10: -5.126689033e-06 | J10: -4.988894014e-06 | K10: -7.399073627e-06 | L10: -5.949344603e-06 | M10: -1.013464632e-05 | N10: 7.462109082e-11
A11: 2.43275 | B11: ='DF raw data'!G16 -> -2.1500809e-06 | C11: ='DF raw data'!H16 -> 2.2187899e-06 | D11: ='DF raw data'!I16 -> -8.1186897e-07 | F11: -2.153486628e-06 | G11: 2.227428781e-06 | H11: -8.131549704e-07 | J11: -6.065960351e-06 | K11: -1.04329637e-05 | L11: -4.835296098e-06 | M11: -1.255301967e-05 | N11: 1.047180989e-10
A12: 2.9329 | B12: ='DF raw data'!G17 -> -2.2878512e-06 | C12: ='DF raw data'!H17 -> 5.1057536e-06 | D12: ='DF raw data'!I17 -> -5.8305191e-06 | F12: -2.291475156e-06 | G12: 5.125632903e-06 | H12: -5.839754642e-06 | J12: -7.21204165e-06 | K12: -1.404006633e-05 | L12: -2.271710801e-06 | M12: -1.368921582e-05 | N12: 1.333137824e-10
A13: 3.43305 | B13: ='DF raw data'!G18 -> -2.1267178e-06 | C13: ='DF raw data'!H18 -> 2.2241268e-06 | D13: ='DF raw data'!I18 -> 3.2385403e-06 | F13: -2.130086521e-06 | G13: 2.23278646e-06 | H13: 3.243670148e-06 | J13: -8.277404424e-06 | K13: -1.818001015e-05 | L13: -1.154982653e-06 | M13: -1.42668804e-05 | N13: 1.682489642e-10
A14: 3.9332 | B14: ='DF raw data'!G19 -> -1.9969584e-06 | C14: ='DF raw data'!H19 -> -6.0159374e-07 | D14: ='DF raw data'!I19 -> 7.2204098e-06 | F14: -2.000121582e-06 | G14: -6.039360513e-07 | H14: 7.231846929e-06 | J14: -9.277765233e-06 | K14: -2.282028443e-05 | L14: -1.457041269e-06 | M14: -1.499561959e-05 | N14: 2.123621427e-10
A15: 4.43335 | B15: ='DF raw data'!G20 -> -2.4744868e-06 | C15: ='DF raw data'!H20 -> 1.0816436e-05 | D15: ='DF raw data'!I20 -> -2.470598e-06 | F15: -2.478406387e-06 | G15: 1.08585499e-05 | H15: -2.474511427e-06 | J15: -1.051734019e-05 | K15: -2.808053213e-05 | L15: 3.973862465e-06 | M15: -1.300809228e-05 | N15: 2.755841174e-10
A16: 4.9335 | B16: ='DF raw data'!G21 -> -2.3338425e-06 | C16: ='DF raw data'!H21 -> 7.4859609e-06 | D16: ='DF raw data'!I21 -> 7.3770627e-07 | F16: -2.337539307e-06 | G16: 7.515107565e-06 | H16: 7.388747967e-07 | J16: -1.168646047e-05 | K16: -3.392551533e-05 | L16: 7.732543513e-06 | M16: -9.140660638e-06 | N16: 3.73796366e-10
A17: 5.43365 | B17: ='DF raw data'!G22 -> -2.3216262e-06 | C17: ='DF raw data'!H22 -> 7.3322526e-06 | D17: ='DF raw data'!I22 -> 2.0468258e-06 | F17: -2.325303656e-06 | G17: 7.3608008e-06 | H17: 2.050067972e-06 | J17: -1.284946109e-05 | K17: -4.03521733e-05 | L17: 1.141404803e-05 | M17: -3.431924515e-06 | N17: 5.215352458e-10
A18: 5.9338 | B18: ='DF raw data'!G23 -> -2.5176696e-06 | C18: ='DF raw data'!H23 -> 1.3098041e-05 | D18: ='DF raw data'!I23 -> 5.0853528e-06 | F18: -2.521657589e-06 | G18: 1.314903836e-05 | H18: 5.093407999e-06 | J18: -1.411066814e-05 | K18: -4.740962397e-05 | L18: 1.799053957e-05 | M18: 5.56604385e-06 | N18: 7.82998896e-10
A19: 6.43395 | B19: ='DF raw data'!G24 -> -2.3102102e-06 | C19: ='DF raw data'!H24 -> 7.5179832e-06 | D19: ='DF raw data'!I24 -> 6.0673597e-06 | F19: -2.313869573e-06 | G19: 7.547254544e-06 | H19: 6.076970398e-06 | J19: -1.526795e-05 | K19: -5.504588916e-05 | L19: 2.176529893e-05 | M19: 1.645195811e-05 | N19: 1.136524189e-09
A20: 6.9341 | B20: ='DF raw data'!G25 -> -1.7638657e-06 | C20: ='DF raw data'!H25 -> -8.1158123e-06 | D20: ='DF raw data'!I25 -> 1.5056108e-06 | F20: -1.766659663e-06 | G20: -8.147411298e-06 | H20: 1.507995688e-06 | J20: -1.615154484e-05 | K20: -6.312408431e-05 | L20: 1.769037117e-05 | M20: 2.529979725e-05 | N20: 1.423521079e-09
A21: 7.43425 | B21: ='DF raw data'!G26 -> -2.1015576e-06 | C21: ='DF raw data'!H26 -> 8.5556439e-07 | D21: ='DF raw data'!I26 -> -4.5747163e-07 | F21: -2.104886467e-06 | G21: 8.588955386e-07 | H21: -4.581962651e-07 | J21: -1.72043038e-05 | K21: -7.172881686e-05 | L21: 1.811994777e-05 | M21: 3.436248912e-05 | N21: 1.735775015e-09
A22: 7.9344 | B22: ='DF raw data'!G27 -> -2.7490232e-06 | C22: ='DF raw data'!H27 -> -5.79071e-06 | D22: ='DF raw data'!I27 -> 4.8715124e-06 | F22: -2.753377653e-06 | G22: -5.813256188e-06 | H22: 4.879228876e-06 | J22: -1.858140564e-05 | K22: -8.102230689e-05 | L22: 1.521244769e-05 | M22: 4.197099484e-05 | N22: 2.024205118e-09
A23: 8.43455 | B23: ='DF raw data'!G28 -> -4.2697129e-06 | C23: ='DF raw data'!H28 -> -1.0432377e-06 | D23: ='DF raw data'!I28 -> 5.7825714e-06 | F23: =(1-$G$1*($B$2-$G$2))*B23 -> -4.276476125e-06 | G23: -1.047299557e-06 | H23: 5.791730993e-06 | J23: -2.072028517e-05 | K23: -9.138555751e-05 | L23: 1.468864081e-05 | M23: 4.931751854e-05 | N23: 2.346845074e-09
A24: 8.9347 | B24: ='DF raw data'!G29 -> -4.0976292e-06 | C24: ='DF raw data'!H29 -> -3.7107136e-06 | D24: ='DF raw data'!I29 -> 4.3816804e-06 | F24: -4.104119845e-06 | G24: -3.725161301e-06 | H24: 4.388620982e-06 | J24: -2.277296071e-05 | K24: -0.0001027754538 | L24: 1.282550139e-05 | M24: 5.573219306e-05 | N24: 2.688498152e-09
A25: 9.43485 | B25: ='DF raw data'!G30 -> -2.9452704e-06 | C25: ='DF raw data'!H30 -> 1.7397863e-06 | D25: ='DF raw data'!I30 -> 3.8891126e-06 | F25: -2.949935708e-06 | G25: 1.746560176e-06 | H25: 3.895272954e-06 | J25: -2.424837105e-05 | K25: -0.0001149032766 | L25: 1.369904346e-05 | M25: 6.258376965e-05 | N25: 3.076438145e-09
A26: 9.935 | B26: ='DF raw data'!G31 -> 2.0335074e-06 | C26: ='DF raw data'!H31 -> -3.4071668e-06 | D26: ='DF raw data'!I31 -> 3.0343624e-06 | F26: 2.036728476e-06 | G26: -3.420432639e-06 | H26: 3.03916883e-06 | J26: -2.322970131e-05 | K26: -0.0001265216117 | L26: 1.198831408e-05 | M26: 6.857972493e-05 | N26: 3.418209994e-09
A27: 10.43515 | B27: ='DF raw data'!G32 -> 4.4282142e-06 | C27: ='DF raw data'!H32 -> -2.9365692e-06 | D27: ='DF raw data'!I32 -> 4.9576379e-06 | F27: 4.435228491e-06 | G27: -2.948002762e-06 | H27: 4.965490798e-06 | J27: -2.101142178e-05 | K27: -0.0001370304743 | L27: 1.05138705e-05 | M27: 7.383823726e-05 | N27: 3.694303456e-09
A28: 10.9353 | B28: ='DF raw data'!G33 -> 5.9854074e-06 | C28: ='DF raw data'!H33 -> -9.2670216e-06 | D28: ='DF raw data'!I33 -> -6.0806956e-06 | F28: 5.994888285e-06 | G28: -9.303102843e-06 | H28: -6.090327422e-06 | J28: -1.80130784e-05 | K28: -0.0001460397155 | L28: 5.860923609e-06 | M28: 7.67695782e-05 | N28: 3.873767989e-09
A29: 11.43545 | B29: ='DF raw data'!G34 -> 8.0670588e-06 | C29: ='DF raw data'!H34 -> 9.9873171e-07 | D29: ='DF raw data'!I34 -> -2.5607312e-07 | F29: 8.079837021e-06 | G29: 1.002620282e-06 | H29: -2.564787398e-07 | J29: -1.397194791e-05 | K29: -0.0001530277852 | L29: 6.362384143e-06 | M29: 7.995172463e-05 | N29: 3.991650973e-09
A30: 11.9356 | B30: ='DF raw data'!G35 -> 6.891999e-06 | C30: ='DF raw data'!H35 -> 4.3606937e-07 | D30: ='DF raw data'!I35 -> 2.7499016e-06 | F30: 6.902915926e-06 | G30: 4.377672105e-07 | H30: 2.754257444e-06 | J30: -1.051945451e-05 | K30: -0.0001582890904 | L30: 6.581333414e-06 | M30: 8.324337854e-05 | N30: 4.068660506e-09
A31: 12.43575 | B31: ='DF raw data'!G36 -> 4.1723624e-06 | C31: ='DF raw data'!H36 -> -7.7691684e-06 | D31: ='DF raw data'!I36 -> 2.5678135e-06 | F31: 4.178971422e-06 | G31: -7.799417736e-06 | H31: 2.571880917e-06 | J31: -8.429341958e-06 | K31: -0.0001625050258 | L31: 2.680454633e-06 | M31: 8.458400793e-05 | N31: 4.107791563e-09
A32: 12.9359 | B32: ='DF raw data'!G37 -> -2.3010114e-07 | C32: ='DF raw data'!H37 -> 2.8157428e-06 | D32: ='DF raw data'!I37 -> -2.180491e-06 | F32: -2.304656202e-07 | G32: 2.826705923e-06 | H32: -2.183944898e-06 | J32: -8.544609337e-06 | K32: -0.0001667786121 | L32: 4.094231601e-06 | M32: 8.663173786e-05 | N32: 4.152691569e-09
A33: 13.43605 | B33: ='DF raw data'!G38 -> -1.2218651e-06 | C33: ='DF raw data'!H38 -> -7.1647428e-06 | D33: ='DF raw data'!I38 -> -2.3493951e-06 | F33: -1.223800534e-06 | G33: -7.192638799e-06 | H33: -2.353116542e-06 | J33: -9.156693175e-06 | K33: -0.0001713583322 | L33: 4.968333054e-07 | M33: 8.688022904e-05 | N33: 4.19475012e-09
A34: 13.9362 | B34: ='DF raw data'!G39 -> 2.6509379e-06 | C34: ='DF raw data'!H39 -> -1.4443198e-06 | D34: ='DF raw data'!I39 -> 3.9340343e-06 | F34: 2.655136986e-06 | G34: -1.449943274e-06 | H34: 3.94026581e-06 | J34: -7.828726411e-06 | K34: -0.0001752738697 | L34: -2.28355823e-07 | M34: 8.676601687e-05 | N34: 4.225429873e-09
A35: 14.43635 | B35: ='DF raw data'!G40 -> 6.5440336e-06 | C35: ='DF raw data'!H40 -> 3.3358422e-06 | D35: ='DF raw data'!I40 -> 4.9595005e-06 | F35: 6.554399349e-06 | G35: 3.348830335e-06 | H35: 4.967356349e-06 | J35: -4.550543577e-06 | K35: -0.0001775498241 | L35: 1.446561669e-06 | M35: 8.748951469e-05 | N35: 4.236833287e-09
A36: 14.9365 | B36: ='DF raw data'!G41 -> 5.5694647e-07 | C36: ='DF raw data'!H41 -> 1.8589367e-06 | D36: ='DF raw data'!I41 -> 5.3547669e-06 | F36: 5.578286732e-07 | G36: 1.866174489e-06 | H36: 5.363248851e-06 | J36: -4.271545566e-06 | K36: -0.0001796862376 | L36: 2.37992884e-06 | M36: 8.86798361e-05 | N36: 4.248791955e-09
A37: 15.43665 | B37: ='DF raw data'!G42 -> -5.3542526e-06 | C37: ='DF raw data'!H42 -> 2.9450314e-07 | D37: ='DF raw data'!I42 -> 6.6911712e-06 | F37: -5.362733736e-06 | G37: 2.95649791e-07 | H37: 6.701770015e-06 | J37: -6.953716844e-06 | K37: -0.0001831641391 | L37: 2.527798083e-06 | M37: 8.994411431e-05 | N37: 4.276172137e-09
A38: 15.9368 | B38: ='DF raw data'!G43 -> -2.0580328e-06 | C38: ='DF raw data'!H43 -> -5.1070292e-06 | D38: ='DF raw data'!I43 -> 3.5514793e-06 | F38: -2.061292724e-06 | G38: -5.12691347e-06 | H38: 3.557104843e-06 | J38: -7.9846724e-06 | K38: -0.000187157673 | L38: -3.642768915e-08 | M38: 8.9925895e-05 | N38: 4.30805986e-09
A39: 16.43695 | B39: ='DF raw data'!G44 -> -1.270372e-07 | C39: ='DF raw data'!H44 -> 4.3689688e-06 | D39: ='DF raw data'!I44 -> 1.0421905e-06 | F39: -1.272384269e-07 | G39: 4.385979424e-06 | H39: 1.04384133e-06 | J39: -8.048310699e-06 | K39: -0.0001911830356 | L39: 2.15721992e-06 | M39: 9.100482855e-05 | N39: 4.342784726e-09
A40: 16.9371 | B40: ='DF raw data'!G45 -> -1.4598253e-06 | C40: ='DF raw data'!H45 -> -2.4200726e-06 | D40: ='DF raw data'!I45 -> -2.1309709e-06 | F40: -1.462137663e-06 | G40: -2.429495177e-06 | H40: -2.134346358e-06 | J40: -8.779598851e-06 | K40: -0.000195574152 | L40: 9.42107907e-07 | M40: 9.147602382e-05 | N40: 4.381780883e-09
A41: 17.43725 | B41: ='DF raw data'!G46 -> 2.6129574e-06 | C41: ='DF raw data'!H46 -> -8.4790008e-06 | D41: ='DF raw data'!I46 -> -3.1533739e-06 | F41: 2.617096325e-06 | G41: -8.512013876e-06 | H41: -3.158368844e-06 | J41: -7.470658125e-06 | K41: -0.0001993106016 | L41: -3.315175833e-06 | M41: 8.981793862e-05 | N41: 4.415191465e-09
A42: 17.9374 | B42: ='DF raw data'!G47 -> 5.9348831e-06 | C42: ='DF raw data'!H47 -> -2.9838025e-06 | D42: ='DF raw data'!I47 -> -3.5775186e-06 | F42: 5.944283955e-06 | G42: -2.995419965e-06 | H42: -3.583185389e-06 | J42: -4.497624505e-06 | K42: -0.0002015600885 | L42: -4.813335129e-06 | M42: 8.741054906e-05 | N42: 4.436896385e-09
A43: 18.43755 | B43: ='DF raw data'!G48 -> 3.2938051e-06 | C43: ='DF raw data'!H48 -> 1.1021378e-06 | D43: ='DF raw data'!I48 -> -1.2883278e-06 | F43: 3.299022487e-06 | G43: 1.106428985e-06 | H43: -1.290368511e-06 | J43: -2.847618408e-06 | K43: -0.0002029843249 | L43: -4.259954672e-06 | M43: 8.527993273e-05 | N43: 4.450028396e-09
A44: 18.9377 | B44: ='DF raw data'!G49 -> -1.7914343e-06 | C44: ='DF raw data'!H49 -> 9.3284561e-06 | D44: ='DF raw data'!I49 -> 7.5348055e-07 | F44: -1.794271932e-06 | G44: 9.364776538e-06 | H44: 7.546740632e-07 | J44: -3.745023514e-06 | K44: -0.0002048573984 | L44: 4.238383139e-07 | M44: 8.549191546e-05 | N44: 4.457132947e-09
A45: 19.43785 | B45: ='DF raw data'!G50 -> -5.0091612e-06 | C45: ='DF raw data'!H50 -> 1.1478635e-05 | D45: ='DF raw data'!I50 -> 4.8745861e-08 | F45: -5.017095711e-06 | G45: 1.152332718e-05 | H45: 4.882307444e-08 | J45: -6.254323934e-06 | K45: -0.0002079854985 | L45: 6.187230404e-06 | M45: 8.858645875e-05 | N45: 4.49584375e-09
A46: 19.938 | B46: ='DF raw data'!G51 -> -3.6988704e-06 | C46: ='DF raw data'!H51 -> 3.8990379e-06 | D46: ='DF raw data'!I51 -> 2.0269915e-06 | F46: -3.704729411e-06 | G46: 3.914218844e-06 | H46: 2.030202255e-06 | J46: -8.107244349e-06 | K46: -0.0002120403368 | L46: 8.144926959e-06 | M46: 9.266014397e-05 | N46: 4.561897183e-09
A47: 20.43815 | B47: ='DF raw data'!G52 -> -5.8834019e-07 | C47: ='DF raw data'!H52 -> 4.9468417e-06 | D47: ='DF raw data'!I52 -> -1.3015539e-07 | F47: -5.892721209e-07 | G47: 4.966102278e-06 | H47: -1.303615561e-07 | J47: -8.4019688e-06 | K47: -0.0002162425815 | L47: 1.062872301e-05 | M47: 9.797609978e-05 | N47: 4.653706134e-09
A48: 20.9383 | B48: ='DF raw data'!G53 -> -4.5010427e-07 | C48: ='DF raw data'!H53 -> 8.2186089e-06 | D48: ='DF raw data'!I53 -> -7.2375713e-07 | F48: -4.508172352e-07 | G48: 8.250608137e-06 | H48: -7.249035613e-07 | J48: -8.627445041e-06 | K48: -0.0002205575981 | L48: 1.475526467e-05 | M48: 0.0001053559454 | N48: 4.799825278e-09
A49: 21.43845 | B49: ='DF raw data'!G54 -> -2.0063007e-06 | C49: ='DF raw data'!H54 -> 4.7388289e-06 | D49: ='DF raw data'!I54 -> 3.6516474e-06 | F49: -2.00947868e-06 | G49: 4.757279578e-06 | H49: 3.657431609e-06 | J49: -9.632485803e-06 | K49: -0.0002253752859 | L49: 1.713461805e-05 | M49: 0.0001139258246 | N49: 4.993073195e-09
A50: 21.9386 | B50: ='DF raw data'!G55 -> -2.9092907e-06 | C50: ='DF raw data'!H55 -> 1.1315988e-05 | D50: ='DF raw data'!I55 -> 2.8521288e-06 | F50: -2.913899016e-06 | G50: 1.136004691e-05 | H50: 2.856646572e-06 | J50: -1.10898724e-05 | K50: -0.0002309218855 | L50: 2.281634552e-05 | M50: 0.0001253374198 | N50: 5.314955177e-09
A51: 22.43875 | B51: ='DF raw data'!G56 -> -3.8113421e-06 | C51: ='DF raw data'!H56 -> 8.2244796e-06 | D51: ='DF raw data'!I56 -> -1.7173328e-06 | F51: -3.817379266e-06 | G51: 8.256501695e-06 | H51: -1.720053055e-06 | J51: -1.299913464e-05 | K51: -0.0002374234027 | L51: 2.694583484e-05 | M51: 0.0001388143791 | N51: 5.762617193e-09
A52: 22.9389 | B52: ='DF raw data'!G57 -> -5.087858e-06 | C52: ='DF raw data'!H57 -> -3.5301892e-07 | D52: ='DF raw data'!I57 -> -4.4851945e-06 | F52: -5.095917167e-06 | G52: -3.543934027e-07 | H52: -4.492299048e-06 | J52: -1.554785761e-05 | K52: -0.0002451996637 | L52: 2.676858498e-05 | M52: 0.0001522026869 | N52: 6.241907446e-09
A53: 23.43905 | B53: ='DF raw data'!G58 -> -6.1138626e-06 | C53: ='DF raw data'!H58 -> 6.3302145e-06 | D53: ='DF raw data'!I58 -> 2.9854389e-06 | F53: -6.123546958e-06 | G53: 6.354861254e-06 | H53: 2.990167835e-06 | J53: -1.861054962e-05 | K53: -0.0002545077301 | L53: 2.994696884e-05 | M53: 0.0001671806634 | N53: 6.863680672e-09
A54: 23.9392 | B54: ='DF raw data'!G59 -> -3.9341603e-06 | C54: ='DF raw data'!H59 -> 5.7703542e-06 | D54: ='DF raw data'!I59 -> 3.232283e-06 | F54: -3.94039201e-06 | G54: 5.792821133e-06 | H54: 3.237402936e-06 | J54: -2.058133668e-05 | K54: -0.0002648014856 | L54: 3.284424833e-05 | M54: 0.0001836077142 | N54: 7.615074056e-09
A55: 24.43935 | B55: ='DF raw data'!G60 -> 5.9059968e-08 | C55: ='DF raw data'!H60 -> 1.0366386e-05 | D55: ='DF raw data'!I60 -> 8.9809748e-07 | F55: 5.915351899e-08 | G55: 1.040674763e-05 | H55: 8.995200664e-07 | J55: -2.055175105e-05 | K55: -0.0002750804439 | L55: 3.804918315e-05 | M55: 0.0002026380131 | N55: 8.550411978e-09
A56: 24.9395 | B56: ='DF raw data'!G61 -> 1.3755572e-06 | C56: ='DF raw data'!H61 -> 5.9807689e-06 | D56: ='DF raw data'!I61 -> -1.2173872e-06 | F56: 1.377736083e-06 | G56: 6.004055084e-06 | H56: -1.219315541e-06 | J56: -1.986267635e-05 | K56: -0.0002850147615 | L56: 4.10521113e-05 | M56: 0.0002231702266 | N56: 9.590624826e-09
A57: 25.43965 | B57: ='DF raw data'!G62 -> 1.864698e-06 | C57: ='DF raw data'!H62 -> -3.8709595e-06 | D57: ='DF raw data'!I62 -> -3.27983e-06 | F57: 1.867651682e-06 | G57: -3.88603112e-06 | H57: -3.285025251e-06 | J57: -1.892857036e-05 | K57: -0.000294481886 | L57: 3.910851284e-05 | M57: 0.0002427303493 | N57: 1.053479127e-08
A58: 25.9398 | B58: ='DF raw data'!G63 -> 1.7700451e-06 | C58: ='DF raw data'!H63 -> -6.9292441e-06 | D58: ='DF raw data'!I63 -> -4.2897914e-06 | F58: 1.772848851e-06 | G58: -6.956223182e-06 | H58: -4.29658643e-06 | J58: -1.804188001e-05 | K58: -0.0003035055323 | L58: 3.562935781e-05 | M58: 0.0002605503726 | N58: 1.13325108e-08
A59: 26.43995 | B59: ='DF raw data'!G64 -> -4.7100082e-07 | C59: ='DF raw data'!H64 -> -1.9157206e-07 | D59: ='DF raw data'!I64 -> 1.7310928e-06 | F59: -4.717468853e-07 | G59: -1.923179478e-07 | H59: 1.733834851e-06 | J59: -1.827782421e-05 | K59: -0.000312647186 | L59: 3.553316999e-05 | M59: 0.0002783222876 | N59: 1.213109281e-08
A60: 26.9401 | B60: ='DF raw data'!G65 -> -6.2582467e-06 | C60: ='DF raw data'!H65 -> 5.6552067e-06 | D60: ='DF raw data'!I65 -> 8.1324526e-07 | F60: -6.268159763e-06 | G60: 5.677225305e-06 | H60: 8.145334405e-07 | J60: -2.141284432e-05 | K60: -0.0003233568201 | L60: 3.837263423e-05 | M60: 0.0002975143606 | N60: 1.309686694e-08
A61: 27.44025 | B61: ='DF raw data'!G66 -> -9.7025832e-06 | C61: ='DF raw data'!H66 -> 1.1363621e-05 | D61: ='DF raw data'!I66 -> -3.0254625e-06 | F61: -9.717952092e-06 | G61: 1.140786537e-05 | H61: -3.030254833e-06 | J61: -2.627327805e-05 | K61: -0.0003364974001 | L61: 4.40782781e-05 | M61: 0.0003195601114 | N61: 1.441385179e-08
A62: 27.9404 | B62: ='DF raw data'!G67 -> -5.5724586e-06 | C62: ='DF raw data'!H67 -> 2.6268101e-06 | D62: ='DF raw data'!I67 -> -3.8644389e-06 | F62: -5.581285374e-06 | G62: 2.637037612e-06 | H62: -3.870560171e-06 | J62: -2.906475793e-05 | K62: -0.0003510341388 | L62: 4.539719246e-05 | M62: 0.0003422655172 | N62: 1.586712025e-08
A63: 28.44055 | B63: ='DF raw data'!G68 -> 2.5989439e-06 | C63: ='DF raw data'!H68 -> 8.6279633e-06 | D63: ='DF raw data'!I68 -> 9.9480951e-07 | F63: 2.603060627e-06 | G63: 8.661556363e-06 | H63: 9.963852883e-07 | J63: -2.776283716e-05 | K63: -0.0003649197218 | L63: 4.972926987e-05 | M63: 0.0003671376115 | N63: 1.748949452e-08
A64: 28.9407 | B64: ='DF raw data'!G69 -> 8.6553855e-06 | C64: ='DF raw data'!H69 -> 4.0244572e-07 | D64: ='DF raw data'!I69 -> 6.0240968e-06 | F64: 8.669095631e-06 | G64: 4.040126465e-07 | H64: 6.033638969e-06 | J64: -2.342698898e-05 | K64: -0.0003766367304 | L64: 4.99313368e-05 | M64: 0.0003921107696 | N64: 1.901093192e-08
A65: 29.44085 | B65: ='DF raw data'!G70 -> 7.0628093e-06 | C65: ='DF raw data'!H70 -> -9.6104657e-07 | D65: ='DF raw data'!I70 -> 1.0704648e-05 | F65: 7.07399679e-06 | G65: -9.647884146e-07 | H65: 1.072160416e-05 | J65: -1.988892949e-05 | K65: -0.0003865841784 | L65: 4.944879787e-05 | M65: 0.0004168425859 | N65: 2.04317346e-08
A66: 29.941 | B66: ='DF raw data'!G71 -> 3.7201326e-06 | C66: ='DF raw data'!H71 -> 5.1185625e-06 | D66: ='DF raw data'!I71 -> 7.2349835e-06 | F66: 3.72602529e-06 | G66: 5.138491675e-06 | H66: 7.246443714e-06 | J66: -1.802535794e-05 | K66: -0.0003955995612 | L66: 5.201881448e-05 | M66: 0.0004428597959 | N66: 2.194762452e-08
A67: 30.44115 | B67: ='DF raw data'!G72 -> -3.7581674e-07 | C67: ='DF raw data'!H72 -> -1.0221293e-05 | D67: ='DF raw data'!I72 -> -4.0696937e-06 | F67: -3.764120337e-07 | G67: -1.026108971e-05 | H67: -4.076140095e-06 | J67: -1.821362042e-05 | K67: -0.0004047091035 | L67: 4.688673047e-05 | M67: 0.0004663101942 | N67: 2.321305477e-08
A68: 30.9413 | B68: ='DF raw data'!G73 -> -4.2309975e-06 | C68: ='DF raw data'!H73 -> -8.8759471e-06 | D68: ='DF raw data'!I73 -> -1.55748e-06 | F68: -4.2376994e-06 | G68: -8.91050569e-06 | H68: -1.559947048e-06 | J68: -2.033310577e-05 | K68: -0.0004148787063 | L68: 4.243014104e-05 | M68: 0.0004875316292 | N68: 2.432026286e-08
A69: 31.44145 | B69: ='DF raw data'!G74 -> 1.5690686e-06 | C69: ='DF raw data'!H74 -> 2.7094015e-06 | D69: ='DF raw data'!I74 -> -7.7029426e-06 | F69: 1.571554005e-06 | G69: 2.719950582e-06 | H69: -7.715144061e-06 | J69: -1.954709304e-05 | K69: -0.0004246551849 | L69: 4.379052433e-05 | M69: 0.00050943346 | N69: 2.547045725e-08
A70: 31.9416 | B70: ='DF raw data'!G75 -> 6.223906e-06 | C70: ='DF raw data'!H75 -> -1.1950779e-06 | D70: ='DF raw data'!I75 -> -7.193335e-06 | F70: 6.233764667e-06 | G70: -1.199730948e-06 | H70: -7.204729243e-06 | J70: -1.642927564e-05 | K70: -0.0004328722871 | L70: 4.319047889e-05 | M70: 0.000531035178 | N70: 2.653844683e-08
A71: 32.44175 | B71: ='DF raw data'!G76 -> 3.3148981e-06 | C71: ='DF raw data'!H76 -> -6.3401631e-06 | D71: ='DF raw data'!I76 -> 6.4566541e-07 | F71: 3.320148899e-06 | G71: =(1-$G$1*($B$2-$G$2))*C71*$M$2/$M$1 -> -6.364848589e-06 | H71: 6.46688144e-07 | J71: -1.476870317e-05 | K71: -0.000440258854 | L71: 4.000709987e-05 | M71: 0.000551044729 | N71: 2.744806095e-08
A72: =A71+$B$1 -> 32.9419 | B72: ='DF raw data'!G77 -> 6.6887981e-07 | C72: ='DF raw data'!H77 -> 2.9711855e-06 | D72: ='DF raw data'!I77 -> 9.2277451e-06 | F72: 6.699393156e-07 | G72: 2.982753841e-06 | H72: 9.242361848e-06 | J72: =F72*$B$1+J71 -> -1.443363302e-05 | K72: =J72*$B$1+K71 -> -0.0004474778356 | L72: =G72*$B$1+L71 -> 4.149892421e-05 | M72: =L72*$B$1+M71 -> 0.0005718004159 | N72: =(J72^2+L72^2)*$B$1+N71 -> 2.841359576e-08
A73: 33.44205 | B73: ='DF raw data'!G78 -> 1.6009081e-06 | C73: ='DF raw data'!H78 -> -1.8036392e-06 | D73: ='DF raw data'!I78 -> 4.6488244e-06 | F73: 1.603443938e-06 | G73: -1.810661688e-06 | H73: 4.656188138e-06 | J73: -1.363167053e-05 | K73: -0.0004542957156 | L73: 4.059332176e-05 | M73: 0.0005921031658 | N73: 2.933069092e-08
A74: 33.9422 | B74: ='DF raw data'!G79 -> 2.9528464e-06 | C74: ='DF raw data'!H79 -> 4.7198823e-06 | D74: ='DF raw data'!I79 -> 2.0011037e-06 | F74: 2.957523709e-06 | G74: 4.73825921e-06 | H74: 2.004273448e-06 | J74: -1.215246505e-05 | K74: -0.000460373771 | L74: 4.296316211e-05 | M74: 0.0006135911913 | N74: 3.03277478e-08
A75: 34.44235 | B75: ='DF raw data'!G80 -> 5.7417719e-06 | C75: ='DF raw data'!H80 -> 6.912891e-06 | D75: ='DF raw data'!I80 -> 6.5555982e-06 | F75: 5.750866867e-06 | G75: 6.939806411e-06 | H75: 6.565982268e-06 | J75: -9.276168986e-06 | K75: -0.0004650132469 | L75: 4.643410628e-05 | M75: 0.0006368152096 | N75: 3.144917089e-08
A76: 34.9425 | B76: ='DF raw data'!G81 -> 8.6503796e-06 | C76: ='DF raw data'!H81 -> 3.3902804e-06 | D76: ='DF raw data'!I81 -> 3.9254487e-06 | F76: 8.664081801e-06 | G76: 3.403480491e-06 | H76: 3.931666611e-06 | J76: -4.942828473e-06 | K76: -0.0004674854026 | L76: 4.813635705e-05 | M76: 0.0006608906086 | N76: 3.262029233e-08
A77: 35.44265 | B77: ='DF raw data'!G82 -> 1.0789635e-05 | C77: ='DF raw data'!H82 -> -3.6997726e-06 | D77: ='DF raw data'!I82 -> -5.6621971e-06 | F77: 1.080672578e-05 | G77: -3.714177702e-06 | H77: -5.67116602e-06 | J77: 4.621554263e-07 | K77: -0.0004672542555 | L77: 4.627871107e-05 | M77: 0.0006840369059 | N77: 3.369157997e-08
A78: 35.9428 | B78: ='DF raw data'!G83 -> 9.5510995e-06 | C78: ='DF raw data'!H83 -> -3.8173221e-06 | D78: ='DF raw data'!I83 -> -1.0473264e-05 | F78: 9.566228442e-06 | G78: -3.832184882e-06 | H78: -1.048985365e-05 | J78: 5.246704581e-06 | K78: -0.0004646301162 | L78: 4.43620438e-05 | M78: 0.0007062245821 | N78: 3.468963871e-08
A79: 36.44295 | B79: ='DF raw data'!G84 -> 1.517533e-06 | C79: ='DF raw data'!H84 -> -5.147057e-06 | D79: ='DF raw data'!I84 -> -9.7768379e-06 | F79: 1.519936772e-06 | G79: -5.167097119e-06 | H79: -9.792324411e-06 | J79: 6.006900958e-06 | K79: -0.0004616257647 | L79: 4.177772018e-05 | M79: 0.0007271197089 | N79: 3.558063631e-08
A80: 36.9431 | B80: ='DF raw data'!G85 -> -7.1426684e-06 | C80: ='DF raw data'!H85 -> 1.2444914e-05 | D80: ='DF raw data'!I85 -> -9.8802584e-06 | F80: -7.153982387e-06 | G80: 1.24933684e-05 | H80: -9.895908729e-06 | J80: 2.428836667e-06 | K80: -0.000460410982 | L80: 4.802627838e-05 | M80: 0.000751140052 | N80: 3.673719451e-08
A81: 37.44325 | B81: ='DF raw data'!G86 -> -3.1970476e-06 | C81: ='DF raw data'!H86 -> -7.0513323e-07 | D81: ='DF raw data'!I86 -> -9.307495e-06 | F81: -3.202111723e-06 | G81: -7.078786734e-07 | H81: -9.322238072e-06 | J81: 8.273004888e-07 | K81: -0.0004599972077 | L81: 4.767223287e-05 | M81: 0.0007749833193 | N81: 3.787419861e-08
A82: 37.9434 | B82: ='DF raw data'!G87 -> -3.2388095e-07 | C82: ='DF raw data'!H87 -> -6.6453108e-06 | D82: ='DF raw data'!I87 -> -1.1111582e-06 | F82: -3.243939774e-07 | G82: -6.671184385e-06 | H82: -1.112918275e-06 | J82: 6.65054841e-07 | K82: -0.0004596645805 | L82: 4.433564e-05 | M82: 0.0007971577896 | N82: 3.885753916e-08
A83: 38.44355 | B83: ='DF raw data'!G88 -> -3.009277e-06 | C83: ='DF raw data'!H88 -> -4.0536215e-06 | D83: ='DF raw data'!I88 -> 2.2462889e-06 | F83: -3.014043695e-06 | G83: -4.069404316e-06 | H83: 2.249847022e-06 | J83: -8.424191129e-07 | K83: -0.0004600859164 | L83: 4.230032743e-05 | M83: 0.0008183142984 | N83: 3.975282135e-08
A84: 38.9437 | B84: ='DF raw data'!G89 -> -1.8954951e-06 | C84: ='DF raw data'!H89 -> -9.288904e-06 | D84: ='DF raw data'!I89 -> -4.3337091e-06 | F84: -1.898497564e-06 | G84: -9.325070442e-06 | H84: -4.340573695e-06 | J84: -1.79195267e-06 | K84: -0.0004609821616 | L84: 3.763639345e-05 | M84: 0.0008371381406 | N84: 4.046288891e-08
A85: 39.44385 | B85: ='DF raw data'!G90 -> 2.4381836e-07 | C85: ='DF raw data'!H90 -> -4.4611079e-06 | D85: ='DF raw data'!I90 -> -7.0911806e-06 | F85: 2.442045683e-07 | G85: -4.478477269e-06 | H85: -7.10241303e-06 | J85: -1.669813755e-06 | K85: -0.0004618173189 | L85: 3.539648304e-05 | M85: 0.0008548416915 | N85: 4.109092691e-08
A86: 39.944 | B86: ='DF raw data'!G91 -> -1.6735328e-07 | C86: ='DF raw data'!H91 -> -8.927318e-07 | D86: ='DF raw data'!I91 -> -4.851699e-06 | F86: -1.676183676e-07 | G86: -8.962076603e-07 | H86: -4.859384091e-06 | J86: -1.753648081e-06 | K86: -0.000462694406 | L86: 3.494824478e-05 | M86: 0.0008723210562 | N86: 4.170333813e-08
A87: 40.44415 | B87: ='DF raw data'!G92 -> -3.0943838e-06 | C87: ='DF raw data'!H92 -> -1.0224762e-05 | D87: ='DF raw data'!I92 -> 1.8915567e-06 | F87: =(1-$G$1*($B$2-$G$2))*B87 -> -3.099285304e-06 | G87: -1.026457221e-05 | H87: 1.894552926e-06 | J87: -3.303755626e-06 | K87: -0.0004643467794 | L87: 2.981441899e-05 | M87: 0.0008872327378 | N87: 4.215338029e-08
A88: 40.9443 | B88: ='DF raw data'!G93 -> -2.0914076e-06 | C88: ='DF raw data'!H93 -> -1.8391705e-05 | D88: ='DF raw data'!I93 -> 1.1093322e-05 | F88: -2.09472039e-06 | G88: -1.846331329e-05 | H88: 1.111089382e-05 | J88: -4.351430029e-06 | K88: -0.0004665231471 | L88: 2.057999284e-05 | M88: 0.0008975258212 | N88: 4.237468219e-08
A89: 41.44445 | B89: ='DF raw data'!G94 -> 2.5042909e-06 | C89: ='DF raw data'!H94 -> -7.7160648e-06 | D89: ='DF raw data'!I94 -> 5.8925184e-06 | F89: 2.508257697e-06 | G89: -7.746107377e-06 | H89: 5.901852149e-06 | J89: -3.096924942e-06 | K89: -0.0004680720741 | L89: 1.670577724e-05 | M89: 0.0009058812157 | N89: 4.251906246e-08
A90: 41.9446 | B90: ='DF raw data'!G95 -> 4.4926282e-06 | C90: ='DF raw data'!H95 -> -7.1356558e-06 | D90: ='DF raw data'!I95 -> -6.0342313e-06 | F90: 4.499744523e-06 | G90: -7.163438548e-06 | H90: -6.043789522e-06 | J90: -8.463777188e-07 | K90: -0.0004684953899 | L90: 1.312298345e-05 | M90: 0.0009124446759 | N90: 4.260555292e-08
A91: 42.44475 | B91: ='DF raw data'!G96 -> 4.3929695e-06 | C91: ='DF raw data'!H96 -> -6.1977962e-06 | D91: ='DF raw data'!I96 -> -4.6754026e-06 | F91: 4.399927964e-06 | G91: -6.221927382e-06 | H91: -4.682808438e-06 | J91: 1.354246252e-06 | K91: -0.0004678180637 | L91: 1.001108647e-05 | M91: 0.0009174517208 | N91: 4.265659615e-08
A92: 42.9449 | B92: ='DF raw data'!G97 -> 2.0608722e-06 | C92: ='DF raw data'!H97 -> 1.7028269e-06 | D92: ='DF raw data'!I97 -> -2.8690586e-06 | F92: 2.064136622e-06 | G92: 1.709456874e-06 | H92: -2.873603189e-06 | J92: 2.386624184e-06 | K92: -0.0004666243936 | L92: 1.086607132e-05 | M92: 0.0009228863864 | N92: 4.271849845e-08
A93: 43.44505 | B93: ='DF raw data'!G98 -> -3.4458199e-06 | C93: ='DF raw data'!H98 -> -6.3001374e-07 | D93: ='DF raw data'!I98 -> -9.844257e-06 | F93: -3.451278079e-06 | G93: -6.324667049e-07 | H93: -9.859850303e-06 | J93: 6.604674525e-07 | K93: -0.0004662940608 | L93: 1.05497431e-05 | M93: 0.0009281628404 | N93: 4.277438186e-08
A94: 43.9452 | B94: ='DF raw data'!G99 -> -4.1299345e-06 | C94: ='DF raw data'!H99 -> -3.5742178e-06 | D94: ='DF raw data'!I99 -> -1.4636406e-05 | F94: -4.136476316e-06 | G94: -3.588134053e-06 | H94: -1.465959007e-05 | J94: -1.408391177e-06 | K94: -0.0004669984676 | L94: 8.755137855e-06 | M94: 0.0009325417226 | N94: 4.281371166e-08
A95: 44.44535 | B95: ='DF raw data'!G100 -> 1.4256885e-06 | C95: ='DF raw data'!H100 -> 2.888861e-06 | D95: ='DF raw data'!I100 -> -3.7867023e-06 | F95: 1.427946791e-06 | G95: 2.90010881e-06 | H95: -3.792700436e-06 | J95: -6.942035898e-07 | K95: -0.0004673456736 | L95: 1.020562728e-05 | M95: 0.0009376460671 | N95: 4.286604573e-08
A96: 44.9455 | B96: ='DF raw data'!G101 -> 3.554459e-06 | C96: ='DF raw data'!H101 -> 7.1961572e-06 | D96: ='DF raw data'!I101 -> 6.3882148e-06 | F96: 3.560089263e-06 | G96: 7.224175511e-06 | H96: 6.398333732e-06 | J96: 1.086375055e-06 | K96: -0.0004668023231 | L96: 1.381879866e-05 | M96: 0.0009445575392 | N96: 4.296214425e-08
A97: 45.44565 | B97: ='DF raw data'!G102 -> 1.2994652e-06 | C97: ='DF raw data'!H102 -> 7.0010865e-06 | D97: ='DF raw data'!I102 -> 3.6151075e-06 | F97: 1.301523553e-06 | G97: 7.028345301e-06 | H97: 3.62083383e-06 | J97: 1.73733206e-06 | K97: -0.0004659333965 | L97: 1.733402556e-05 | M97: 0.0009532271521 | N97: 4.311393316e-08
A98: 45.9458 | B98: ='DF raw data'!G103 -> -2.212756e-06 | C98: ='DF raw data'!H103 -> 9.0092691e-08 | D98: ='DF raw data'!I103 -> -4.7653189e-06 | F98: -2.216261006e-06 | G98: 9.044346781e-08 | H98: -4.772867165e-06 | J98: 6.288691182e-07 | K98: -0.0004656188676 | L98: 1.737926086e-05 | M98: 0.0009619193894 | N98: 4.326519561e-08
A99: 46.44595 | B99: ='DF raw data'!G104 -> -2.466476e-06 | C99: ='DF raw data'!H104 -> -9.5731059e-07 | D99: ='DF raw data'!I104 -> -1.9684405e-06 | F99: -2.470382898e-06 | G99: -9.610378885e-07 | H99: -1.97155851e-06 | J99: -6.066928882e-07 | K99: -0.000465922305 | L99: 1.689859776e-05 | M99: 0.0009703712231 | N99: 4.340820384e-08
A100: 46.9461 | B100: ='DF raw data'!G105 -> -1.0122666e-06 | C100: ='DF raw data'!H105 -> -2.6014002e-06 | D100: ='DF raw data'!I105 -> 3.4425364e-06 | F100: -1.01387003e-06 | G100: -2.611528778e-06 | H100: 3.447989378e-06 | J100: -1.113779984e-06 | K100: -0.0004664793621 | L100: 1.559244164e-05 | M100: 0.0009781697828 | N100: 4.353042287e-08
A101: 47.44625 | B101: ='DF raw data'!G106 -> -2.4478402e-07 | C101: ='DF raw data'!H106 -> -7.3145816e-06 | D101: ='DF raw data'!I106 -> 3.4005395e-06 | F101: -2.451717579e-07 | G101: -7.343060998e-06 | H101: 3.405925955e-06 | J101: -1.236402639e-06 | K101: -0.0004670977489 | L101: 1.191980968e-05 | M101: 0.0009841314756 | N101: 4.360224969e-08
A102: 47.9464 | B102: ='DF raw data'!G107 -> 5.280391e-07 | C102: ='DF raw data'!H107 -> 3.3589249e-06 | D102: ='DF raw data'!I107 -> 4.5392937e-07 | F102: 5.288755139e-07 | G102: 3.372002908e-06 | H102: 4.546483941e-07 | J102: -9.718855503e-07 | K102: -0.0004675838374 | L102: 1.360631694e-05 | M102: 0.000990936675 | N102: 4.369531581e-08
A103: 48.44655 | B103: ='DF raw data'!G108 -> 1.3240943e-06 | C103: ='DF raw data'!H108 -> 3.4072257e-06 | D103: ='DF raw data'!I108 -> -5.4875595e-06 | F103: 1.326191665e-06 | G103: 3.420491768e-06 | H103: -5.496251794e-06 | J103: -3.085907889e-07 | K103: -0.0004677381791 | L103: 1.53170759e-05 | M103: 0.0009985975105 | N103: 4.381270504e-08
A104: 48.9467 | B104: ='DF raw data'!G109 -> 2.2359848e-07 | C104: ='DF raw data'!H109 -> -7.2019689e-06 | D104: ='DF raw data'!I109 -> -4.411911e-06 | F104: 2.2395266e-07 | G104: -7.230009839e-06 | H104: -4.418899467e-06 | J104: -1.96580866e-07 | K104: -0.000467836499 | L104: 1.170098648e-05 | M104: 0.001004449759 | N104: 4.388120145e-08
A105: 49.44685 | B105: ='DF raw data'!G110 -> -1.4085589e-06 | C105: ='DF raw data'!H110 -> 5.1479165e-06 | D105: ='DF raw data'!I110 -> -9.0783885e-07 | F105: -1.410790057e-06 | G105: 5.167959965e-06 | H105: -9.092768667e-07 | J105: -9.021875131e-07 | K105: -0.0004682877281 | L105: 1.428574165e-05 | M105: 0.001011594773 | N105: 4.398368036e-08
A106: 49.947 | B106: ='DF raw data'!G111 -> -1.0616631e-06 | C106: ='DF raw data'!H111 -> -7.1233831e-07 | D106: ='DF raw data'!I111 -> -2.9733521e-06 | F106: -1.063344774e-06 | G106: -7.151118064e-07 | H106: -2.97806189e-06 | J106: -1.434019402e-06 | K106: -0.0004690049529 | L106: 1.392807848e-05 | M106: 0.001018560901 | N106: 4.408173366e-08
A107: 50.44715 | B107: ='DF raw data'!G112 -> -1.5497343e-06 | C107: ='DF raw data'!H112 -> 3.0709891e-06 | D107: ='DF raw data'!I112 -> -2.7338858e-06 | F107: -1.552189079e-06 | G107: 3.082946027e-06 | H107: -2.738216275e-06 | J107: -2.21034677e-06 | K107: -0.0004701104578 | L107: 1.547001394e-05 | M107: 0.001026298229 | N107: 4.420387377e-08
A108: 50.9473 | B108: ='DF raw data'!G113 -> -2.7286651e-06 | C108: ='DF raw data'!H113 -> -8.4162923e-07 | D108: ='DF raw data'!I113 -> -3.1858538e-06 | F108: -2.732987306e-06 | G108: -8.449061219e-07 | H108: -3.190900192e-06 | J108: -3.577250371e-06 | K108: -0.0004718996196 | L108: 1.504743414e-05 | M108: 0.001033824203 | N108: 4.432352065e-08
A109: 51.44745 | B109: ='DF raw data'!G114 -> -3.6452029e-06 | C109: ='DF raw data'!H114 -> -1.5397202e-06 | D109: ='DF raw data'!I114 -> -4.3140058e-06 | F109: -3.650976901e-06 | G109: -1.545715116e-06 | H109: -4.320839185e-06 | J109: -5.403286468e-06 | K109: -0.0004746020733 | L109: 1.427434473e-05 | M109: 0.001040963516 | N109: 4.44400318e-08
A110: 51.9476 | B110: ='DF raw data'!G115 -> -4.0561126e-06 | C110: ='DF raw data'!H115 -> 1.9101726e-06 | D110: ='DF raw data'!I115 -> -1.4863211e-06 | F110: -4.062537482e-06 | G110: 1.917609876e-06 | H110: -1.488675433e-06 | J110: -7.43516459e-06 | K110: -0.0004783207709 | L110: 1.523343731e-05 | M110: 0.00104858252 | N110: 4.458374455e-08
A111: 52.44775 | B111: ='DF raw data'!G116 -> -1.8642594e-06 | C111: ='DF raw data'!H116 -> 2.9757221e-06 | D111: ='DF raw data'!I116 -> -4.8834513e-06 | F111: -1.867212387e-06 | G111: 2.987308104e-06 | H111: -4.891186687e-06 | J111: -8.369050865e-06 | K111: -0.0004825065517 | L111: 1.672753945e-05 | M111: 0.001056948799 | N111: 4.475872282e-08
A112: 52.9479 | B112: ='DF raw data'!G117 -> 2.5799827e-06 | C112: ='DF raw data'!H117 -> 5.158457e-06 | D112: ='DF raw data'!I117 -> -1.6800071e-06 | F112: 2.584069393e-06 | G112: 5.178541505e-06 | H112: -1.682668231e-06 | J112: -7.076628558e-06 | K112: -0.0004860459275 | L112: 1.931758699e-05 | M112: 0.00106661049 | N112: 4.497041023e-08
A113: 53.44805 | B113: ='DF raw data'!G118 -> 3.9683082e-06 | C113: ='DF raw data'!H118 -> -9.3369664e-08 | D113: ='DF raw data'!I118 -> 6.8343256e-06 | F113: 3.974594e-06 | G113: -9.373319973e-08 | H113: 6.845151172e-06 | J113: -5.088735369e-06 | K113: -0.0004885910585 | L113: 1.927070633e-05 | M113: 0.001076248734 | N113: 4.516909749e-08
A114: 53.9482 | B114: ='DF raw data'!G119 -> 2.4223273e-06 | C114: ='DF raw data'!H119 -> 4.7516352e-07 | D114: ='DF raw data'!I119 -> 4.1350909e-06 | F114: 2.426164266e-06 | G114: 4.77013574e-07 | H114: 4.141640884e-06 | J114: -3.875289311e-06 | K114: -0.0004905292844 | L114: 1.950928467e-05 | M114: 0.001086006302 | N114: 4.536697186e-08
A115: 54.44835 | B115: ='DF raw data'!G120 -> 2.4088615e-07 | C115: ='DF raw data'!H120 -> -4.3931936e-06 | D115: ='DF raw data'!I120 -> -7.2415003e-07 | F115: 2.412677137e-07 | G115: -4.410298544e-06 | H115: -7.252970836e-07 | J115: -3.754619264e-06 | K115: -0.0004924071572 | L115: 1.730347385e-05 | M115: 0.001094660635 | N115: 4.552377257e-08
A116: 54.9485 | B116: ='DF raw data'!G121 -> -2.1081642e-06 | C116: ='DF raw data'!H121 -> 1.648789e-06 | D116: ='DF raw data'!I121 -> 7.5981063e-07 | F116: -2.111503532e-06 | G116: 1.655208577e-06 | H116: 7.6101417e-07 | J116: -4.810687756e-06 | K116: -0.0004948132227 | L116: 1.813132642e-05 | M116: 0.001103729018 | N116: 4.569976921e-08
A117: 55.44865 | B117: ='DF raw data'!G122 -> -1.0662687e-06 | C117: ='DF raw data'!H122 -> -3.2233069e-07 | D117: ='DF raw data'!I122 -> 2.9773189e-06 | F117: -1.06795767e-06 | G117: -3.235856878e-07 | H117: 2.982034973e-06 | J117: -5.344826784e-06 | K117: -0.0004974864378 | L117: 1.796948504e-05 | M117: 0.001112716456 | N117: 4.587555672e-08
A118: 55.9488 | B118: ='DF raw data'!G123 -> 2.8874356e-06 | C118: ='DF raw data'!H123 -> -3.4744141e-06 | D118: ='DF raw data'!I123 -> 8.0688378e-06 | F118: 2.892009298e-06 | G118: -3.487941767e-06 | H118: 8.081618839e-06 | J118: -3.898388334e-06 | K118: -0.0004994362168 | L118: 1.622499096e-05 | M118: 0.001120831385 | N118: 4.601482237e-08
A119: 56.44895 | B119: ='DF raw data'!G124 -> 2.8293391e-07 | C119: ='DF raw data'!H124 -> 5.0972113e-07 | D119: ='DF raw data'!I124 -> 8.6806076e-06 | F119: 2.833820773e-07 | G119: 5.117057344e-07 | H119: 8.694357682e-06 | J119: -3.756654788e-06 | K119: -0.0005013151077 | L119: 1.648092059e-05 | M119: 0.001129074317 | N119: 4.615773183e-08
A120: 56.9491 | B120: ='DF raw data'!G125 -> -7.7681825e-06 | C120: ='DF raw data'!H125 -> -3.9878444e-07 | D120: ='DF raw data'!I125 -> 2.4530716e-06 | F120: -7.780487301e-06 | G120: -4.003371113e-07 | H120: 2.456957265e-06 | J120: -7.648065512e-06 | K120: -0.0005051402876 | L120: 1.628069198e-05 | M120: 0.001137217105 | N120: 4.631955728e-08
A121: 57.44925 | B121: ='DF raw data'!G126 -> -1.0877112e-05 | C121: ='DF raw data'!H126 -> 1.4079502e-07 | D121: ='DF raw data'!I126 -> 1.2648785e-06 | F121: -1.089434135e-05 | G121: 1.413432068e-07 | H121: 1.266882068e-06 | J121: -1.309687034e-05 | K121: -0.0005116906873 | L121: 1.635138478e-05 | M121: 0.001145395251 | N121: 4.653907101e-08
A122: 57.9494 | B122: ='DF raw data'!G127 -> -8.738446e-06 | C122: ='DF raw data'!H127 -> 5.6405297e-06 | D122: ='DF raw data'!I127 -> 7.1852669e-06 | F122: -8.752287698e-06 | G122: 5.66249116e-06 | H122: 7.196648363e-06 | J122: -1.747432703e-05 | K122: -0.000520430472 | L122: 1.918347974e-05 | M122: 0.001154989868 | N122: 4.687585101e-08
A123: 58.44955 | B123: ='DF raw data'!G128 -> -5.871093e-06 | C123: ='DF raw data'!H128 -> 3.0413682e-06 | D123: ='DF raw data'!I128 -> 1.1721529e-05 | F123: -5.880392811e-06 | G123: 3.053209798e-06 | H123: 1.17400959e-05 | J123: -2.041540549e-05 | K123: -0.000530641237 | L123: 2.071054262e-05 | M123: 0.001165348246 | N123: 4.729883555e-08
A124: 58.9497 | B124: ='DF raw data'!G129 -> -4.4650869e-06 | C124: ='DF raw data'!H129 -> -5.9438844e-06 | D124: ='DF raw data'!I129 -> 3.4925804e-06 | F124: -4.472159598e-06 | G124: -5.967026974e-06 | H124: 3.498112647e-06 | J124: -2.265215612e-05 | K124: -0.0005419707129 | L124: 1.772613408e-05 | M124: 0.001174213972 | N124: 4.771262765e-08
A125: 59.44985 | B125: ='DF raw data'!G130 -> -3.186432e-06 | C125: ='DF raw data'!H130 -> -8.0205455e-06 | D125: ='DF raw data'!I130 -> 2.3333384e-06 | F125: -3.191479308e-06 | G125: -8.051773575e-06 | H125: 2.337034408e-06 | J125: -2.424837449e-05 | K125: -0.0005540985374 | L125: 1.369903952e-05 | M125: 0.001181065546 | N125: 4.810056768e-08
A126: 59.95 | B126: ='DF raw data'!G131 -> -3.5420735e-06 | C126: ='DF raw data'!H131 -> -4.5896013e-07 | D126: ='DF raw data'!I131 -> 9.1317752e-06 | F126: -3.547684144e-06 | G126: -4.607470959e-07 | H126: 9.146239932e-06 | J126: -2.602274872e-05 | K126: -0.0005671138152 | L126: 1.346859686e-05 | M126: 0.001187801865 | N126: 4.852998974e-08
A127: 60.45015 | B127: ='DF raw data'!G132 -> -4.6567866e-06 | C127: ='DF raw data'!H132 -> -1.2161593e-06 | D127: ='DF raw data'!I132 -> 9.5118639e-06 | F127: -4.66416295e-06 | G127: -1.220894429e-06 | H127: 9.526930692e-06 | J127: -2.835552982e-05 | K127: -0.0005812958334 | L127: 1.285796652e-05 | M127: 0.001194232777 | N127: 4.901481683e-08
A128: 60.9503 | B128: ='DF raw data'!G133 -> -8.6328407e-07 | C128: ='DF raw data'!H133 -> -5.5662878e-07 | D128: ='DF raw data'!I133 -> 4.3353543e-06 | F128: -8.64651512e-07 | G128: -5.587960198e-07 | H128: 4.342221501e-06 | J128: -2.878798527e-05 | K128: -0.0005956941443 | L128: 1.257848469e-05 | M128: 0.001200523906 | N128: 4.950844806e-08
A129: 61.45045 | B129: ='DF raw data'!G134 -> 4.421935e-06 | C129: ='DF raw data'!H134 -> -2.1656269e-06 | D129: ='DF raw data'!I134 -> -1.2903942e-06 | F129: 4.428939345e-06 | G129: -2.17405879e-06 | H129: -1.292438184e-06 | J129: -2.657285126e-05 | K129: -0.0006089845558 | L129: 1.149112918e-05 | M129: 0.001206271194 | N129: 4.992765502e-08
A130: 61.9506 | B130: ='DF raw data'!G135 -> 4.9640739e-06 | C130: ='DF raw data'!H135 -> -1.9542783e-06 | D130: ='DF raw data'!I135 -> -2.0688051e-06 | F130: 4.971936993e-06 | G130: -1.961887302e-06 | H130: -2.072082087e-06 | J130: -2.408613697e-05 | K130: -0.0006210312372 | L130: 1.050989125e-05 | M130: 0.001211527717 | N130: 5.027305852e-08
A131: 62.45075 | B131: ='DF raw data'!G136 -> -4.4723754e-07 | C131: ='DF raw data'!H136 -> -9.1530746e-06 | D131: ='DF raw data'!I136 -> -6.7538235e-06 | F131: -4.479459643e-07 | G131: -9.188712189e-06 | H131: -6.764521556e-06 | J131: -2.431017714e-05 | K131: -0.0006331899723 | L131: 5.914156846e-06 | M131: 0.001214485682 | N131: 5.058613339e-08
A132: 62.9509 | B132: ='DF raw data'!G137 -> -5.1527377e-06 | C132: ='DF raw data'!H137 -> -3.8693588e-06 | D132: ='DF raw data'!I137 -> -3.5918376e-06 | F132: -5.160899637e-06 | G132: -3.884424188e-06 | H132: -3.597527071e-06 | J132: -2.68914011e-05 | K132: -0.0006466397066 | L132: 3.971362089e-06 | M132: 0.001216471959 | N132: 5.095570382e-08
A133: 63.45105 | B133: ='DF raw data'!G138 -> -4.7426283e-06 | C133: ='DF raw data'!H138 -> 1.2993301e-05 | D133: ='DF raw data'!I138 -> 4.148937e-06 | F133: -4.750140623e-06 | G133: 1.304389055e-05 | H133: 4.155508916e-06 | J133: -2.926718393e-05 | K133: -0.0006612776886 | L133: 1.049526395e-05 | M133: 0.001221721165 | N133: 5.143920813e-08
A134: 63.9512 | B134: ='DF raw data'!G139 -> -4.8365464e-06 | C134: ='DF raw data'!H139 -> 3.0795284e-06 | D134: ='DF raw data'!I139 -> -1.6513835e-06 | F134: -4.844207489e-06 | G134: 3.091518575e-06 | H134: -1.653999291e-06 | J134: -3.16900143e-05 | K134: -0.0006771274493 | L134: 1.204148696e-05 | M134: 0.001227743715 | N134: 5.201400773e-08
A135: 64.45135 | B135: ='DF raw data'!G140 -> -5.4268812e-06 | C135: ='DF raw data'!H140 -> -1.0274932e-06 | D135: ='DF raw data'!I140 -> -3.8511967e-06 | F135: -5.43547738e-06 | G135: =(1-$G$1*($B$2-$G$2))*C135*$M$2/$M$1 -> -1.031493755e-06 | H135: -3.857296996e-06 | J135: -3.440856832e-05 | K135: -0.0006943368947 | L135: 1.152558536e-05 | M135: 0.001233508236 | N135: 5.267259959e-08
A136: =A135+$B$1 -> 64.9515 | B136: ='DF raw data'!G141 -> -4.1158555e-06 | C136: ='DF raw data'!H141 -> 8.258101e-07 | D136: ='DF raw data'!I141 -> 4.7977705e-06 | F136: -4.122375015e-06 | G136: 8.290254e-07 | H136: 4.805370168e-06 | J136: =F136*$B$1+J135 -> -3.647037418e-05 | K136: =J136*$B$1+K135 -> -0.0007125775524 | L136: =G136*$B$1+L135 -> 1.194022241e-05 | M136: =L136*$B$1+M135 -> 0.001239480139 | N136: =(J136^2+L136^2)*$B$1+N135 -> 5.340914905e-08
A137: 65.45165 | B137: ='DF raw data'!G142 -> -3.1844311e-06 | C137: ='DF raw data'!H142 -> 3.2108208e-06 | D137: ='DF raw data'!I142 -> 5.8138507e-06 | F137: -3.189475239e-06 | G137: 3.223322163e-06 | H137: 5.82305984e-06 | J137: -3.806559022e-05 | K137: -0.0007316160573 | L137: 1.355236699e-05 | M137: 0.001246258355 | N137: 5.422572185e-08
A138: 65.9518 | B138: ='DF raw data'!G143 -> -3.7193595e-06 | C138: ='DF raw data'!H143 -> -1.8192502e-06 | D138: ='DF raw data'!I143 -> -3.1457182e-07 | F138: -3.725250965e-06 | G138: -1.826333469e-06 | H138: -3.150701018e-07 | J138: -3.992877449e-05 | K138: -0.0007515864339 | L138: 1.263892631e-05 | M138: 0.001252579714 | N138: 5.51030097e-08
A139: 66.45195 | B139: ='DF raw data'!G144 -> -1.6198891e-06 | C139: ='DF raw data'!H144 -> -4.1348785e-06 | D139: ='DF raw data'!I144 -> -4.4095358e-08 | F139: -1.622455004e-06 | G139: -4.150977691e-06 | H139: -4.416520505e-08 | J139: -4.074024536e-05 | K139: -0.0007719626676 | L139: 1.056281482e-05 | M139: 0.001257862706 | N139: 5.598894573e-08
A140: 66.9521 | B140: ='DF raw data'!G145 -> 3.0447636e-06 | C140: ='DF raw data'!H145 -> 3.3728013e-06 | D140: ='DF raw data'!I145 -> 4.8194181e-07 | F140: 3.049586506e-06 | G140: 3.385933336e-06 | H140: 4.827052058e-07 | J140: -3.921499467e-05 | K140: -0.0007915760472 | L140: 1.225628938e-05 | M140: 0.001263992689 | N140: 5.683321515e-08
A141: 67.45225 | B141: ='DF raw data'!G146 -> 2.2211398e-06 | C141: ='DF raw data'!H146 -> -4.6840651e-06 | D141: ='DF raw data'!I146 -> 1.6391101e-06 | F141: 2.224658085e-06 | G141: -4.702302555e-06 | H141: 1.64170645e-06 | J141: -3.810233193e-05 | K141: -0.0008106329285 | L141: 9.904432753e-06 | M141: 0.001268946391 | N141: 5.760839038e-08
A142: 67.9524 | B142: ='DF raw data'!G147 -> -8.1956284e-07 | C142: ='DF raw data'!H147 -> -2.8545114e-06 | D142: ='DF raw data'!I147 -> -1.6189764e-06 | F142: -8.208610275e-07 | G142: -2.865625469e-06 | H142: -1.621540859e-06 | J142: -3.851288557e-05 | K142: -0.0008298951482 | L142: 8.471190175e-06 | M142: 0.001273183257 | N142: 5.838612534e-08
A143: 68.45255 | B143: ='DF raw data'!G148 -> 6.0340346e-07 | C143: ='DF raw data'!H148 -> 1.1795124e-05 | D143: ='DF raw data'!I148 -> -7.8488983e-06 | F143: 6.043592511e-07 | G143: 1.184104843e-05 | H143: -7.861330955e-06 | J143: -3.821061529e-05 | K143: -0.0008490061875 | L143: 1.439349055e-05 | M143: 0.001280382161 | N143: 5.921998726e-08
A144: 68.9527 | B144: ='DF raw data'!G149 -> 4.5340794e-06 | C144: ='DF raw data'!H149 -> 1.4015484e-06 | D144: ='DF raw data'!I149 -> -1.7199958e-06 | F144: 4.541261382e-06 | G144: 1.407005343e-06 | H144: -1.722720273e-06 | J144: -3.593930341e-05 | K144: -0.0008669812301 | L144: 1.509720427e-05 | M144: 0.001287933028 | N144: 5.997999475e-08
A145: 69.45285 | B145: ='DF raw data'!G150 -> 5.9432214e-06 | C145: ='DF raw data'!H150 -> 4.7002682e-06 | D145: ='DF raw data'!I150 -> 2.6985188e-06 | F145: 5.952635463e-06 | G145: 4.718568742e-06 | H145: 2.702793254e-06 | J145: -3.296209279e-05 | K145: -0.0008834672208 | L145: 1.745719643e-05 | M145: 0.001296664244 | N145: 6.067583007e-08
A146: 69.953 | B146: ='DF raw data'!G151 -> 3.3918632e-06 | C146: ='DF raw data'!H151 -> -6.0657035e-06 | D146: ='DF raw data'!I151 -> 5.3752633e-06 | F146: 3.397235911e-06 | G146: -6.089320378e-06 | H146: 5.383777717e-06 | J146: -3.126296525e-05 | K146: -0.0008991033928 | L146: 1.441162284e-05 | M146: 0.001303872218 | N146: 6.126854177e-08
A147: 70.45315 | B147: ='DF raw data'!G152 -> 4.5643102e-08 | C147: ='DF raw data'!H152 -> -6.6980147e-06 | D147: ='DF raw data'!I152 -> 4.4451049e-06 | F147: 4.571540067e-08 | G147: -6.724093488e-06 | H147: 4.452145946e-06 | J147: -3.124010069e-05 | K147: -0.0009147281292 | L147: 1.104856748e-05 | M147: 0.001309398159 | N147: 6.181771384e-08
A148: 70.9533 | B148: ='DF raw data'!G153 -> -4.8298016e-06 | C148: ='DF raw data'!H153 -> 7.3107685e-07 | D148: ='DF raw data'!I153 -> -5.9555637e-06 | F148: -4.837452006e-06 | G148: 7.339233051e-07 | H148: -5.964997313e-06 | J148: -3.365955231e-05 | K148: -0.0009315629543 | L148: 1.141563922e-05 | M148: 0.001315107691 | N148: 6.244954447e-08
A149: 71.45345 | B149: ='DF raw data'!G154 -> -8.3008408e-06 | C149: ='DF raw data'!H154 -> 1.6866823e-06 | D149: ='DF raw data'!I154 -> -9.7186728e-07 | F149: -8.313989332e-06 | G149: 1.693249415e-06 | H149: -9.734067178e-07 | J149: -3.781779407e-05 | K149: -0.000950477524 | L149: 1.226251792e-05 | M149: 0.001321240789 | N149: 6.3240059e-08
A150: 71.9536 | B150: ='DF raw data'!G155 -> -6.4108963e-06 | C150: ='DF raw data'!H155 -> -3.037843e-07 | D150: ='DF raw data'!I155 -> 5.5751921e-06 | F150: -6.42105116e-06 | G150: -3.049670873e-07 | H150: 5.584023204e-06 | J150: -4.102928281e-05 | K150: -0.0009709983198 | L150: 1.210998863e-05 | M150: 0.0013272976 | N150: 6.415536044e-08
A151: 72.45375 | B151: ='DF raw data'!G156 -> -4.0205332e-06 | C151: ='DF raw data'!H156 -> -9.3849712e-06 | D151: ='DF raw data'!I156 -> 1.0057817e-06 | F151: =(1-$G$1*($B$2-$G$2))*B151 -> -4.026901725e-06 | G151: -9.421511681e-06 | H151: 1.007374858e-06 | J151: -4.304333771e-05 | K151: -0.0009925264451 | L151: 7.397819563e-06 | M151: 0.001330997619 | N151: 6.510937489e-08
A152: 72.9539 | B152: ='DF raw data'!G157 -> -2.2961312e-06 | C152: ='DF raw data'!H157 -> -7.8023913e-06 | D152: ='DF raw data'!I157 -> -7.2291473e-06 | F152: -2.299768272e-06 | G152: -7.83276999e-06 | H152: -7.240598269e-06 | J152: -4.419356681e-05 | K152: -0.001014629858 | L152: 3.480259652e-06 | M152: 0.001332738271 | N152: 6.609226145e-08
A153: 73.45405 | B153: ='DF raw data'!G158 -> -6.1878279e-07 | C153: ='DF raw data'!H158 -> -3.1524544e-06 | D153: ='DF raw data'!I158 -> -5.0172271e-06 | F153: -6.197629419e-07 | G153: -3.164728513e-06 | H153: -5.025174388e-06 | J153: -4.450354124e-05 | K153: -0.001036888304 | L153: 1.897420686e-06 | M153: 0.001333687266 | N153: 6.708464176e-08
A154: 73.9542 | B154: ='DF raw data'!G159 -> -2.8484128e-06 | C154: ='DF raw data'!H159 -> -1.0208884e-05 | D154: ='DF raw data'!I159 -> 5.764869e-06 | F154: -2.852924686e-06 | G154: -1.024863239e-05 | H154: 5.774000552e-06 | J154: -4.593043153e-05 | K154: -0.001059860409 | L154: -3.228432805e-06 | M154: 0.001332072565 | N154: 6.814497343e-08
A155: 74.45435 | B155: ='DF raw data'!G160 -> -8.2141405e-06 | C155: ='DF raw data'!H160 -> -3.7878344e-06 | D155: ='DF raw data'!I160 -> 4.9338746e-06 | F155: -8.227151699e-06 | G155: -3.802582372e-06 | H155: 4.941689857e-06 | J155: -5.004524145e-05 | K155: -0.001084890537 | L155: -5.130294378e-06 | M155: 0.001329506649 | N155: 6.941077611e-08
A156: 74.9545 | B156: ='DF raw data'!G161 -> -7.8141084e-06 | C156: ='DF raw data'!H161 -> 7.0832775e-06 | D156: ='DF raw data'!I161 -> -1.6656428e-07 | F156: -7.826485948e-06 | G156: 7.110856313e-06 | H156: -1.668281178e-07 | J156: -5.395965839e-05 | K156: -0.00111187846 | L156: -1.573799594e-06 | M156: 0.001328719513 | N156: 7.086827402e-08
A157: 75.45465 | B157: ='DF raw data'!G162 -> -1.0810899e-06 | C157: ='DF raw data'!H162 -> 6.417476e-06 | D157: ='DF raw data'!I162 -> 3.2312207e-06 | F157: -1.082802346e-06 | G157: 6.442462508e-06 | H157: 3.236338954e-06 | J157: -5.450122199e-05 | K157: -0.001139137246 | L157: 1.64839803e-06 | M157: 0.001329543959 | N157: 7.235527019e-08
A158: 75.9548 | B158: ='DF raw data'!G163 -> 3.9323941e-06 | C158: ='DF raw data'!H163 -> 3.8129776e-06 | D158: ='DF raw data'!I163 -> 1.0685279e-05 | F158: 3.938623012e-06 | G158: 3.827823467e-06 | H158: 1.070220448e-05 | J158: -5.253131969e-05 | K158: -0.001165410785 | L158: 3.562883937e-06 | M158: 0.001331325935 | N158: 7.374180287e-08
A159: 76.45495 | B159: ='DF raw data'!G164 -> 7.5335274e-06 | C159: ='DF raw data'!H164 -> -3.0574543e-06 | D159: ='DF raw data'!I164 -> 1.1439003e-05 | F159: 7.545460507e-06 | G159: -3.069358529e-06 | H159: 1.145712238e-05 | J159: -4.875745762e-05 | K159: -0.001189796828 | L159: 2.027744268e-06 | M159: 0.001332340112 | N159: 7.493286079e-08
A160: 76.9551 | B160: ='DF raw data'!G165 -> 7.8748863e-06 | C160: ='DF raw data'!H165 -> 1.9615422e-06 | D160: ='DF raw data'!I165 -> 4.6255996e-06 | F160: 7.88736012e-06 | G160: 1.969179484e-06 | H160: 4.63292655e-06 | J160: -4.481259445e-05 | K160: -0.001212209847 | L160: 3.012629388e-06 | M160: 0.001333846878 | N160: 7.594178566e-08
A161: 77.45525 | B161: ='DF raw data'!G166 -> 2.9121957e-06 | C161: ='DF raw data'!H166 -> 4.0350005e-06 | D161: ='DF raw data'!I166 -> -4.9360403e-07 | F161: 2.916808618e-06 | G161: 4.050710815e-06 | H161: -4.943858988e-07 | J161: -4.335375262e-05 | K161: -0.001233893226 | L161: 5.038592402e-06 | M161: 0.00133636693 | N161: 7.689453904e-08
A162: 77.9554 | B162: ='DF raw data'!G167 -> 1.1154999e-06 | C162: ='DF raw data'!H167 -> 1.6454506e-07 | D162: ='DF raw data'!I167 -> -6.7300602e-06 | F162: 1.117266852e-06 | G162: 1.651857179e-07 | H162: -6.740720615e-06 | J162: -4.279495161e-05 | K162: -0.001255297121 | L162: 5.121210039e-06 | M162: 0.001338928304 | N162: 7.782363502e-08
A163: 78.45555 | B163: ='DF raw data'!G168 -> 6.1396649e-06 | C163: ='DF raw data'!H168 -> -8.268853e-06 | D163: ='DF raw data'!I168 -> -4.7815588e-06 | F163: 6.149390129e-06 | G163: -8.301047863e-06 | H163: -4.789132789e-06 | J163: -3.971933413e-05 | K163: -0.001275162746 | L163: 9.694409499e-07 | M163: 0.001339413169 | N163: 7.861315446e-08
A164: 78.9557 | B164: ='DF raw data'!G169 -> 7.4966165e-06 | C164: ='DF raw data'!H169 -> -2.7029409e-07 | D164: ='DF raw data'!I169 -> -1.3138227e-06 | F164: 7.508491141e-06 | G164: -2.713464828e-07 | H164: -1.315903795e-06 | J164: -3.596396229e-05 | K164: -0.001293150122 | L164: 8.337270066e-07 | M164: 0.001339830158 | N164: 7.926039942e-08
A165: 79.45585 | B165: ='DF raw data'!G170 -> -8.1956284e-07 | C165: ='DF raw data'!H170 -> 8.4160811e-06 | D165: ='DF raw data'!I170 -> -4.5371012e-06 | F165: -8.208610275e-07 | G165: 8.448849197e-06 | H165: -4.544287968e-06 | J165: -3.637451593e-05 | K165: -0.001311342836 | L165: 5.059418933e-06 | M165: 0.001342360626 | N165: 7.993495329e-08
A166: 79.956 | B166: ='DF raw data'!G171 -> -8.1061362e-06 | C166: ='DF raw data'!H171 -> 2.3180596e-06 | D166: ='DF raw data'!I171 -> -3.0398398e-06 | F166: -8.11897632e-06 | G166: 2.327084989e-06 | H166: -3.044654906e-06 | J166: -4.043522194e-05 | K166: -0.001331566512 | L166: 6.22331049e-06 | M166: 0.001345473215 | N166: 8.077207274e-08
A167: 80.45615 | B167: ='DF raw data'!G172 -> -8.5408747e-06 | C167: ='DF raw data'!H172 -> 4.4678382e-06 | D167: ='DF raw data'!I172 -> -7.6991446e-06 | F167: -8.554403446e-06 | G167: 4.485233773e-06 | H167: -7.711340045e-06 | J167: -4.471370682e-05 | K167: -0.001353930073 | L167: 8.466600161e-06 | M167: 0.001349707785 | N167: 8.180788283e-08
A168: 80.9563 | B168: ='DF raw data'!G173 -> -3.3539754e-06 | C168: ='DF raw data'!H173 -> 4.082634e-06 | D168: ='DF raw data'!I173 -> -3.9672627e-06 | F168: -3.359288097e-06 | G168: 4.098529777e-06 | H168: -3.973546844e-06 | J168: -4.639385476e-05 | K168: -0.001377133959 | L168: 1.051647983e-05 | M168: 0.001354967603 | N168: 8.293971534e-08
A169: 81.45645 | B169: ='DF raw data'!G174 -> 2.7060096e-06 | C169: ='DF raw data'!H174 -> 1.0024145e-05 | D169: ='DF raw data'!I174 -> -1.0441466e-06 | F169: 2.710295919e-06 | G169: 1.006317411e-05 | H169: -1.045800528e-06 | J169: -4.503830026e-05 | K169: -0.001399659865 | L169: 1.554957636e-05 | M169: 0.001362744723 | N169: 8.407517478e-08
A170: 81.9566 | B170: ='DF raw data'!G175 -> 5.1294128e-06 | C170: ='DF raw data'!H175 -> 1.4035633e-05 | D170: ='DF raw data'!I175 -> -2.3669011e-06 | F170: 5.13753779e-06 | G170: 1.409028088e-05 | H170: -2.370650271e-06 | J170: -4.246876073e-05 | K170: -0.001420900616 | L170: 2.259683034e-05 | M170: 0.001374046528 | N170: 8.52326281e-08
A171: 82.45675 | B171: ='DF raw data'!G176 -> 4.0843888e-06 | C171: ='DF raw data'!H176 -> 8.6330317e-07 | D171: ='DF raw data'!I176 -> 1.887293e-06 | F171: 4.090858472e-06 | G171: 8.666644497e-07 | H171: 1.890282472e-06 | J171: -4.042271787e-05 | K171: -0.001441118038 | L171: 2.303029257e-05 | M171: 0.001385565129 | N171: 8.631514801e-08
A172: 82.9569 | B172: ='DF raw data'!G177 -> -2.3388484e-06 | C172: ='DF raw data'!H177 -> 7.9228012e-06 | D172: ='DF raw data'!I177 -> 3.8965632e-06 | F172: -2.342553136e-06 | G172: 7.953648707e-06 | H172: 3.902735356e-06 | J172: -4.159434582e-05 | K172: -0.00146192145 | L172: 2.700830997e-05 | M172: 0.001399073335 | N172: 8.754528614e-08
A173: 83.45705 | B173: ='DF raw data'!G178 -> -7.7705836e-06 | C173: ='DF raw data'!H178 -> -2.9309654e-06 | D173: ='DF raw data'!I178 -> 2.5278102e-06 | F173: -7.782892204e-06 | G173: -2.942377144e-06 | H173: 2.531814251e-06 | J173: -4.548695936e-05 | K173: -0.001484671753 | L173: 2.553668004e-05 | M173: 0.001411845505 | N173: 8.890628707e-08
A174: 83.9572 | B174: ='DF raw data'!G179 -> -5.5046394e-06 | C174: ='DF raw data'!H179 -> -8.4316343e-06 | D174: ='DF raw data'!I179 -> 8.7015781e-07 | F174: -5.513358749e-06 | G174: -8.464462954e-06 | H174: 8.7153614e-07 | J174: -4.824446573e-05 | K174: -0.001508801223 | L174: 2.130317889e-05 | M174: 0.00142250029 | N174: 9.029738123e-08
A175: 84.45735 | B175: ='DF raw data'!G180 -> 4.8652248e-07 | C175: ='DF raw data'!H180 -> 1.1710131e-05 | D175: ='DF raw data'!I180 -> 1.1198687e-06 | F175: 4.872931316e-07 | G175: 1.175572451e-05 | H175: 1.121642572e-06 | J175: -4.800074607e-05 | K175: -0.001532808796 | L175: 2.718280451e-05 | M175: 0.00143609577 | N175: 9.181932591e-08
A176: 84.9575 | B176: ='DF raw data'!G181 -> 3.5399071e-06 | C176: ='DF raw data'!H181 -> -1.7693484e-06 | D176: ='DF raw data'!I181 -> 5.7943964e-07 | F176: 3.545514313e-06 | G176: -1.776237376e-06 | H176: 5.803574724e-07 | J176: -4.622745709e-05 | K176: -0.001555929458 | L176: 2.629441939e-05 | M176: 0.001449246924 | N176: 9.323393731e-08
A177: 85.45765 | B177: ='DF raw data'!G182 -> -1.8130856e-07 | C177: ='DF raw data'!H182 -> -1.1518474e-06 | D177: ='DF raw data'!I182 -> -3.8279718e-06 | F177: -1.815957528e-07 | G177: -1.15633213e-06 | H177: -3.834035307e-06 | J177: -4.631828221e-05 | K177: -0.001579095547 | L177: 2.571607987e-05 | M177: 0.001462108821 | N177: 9.463770833e-08
A178: 85.9578 | B178: ='DF raw data'!G183 -> -4.704917e-06 | C178: ='DF raw data'!H183 -> 1.5767384e-05 | D178: ='DF raw data'!I183 -> 1.0256159e-06 | F178: -4.712369589e-06 | G178: 1.582877447e-05 | H178: 1.027240476e-06 | J178: -4.867517386e-05 | K178: -0.001603440435 | L178: 3.363284142e-05 | M178: 0.001478930287 | N178: 9.638845368e-08
A179: 86.45795 | B179: ='DF raw data'!G184 -> -3.6278498e-06 | C179: ='DF raw data'!H184 -> 8.2523657e-06 | D179: ='DF raw data'!I184 -> 1.1137116e-05 | F179: -3.633596314e-06 | G179: 8.28449637e-06 | H179: 1.115475719e-05 | J179: -5.049251705e-05 | K179: -0.001628694268 | L179: 3.777633228e-05 | M179: 0.001497824119 | N179: 9.837732294e-08
A180: 86.9581 | B180: ='DF raw data'!G185 -> -7.9714376e-08 | C180: ='DF raw data'!H185 -> 3.1980119e-06 | D180: ='DF raw data'!I185 -> 7.0118954e-06 | F180: -7.984064357e-08 | G180: 3.210463392e-06 | H180: 7.023002242e-06 | J180: -5.053244935e-05 | K180: -0.001653968072 | L180: 3.938204555e-05 | M180: 0.00151752105 | N180: 1.004301756e-07
A181: 87.45825 | B181: ='DF raw data'!G186 -> 7.7067773e-07 | C181: ='DF raw data'!H186 -> 2.0462685e-06 | D181: ='DF raw data'!I186 -> 5.4340967e-06 | F181: 7.718984835e-07 | G181: 2.054235667e-06 | H181: 5.442704309e-06 | J181: -5.014638432e-05 | K181: -0.001679048787 | L181: 4.040947152e-05 | M181: 0.001537731847 | N181: 1.025045904e-07
A182: 87.9584 | B182: ='DF raw data'!G187 -> 2.6111331e-07 | C182: ='DF raw data'!H187 -> 1.2434372e-06 | D182: ='DF raw data'!I187 -> 7.0992141e-06 | F182: 2.615269135e-07 | G182: 1.248278535e-06 | H182: 7.110459255e-06 | J182: -5.001558164e-05 | K182: -0.00170406408 | L182: 4.103379802e-05 | M182: 0.001558254901 | N182: 1.045978836e-07
A183: 88.45855 | B183: ='DF raw data'!G188 -> -7.1196598e-07 | C183: ='DF raw data'!H188 -> 3.6421909e-06 | D183: ='DF raw data'!I188 -> -3.7314328e-07 | F183: -7.130937341e-07 | G183: 3.656371807e-06 | H183: -3.73734339e-07 | J183: -5.037223547e-05 | K183: -0.001729257753 | L183: 4.286253238e-05 | M183: 0.001579692596 | N183: 1.067858192e-07
A184: 88.9587 | B184: ='DF raw data'!G189 -> -1.6186885e-06 | C184: ='DF raw data'!H189 -> 3.658469e-06 | D184: ='DF raw data'!I189 -> -5.2355188e-07 | F184: -1.621252503e-06 | G184: 3.672713286e-06 | H184: -5.243811862e-07 | J184: -5.118310491e-05 | K184: -0.001754856983 | L184: 4.469943993e-05 | M184: 0.001602049021 | N184: 1.09095387e-07
A185: 89.45885 | B185: ='DF raw data'!G190 -> 6.0640843e-07 | C185: ='DF raw data'!H190 -> -3.6302598e-07 | D185: ='DF raw data'!I190 -> 6.5879472e-06 | F185: 6.07368981e-07 | G185: -3.644394253e-07 | H185: 6.598382508e-06 | J185: -5.087932931e-05 | K185: -0.00178030428 | L185: 4.451716556e-05 | M185: 0.001624314282 | N185: 1.113813146e-07
A186: 89.959 | B186: ='DF raw data'!G191 -> 3.408416e-06 | C186: ='DF raw data'!H191 -> 3.5230403e-06 | D186: ='DF raw data'!I191 -> 4.0242126e-06 | F186: 3.413814931e-06 | G186: 3.536757293e-06 | H186: 4.030586953e-06 | J186: -4.917190977e-05 | K186: -0.00180489761 | L186: 4.628607472e-05 | M186: 0.001647464262 | N186: 1.136621374e-07
A187: 90.45915 | B187: ='DF raw data'!G192 -> 5.7830141e-07 | C187: ='DF raw data'!H192 -> 4.5368201e-06 | D187: ='DF raw data'!I192 -> 9.5933194e-07 | F187: 5.792174394e-07 | G187: 4.554484255e-06 | H187: 9.608515218e-07 | J187: -4.888221417e-05 | K187: -0.00182934605 | L187: 4.856400002e-05 | M187: 0.001671753547 | N187: 1.160368161e-07
A188: 90.9593 | B188: ='DF raw data'!G193 -> -5.0000808e-06 | C188: ='DF raw data'!H193 -> -7.4976438e-06 | D188: ='DF raw data'!I193 -> 8.0307045e-06 | F188: -5.008000928e-06 | G188: -7.526835952e-06 | H188: 8.043425136e-06 | J188: -5.138696584e-05 | K188: -0.001855047241 | L188: 4.479945301e-05 | M188: 0.001694159993 | N188: 1.183613188e-07
A189: 91.45945 | B189: ='DF raw data'!G194 -> -3.7622804e-06 | C189: ='DF raw data'!H194 -> -5.1788129e-06 | D189: ='DF raw data'!I194 -> 1.5324029e-05 | F189: -3.768239852e-06 | G189: -5.198976661e-06 | H189: 1.534830226e-05 | J189: -5.3271651e-05 | K189: -0.001881691057 | L189: 4.219918484e-05 | M189: 0.001715265915 | N189: 1.206713316e-07
A190: 91.9596 | B190: ='DF raw data'!G195 -> 3.6465071e-06 | C190: ='DF raw data'!H195 -> -2.164026e-06 | D190: ='DF raw data'!I195 -> 6.9022103e-06 | F190: 3.652283167e-06 | G190: -2.172451657e-06 | H190: 6.913143401e-06 | J190: -5.144496157e-05 | K190: -0.001907421255 | L190: 4.111263314e-05 | M190: 0.001735828399 | N190: 1.228403985e-07
A191: 92.45975 | B191: ='DF raw data'!G196 -> 7.1666082e-06 | C191: ='DF raw data'!H196 -> -4.4492331e-06 | D191: ='DF raw data'!I196 -> -9.4285076e-07 | F191: 7.177960107e-06 | G191: -4.466556234e-06 | H191: -9.443442356e-07 | J191: -4.785490482e-05 | K191: -0.001931355885 | L191: 3.887868504e-05 | M191: 0.001755273573 | N191: 1.247417908e-07
A192: 92.9599 | B192: ='DF raw data'!G197 -> 6.3268972e-06 | C192: ='DF raw data'!H197 -> -7.2445323e-06 | D192: ='DF raw data'!I197 -> 7.164967e-06 | F192: 6.336919005e-06 | G192: -7.27273896e-06 | H192: 7.176316308e-06 | J192: -4.468549478e-05 | K192: -0.001953705335 | L192: 3.524122465e-05 | M192: 0.001772899472 | N192: 1.263616452e-07
A193: 93.46005 | B193: ='DF raw data'!G198 -> 5.9019085e-06 | C193: ='DF raw data'!H198 -> -1.3256361e-05 | D193: ='DF raw data'!I198 -> 1.158023e-05 | F193: 5.911257123e-06 | G193: -1.330797478e-05 | H193: 1.159857308e-05 | J193: -4.172897953e-05 | K193: -0.001974576085 | L193: 2.858524107e-05 | M193: 0.00178719638 | N193: 1.276412409e-07
A194: 93.9602 | B194: ='DF raw data'!G199 -> 5.3046979e-06 | C194: ='DF raw data'!H199 -> -9.0559397e-06 | D194: ='DF raw data'!I199 -> 1.4972892e-05 | F194: 5.313100541e-06 | G194: -9.091199093e-06 | H194: 1.499660906e-05 | J194: -3.90716323e-05 | K194: -0.001994117761 | L194: 2.403827784e-05 | M194: 0.001799219125 | N194: 1.286937722e-07
A195: 94.46035 | B195: ='DF raw data'!G200 -> 2.0673479e-06 | C195: ='DF raw data'!H200 -> 3.0531098e-06 | D195: ='DF raw data'!I200 -> 1.6177855e-05 | F195: 2.070622579e-06 | G195: 3.064997114e-06 | H195: 1.620348072e-05 | J195: -3.803601042e-05 | K195: -0.002013141472 | L195: 2.557123615e-05 | M195: 0.001812008578 | N195: 1.297444004e-07
A196: 94.9605 | B196: ='DF raw data'!G201 -> -4.7432322e-06 | C196: ='DF raw data'!H201 -> 1.1612596e-05 | D196: ='DF raw data'!I201 -> 1.7480603e-06 | F196: -4.75074548e-06 | G196: 1.165780976e-05 | H196: 1.750829228e-06 | J196: -4.041209577e-05 | K196: -0.002033353582 | L196: 3.14018897e-05 | M196: 0.001827714233 | N196: 1.310544013e-07
A197: 95.46065 | B197: ='DF raw data'!G202 -> -8.8407751e-06 | C197: ='DF raw data'!H202 -> 1.2450652e-05 | D197: ='DF raw data'!I202 -> -8.9086416e-06 | F197: -8.854778888e-06 | G197: 1.249912874e-05 | H197: -8.922752888e-06 | J197: -4.484081343e-05 | K197: -0.002055780715 | L197: 3.765332894e-05 | M197: 0.001846546546 | N197: 1.327691515e-07
A198: 95.9608 | B198: ='DF raw data'!G203 -> -3.6425981e-06 | C198: ='DF raw data'!H203 -> 6.8736636e-06 | D198: ='DF raw data'!I203 -> -2.8461538e-06 | F198: -3.648367975e-06 | G198: 6.900426279e-06 | H198: -2.850662108e-06 | J198: -4.666554467e-05 | K198: -0.002079120487 | L198: 4.110457714e-05 | M198: 0.001867105 | N198: 1.347033612e-07
A199: 96.46095 | B199: ='DF raw data'!G204 -> 4.1659523e-06 | C199: ='DF raw data'!H204 -> 2.2545482e-06 | D199: ='DF raw data'!I204 -> 1.0661576e-06 | F199: 4.172551168e-06 | G199: =(1-$G$1*($B$2-$G$2))*C199*$M$2/$M$1 -> 2.263326306e-06 | H199: 1.067846394e-06 | J199: -4.45786432e-05 | K199: -0.002101416495 | L199: 4.223657979e-05 | M199: 0.001888229626 | N199: 1.365895189e-07
A200: =A199+$B$1 -> 96.9611 | B200: ='DF raw data'!G205 -> 4.5512288e-06 | C200: ='DF raw data'!H205 -> 5.2123619e-06 | D200: ='DF raw data'!I205 -> -3.2155979e-06 | F200: 4.558437946e-06 | G200: 5.232656284e-06 | H200: -3.220691407e-06 | J200: =F200*$B$1+J199 -> -4.229874046e-05 | K200: =J200*$B$1+K199 -> -0.00212257221 | L200: =G200*$B$1+L199 -> 4.485369283e-05 | M200: =L200*$B$1+M199 -> 0.0019106632 | N200: =(J200^2+L200^2)*$B$1+N199 -> 1.384906077e-07
A201: 97.46125 | B201: ='DF raw data'!G206 -> -7.2931914e-07 | C201: ='DF raw data'!H206 -> 1.5287447e-05 | D201: ='DF raw data'!I206 -> -1.5290601e-06 | F201: -7.304743815e-07 | G201: 1.534696883e-05 | H201: -1.531482131e-06 | J201: -4.266408723e-05 | K201: -0.002143910653 | L201: 5.252947929e-05 | M201: 0.001936935819 | N201: 1.407810799e-07
... 1002 more rows

Sheet 10 y=0.1
A1: dz | B1: ='DF raw data'!K7 -> 0.50014 | C1: mm | F1: T_coeff | G1: -0.0008 | H1: /degC | L1: Hallref | M1: ='PI vs gap'!B44 -> 0.505235 | N1: T | P1: IBy total | Q1: =L1203*1000 -> -12.5327747 | R1: muTm | X1: DF ref | Y1: 20
A2: Tref | B2: ='DF raw data'!K8 -> 21.97 | C2: degC | F2: Tcorr | G2: 20 | H2: degC | L2: NMRref | M2: ='PI vs gap'!B45 -> 0.5064 | N2: T | P2: JBy total | Q2: =M1203 -> -4.702454922 | R2: muTm^2
A3: Encoder | B3: ='DF raw data'!K9 -> 14640946 | P3: PI total | Q3: =N1203 -> 705.9343439 | R3: T^2mm^3
A5: z [mm] | B5: Bx | C5: By | D5: Bz | F5: Bx_corr | G5: By_corr | H5: Bz_corr | J5: Ix | K5: Jx | L5: Iy | M5: Jy | N5: PI
A6: ='[1]PI vs x'!B53 -> -0.068 | B6: ='DF raw data'!J11 -> 7.2670391e-06 | C6: ='DF raw data'!K11 -> 3.5059938e-06 | D6: ='DF raw data'!L11 -> 6.5774525e-06 | F6: =(1-$G$1*($B$2-$G$2))*B6 -> 7.278491954e-06 | G6: =(1-$G$1*($B$2-$G$2))*C6*$M$2/$M$1 -> 3.51961631e-06 | H6: =(1-$G$1*($B$2-$G$2))*D6 -> 6.587818565e-06 | J6: =F6*$B$1 -> 3.640264966e-06 | K6: =J6*$B$1 -> 1.82064212e-06 | L6: =G6*$B$1 -> 1.760300901e-06 | M6: =L6*$B$1 -> 8.803968927e-07 | N6: =(J6^2+L6)^2*$B$1 -> 1.549786777e-12
A7: =A6+$B$1 -> 0.43214 | B7: ='DF raw data'!J12 -> 7.10731e-06 | C7: ='DF raw data'!K12 -> 6.4740811e-06 | D7: ='DF raw data'!L12 -> -1.6458929e-06 | F7: =(1-$G$1*($B$2-$G$2))*B7 -> 7.118511121e-06 | G7: =(1-$G$1*($B$2-$G$2))*C7*$M$2/$M$1 -> 6.499236088e-06 | H7: -1.648486827e-06 | J7: =F7*$B$1+J6 -> 7.200517118e-06 | K7: =J7*$B$1+K6 -> 5.421908751e-06 | L7: =G7*$B$1+L6 -> 5.010828838e-06 | M7: =L7*$B$1+M6 -> 3.386512828e-06 | N7: =(J7^2+L7^2)*$B$1+N6 -> 4.00384868e-11
A8: =A7+$B$1 -> 0.93228 | B8: ='DF raw data'!J13 -> 7.1738559e-06 | C8: ='DF raw data'!K13 -> 2.8268494e-06 | D8: ='DF raw data'!L13 -> -1.2348797e-05 | F8: 7.185161897e-06 | G8: 2.8378331e-06 | H8: -1.23682587e-05 | J8: =F8*$B$1+J7 -> 1.079410399e-05 | K8: =J8*$B$1+K7 -> 1.082047192e-05 | L8: =G8*$B$1+L7 -> 6.430142685e-06 | M8: =L8*$B$1+M7 -> 6.60248439e-06 | N8: =(J8^2+L8^2)*$B$1+N7 -> 1.189902951e-10
A9: 1.43242 | B9: ='DF raw data'!J14 -> 7.0010447e-06 | C9: ='DF raw data'!K14 -> 7.479588e-06 | D9: ='DF raw data'!L14 -> -1.2249888e-05 | F9: 7.012078346e-06 | G9: 7.508649877e-06 | H9: -1.226919382e-05 | J9: 1.430112485e-05 | K9: 1.79730365e-05 | L9: 1.018551883e-05 | M9: 1.169666978e-05 | N9: 2.731669354e-10
A10: 1.93256 | B10: ='DF raw data'!J15 -> 7.3050196e-06 | C10: ='DF raw data'!K15 -> 1.3919737e-06 | D10: ='DF raw data'!L15 -> 1.3803816e-06 | F10: 7.316532311e-06 | G10: 1.397382202e-06 | H10: 1.382557081e-06 | J10: 1.796041532e-05 | K10: 2.695575862e-05 | L10: 1.088440557e-05 | M10: 1.714039638e-05 | N10: 4.937520836e-10
A11: 2.4327 | B11: ='DF raw data'!J16 -> 7.662662e-06 | C11: ='DF raw data'!K16 -> -7.9241781e-06 | D11: ='DF raw data'!L16 -> 3.9254751e-06 | F11: 7.674738355e-06 | G11: -7.954967428e-06 | H11: 3.931661649e-06 | J11: 2.179885896e-05 | K11: 3.785823995e-05 | L11: 6.90580816e-06 | M11: 2.059426727e-05 | N11: 7.55265506e-10
A12: 2.93284 | B12: ='DF raw data'!J17 -> 7.6913657e-06 | C12: ='DF raw data'!K17 -> -1.0376837e-05 | D12: ='DF raw data'!L17 -> -6.6008492e-06 | F12: 7.703487292e-06 | G12: -1.041715611e-05 | H12: -6.611252138e-06 | J12: 2.56516811e-05 | K12: 5.068767173e-05 | L12: 1.695771701e-06 | M12: 2.144239053e-05 | N12: 1.085800222e-09
A13: 3.43298 | B13: ='DF raw data'!J18 -> 7.61093e-06 | C13: ='DF raw data'!K18 -> -8.8059987e-06 | D13: ='DF raw data'!L18 -> -1.0855058e-05 | F13: 7.622924826e-06 | G13: -8.840214335e-06 | H13: -1.087216557e-05 | J13: 2.946421072e-05 | K13: 6.542390208e-05 | L13: -2.725573097e-06 | M13: 2.00792224e-05 | N13: 1.523707033e-09
A14: 3.93312 | B14: ='DF raw data'!J19 -> 7.5933076e-06 | C14: ='DF raw data'!K19 -> -8.0606742e-06 | D14: ='DF raw data'!L19 -> -9.6598797e-06 | F14: 7.605274653e-06 | G14: -8.091993883e-06 | H14: -9.67510367e-06 | J14: 3.326791279e-05 | K14: 8.206251598e-05 | L14: -6.772702917e-06 | M14: 1.669192277e-05 | N14: 2.100180163e-09
A15: 4.43326 | B15: ='DF raw data'!J20 -> 7.5377775e-06 | C15: ='DF raw data'!K20 -> -5.3919975e-06 | D15: ='DF raw data'!L20 -> -2.9078933e-06 | F15: 7.549657037e-06 | G15: -5.412948062e-06 | H15: -2.91247614e-06 | J15: 3.704379826e-05 | K15: 0.0001005896012 | L15: -9.479934761e-06 | M15: 1.19506282e-05 | N15: 2.831440935e-09
A16: 4.9334 | B16: ='DF raw data'!J21 -> 7.2649e-06 | C16: ='DF raw data'!K21 -> 2.8924956e-06 | D16: ='DF raw data'!L21 -> 2.4670021e-06 | F16: 7.276349482e-06 | G16: 2.903734368e-06 | H16: 2.470890095e-06 | J16: 4.068299169e-05 | K16: 0.0001209367927 | L16: -8.027661054e-06 | M16: 7.935673797e-06 | N16: 3.691456249e-09
A17: 5.43354 | B17: ='DF raw data'!J22 -> 7.3022184e-06 | C17: ='DF raw data'!K22 -> 1.8755136e-06 | D17: ='DF raw data'!L22 -> 2.9975067e-06 | F17: 7.313726696e-06 | G17: 1.882800893e-06 | H17: 3.002230771e-06 | J17: 4.434087896e-05 | K17: 0.0001431134399 | L17: -7.085997016e-06 | M17: 4.391683249e-06 | N17: 4.699900985e-09
A18: 5.93368 | B18: ='DF raw data'!J23 -> 7.6164088e-06 | C18: ='DF raw data'!K23 -> -5.9238382e-06 | D18: ='DF raw data'!L23 -> 7.5225194e-06 | F18: 7.62841226e-06 | G18: -5.946855224e-06 | H18: 7.534374891e-06 | J18: 4.815615306e-05 | K18: 0.0001671982583 | L18: -1.006025719e-05 | M18: -6.398537804e-07 | N18: 5.910351742e-09
A19: 6.43382 | B19: ='DF raw data'!J24 -> 7.5273656e-06 | C19: ='DF raw data'!K24 -> -4.0334421e-06 | D19: ='DF raw data'!L24 -> 3.7801233e-06 | F19: 7.539228728e-06 | G19: -4.049114006e-06 | H19: 3.786080774e-06 | J19: 5.192682292e-05 | K19: 0.0001931689395 | L19: -1.208538107e-05 | M19: -6.684236267e-06 | N19: 7.331975373e-09
A20: 6.93396 | B20: ='DF raw data'!J25 -> 7.2377388e-06 | C20: ='DF raw data'!K25 -> 3.6084657e-06 | D20: ='DF raw data'!L25 -> 2.2105828e-06 | F20: 7.249145476e-06 | G20: 3.622486364e-06 | H20: 2.214066678e-06 | J20: 5.555241054e-05 | K20: 0.0002209529221 | L20: -1.027363074e-05 | M20: -1.182248994e-05 | N20: 8.928231102e-09
A21: 7.4341 | B21: ='DF raw data'!J26 -> 7.1774648e-06 | C21: ='DF raw data'!K26 -> 5.883132e-06 | D21: ='DF raw data'!L26 -> 6.500582e-06 | F21: 7.188776485e-06 | G21: 5.905990861e-06 | H21: 6.510826917e-06 | J21: 5.914780521e-05 | K21: 0.0002505351054 | L21: -7.319808467e-06 | M21: -1.548341895e-05 | N21: 1.070474962e-08
A22: 7.93424 | B22: ='DF raw data'!J27 -> 4.648793e-06 | C22: ='DF raw data'!K27 -> -1.5804984e-07 | D22: ='DF raw data'!L27 -> 1.9674494e-06 | F22: 4.656119498e-06 | G22: -1.586639413e-07 | H22: 1.9705501e-06 | J22: 6.147651682e-05 | K22: 0.0002812819705 | L22: -7.399162651e-06 | M22: -1.918403616e-05 | N22: 1.262234126e-08
A23: 8.43438 | B23: ='DF raw data'!J28 -> -2.4371964e-06 | C23: ='DF raw data'!K28 -> -5.9398494e-06 | D23: ='DF raw data'!L28 -> -3.3006509e-07 | F23: =(1-$G$1*($B$2-$G$2))*B23 -> -2.441037422e-06 | G23: -5.962928636e-06 | H23: -3.305852726e-07 | J23: 6.025565636e-05 | K23: 0.0003114182345 | L23: -1.038146178e-05 | M23: -2.437622045e-05 | N23: 1.449212408e-08
A24: 8.93452 | B24: ='DF raw data'!J29 -> -5.2797241e-06 | C24: ='DF raw data'!K29 -> 8.0698701e-06 | D24: ='DF raw data'!L29 -> 4.4929183e-07 | F24: -5.288044945e-06 | G24: 8.101225513e-06 | H24: 4.499999139e-07 | J24: 5.761089356e-05 | K24: 0.0003402317468 | L24: -6.329714851e-06 | M24: -2.754196404e-05 | N24: 1.617213453e-08
A25: 9.43466 | B25: ='DF raw data'!J30 -> -1.6239917e-06 | C25: ='DF raw data'!K30 -> 4.205152e-06 | D25: ='DF raw data'!L30 -> -5.79981e-06 | F25: -1.626551111e-06 | G25: 4.221491083e-06 | H25: -5.808950501e-06 | J25: 5.679739029e-05 | K25: 0.0003686383936 | L25: -4.2183783e-06 | M25: -2.965174376e-05 | N25: 1.779445778e-08
A26: 9.9348 | B26: ='DF raw data'!J31 -> -2.6479954e-06 | C26: ='DF raw data'!K31 -> 5.6140098e-06 | D26: ='DF raw data'!L31 -> -5.684195e-06 | F26: -2.652168641e-06 | G26: 5.635822988e-06 | H26: -5.693153291e-06 | J26: 5.547093466e-05 | K26: 0.0003963816269 | L26: -1.399677791e-06 | M26: -3.035177861e-05 | N26: 1.933438068e-08
A27: 10.43494 | B27: ='DF raw data'!J32 -> -4.0349823e-06 | C27: ='DF raw data'!K32 -> -2.3685377e-06 | D27: ='DF raw data'!L32 -> -4.9819196e-06 | F27: -4.041341432e-06 | G27: -2.377740634e-06 | H27: -4.989771105e-06 | J27: 5.344969816e-05 | K27: 0.0004231139589 | L27: -2.588880991e-06 | M27: -3.164658155e-05 | N27: 2.076656785e-08
A28: 10.93508 | B28: ='DF raw data'!J33 -> -2.8244083e-06 | C28: ='DF raw data'!K33 -> -5.5926535e-07 | D28: ='DF raw data'!L33 -> -8.157147e-06 | F28: -2.828859567e-06 | G28: -5.614383709e-07 | H28: -8.170002664e-06 | J28: 5.203487234e-05 | K28: 0.0004491386799 | L28: -2.869678778e-06 | M28: -3.308182269e-05 | N28: 2.212487957e-08
A29: 11.43522 | B29: ='DF raw data'!J34 -> 2.2315237e-06 | C29: ='DF raw data'!K34 -> 5.4418883e-06 | D29: ='DF raw data'!L34 -> -8.173125e-06 | F29: 2.235040581e-06 | G29: 5.463032712e-06 | H29: -8.186005845e-06 | J29: 5.315270553e-05 | K29: 0.0004757224741 | L29: -1.373975977e-07 | M29: -3.315054073e-05 | N29: 2.35378896e-08
A30: 11.93536 | B30: ='DF raw data'!J35 -> 3.8518065e-06 | C30: ='DF raw data'!K35 -> 6.2796965e-07 | D30: ='DF raw data'!L35 -> -3.4543032e-06 | F30: 3.857876947e-06 | G30: 6.304096209e-07 | H30: -3.459747182e-06 | J30: 5.508218411e-05 | K30: 0.0005032712776 | L30: 1.778954701e-07 | M30: -3.306156809e-05 | N30: 2.505535369e-08
A31: 12.4355 | B31: ='DF raw data'!J36 -> 1.0842836e-07 | C31: ='DF raw data'!K36 -> -6.9290786e-06 | D31: ='DF raw data'!L36 -> -4.0209547e-06 | F31: 1.085992431e-07 | G31: -6.956001477e-06 | H31: -4.027291725e-06 | J31: 5.513649893e-05 | K31: 0.0005308472462 | L31: -3.301079109e-06 | M31: -3.471256979e-05 | N31: 2.658124614e-08
A32: 12.93564 | B32: ='DF raw data'!J37 -> -3.2117327e-07 | C32: ='DF raw data'!K37 -> -3.9665947e-06 | D32: ='DF raw data'!L37 -> -5.0598596e-06 | F32: -3.216794391e-07 | G32: -3.982006871e-06 | H32: -5.067833939e-06 | J32: 5.497561418e-05 | K32: 0.0005583427499 | L32: -5.292640025e-06 | M32: -3.735963078e-05 | N32: 2.810683829e-08
A33: 13.43578 | B33: ='DF raw data'!J38 -> -1.6305328e-06 | C33: ='DF raw data'!K38 -> 1.1539395e-06 | D33: ='DF raw data'!L38 -> 1.5997372e-06 | F33: -1.63310252e-06 | G33: 1.158423122e-06 | H33: 1.602258386e-06 | J33: 5.415883428e-05 | K33: 0.0005854297493 | L33: -4.713266285e-06 | M33: -3.971692378e-05 | N33: 2.958494915e-08
A34: 13.93592 | B34: ='DF raw data'!J39 -> -6.2803574e-06 | C34: ='DF raw data'!K39 -> 3.0998415e-06 | D34: ='DF raw data'!L39 -> -3.1094955e-06 | F34: -6.290255243e-06 | G34: 3.111885908e-06 | H34: -3.114396065e-06 | J34: 5.101282603e-05 | K34: 0.0006109433041 | L34: -3.156887666e-06 | M34: -4.129580957e-05 | N34: 3.089145204e-08
A35: 14.43606 | B35: ='DF raw data'!J40 -> -4.0120194e-06 | C35: ='DF raw data'!K40 -> 8.9556934e-06 | D35: ='DF raw data'!L40 -> -6.5800837e-06 | F35: -4.018342343e-06 | G35: 8.990490672e-06 | H35: -6.590453912e-06 | J35: 4.900309229e-05 | K35: 0.0006354517107 | L35: 1.339616338e-06 | M35: -4.062581386e-05 | N35: 3.209333729e-08
A36: 14.9362 | B36: ='DF raw data'!J41 -> -6.0846446e-07 | C36: ='DF raw data'!K41 -> 4.4533267e-06 | D36: ='DF raw data'!L41 -> -1.3359517e-06 | F36: -6.094234e-07 | G36: 4.470630064e-06 | H36: -1.33805716e-06 | J36: 4.869829527e-05 | K36: 0.0006598076761 | L36: 3.575557259e-06 | M36: -3.883753465e-05 | N36: 3.328582538e-08
A37: 15.43634 | B37: ='DF raw data'!J42 -> -2.1677785e-07 | C37: ='DF raw data'!K42 -> -5.3416957e-06 | D37: ='DF raw data'!L42 -> 3.518167e-06 | F37: -2.171194919e-07 | G37: -5.362450814e-06 | H37: 3.523711631e-06 | J37: 4.858970513e-05 | K37: 0.0006841093312 | L37: 8.935811083e-07 | M37: -3.8390619e-05 | N37: 3.446703499e-08
A38: 15.93648 | B38: ='DF raw data'!J43 -> -3.1944708e-06 | C38: ='DF raw data'!K43 -> 5.3777291e-07 | D38: ='DF raw data'!L43 -> 1.9565355e-06 | F38: -3.199505286e-06 | G38: 5.398624222e-07 | H38: 1.959619e-06 | J38: 4.698950455e-05 | K38: 0.000707610662 | L38: 1.1635879e-06 | M38: -3.780866214e-05 | N38: 3.557202804e-08
A39: 16.43662 | B39: ='DF raw data'!J44 -> -2.634775e-06 | C39: ='DF raw data'!K44 -> 6.2046915e-06 | D39: ='DF raw data'!L44 -> -9.739e-07 | F39: -2.638927405e-06 | G39: 6.228799777e-06 | H39: -9.754348664e-07 | J39: 4.56696714e-05 | K39: 0.0007304518914 | L39: 4.278859821e-06 | M39: -3.566863319e-05 | N39: 3.662433637e-08
A40: 16.93676 | B40: ='DF raw data'!J45 -> -5.359741e-07 | C40: ='DF raw data'!K45 -> -1.0079809e-06 | D40: ='DF raw data'!L45 -> -3.7863938e-07 | F40: -5.368187952e-07 | G40: -1.011897401e-06 | H40: -3.792361157e-07 | J40: 4.540118685e-05 | K40: 0.000753158841 | L40: 3.772769454e-06 | M40: -3.378172028e-05 | N40: 3.766237772e-08
A41: 17.4369 | B41: ='DF raw data'!J46 -> -3.9833481e-07 | C41: ='DF raw data'!K46 -> 1.4666928e-06 | D41: ='DF raw data'!L46 -> 4.1502294e-06 | F41: -3.989625857e-07 | G41: 1.472391623e-06 | H41: 4.156770162e-06 | J41: 4.52016497e-05 | K41: 0.0007757659941 | L41: 4.509171401e-06 | M41: -3.152650329e-05 | N41: 3.869442749e-08
A42: 17.93704 | B42: ='DF raw data'!J47 -> 3.8770872e-07 | C42: ='DF raw data'!K47 -> 6.9400089e-06 | D42: ='DF raw data'!L47 -> 1.8109873e-06 | F42: 3.883197489e-07 | G42: 6.966974247e-06 | H42: 1.813841416e-06 | J42: 4.539586394e-05 | K42: 0.0007984702815 | L42: 7.9936339e-06 | M42: -2.752856723e-05 | N42: 3.975706627e-08
A43: 18.43718 | B43: ='DF raw data'!J48 -> 1.2666662e-06 | C43: ='DF raw data'!K48 -> 4.3997073e-07 | D43: ='DF raw data'!L48 -> 2.4708002e-06 | F43: 1.268662466e-06 | G43: 4.416802326e-07 | H43: 2.474694181e-06 | J43: 4.603037279e-05 | K43: 0.0008214919121 | L43: 8.214535852e-06 | M43: -2.342014927e-05 | N43: 4.085050926e-08
A44: 18.93732 | B44: ='DF raw data'!J49 -> 6.7256351e-06 | C44: ='DF raw data'!K49 -> -2.007465e-07 | D44: ='DF raw data'!L49 -> 9.2124628e-06 | F44: 6.736234701e-06 | G44: -2.015264989e-07 | H44: 9.226981641e-06 | J44: 4.939943321e-05 | K44: 0.0008461985447 | L44: 8.113744389e-06 | M44: -1.936214115e-05 | N44: 4.210392854e-08
A45: 19.43746 | B45: ='DF raw data'!J50 -> 1.4041574e-05 | C45: ='DF raw data'!K50 -> -2.9313337e-06 | D45: ='DF raw data'!L50 -> 5.4080315e-06 | F45: 1.406370352e-05 | G45: -2.942723373e-06 | H45: 5.416554558e-06 | J45: 5.643325389e-05 | K45: 0.0008744230723 | L45: 6.641970721e-06 | M45: -1.604022592e-05 | N45: 4.371879454e-08
A46: 19.9376 | B46: ='DF raw data'!J51 -> 1.3023246e-05 | C46: ='DF raw data'!K51 -> 8.3323212e-06 | D46: ='DF raw data'!L51 -> 7.1902616e-07 | F46: 1.304377064e-05 | G46: 8.364696365e-06 | H46: 7.201593452e-07 | J46: 6.295696533e-05 | K46: 0.0009059103689 | L46: 1.082548996e-05 | M46: -1.062596537e-05 | N46: 4.57597512e-08
A47: 20.43774 | B47: ='DF raw data'!J52 -> 6.8970494e-06 | C47: ='DF raw data'!K52 -> -2.1240992e-06 | D47: ='DF raw data'!L52 -> 9.0671676e-07 | F47: 6.90791915e-06 | G47: -2.13235237e-06 | H47: 9.081457456e-07 | J47: 6.641189202e-05 | K47: 0.0009391256126 | L47: 9.759015247e-06 | M47: -5.745091483e-06 | N47: 4.80132709e-08
A48: 20.93788 | B48: ='DF raw data'!J53 -> -1.603961e-06 | C48: ='DF raw data'!K53 -> -7.7860086e-08 | D48: ='DF raw data'!L53 -> 1.6303544e-06 | F48: -1.606488843e-06 | G48: -7.816261072e-08 | H48: 1.632923839e-06 | J48: 6.560842269e-05 | K48: 0.0009719390091 | L48: 9.719922999e-06 | M48: -8.837691944e-07 | N48: 5.021335777e-08
A49: 21.43802 | B49: ='DF raw data'!J54 -> -8.4377079e-06 | C49: ='DF raw data'!K54 -> 3.753501e-06 | D49: ='DF raw data'!L54 -> 5.5816929e-07 | F49: -8.451005728e-06 | G49: 3.768085197e-06 | H49: 5.590489648e-07 | J49: 6.138173668e-05 | K49: 0.001002638471 | L49: 1.160449313e-05 | M49: 4.920101999e-06 | N49: 5.216509503e-08
A50: 21.93816 | B50: ='DF raw data'!J55 -> -6.8319769e-06 | C50: ='DF raw data'!K55 -> -4.9119267e-06 | D50: ='DF raw data'!L55 -> -2.0840221e-06 | F50: -6.842744096e-06 | G50: -4.93101195e-06 | H50: -2.087306519e-06 | J50: 5.795940665e-05 | K50: 0.001031626289 | L50: 9.138296812e-06 | M50: 9.490529767e-06 | N50: 5.388697767e-08
A51: 22.4383 | B51: ='DF raw data'!J56 -> -3.0343342e-06 | C51: ='DF raw data'!K56 -> -2.6969021e-06 | D51: ='DF raw data'!L56 -> 1.7407016e-06 | F51: -3.039116311e-06 | G51: -2.707380891e-06 | H51: 1.743444946e-06 | J51: 5.643942302e-05 | K51: 0.001059853902 | L51: 7.784227334e-06 | M51: 1.338373323e-05 | N51: 5.551043344e-08
A52: 22.93844 | B52: ='DF raw data'!J57 -> 7.2299213e-07 | C52: ='DF raw data'!K57 -> 6.0475332e-07 | D52: ='DF raw data'!L57 -> 4.1994804e-06 | F52: 7.241315656e-07 | G52: 6.07103084e-07 | H52: 4.206098781e-06 | J52: 5.680159018e-05 | K52: 0.001088262649 | L52: 8.08786387e-06 | M52: 1.742879746e-05 | N52: 5.715681139e-08
A53: 23.43858 | B53: ='DF raw data'!J58 -> 1.2275507e-06 | C53: ='DF raw data'!K58 -> 1.0945644e-06 | D53: ='DF raw data'!L58 -> 4.2050028e-06 | F53: 1.22948532e-06 | G53: 1.098817321e-06 | H53: 4.211629884e-06 | J53: 5.741650497e-05 | K53: 0.00111697894 | L53: 8.637426365e-06 | M53: 2.174871988e-05 | N53: 5.884291346e-08
A54: 23.93872 | B54: ='DF raw data'!J59 -> -2.450344e-06 | C54: ='DF raw data'!K59 -> -5.0208032e-06 | D54: ='DF raw data'!L59 -> 4.8503075e-06 | F54: -2.454205742e-06 | G54: -5.040311489e-06 | H54: 4.857951585e-06 | J54: 5.618905851e-05 | K54: 0.001145081335 | L54: 6.116564977e-06 | M54: 2.480785869e-05 | N54: 6.044067203e-08
A55: 24.43886 | B55: ='DF raw data'!J60 -> -2.959581e-06 | C55: ='DF raw data'!K60 -> -6.6558196e-06 | D55: ='DF raw data'!L60 -> -2.6230396e-06 | F55: -2.9642453e-06 | G55: -6.681680732e-06 | H55: -2.62717351e-06 | J55: 5.470652086e-05 | K55: 0.001172442255 | L55: 2.774789176e-06 | M55: 2.619564175e-05 | N55: 6.194134355e-08
A56: 24.939 | B56: ='DF raw data'!J61 -> -8.548579e-06 | C56: ='DF raw data'!K61 -> -5.0318777e-06 | D56: ='DF raw data'!L61 -> -6.512199e-06 | F56: -8.562051561e-06 | G56: -5.051429019e-06 | H56: -6.522462226e-06 | J56: 5.04242964e-05 | K56: 0.001197661462 | L56: 2.48367466e-07 | M56: 2.631986025e-05 | N56: 6.32130352e-08
A57: 25.43914 | B57: ='DF raw data'!J62 -> -6.8869831e-06 | C57: ='DF raw data'!K62 -> -2.288615e-06 | D57: ='DF raw data'!L62 -> -5.6418053e-06 | F57: -6.897836985e-06 | G57: -2.297507395e-06 | H57: -5.650696785e-06 | J57: 4.697441221e-05 | K57: 0.001221155245 | L57: -9.007078824e-07 | M57: 2.586938021e-05 | N57: 6.431704757e-08
A58: 25.93928 | B58: ='DF raw data'!J63 -> -8.9885141e-08 | C58: ='DF raw data'!K63 -> -3.3243913e-07 | D58: ='DF raw data'!L63 -> -7.6013516e-06 | F58: -9.002679998e-08 | G58: -3.337308195e-07 | H58: -7.61333133e-06 | J58: 4.69293862e-05 | K58: 0.001244626508 | L58: -1.067620014e-06 | M58: 2.533542074e-05 | N58: 6.541910961e-08
A59: 26.43942 | B59: ='DF raw data'!J64 -> 2.5449137e-06 | C59: ='DF raw data'!K64 -> -1.2167296e-05 | D59: ='DF raw data'!L64 -> -5.5459664e-06 | F59: 2.548924484e-06 | G59: -1.221457193e-05 | H59: -5.554706843e-06 | J59: 4.820420529e-05 | K59: 0.001268735359 | L59: -7.176616018e-06 | M59: 2.1746108e-05 | N59: 6.660701675e-08
A60: 26.93956 | B60: ='DF raw data'!J65 -> 1.1416435e-06 | C60: ='DF raw data'!K65 -> -3.0822398e-06 | D60: ='DF raw data'!L65 -> -4.6158079e-06 | F60: 1.14344273e-06 | G60: -3.094215817e-06 | H60: -4.623082413e-06 | J60: 4.877608674e-05 | K60: 0.001293130231 | L60: -8.724157117e-06 | M60: 1.738280806e-05 | N60: 6.783496925e-08
A61: 27.4397 | B61: ='DF raw data'!J66 -> -4.8657762e-07 | C61: ='DF raw data'!K66 -> -8.9496998e-06 | D61: ='DF raw data'!L66 -> -7.9436413e-06 | F61: -4.873444663e-07 | G61: -8.984473784e-06 | H61: -7.956160479e-06 | J61: 4.853234628e-05 | K61: 0.001317403199 | L61: -1.321765184e-05 | M61: 1.077213167e-05 | N61: 6.910037095e-08
A62: 27.93984 | B62: ='DF raw data'!J67 -> -7.8607407e-08 | C62: ='DF raw data'!K67 -> -5.9473214e-06 | D62: ='DF raw data'!L67 -> -9.410358e-06 | F62: -7.873129227e-08 | G62: -5.970429668e-06 | H62: -9.425188724e-06 | J62: 4.849296961e-05 | K62: 0.001341656473 | L62: -1.620370253e-05 | M62: 2.668011891e-06 | N62: 7.040780096e-08
A63: 28.43998 | B63: ='DF raw data'!J68 -> 1.5681746e-06 | C63: ='DF raw data'!K68 -> 1.0407514e-05 | D63: ='DF raw data'!L68 -> -3.8759304e-06 | F63: 1.570646043e-06 | G63: 1.044795231e-05 | H63: -3.882038866e-06 | J63: 4.927851252e-05 | K63: 0.001366302628 | L63: -1.097826366e-05 | M63: -2.822656896e-06 | N63: 7.168260484e-08
A64: 28.94012 | B64: ='DF raw data'!J69 -> -5.3096824e-07 | C64: ='DF raw data'!K69 -> 3.2301996e-06 | D64: ='DF raw data'!L69 -> 2.8339869e-06 | F64: -5.318050459e-07 | G64: 3.242750514e-06 | H64: 2.838453263e-06 | J64: 4.901253555e-05 | K64: 0.001390815758 | L64: -9.35643442e-06 | M64: -7.502184007e-06 | N64: 7.292783916e-08
A65: 29.44026 | B65: ='DF raw data'!J70 -> -8.5535848e-06 | C65: ='DF raw data'!K70 -> -1.6168091e-06 | D65: ='DF raw data'!L70 -> 3.1968389e-06 | F65: -8.56706525e-06 | G65: -1.623091198e-06 | H65: 3.201877118e-06 | J65: 4.472780353e-05 | K65: 0.001413185921 | L65: -1.016820725e-05 | M65: -1.258771118e-05 | N65: 7.398011814e-08
A66: 29.9404 | B66: ='DF raw data'!J71 -> -6.6955527e-06 | C66: ='DF raw data'!K71 -> 7.4424952e-06 | D66: ='DF raw data'!L71 -> -3.3397956e-07 | F66: -6.706104891e-06 | G66: 7.471412953e-06 | H66: -3.345059118e-07 | J66: 4.137381223e-05 | K66: 0.00143387862 | L66: -6.431454777e-06 | M66: -1.580433897e-05 | N66: 7.485694156e-08
A67: 30.44054 | B67: ='DF raw data'!J72 -> 3.6588085e-07 | C67: ='DF raw data'!K72 -> 3.6061974e-06 | D67: ='DF raw data'!L72 -> -6.2330071e-07 | F67: 3.664574782e-07 | G67: 3.62020925e-06 | H67: -6.242830319e-07 | J67: 4.155709228e-05 | K67: 0.001454662984 | L67: -4.620843323e-06 | M67: -1.811540755e-05 | N67: 7.573135838e-08
A68: 30.94068 | B68: ='DF raw data'!J73 -> -9.4427901e-07 | C68: ='DF raw data'!K73 -> -1.4987261e-06 | D68: ='DF raw data'!L73 -> 2.9280359e-06 | F68: -9.457671937e-07 | G68: -1.504549388e-06 | H68: 2.932650485e-06 | J68: 4.108407627e-05 | K68: 0.001475210774 | L68: -5.373328654e-06 | M68: -2.080282415e-05 | N68: 7.658998572e-08
A69: 31.44082 | B69: ='DF raw data'!J74 -> -6.9263024e-06 | C69: ='DF raw data'!K74 -> -6.5206577e-06 | D69: ='DF raw data'!L74 -> 2.4245542e-06 | F69: -6.937218253e-06 | G69: -6.545993661e-06 | H69: 2.428375297e-06 | J69: 3.761449594e-05 | K69: 0.001494023288 | L69: -8.647241924e-06 | M69: -2.512765572e-05 | N69: 7.733500682e-08
A70: 31.94096 | B70: ='DF raw data'!J75 -> -2.2699876e-06 | C70: ='DF raw data'!K75 -> -3.6438348e-06 | D70: ='DF raw data'!L75 -> 6.5205472e-06 | F70: -2.2735651e-06 | G70: -3.65799289e-06 | H70: 6.530823582e-06 | J70: 3.647739509e-05 | K70: 0.001512267092 | L70: -1.047675049e-05 | M70: -3.036749771e-05 | N70: 7.80553898e-08
A71: 32.4411 | B71: ='DF raw data'!J76 -> 6.2732743e-06 | C71: ='DF raw data'!K76 -> -2.2076247e-06 | D71: ='DF raw data'!L76 -> 6.7557498e-06 | F71: 6.28316098e-06 | G71: =(1-$G$1*($B$2-$G$2))*C71*$M$2/$M$1 -> -2.216202407e-06 | H71: 6.766396862e-06 | J71: 3.961985522e-05 | K71: 0.001532082567 | L71: -1.158516196e-05 | M71: -3.616170061e-05 | N71: 7.89076028e-08
A72: =A71+$B$1 -> 32.94124 | B72: ='DF raw data'!J77 -> 7.2142375e-06 | C72: ='DF raw data'!K77 -> -5.15383e-06 | D72: ='DF raw data'!L77 -> -6.1378375e-07 | F72: 7.225607138e-06 | G72: -5.173855164e-06 | H72: -6.147510732e-07 | J72: =F72*$B$1+J71 -> 4.323367037e-05 | K72: =J72*$B$1+K71 -> 0.001553705454 | L72: =G72*$B$1+L71 -> -1.417281388e-05 | M72: =L72*$B$1+M71 -> -4.325009175e-05 | N72: =(J72^2+L72^2)*$B$1+N71 -> 7.994290206e-08
A73: 33.44138 | B73: ='DF raw data'!J78 -> 3.6121075e-06 | C73: ='DF raw data'!K78 -> 3.2535689e-07 | D73: ='DF raw data'!L78 -> -2.3654852e-06 | F73: 3.617800181e-06 | G73: 3.266210615e-07 | H73: -2.369213205e-06 | J73: 4.504307696e-05 | K73: 0.001576233299 | L73: -1.400945762e-05 | M73: -5.025678188e-05 | N73: 8.105578542e-08
A74: 33.94152 | B74: ='DF raw data'!J79 -> 8.8892762e-07 | C74: ='DF raw data'!K79 -> -1.0492099e-06 | D74: ='DF raw data'!L79 -> 8.2592453e-07 | F74: 8.903285699e-07 | G74: -1.053286596e-06 | H74: 8.272261871e-07 | J74: 4.548836589e-05 | K74: 0.00159898385 | L74: -1.453624838e-05 | M74: -5.752694115e-05 | N74: 8.219635166e-08
A75: 34.44166 | B75: ='DF raw data'!J80 -> -1.9254928e-06 | C75: ='DF raw data'!K80 -> 3.6283463e-06 | D75: ='DF raw data'!L80 -> -6.0067248e-07 | F75: -1.928527377e-06 | G75: 3.642444209e-06 | H75: -6.016191398e-07 | J75: 4.45238322e-05 | K75: 0.001621252 | L75: -1.271451633e-05 | M75: -6.388597935e-05 | N75: 8.326866711e-08
A76: 34.9418 | B76: ='DF raw data'!J81 -> -3.2222358e-06 | C76: ='DF raw data'!K81 -> 7.1872491e-06 | D76: ='DF raw data'!L81 -> -7.015027e-07 | F76: -3.227314044e-06 | G76: 7.215175097e-06 | H76: -7.026082683e-07 | J76: 4.290972336e-05 | K76: 0.001642712869 | L76: -9.105918662e-06 | M76: -6.844021351e-05 | N76: 8.423101755e-08
A77: 35.44194 | B77: ='DF raw data'!J82 -> -2.6055402e-06 | C77: ='DF raw data'!K82 -> -6.0970265e-06 | D77: ='DF raw data'!L82 -> 1.7689177e-06 | F77: -2.609646531e-06 | G77: -6.120716446e-06 | H77: 1.771705514e-06 | J77: 4.160453474e-05 | K77: 0.001663520961 | L77: -1.216713379e-05 | M77: -7.45254838e-05 | N77: 8.517076883e-08
A78: 35.94208 | B78: ='DF raw data'!J83 -> -3.5631217e-06 | C78: ='DF raw data'!K83 -> 8.7694474e-07 | D78: ='DF raw data'!L83 -> 4.5232605e-06 | F78: -3.56873718e-06 | G78: 8.803521015e-07 | H78: 4.530389159e-06 | J78: 3.981966653e-05 | K78: 0.001683436369 | L78: -1.172683449e-05 | M78: -8.03905428e-05 | N78: 8.603257231e-08
A79: 36.44222 | B79: ='DF raw data'!J84 -> -4.292493e-06 | C79: ='DF raw data'!K84 -> -7.3592478e-06 | D79: ='DF raw data'!L84 -> -8.9450475e-07 | F79: -4.299257969e-06 | G79: -7.387842096e-06 | H79: -8.959144895e-07 | J79: 3.766943565e-05 | K79: 0.00170227636 | L79: -1.542178983e-05 | M79: -8.810359677e-05 | N79: 8.686121326e-08
A80: 36.94236 | B80: ='DF raw data'!J85 -> -6.9770304e-06 | C80: ='DF raw data'!K85 -> -4.3264481e-06 | D80: ='DF raw data'!L85 -> -6.5300396e-06 | F80: -6.9880262e-06 | G80: -4.343258478e-06 | H80: -6.540330942e-06 | J80: 3.417444423e-05 | K80: 0.001719368367 | L80: -1.759402713e-05 | M80: -9.690307349e-05 | N80: 8.760014132e-08
A81: 37.4425 | B81: ='DF raw data'!J86 -> -6.4969627e-06 | C81: ='DF raw data'!K86 -> 1.0995012e-06 | D81: ='DF raw data'!L86 -> -4.7615599e-06 | F81: -6.507201913e-06 | G81: 1.103773303e-06 | H81: -4.769064118e-06 | J81: 3.091993226e-05 | K81: 0.001734832662 | L81: -1.704198595e-05 | M81: -0.0001054264523 | N81: 8.822355157e-08
A82: 37.94264 | B82: ='DF raw data'!J87 -> -4.7644844e-06 | C82: ='DF raw data'!K87 -> 8.812659e-06 | D82: ='DF raw data'!L87 -> 1.7046274e-06 | F82: -4.771993227e-06 | G82: 8.846900513e-06 | H82: 1.707313893e-06 | J82: 2.853326757e-05 | K82: 0.00174910329 | L82: -1.261729712e-05 | M82: -0.0001117368673 | N82: 8.871035961e-08
A83: 38.44278 | B83: ='DF raw data'!J88 -> -1.2843645e-06 | C83: ='DF raw data'!K88 -> 3.3597576e-06 | D83: ='DF raw data'!L88 -> 1.3462122e-07 | F83: -1.286388658e-06 | G83: 3.37281191e-06 | H83: 1.34833383e-07 | J83: 2.788989314e-05 | K83: 0.001763052141 | L83: -1.093041898e-05 | M83: -0.0001172036071 | N83: 8.915914534e-08
A84: 38.94292 | B84: ='DF raw data'!J89 -> 6.5216796e-07 | C84: ='DF raw data'!K89 -> -4.0411805e-06 | D84: ='DF raw data'!L89 -> -4.8468196e-06 | F84: 6.531957767e-07 | G84: -4.056882473e-06 | H84: -4.854458188e-06 | J84: 2.821658248e-05 | K84: 0.001777164383 | L84: -1.295942818e-05 | M84: -0.0001236851355 | N84: 8.964134147e-08
A85: 39.44306 | B85: ='DF raw data'!J90 -> -1.1752979e-06 | C85: ='DF raw data'!K90 -> -6.3817602e-06 | D85: ='DF raw data'!L90 -> -1.5362151e-06 | F85: -1.177150169e-06 | G85: -6.406556476e-06 | H85: -1.538636175e-06 | J85: 2.762784259e-05 | K85: 0.001790982172 | L85: -1.616360333e-05 | M85: -0.0001317692001 | N85: 9.015376478e-08
A86: 39.9432 | B86: ='DF raw data'!J91 -> -3.9554852e-06 | C86: ='DF raw data'!K91 -> 3.3366746e-06 | D86: ='DF raw data'!L91 -> 1.1632816e-06 | F86: -3.961719045e-06 | G86: 3.349639221e-06 | H86: 1.165114932e-06 | J86: 2.564642843e-05 | K86: 0.001803808977 | L86: -1.448831477e-05 | M86: -0.0001390153858 | N86: 9.058771153e-08
A87: 40.44334 | B87: ='DF raw data'!J92 -> -5.13534e-06 | C87: ='DF raw data'!K92 -> 2.6030921e-06 | D87: ='DF raw data'!L92 -> 2.1069863e-07 | F87: =(1-$G$1*($B$2-$G$2))*B87 -> -5.143433296e-06 | G87: 2.613206393e-06 | H87: 2.11030691e-07 | J87: 2.30739917e-05 | K87: 0.001815349203 | L87: -1.318134573e-05 | M87: -0.0001456079041 | N87: 9.094088888e-08
A88: 40.94348 | B88: ='DF raw data'!J93 -> 1.5127682e-06 | C88: ='DF raw data'!K93 -> -2.3199702e-06 | D88: ='DF raw data'!L93 -> -2.5901086e-06 | F88: 1.515152323e-06 | G88: -2.328984425e-06 | H88: -2.594190611e-06 | J88: 2.383177999e-05 | K88: 0.001827268429 | L88: -1.4346164e-05 | M88: -0.0001527829945 | N88: 9.132788029e-08
A89: 41.44362 | B89: ='DF raw data'!J94 -> 6.3007046e-06 | C89: ='DF raw data'!K94 -> 5.3790637e-07 | D89: ='DF raw data'!L94 -> -2.990228e-06 | F89: 6.31063451e-06 | G89: 5.399964007e-07 | H89: -2.994940599e-06 | J89: 2.698798073e-05 | K89: 0.001840766198 | L89: -1.40760902e-05 | M89: -0.0001598230103 | N89: 9.17912537e-08
A90: 41.94376 | B90: ='DF raw data'!J95 -> 7.3249105e-08 | C90: ='DF raw data'!K95 -> -9.3737931e-08 | D90: ='DF raw data'!L95 -> -1.2183576e-06 | F90: 7.336454559e-08 | G90: -9.410214895e-08 | H90: -1.220277732e-06 | J90: 2.702467327e-05 | K90: 0.001854282318 | L90: -1.412315445e-05 | M90: -0.0001668865647 | N90: 9.22562821e-08
A91: 42.4439 | B91: ='DF raw data'!J96 -> -4.4806598e-07 | C91: ='DF raw data'!K96 -> 1.8176063e-06 | D91: ='DF raw data'!L96 -> 1.9498256e-07 | F91: -4.48772132e-07 | G91: 1.824668594e-06 | H91: 1.952898525e-07 | J91: 2.680022438e-05 | K91: 0.001867686182 | L91: -1.321056469e-05 | M91: -0.0001734936966 | N91: 9.270279261e-08
A92: 42.94404 | B92: ='DF raw data'!J97 -> 2.7980298e-06 | C92: ='DF raw data'!K97 -> -4.8788178e-07 | D92: ='DF raw data'!L97 -> -2.5712638e-06 | F92: 2.802439495e-06 | G92: -4.897774406e-07 | H92: -2.575316112e-06 | J92: 2.820183647e-05 | K92: 0.001881791049 | L92: -1.345552198e-05 | M92: -0.0001802233413 | N92: 9.319112664e-08
A93: 43.44418 | B93: ='DF raw data'!J98 -> 2.6241489e-06 | C93: ='DF raw data'!K98 -> -5.5007408e-06 | D93: ='DF raw data'!L98 -> -4.0148866e-06 | F93: 2.628284559e-06 | G93: -5.522113883e-06 | H93: -4.021214061e-06 | J93: 2.951634671e-05 | K93: 0.001896553355 | L93: -1.621735202e-05 | M93: -0.0001883342878 | N93: 9.375839404e-08
A94: 43.94432 | B94: ='DF raw data'!J99 -> 3.6926742e-06 | C94: ='DF raw data'!K99 -> 7.3110886e-07 | D94: ='DF raw data'!L99 -> 1.2826073e-06 | F94: 3.698493855e-06 | G94: 7.339495774e-07 | H94: 1.284628689e-06 | J94: 3.136611142e-05 | K94: 0.001912240802 | L94: -1.585027448e-05 | M94: -0.000196261644 | N94: 9.437609902e-08
A95: 44.44446 | B95: ='DF raw data'!J100 -> 2.3510095e-06 | C95: ='DF raw data'!K100 -> -1.9434201e-07 | D95: ='DF raw data'!L100 -> 3.0402457e-06 | F95: 2.354714691e-06 | G95: -1.950971243e-07 | H95: 3.045037127e-06 | J95: 3.254379843e-05 | K95: 0.001928517257 | L95: -1.594785036e-05 | M95: -0.0002042378019 | N95: 9.503299928e-08
A96: 44.9446 | B96: ='DF raw data'!J101 -> -1.0199708e-06 | C96: ='DF raw data'!K101 -> -2.2800755e-06 | D96: ='DF raw data'!L101 -> -3.3569363e-06 | F96: -1.021578274e-06 | G96: -2.288934714e-06 | H96: -3.362226832e-06 | J96: 3.203286627e-05 | K96: 0.001944538175 | L96: -1.709263816e-05 | M96: -0.000212786514 | N96: 9.569231523e-08
A97: 45.44474 | B97: ='DF raw data'!J102 -> -2.6411851e-06 | C97: ='DF raw data'!K102 -> 2.2033441e-06 | D97: ='DF raw data'!L102 -> -4.8757051e-06 | F97: -2.645347608e-06 | G97: 2.211905175e-06 | H97: -4.883389211e-06 | J97: 3.070982212e-05 | K97: 0.001959897385 | L97: -1.598637591e-05 | M97: -0.00022078194 | N97: 9.629181174e-08
A98: 45.94488 | B98: ='DF raw data'!J103 -> -1.6503525e-06 | C98: ='DF raw data'!K103 -> 2.1821293e-06 | D98: ='DF raw data'!L103 -> 5.3142589e-06 | F98: -1.652953456e-06 | G98: 2.190607945e-06 | H98: 5.322634172e-06 | J98: 2.988311398e-05 | K98: 0.001974843126 | L98: -1.489076525e-05 | M98: -0.0002282294073 | N98: 9.68493355e-08
A99: 46.44502 | B99: ='DF raw data'!J104 -> 2.435447e-06 | C99: ='DF raw data'!K104 -> -4.0748307e-09 | D99: ='DF raw data'!L104 -> 9.5316591e-06 | F99: 2.439285264e-06 | G99: -4.090663421e-09 | H99: 9.546680995e-06 | J99: 3.110309811e-05 | K99: 0.001990399029 | L99: -1.489281116e-05 | M99: -0.0002356778979 | N99: 9.744410126e-08
A100: 46.94516 | B100: ='DF raw data'!J105 -> 3.4224743e-06 | C100: ='DF raw data'!K105 -> -1.3781079e-06 | D100: ='DF raw data'!L105 -> 3.7066434e-06 | F100: 3.427868119e-06 | G100: -1.383462527e-06 | H100: 3.71248507e-06 | J100: 3.281751207e-05 | K100: 0.00200681238 | L100: -1.55847361e-05 | M100: -0.0002434724478 | N100: 9.810422259e-08
A101: 47.4453 | B101: ='DF raw data'!J106 -> 1.6387223e-06 | C101: ='DF raw data'!K106 -> -4.0518548e-06 | D101: ='DF raw data'!L106 -> -1.2048389e-06 | F101: 1.641304926e-06 | G101: -4.067598248e-06 | H101: -1.206737726e-06 | J101: 3.363839432e-05 | K101: 0.002023636286 | L101: -1.761910469e-05 | M101: -0.0002522844669 | N101: 9.882541167e-08
A102: 47.94544 | B102: ='DF raw data'!J107 -> 5.4029242e-06 | C102: ='DF raw data'!K107 -> -2.0962129e-06 | D102: ='DF raw data'!L107 -> -2.9988719e-06 | F102: 5.411439209e-06 | G102: -2.104357718e-06 | H102: -3.003598122e-06 | J102: 3.634487152e-05 | K102: 0.00204181381 | L102: -1.867157816e-05 | M102: -0.00026162287 | N102: 9.966043417e-08
A103: 48.44558 | B103: ='DF raw data'!J108 -> 6.5187796e-06 | C103: ='DF raw data'!K108 -> -7.6287706e-06 | D103: ='DF raw data'!L108 -> -5.0902731e-06 | F103: 6.529053197e-06 | G103: -7.658412125e-06 | H103: -5.09829537e-06 | J103: 3.961031219e-05 | K103: 0.002061624512 | L103: -2.25018564e-05 | M103: -0.0002728769484 | N103: 1.006983799e-07
A104: 48.94572 | B104: ='DF raw data'!J109 -> 2.4192764e-07 | C104: ='DF raw data'!K109 -> -8.2307934e-06 | D104: ='DF raw data'!L109 -> -1.2564762e-05 | F104: 2.42308918e-07 | G104: -8.262774079e-06 | H104: -1.258456406e-05 | J104: 3.973150057e-05 | K104: 0.002081495824 | L104: -2.663440023e-05 | M104: -0.0002861978773 | N104: 1.018426919e-07
A105: 49.44586 | B105: ='DF raw data'!J110 -> 6.2706242e-08 | C105: ='DF raw data'!K110 -> -3.5952482e-07 | D105: ='DF raw data'!L110 -> -6.9959774e-06 | F105: 6.280506704e-08 | G105: -3.609217507e-07 | H105: -7.00700306e-06 | J105: 3.97629119e-05 | K105: 0.002101382847 | L105: -2.681491163e-05 | M105: -0.0002996090872 | N105: 1.029930783e-07
A106: 49.946 | B106: ='DF raw data'!J111 -> 9.7111351e-06 | C106: ='DF raw data'!K111 -> 4.5798339e-07 | D106: ='DF raw data'!L111 -> 8.112258e-06 | F106: 9.726439849e-06 | G106: 4.597628807e-07 | H106: 8.125042919e-06 | J106: 4.462749352e-05 | K106: 0.002123702842 | L106: -2.658496583e-05 | M106: -0.0003129052921 | N106: 1.043426428e-07
A107: 50.44614 | B107: ='DF raw data'!J112 -> 9.6943131e-06 | C107: ='DF raw data'!K112 -> -6.8256722e-06 | D107: ='DF raw data'!L112 -> 6.6340885e-06 | F107: 9.709591337e-06 | G107: -6.852193293e-06 | H107: 6.644543823e-06 | J107: 4.948364853e-05 | K107: 0.002148451594 | L107: -3.001202178e-05 | M107: -0.0003279155046 | N107: 1.060177882e-07
A108: 50.94628 | B108: ='DF raw data'!J113 -> 4.0381656e-06 | C108: ='DF raw data'!K113 -> -6.9462908e-06 | D108: ='DF raw data'!L113 -> -7.2092951e-07 | F108: 4.044529749e-06 | G108: -6.973280555e-06 | H108: -7.220656949e-07 | J108: 5.150647964e-05 | K108: 0.002174212045 | L108: -3.349963832e-05 | M108: -0.0003446700137 | N108: 1.079058883e-07
A109: 51.44642 | B109: ='DF raw data'!J114 -> 1.3017072e-06 | C109: ='DF raw data'!K114 -> -1.4968581e-06 | D109: ='DF raw data'!L114 -> -3.9177962e-06 | F109: 1.303758691e-06 | G109: -1.50267413e-06 | H109: -3.923970647e-06 | J109: 5.215854151e-05 | K109: 0.002200298618 | L109: -3.425118576e-05 | M109: -0.0003618004018 | N109: 1.09853262e-07
A110: 51.94656 | B110: ='DF raw data'!J115 -> 3.0361937e-06 | C110: ='DF raw data'!K115 -> 4.0569143e-06 | D110: ='DF raw data'!L115 -> -8.2561598e-07 | F110: 3.040978741e-06 | G110: 4.072677407e-06 | H110: -8.269171508e-07 | J110: 5.367945662e-05 | K110: 0.002227145861 | L110: -3.221427688e-05 | M110: -0.0003779120502 | N110: 1.118134326e-07
A111: 52.4467 | B111: ='DF raw data'!J116 -> 4.2319389e-06 | C111: ='DF raw data'!K116 -> -5.0241388e-06 | D111: ='DF raw data'!L116 -> -6.513859e-07 | F111: 4.238608436e-06 | G111: -5.04366005e-06 | H111: -6.524124842e-07 | J111: 5.579935425e-05 | K111: 0.00225505335 | L111: -3.473681301e-05 | M111: -0.0003952853199 | N111: 1.139741445e-07
A112: 52.94684 | B112: ='DF raw data'!J117 -> -5.983145e-07 | C112: ='DF raw data'!K117 -> 4.7970348e-06 | D112: ='DF raw data'!L117 -> -3.3938691e-06 | F112: -5.992574437e-07 | G112: 4.815673639e-06 | H112: -3.399217838e-06 | J112: 5.549964163e-05 | K112: 0.002282810941 | L112: -3.2328302e-05 | M112: -0.0004114539968 | N112: 1.160373867e-07
A113: 53.44698 | B113: ='DF raw data'!J118 -> -6.2943855e-06 | C113: ='DF raw data'!K118 -> 9.7078218e-06 | D113: ='DF raw data'!L118 -> 1.7365834e-06 | F113: -6.304305452e-06 | G113: 9.745541461e-06 | H113: 1.739320255e-06 | J113: 5.23466063e-05 | K113: 0.002308991572 | L113: -2.745416689e-05 | M113: -0.0004251849239 | N113: 1.177848251e-07
A114: 53.94712 | B114: ='DF raw data'!J119 -> -7.7844288e-06 | C114: ='DF raw data'!K119 -> 4.3425235e-08 | D114: ='DF raw data'!L119 -> 7.8531612e-06 | F114: -7.79669706e-06 | G114: 4.359396339e-08 | H114: 7.865537782e-06 | J114: 4.844716623e-05 | K114: 0.002333221938 | L114: -2.743236381e-05 | M114: -0.0004389049463 | N114: 1.193350903e-07
A115: 54.44726 | B115: ='DF raw data'!J120 -> -9.2184764e-06 | C115: ='DF raw data'!K120 -> 4.2473152e-06 | D115: ='DF raw data'!L120 -> 6.9035027e-06 | F115: -9.233004719e-06 | G115: 4.263818108e-06 | H115: 6.91438262e-06 | J115: 4.382937125e-05 | K115: 0.00235514276 | L115: -2.529985782e-05 | M115: -0.0004515584172 | N115: 1.206159971e-07
A116: 54.9474 | B116: ='DF raw data'!J121 -> -8.602974e-06 | C116: ='DF raw data'!K121 -> 6.4932947e-06 | D116: ='DF raw data'!L121 -> 6.8191816e-06 | F116: -8.616532287e-06 | G116: 6.518524343e-06 | H116: 6.82992863e-06 | J116: 3.951989879e-05 | K116: 0.002374908242 | L116: -2.203968306e-05 | M116: -0.0004625813443 | N116: 1.216400688e-07
A117: 55.44754 | B117: ='DF raw data'!J122 -> -5.7768716e-07 | C117: ='DF raw data'!K122 -> 3.4137956e-06 | D117: ='DF raw data'!L122 -> 7.9108668e-06 | F117: -5.78597595e-07 | G117: 3.427059874e-06 | H117: 7.923334326e-06 | J117: 3.923051899e-05 | K117: 0.002394528994 | L117: -2.032567333e-05 | M117: -0.0004727470265 | N117: 1.226164254e-07
A118: 55.94768 | B118: ='DF raw data'!J123 -> 4.6894438e-06 | C118: ='DF raw data'!K123 -> 5.2748378e-06 | D118: ='DF raw data'!L123 -> 1.1363491e-05 | F118: 4.696834363e-06 | G118: 5.295333139e-06 | H118: 1.138139986e-05 | J118: 4.157959373e-05 | K118: 0.002415324612 | L118: -1.767726541e-05 | M118: -0.0004815881341 | N118: 1.236373853e-07
A119: 56.44782 | B119: ='DF raw data'!J124 -> 6.3123898e-06 | C119: ='DF raw data'!K124 -> 1.1332583e-06 | D119: ='DF raw data'!L124 -> 8.1173148e-06 | F119: 6.322338126e-06 | G119: 1.137661566e-06 | H119: 8.130107688e-06 | J119: 4.474164792e-05 | K119: 0.0024377017 | L119: -1.710827536e-05 | M119: -0.0004901446669 | N119: 1.247849606e-07
A120: 56.94796 | B120: ='DF raw data'!J125 -> 8.9863697e-06 | C120: ='DF raw data'!K125 -> 4.749535e-06 | D120: ='DF raw data'!L125 -> 5.0853791e-06 | F120: 9.000532219e-06 | G120: 4.767989279e-06 | H120: 5.093393657e-06 | J120: 4.92431741e-05 | K120: 0.002462330181 | L120: -1.47236132e-05 | M120: -0.0004975085348 | N120: 1.26106168e-07
A121: 57.4481 | B121: ='DF raw data'!J126 -> 6.2408963e-06 | C121: ='DF raw data'!K126 -> 1.5527516e-05 | D121: ='DF raw data'!L126 -> 6.389238e-06 | F121: 6.250731953e-06 | G121: 1.558784803e-05 | H121: 6.399307439e-06 | J121: 5.236941518e-05 | K121: 0.00248852222 | L121: -6.927506885e-06 | M121: -0.0005009732581 | N121: 1.275018317e-07
A122: 57.94824 | B122: ='DF raw data'!J127 -> 3.5973519e-06 | C122: ='DF raw data'!K127 -> 5.7111447e-06 | D122: ='DF raw data'!L127 -> 4.4738786e-06 | F122: 3.603021327e-06 | G122: 5.733335305e-06 | H122: 4.480929433e-06 | J122: 5.417143027e-05 | K122: 0.002515615519 | L122: -4.060036566e-06 | M122: -0.0005030038448 | N122: 1.289777587e-07
A123: 58.44838 | B123: ='DF raw data'!J128 -> 3.1725597e-06 | C123: ='DF raw data'!K128 -> 2.0362934e-06 | D123: ='DF raw data'!L128 -> 1.0679083e-06 | F123: 3.177559654e-06 | G123: 2.044205401e-06 | H123: 1.069591323e-06 | J123: 5.576065496e-05 | K123: 0.002543503653 | L123: -3.037647676e-06 | M123: -0.0005045230939 | N123: 1.305374342e-07
A124: 58.94852 | B124: ='DF raw data'!J129 -> 8.4928092e-07 | C124: ='DF raw data'!K129 -> 5.3407507e-06 | D124: ='DF raw data'!L129 -> 3.3361866e-07 | F124: 8.506193867e-07 | G124: 5.361502143e-06 | H124: 3.34144443e-07 | J124: 5.618608374e-05 | K124: 0.002571604561 | L124: -3.561459948e-07 | M124: -0.0005047012168 | N124: 1.321163776e-07
A125: 59.44866 | B125: ='DF raw data'!J130 -> 1.2203402e-06 | C125: ='DF raw data'!K130 -> -7.6924152e-06 | D125: ='DF raw data'!L130 -> 1.7547442e-06 | F125: 1.222263456e-06 | G125: -7.722304015e-06 | H125: 1.757509677e-06 | J125: 5.679738658e-05 | K125: 0.002600011206 | L125: -4.218379125e-06 | M125: -0.0005068109969 | N125: 1.337387007e-07
A126: 59.9488 | B126: ='DF raw data'!J131 -> 5.2920532e-06 | C126: ='DF raw data'!K131 -> -4.8577549e-06 | D126: ='DF raw data'!L131 -> -5.1367228e-06 | F126: 5.300393476e-06 | G126: -4.876629666e-06 | H126: -5.144818275e-06 | J126: 5.944832537e-05 | K126: 0.002629743691 | L126: -6.657376686e-06 | M126: -0.0005101406173 | N126: 1.355284137e-07
A127: 60.44894 | B127: ='DF raw data'!J132 -> 1.2170518e-05 | C127: ='DF raw data'!K132 -> -3.133209e-06 | D127: ='DF raw data'!L132 -> -4.2258021e-06 | F127: 1.218969874e-05 | G127: -3.145383058e-06 | H127: -4.232461964e-06 | J127: 6.55448813e-05 | K127: 0.002662525308 | L127: -8.230508569e-06 | M127: -0.0005142570238 | N127: 1.37710961e-07
A128: 60.94908 | B128: ='DF raw data'!J133 -> 1.1562837e-05 | C128: ='DF raw data'!K133 -> -1.0969386e-05 | D128: ='DF raw data'!L133 -> 7.8472806e-07 | F128: 1.158106003e-05 | G128: -1.101200746e-05 | H128: 7.859647914e-07 | J128: 7.133703266e-05 | K128: 0.002698203812 | L128: -1.373805398e-05 | M128: -0.0005211279741 | N128: 1.403505531e-07
A129: 61.44922 | B129: ='DF raw data'!J134 -> 4.8309539e-06 | C129: ='DF raw data'!K134 -> 7.8323701e-06 | D129: ='DF raw data'!L134 -> -1.564766e-06 | F129: 4.838567483e-06 | G129: 7.862802709e-06 | H129: -1.567232071e-06 | J129: 7.37569938e-05 | K129: 0.002735092635 | L129: -9.805551832e-06 | M129: -0.0005260321228 | N129: 1.431194496e-07
A130: 61.94936 | B130: ='DF raw data'!J135 -> 6.1389746e-06 | C130: ='DF raw data'!K135 -> 1.2384771e-05 | D130: ='DF raw data'!L135 -> -3.5267863e-06 | F130: 6.148649624e-06 | G130: 1.243289192e-05 | H130: -3.532344515e-06 | J130: 7.683217943e-05 | K130: 0.002773519481 | L130: -3.587365265e-06 | M130: -0.0005278263077 | N130: 1.460783044e-07
A131: 62.4495 | B131: ='DF raw data'!J136 -> 1.0063372e-05 | C131: ='DF raw data'!K136 -> -2.2476341e-07 | D131: ='DF raw data'!L136 -> -3.8378626e-06 | F131: 1.007923187e-05 | G131: -2.256367264e-07 | H131: -3.843911071e-06 | J131: 8.187320646e-05 | K131: 0.002814467546 | L131: -3.700215217e-06 | M131: -0.0005296769333 | N131: 1.494377015e-07
A132: 62.94964 | B132: ='DF raw data'!J137 -> 6.2485724e-06 | C132: ='DF raw data'!K137 -> 1.6440174e-06 | D132: ='DF raw data'!L137 -> -1.7098631e-06 | F132: 6.25842015e-06 | G132: 1.650405216e-06 | H132: -1.712557844e-06 | J132: 8.500329271e-05 | K132: 0.002856981093 | L132: -2.874781552e-06 | M132: -0.0005311147266 | N132: 1.530556263e-07
A133: 63.44978 | B133: ='DF raw data'!J138 -> 4.6337755e-06 | C133: ='DF raw data'!K138 -> 2.8594056e-06 | D133: ='DF raw data'!L138 -> 3.1079849e-06 | F133: 4.64107833e-06 | G133: 2.870515797e-06 | H133: 3.112883084e-06 | J133: 8.732448163e-05 | K133: 0.00290065556 | L133: -1.439121782e-06 | M133: -0.000531834489 | N133: 1.568705122e-07
A134: 63.94992 | B134: ='DF raw data'!J139 -> 8.6181117e-06 | C134: ='DF raw data'!K139 -> 4.7590083e-06 | D134: ='DF raw data'!L139 -> 7.932229e-06 | F134: 8.631693844e-06 | G134: 4.777499387e-06 | H134: 7.944730193e-06 | J134: 9.164153699e-05 | K134: 0.002946489158 | L134: 9.502967617e-07 | M134: -0.0005313592075 | N134: 1.610712253e-07
A135: 64.45006 | B135: ='DF raw data'!J140 -> 1.039752e-05 | C135: ='DF raw data'!K140 -> -1.072026e-06 | D135: ='DF raw data'!L140 -> 5.5537532e-07 | F135: 1.041390649e-05 | G135: =(1-$G$1*($B$2-$G$2))*C135*$M$2/$M$1 -> -1.076191348e-06 | H135: 5.562505915e-07 | J135: 9.684994818e-05 | K135: 0.002994927691 | L135: 4.120504209e-07 | M135: -0.0005311531246 | N135: 1.657625796e-07
A136: =A135+$B$1 -> 64.9502 | B136: ='DF raw data'!J141 -> 8.3644645e-06 | C136: ='DF raw data'!K141 -> 5.0094701e-07 | D136: ='DF raw data'!L141 -> -4.4536123e-06 | F136: 8.377646896e-06 | G136: 5.028934355e-07 | H136: -4.460631193e-06 | J136: =F136*$B$1+J135 -> 0.0001010399445 | K136: =J136*$B$1+K135 -> 0.003045461809 | L136: =G136*$B$1+L135 -> 6.635675437e-07 | M136: =L136*$B$1+M135 -> -0.000530821248 | N136: =(J136^2+L136^2)*$B$1+N135 -> 1.708687643e-07
A137: 65.45034 | B137: ='DF raw data'!J142 -> 6.0449911e-06 | C137: ='DF raw data'!K142 -> 1.1749658e-05 | D137: ='DF raw data'!L142 -> -5.113367e-06 | F137: 6.054518006e-06 | G137: 1.17953112e-05 | H137: -5.121425666e-06 | J137: 0.0001040680511 | K137: 0.003097510404 | L137: 6.562874487e-06 | M137: -0.0005275388919 | N137: 1.763069019e-07
A138: 65.95048 | B138: ='DF raw data'!J143 -> 9.142916e-07 | C138: ='DF raw data'!K143 -> 5.8300279e-06 | D138: ='DF raw data'!L143 -> -9.0336671e-06 | F138: 9.157325236e-07 | G138: 5.852680425e-06 | H138: -9.047904159e-06 | J138: 0.0001045260456 | K138: 0.00314978806 | L138: 9.490034074e-06 | M138: -0.0005227925463 | N138: 1.818163215e-07
A139: 66.45062 | B139: ='DF raw data'!J144 -> -7.9664587e-06 | C139: ='DF raw data'!K144 -> 1.4420089e-06 | D139: ='DF raw data'!L144 -> -5.0086078e-06 | F139: -7.979013839e-06 | G139: 1.447611814e-06 | H139: -5.016501366e-06 | J139: 0.0001005354216 | K139: 0.003200069846 | L139: 1.021404265e-05 | M139: -0.000517684095 | N139: 1.869236e-07
A140: 66.95076 | B140: ='DF raw data'!J145 -> -1.0320638e-05 | C140: ='DF raw data'!K145 -> 7.3976644e-06 | D140: ='DF raw data'!L145 -> 1.557797e-07 | F140: -1.033690333e-05 | G140: 7.426407964e-06 | H140: 1.560252088e-07 | J140: 9.536552279e-05 | K140: 0.003247765959 | L140: 1.392828633e-05 | M140: -0.0005107180019 | N140: 1.915691905e-07
A141: 67.4509 | B141: ='DF raw data'!J146 -> -9.4350089e-06 | C141: ='DF raw data'!K146 -> 2.993233e-06 | D141: ='DF raw data'!L146 -> 1.1789831e-06 | F141: -9.449878474e-06 | G141: 3.004863182e-06 | H141: 1.180841177e-06 | J141: 9.063926057e-05 | K141: 0.003293098278 | L141: 1.54311386e-05 | M141: -0.0005030002722 | N141: 1.957971718e-07
A142: 67.95104 | B142: ='DF raw data'!J147 -> -7.5252447e-06 | C142: ='DF raw data'!K147 -> -3.3904564e-06 | D142: ='DF raw data'!L147 -> 1.3976111e-06 | F142: -7.537104486e-06 | G142: -3.40362999e-06 | H142: 1.399813735e-06 | J142: 8.686965313e-05 | K142: 0.003336545267 | L142: 1.372884709e-05 | M142: -0.0004961339266 | N142: 1.996656636e-07
A143: 68.45118 | B143: ='DF raw data'!J148 -> -3.7087136e-06 | C143: ='DF raw data'!K148 -> 5.3747744e-06 | D143: ='DF raw data'!L148 -> 4.3434352e-06 | F143: -3.714558533e-06 | G143: 5.395658041e-06 | H143: 4.350280454e-06 | J143: 8.501185382e-05 | K143: 0.003379063095 | L143: 1.642743151e-05 | M143: -0.000487917911 | N143: 2.03415151e-07
A144: 68.95132 | B144: ='DF raw data'!J149 -> -6.1916489e-06 | C144: ='DF raw data'!K149 -> 3.2273979e-06 | D144: ='DF raw data'!L149 -> -1.4321253e-06 | F144: -6.201406939e-06 | G144: 3.239937928e-06 | H144: -1.434382329e-06 | J144: 8.191028216e-05 | K144: 0.003420029704 | L144: 1.804785406e-05 | M144: -0.0004788914573 | N144: 2.069336456e-07
A145: 69.45146 | B145: ='DF raw data'!J150 -> -9.6744461e-06 | C145: ='DF raw data'!K150 -> 5.5966639e-06 | D145: ='DF raw data'!L150 -> -1.2739603e-05 | F145: -9.689693027e-06 | G145: 5.618409691e-06 | H145: -1.275968061e-05 | J145: 7.706407909e-05 | K145: 0.003458572532 | L145: 2.085784549e-05 | M145: -0.0004684596145 | N145: 2.10121499e-07
A146: 69.9516 | B146: ='DF raw data'!J151 -> -2.1459034e-06 | C146: ='DF raw data'!K151 -> 9.3775898e-06 | D146: ='DF raw data'!L151 -> -1.3952214e-05 | F146: -2.149285344e-06 | G146: 9.414026347e-06 | H146: -1.397420269e-05 | J146: 7.598913552e-05 | K146: 0.003496577739 | L146: 2.556617662e-05 | M146: -0.0004556729469 | N146: 2.133363879e-07
A147: 70.45174 | B147: ='DF raw data'!J152 -> 8.3069262e-06 | C147: ='DF raw data'!K152 -> -1.1736975e-06 | D147: ='DF raw data'!L152 -> -8.2694296e-06 | F147: 8.320017916e-06 | G147: -1.178257892e-06 | H147: -8.282462221e-06 | J147: 8.015030928e-05 | K147: 0.003536664114 | L147: 2.497688272e-05 | M147: -0.0004431810088 | N147: 2.16861333e-07
A148: 70.95188 | B148: ='DF raw data'!J153 -> 7.9053661e-06 | C148: ='DF raw data'!K153 -> 1.4181253e-06 | D148: ='DF raw data'!L153 -> -6.5097397e-06 | F148: 7.917824957e-06 | G148: 1.423635414e-06 | H148: -6.51999905e-06 | J148: 8.411033025e-05 | K148: 0.003578731055 | L148: 2.568889974e-05 | M148: -0.0004303329624 | N148: 2.207296495e-07
A149: 71.45202 | B149: ='DF raw data'!J154 -> 1.2166659e-06 | C149: ='DF raw data'!K154 -> 2.3259638e-06 | D149: ='DF raw data'!L154 -> -5.0808144e-06 | F149: 1.218583365e-06 | G149: 2.335001313e-06 | H149: -5.088821763e-06 | J149: 8.471979253e-05 | K149: 0.003621102812 | L149: 2.685672729e-05 | M149: -0.0004169008388 | N149: 2.246801188e-07
A150: 71.95216 | B150: ='DF raw data'!J155 -> 6.6151028e-07 | C150: ='DF raw data'!K155 -> -4.6309287e-06 | D150: ='DF raw data'!L155 -> 2.7657675e-06 | F150: 6.625528202e-07 | G150: -4.648922135e-06 | H150: 2.77012635e-06 | J150: 8.50511617e-05 | K150: 0.0036636403 | L150: 2.453161538e-05 | M150: -0.0004046315967 | N150: 2.285989659e-07
A151: 72.4523 | B151: ='DF raw data'!J156 -> 7.989338e-06 | C151: ='DF raw data'!K156 -> -3.8499092e-08 | D151: ='DF raw data'!L156 -> 7.9024121e-06 | F151: =(1-$G$1*($B$2-$G$2))*B151 -> 8.001929197e-06 | G151: -3.86486799e-08 | H151: 7.914866301e-06 | J151: 8.905324657e-05 | K151: 0.003708179391 | L151: 2.451228563e-05 | M151: -0.0003923720222 | N151: 2.328658267e-07
A152: 72.95244 | B152: ='DF raw data'!J157 -> 1.4905048e-05 | C152: ='DF raw data'!K157 -> -8.5240481e-07 | D152: ='DF raw data'!L157 -> 4.9124078e-06 | F152: 1.492853836e-05 | G152: -8.557168218e-07 | H152: 4.920149755e-06 | J152: 9.651960574e-05 | K152: 0.003756452706 | L152: 2.408430741e-05 | M152: -0.0003803264967 | N152: 2.378152563e-07
A153: 73.45258 | B153: ='DF raw data'!J158 -> 1.3756357e-05 | C153: ='DF raw data'!K158 -> 2.0934003e-06 | D153: ='DF raw data'!L158 -> 4.2096594e-06 | F153: 1.377803702e-05 | G153: 2.101534189e-06 | H153: 4.216293823e-06 | J153: 0.0001034105532 | K153: 0.00380817246 | L153: 2.513536872e-05 | M153: -0.0003677552934 | N153: 2.434796065e-07
A154: 73.95272 | B154: ='DF raw data'!J159 -> 6.0500624e-06 | C154: ='DF raw data'!K159 -> 4.6965642e-06 | D154: ='DF raw data'!L159 -> 6.6058069e-06 | F154: 6.059597298e-06 | G154: 4.714812661e-06 | H154: 6.616217652e-06 | J154: 0.0001064412002 | K154: 0.003861407962 | L154: 2.749343513e-05 | M154: -0.0003540047267 | N154: 2.495241075e-07
A155: 74.45286 | B155: ='DF raw data'!J160 -> -2.5764364e-06 | C155: ='DF raw data'!K160 -> 8.6297305e-06 | D155: ='DF raw data'!L160 -> 6.5344589e-06 | F155: -2.580496864e-06 | G155: 8.663261246e-06 | H155: 6.544757207e-06 | J155: 0.0001051505905 | K155: 0.003913997978 | L155: 3.182627861e-05 | M155: -0.0003380871317 | N155: 2.555605766e-07
A156: 74.953 | B156: ='DF raw data'!J161 -> -5.5867695e-06 | C156: ='DF raw data'!K161 -> 9.9998367e-08 | D156: ='DF raw data'!L161 -> 3.5512435e-06 | F156: -5.595574249e-06 | G156: 1.003869098e-07 | H156: 3.55684026e-06 | J156: 0.00010235202 | K156: 0.003965188318 | L156: 3.187648612e-05 | M156: -0.000322144426 | N156: 2.613082086e-07
A157: 75.45314 | B157: ='DF raw data'!J162 -> -5.4202956e-06 | C157: ='DF raw data'!K162 -> -6.6123225e-06 | D157: ='DF raw data'!L162 -> -5.1794484e-07 | F157: -5.428837986e-06 | G157: -6.638014624e-06 | H157: -5.187611211e-07 | J157: 9.963684093e-05 | K157: 0.004015020687 | L157: 2.855654948e-05 | M157: -0.0003078621533 | N157: 2.66681201e-07
A158: 75.95328 | B158: ='DF raw data'!J163 -> -1.3300212e-06 | C158: ='DF raw data'!K163 -> -5.4675174e-06 | D158: ='DF raw data'!L163 -> 1.761409e-06 | F158: -1.332117313e-06 | G158: -5.488761393e-06 | H158: 1.764184981e-06 | J158: 9.897059578e-05 | K158: 0.004064519841 | L158: 2.581140036e-05 | M158: -0.0002949528395 | N158: 2.719133692e-07
A159: 76.45342 | B159: ='DF raw data'!J164 -> 5.851618e-06 | C159: ='DF raw data'!K164 -> -9.1578272e-07 | D159: ='DF raw data'!L164 -> 7.2621638e-06 | F159: 5.86084015e-06 | G159: -9.193409862e-07 | H159: 7.27360897e-06 | J159: 0.0001019018364 | K159: 0.004115485026 | L159: 2.535160116e-05 | M159: -0.0002822734897 | N159: 2.774282569e-07
A160: 76.95356 | B160: ='DF raw data'!J165 -> 6.1597329e-06 | C160: ='DF raw data'!K165 -> 7.1534923e-06 | D160: ='DF raw data'!L165 -> 7.6458473e-06 | F160: 6.169440639e-06 | G160: 7.181287135e-06 | H160: 7.657897155e-06 | J160: 0.0001049874204 | K160: 0.004167993434 | L160: 2.894325011e-05 | M160: -0.0002677978126 | N160: 2.833599524e-07
A161: 77.4537 | B161: ='DF raw data'!J166 -> -1.0120327e-06 | C161: ='DF raw data'!K166 -> -5.4747225e-06 | D161: ='DF raw data'!L166 -> 8.7495155e-06 | F161: -1.013627664e-06 | G161: -5.495994489e-06 | H161: 8.763304736e-06 | J161: 0.0001044804647 | K161: 0.004220248294 | L161: 2.619448342e-05 | M161: -0.0002546969037 | N161: 2.891627359e-07
A162: 77.95384 | B162: ='DF raw data'!J167 -> -3.8372655e-06 | C162: ='DF raw data'!K167 -> -1.2788381e-06 | D162: ='DF raw data'!L167 -> 6.4844803e-06 | F162: -3.84331303e-06 | G162: -1.283807015e-06 | H162: 6.494699841e-06 | J162: 0.0001025582701 | K162: 0.004271541787 | L162: 2.555240018e-05 | M162: -0.0002419171263 | N162: 2.947498618e-07
A163: 78.45398 | B163: ='DF raw data'!J168 -> -1.7921973e-06 | C163: ='DF raw data'!K168 -> -9.7062127e-07 | D163: ='DF raw data'!L168 -> 2.5994231e-07 | F163: -1.795021803e-06 | G163: -9.743926109e-07 | H163: 2.603519791e-07 | J163: 0.0001016605079 | K163: 0.004322386273 | L163: 2.506506746e-05 | M163: -0.0002293810834 | N163: 3.002329549e-07
A164: 78.95412 | B164: ='DF raw data'!J169 -> -2.7338954e-06 | C164: ='DF raw data'!K169 -> 6.5198465e-06 | D164: ='DF raw data'!L169 -> -5.4582631e-07 | F164: -2.738204019e-06 | G164: 6.545179309e-06 | H164: -5.466865323e-07 | J164: 0.0001002910225 | K164: 0.004372545825 | L164: 2.833857344e-05 | M164: -0.0002152078293 | N164: 3.056651575e-07
A165: 79.45426 | B165: ='DF raw data'!J170 -> -6.1625451e-06 | C165: ='DF raw data'!K170 -> 1.1033154e-05 | D165: ='DF raw data'!L170 -> -3.4951067e-06 | F165: -6.172257271e-06 | G165: 1.107602323e-05 | H165: -3.500614988e-06 | J165: 9.720402978e-05 | K165: 0.004421161449 | L165: 3.38781357e-05 | M165: -0.0001982640185 | N165: 3.109648167e-07
A166: 79.9544 | B166: ='DF raw data'!J171 -> -4.2410375e-06 | C166: ='DF raw data'!K171 -> 8.0830796e-06 | D166: ='DF raw data'!L171 -> -1.0332265e-05 | F166: -4.247721375e-06 | G166: 8.114486339e-06 | H166: -1.034854865e-05 | J166: 9.507957441e-05 | K166: 0.004468714547 | L166: 3.79365149e-05 | M166: -0.00017929045 | N166: 3.162059361e-07
A167: 80.45454 | B167: ='DF raw data'!J172 -> 4.8818783e-06 | C167: ='DF raw data'!K172 -> -4.7917088e-06 | D167: ='DF raw data'!L172 -> -1.3059454e-05 | F167: 4.88957214e-06 | G167: -4.810326945e-06 | H167: -1.30800357e-05 | J167: 9.752504502e-05 | K167: 0.004517490723 | L167: 3.553067798e-05 | M167: -0.0001615201367 | N167: 3.215942262e-07
A168: 80.95468 | B168: ='DF raw data'!J173 -> 1.2356149e-05 | C168: ='DF raw data'!K173 -> 5.6547046e-06 | D168: ='DF raw data'!L173 -> -1.0022193e-05 | F168: 1.237562229e-05 | G168: 5.676675908e-06 | H168: -1.003798798e-05 | J168: 0.0001037145888 | K168: 0.004569362537 | L168: 3.836981067e-05 | M168: -0.0001423298596 | N168: 3.277104174e-07
A169: 81.45482 | B169: ='DF raw data'!J174 -> 1.2496059e-05 | C169: ='DF raw data'!K174 -> 3.5857829e-06 | D169: ='DF raw data'!L174 -> -5.8081191e-06 | F169: 1.251575279e-05 | G169: 3.59971543e-06 | H169: -5.817272696e-06 | J169: 0.0001099742174 | K169: 0.004624365043 | L169: 4.017017234e-05 | M169: -0.0001222391496 | N169: 3.345663221e-07
A170: 81.95496 | B170: ='DF raw data'!J175 -> 9.5073501e-06 | C170: ='DF raw data'!K175 -> 9.4485921e-07 | D170: ='DF raw data'!L175 -> -3.0229698e-06 | F170: 9.522333684e-06 | G170: 9.485304526e-07 | H170: -3.027734e-06 | J170: 0.0001147367173 | K170: 0.004681749464 | L170: 4.064457036e-05 | M170: -0.0001019111742 | N170: 3.419766441e-07
A171: 82.4551 | B171: ='DF raw data'!J176 -> 6.2284835e-06 | C171: ='DF raw data'!K176 -> -2.7537421e-06 | D171: ='DF raw data'!L176 -> -1.0503703e-06 | F171: 6.23829959e-06 | G171: -2.764441742e-06 | H171: -1.052025684e-06 | J171: 0.0001178567405 | K171: 0.004740694335 | L171: 3.926196247e-05 | M171: -8.227469624e-05 | N171: 3.49694661e-07
A172: 82.95524 | B172: ='DF raw data'!J177 -> 4.2077099e-06 | C172: ='DF raw data'!K177 -> -1.2594262e-05 | D172: ='DF raw data'!L177 -> 2.3716434e-06 | F172: 4.214341251e-06 | G172: -1.26431969e-05 | H172: 2.37538111e-06 | J172: 0.0001199645011 | K172: 0.00480069338 | L172: 3.293859397e-05 | M172: -6.580078785e-05 | N172: 3.57435044e-07
A173: 83.45538 | B173: ='DF raw data'!J178 -> 8.1901835e-06 | C173: ='DF raw data'!K178 -> -4.8616243e-06 | D173: ='DF raw data'!L178 -> 3.4975324e-06 | F173: 8.203091229e-06 | G173: -4.880514101e-06 | H173: 3.503044511e-06 | J173: 0.0001240671952 | K173: 0.004862744347 | L173: 3.049765365e-05 | M173: -5.054769136e-05 | N173: 3.655987171e-07
A174: 83.95552 | B174: ='DF raw data'!J179 -> 1.2512211e-05 | C174: ='DF raw data'!K179 -> -1.2469305e-07 | D174: ='DF raw data'!L179 -> 1.0512027e-06 | F174: 1.253193024e-05 | G174: -1.251775438e-07 | H174: 1.052859395e-06 | J174: 0.0001303349148 | K174: 0.004927930051 | L174: 3.043504735e-05 | M174: -3.532590677e-05 | N174: 3.74557966e-07
A175: 84.45566 | B175: ='DF raw data'!J180 -> 9.5108862e-06 | C175: ='DF raw data'!K180 -> 3.1548134e-06 | D175: ='DF raw data'!L180 -> -2.6890616e-06 | F175: 9.525875357e-06 | G175: 3.167071401e-06 | H175: -2.693299561e-06 | J175: 0.0001350991861 | K175: 0.004995498558 | L175: 3.201902644e-05 | M175: -1.931191089e-05 | N175: 3.841991689e-07
A176: 84.9558 | B176: ='DF raw data'!J181 -> 1.0473252e-06 | C176: ='DF raw data'!K181 -> 8.5915699e-06 | D176: ='DF raw data'!L181 -> -1.3742232e-06 | F176: 1.048975785e-06 | G176: 8.624952374e-06 | H176: -1.376388976e-06 | J176: 0.0001356238208 | K176: 0.005063329456 | L176: 3.633271012e-05 | M176: -1.140469245e-06 | N176: 3.940588721e-07
A177: 85.45594 | B177: ='DF raw data'!J182 -> -5.0800136e-06 | C177: ='DF raw data'!K182 -> 2.6500584e-06 | D177: ='DF raw data'!L182 -> 1.6889986e-06 | F177: -5.088019701e-06 | G177: 2.66035518e-06 | H177: 1.691660462e-06 | J177: 0.0001330790986 | K177: 0.005129887636 | L177: 3.766326016e-05 | M177: 1.769643369e-05 | N177: 4.036258339e-07
A178: 85.95608 | B178: ='DF raw data'!J183 -> -8.2867132e-07 | C178: ='DF raw data'!K183 -> -7.6285037e-06 | D178: ='DF raw data'!L183 -> -5.7817522e-07 | F178: -8.29977306e-07 | G178: -7.658144188e-06 | H178: -5.790864241e-07 | J178: 0.0001326639938 | K178: 0.005196238206 | L178: 3.383311593e-05 | M178: 3.461772829e-05 | N178: 4.130006656e-07
A179: 86.45622 | B179: ='DF raw data'!J184 -> 1.6191645e-06 | C179: ='DF raw data'!K184 -> 1.1555789e-05 | D179: ='DF raw data'!L184 -> -3.1900564e-07 | F179: 1.621716303e-06 | G179: 1.160068892e-05 | H179: -3.195083929e-07 | J179: 0.000133475079 | K179: 0.005262994432 | L179: 3.963508449e-05 | M179: 5.444081945e-05 | N179: 4.226966481e-07
A180: 86.95636 | B180: ='DF raw data'!J185 -> -3.2431324e-06 | C180: ='DF raw data'!K185 -> 9.4699217e-06 | D180: ='DF raw data'!L185 -> 6.2604609e-06 | F180: -3.248243577e-06 | G180: 9.506717002e-06 | H180: 6.270327386e-06 | J180: 0.0001318505024 | K180: 0.005328938143 | L180: 4.438977393e-05 | M180: 7.664192098e-05 | N180: 4.323768613e-07
A181: 87.4565 | B181: ='DF raw data'!J186 -> -1.6209212e-06 | C181: ='DF raw data'!K186 -> -1.3539327e-05 | D181: ='DF raw data'!L186 -> 5.5728174e-06 | F181: -1.623475772e-06 | G181: -1.359193394e-05 | H181: 5.58160016e-06 | J181: 0.0001310385373 | K181: 0.005394475757 | L181: 3.759190409e-05 | M181: 9.544313589e-05 | N181: 4.416715878e-07
A182: 87.95664 | B182: ='DF raw data'!J187 -> 4.0895629e-06 | C182: ='DF raw data'!K187 -> -2.8854347e-06 | D182: ='DF raw data'!L187 -> 1.7098224e-06 | F182: 4.096008051e-06 | G182: -2.896646033e-06 | H182: 1.71251708e-06 | J182: 0.0001330871147 | K182: 0.005461037946 | L182: 3.614317554e-05 | M182: 0.0001135197837 | N182: 4.51183505e-07
A183: 88.45678 | B183: ='DF raw data'!J188 -> 5.802156e-06 | C183: ='DF raw data'!K188 -> 1.5790572e-07 | D183: ='DF raw data'!L188 -> 4.6688815e-06 | F183: 5.811300198e-06 | G183: 1.585192614e-07 | H183: 4.676239657e-06 | J183: 0.0001359935784 | K183: 0.005529053774 | L183: 3.622245736e-05 | M183: 0.0001316360835 | N183: 4.610894378e-07
A184: 88.95692 | B184: ='DF raw data'!J189 -> 5.0771214e-06 | C184: ='DF raw data'!K189 -> -8.9055357e-06 | D184: ='DF raw data'!L189 -> 4.5686552e-06 | F184: 5.085122943e-06 | G184: -8.940138085e-06 | H184: 4.575855401e-06 | J184: 0.0001385368518 | K184: 0.005598341596 | L184: 3.17511367e-05 | M184: 0.000147516097 | N184: 4.711925629e-07
A185: 89.45706 | B185: ='DF raw data'!J190 -> 2.8612433e-06 | C185: ='DF raw data'!K190 -> -7.8558633e-06 | D185: ='DF raw data'!L190 -> 1.1176904e-06 | F185: 2.865752619e-06 | G185: -7.886387192e-06 | H185: 1.11945188e-06 | J185: 0.0001399701293 | K185: 0.005668346256 | L185: 2.780683901e-05 | M185: 0.0001614234095 | N185: 4.813778427e-07
A186: 89.9572 | B186: ='DF raw data'!J191 -> 5.6492922e-07 | C186: ='DF raw data'!K191 -> -4.7894405e-06 | D186: ='DF raw data'!L191 -> -2.2737063e-06 | F186: 5.658195485e-07 | G186: -4.808049831e-06 | H186: -2.277289661e-06 | J186: 0.0001402531183 | K186: 0.005738492451 | L186: 2.540214097e-05 | M186: 0.0001741280363 | N186: 4.915387899e-07
A187: 90.45734 | B187: ='DF raw data'!J192 -> 3.4017814e-06 | C187: ='DF raw data'!K192 -> -5.960931e-06 | D187: ='DF raw data'!L192 -> -4.9399955e-06 | F187: 3.407142607e-06 | G187: -5.984092148e-06 | H187: -4.947780933e-06 | J187: 0.0001419571666 | K187: 0.005809490908 | L187: 2.240925712e-05 | M187: 0.0001853358021 | N187: 5.018686874e-07
A188: 90.95748 | B188: ='DF raw data'!J193 -> 7.4162253e-06 | C188: ='DF raw data'!K193 -> -7.0797178e-06 | D188: ='DF raw data'!L193 -> -8.1127637e-06 | F188: 7.427913271e-06 | G188: -7.107225985e-06 | H188: -8.125549416e-06 | J188: 0.0001456721631 | K188: 0.005882347384 | L188: 1.885464912e-05 | M188: 0.0001947657664 | N188: 5.126596465e-07
A189: 91.45762 | B189: ='DF raw data'!J194 -> 3.7335869e-06 | C189: ='DF raw data'!K194 -> -1.6066687e-06 | D189: ='DF raw data'!L194 -> -8.5192714e-06 | F189: 3.739471033e-06 | G189: -1.612911398e-06 | H189: -8.532697772e-06 | J189: 0.0001475424222 | K189: 0.005956139251 | L189: 1.804796761e-05 | M189: 0.0002037922769 | N189: 5.237099875e-07
A190: 91.95776 | B190: ='DF raw data'!J195 -> -2.4394665e-06 | C190: ='DF raw data'!K195 -> -3.0893113e-06 | D190: ='DF raw data'!L195 -> 1.7129204e-07 | F190: -2.443311099e-06 | G190: -3.101314793e-06 | H190: 1.715619963e-07 | J190: 0.0001463204246 | K190: 0.006029319948 | L190: 1.649687603e-05 | M190: 0.0002120430245 | N190: 5.345539297e-07
A191: 92.4579 | B191: ='DF raw data'!J196 -> -1.2843645e-06 | C191: ='DF raw data'!K196 -> -1.4657046e-05 | D191: ='DF raw data'!L196 -> 2.4122287e-06 | F191: -1.286388658e-06 | G191: -1.471399583e-05 | H191: 2.416030372e-06 | J191: 0.0001456770502 | K191: 0.006102178868 | L191: 9.137818155e-06 | M191: 0.0002166132128 | N191: 5.452095638e-07
A192: 92.95804 | B192: ='DF raw data'!J197 -> 1.4038326e-06 | C192: ='DF raw data'!K197 -> -2.062189e-06 | D192: ='DF raw data'!L197 -> -2.1142464e-06 | F192: 1.40604504e-06 | G192: -2.070201618e-06 | H192: -2.117578452e-06 | J192: 0.0001463802695 | K192: 0.006175389496 | L192: 8.102427518e-06 | M192: 0.0002206655609 | N192: 5.559589891e-07
A193: 93.45818 | B193: ='DF raw data'!J198 -> -9.7878888e-07 | C193: ='DF raw data'!K198 -> 7.7703262e-06 | D193: ='DF raw data'!L198 -> -5.7111597e-06 | F193: -9.803314513e-07 | G193: 7.800517738e-06 | H193: -5.720160488e-06 | J193: 0.0001458899665 | K193: 0.006248354903 | L193: 1.200377846e-05 | M193: 0.0002266691307 | N193: 5.666759756e-07
A194: 93.95832 | B194: ='DF raw data'!J199 -> -5.9434078e-06 | C194: ='DF raw data'!K199 -> -4.2032948e-06 | D194: ='DF raw data'!L199 -> 2.6826601e-07 | F194: -5.952774611e-06 | G194: -4.219626667e-06 | H194: 2.686887972e-07 | J194: 0.0001429127459 | K194: 0.006319831284 | L194: 9.893374378e-06 | M194: 0.0002316172029 | N194: 5.769398145e-07
A195: 94.45846 | B195: ='DF raw data'!J200 -> -8.3527393e-06 | C195: ='DF raw data'!K200 -> -9.5994901e-06 | D195: ='DF raw data'!L200 -> 5.6516888e-06 | F195: -8.365903217e-06 | G195: -9.636788839e-06 | H195: 5.660595862e-06 | J195: 0.000138728623 | K195: 0.006389215018 | L195: 5.073630808e-06 | M195: 0.0002341547287 | N195: 5.865781988e-07
A196: 94.9586 | B196: ='DF raw data'!J201 -> -7.8281573e-06 | C196: ='DF raw data'!K201 -> -4.9363439e-06 | D196: ='DF raw data'!L201 -> -1.8771083e-06 | F196: -7.840494476e-06 | G196: -4.955524023e-06 | H196: -1.880066623e-06 | J196: 0.0001348072781 | K196: 0.00645663753 | L196: 2.595175023e-06 | M196: 0.0002354526795 | N196: 5.956706125e-07
A197: 95.45874 | B197: ='DF raw data'!J202 -> -5.5098044e-06 | C197: ='DF raw data'!K202 -> 8.2077196e-07 | D197: ='DF raw data'!L202 -> -6.0287553e-06 | F197: -5.518487852e-06 | G197: 8.239610626e-07 | H197: -6.038256618e-06 | J197: 0.0001320472616 | K197: 0.006522679647 | L197: 3.007270909e-06 | M197: 0.000236956736 | N197: 6.043958164e-07
A198: 95.95888 | B198: ='DF raw data'!J203 -> -1.5793973e-06 | C198: ='DF raw data'!K203 -> 1.2951036e-05 | D198: ='DF raw data'!L203 -> -5.276494e-06 | F198: -1.58188643e-06 | G198: 1.300135714e-05 | H198: -5.284809755e-06 | J198: 0.0001312560969 | K198: 0.006588326071 | L198: 9.509769671e-06 | M198: 0.0002417129522 | N198: 6.130575404e-07
A199: 96.45902 | B199: ='DF raw data'!J204 -> -1.0455385e-06 | C199: ='DF raw data'!K204 -> 1.1175387e-05 | D199: ='DF raw data'!L204 -> -1.3084049e-06 | F199: -1.047186269e-06 | G199: =(1-$G$1*($B$2-$G$2))*C199*$M$2/$M$1 -> 1.121880887e-05 | H199: -1.310466946e-06 | J199: 0.0001307323572 | K199: 0.006653710553 | L199: 1.512074474e-05 | M199: 0.0002492754414 | N199: 6.217197582e-07
A200: =A199+$B$1 -> 96.95916 | B200: ='DF raw data'!J205 -> -4.8480561e-06 | C200: ='DF raw data'!K205 -> 3.9354959e-06 | D200: ='DF raw data'!L205 -> -9.2737753e-07 | F200: -4.855696636e-06 | G200: 3.950787237e-06 | H200: -9.28839077e-07 | J200: =F200*$B$1+J199 -> 0.0001283038291 | K200: =J200*$B$1+K199 -> 0.00671788043 | L200: =G200*$B$1+L199 -> 1.709669147e-05 | M200: =L200*$B$1+M199 -> 0.0002578261807 | N200: =(J200^2+L200^2)*$B$1+N199 -> 6.300991885e-07
A201: 97.4593 | B201: ='DF raw data'!J206 -> -4.7293706e-06 | C201: ='DF raw data'!K206 -> -1.8236212e-06 | D201: ='DF raw data'!L206 -> -1.5583777e-06 | F201: -4.736824088e-06 | G201: -1.830706865e-06 | H201: -1.560833703e-06 | J201: 0.0001259347539 | K201: 0.006780865437 | L201: 1.618108174e-05 | M201: 0.0002659189869 | N201: 6.381621403e-07
... 1002 more rows

Sheet 10 y=0.2
A1: dz | B1: ='DF raw data'!N7 -> 0.50016 | C1: mm | F1: T_coeff | G1: -0.0008 | H1: /degC | L1: Hallref | M1: ='PI vs gap'!B44 -> 0.505235 | N1: T | P1: IBy total | Q1: =L1203*1000 -> -15.82366775 | R1: muTm | X1: DF ref | Y1: 21
A2: Tref | B2: ='DF raw data'!N8 -> 21.87 | C2: degC | F2: Tcorr | G2: 20 | H2: degC | L2: NMRref | M2: ='PI vs gap'!B45 -> 0.5064 | N2: T | P2: JBy total | Q2: =M1203 -> -5.538279356 | R2: muTm^2
A3: Encoder | B3: ='DF raw data'!N9 -> 14640958 | P3: PI total | Q3: =N1203 -> 706.4049333 | R3: T^2mm^3
A5: z [mm] | B5: Bx | C5: By | D5: Bz | F5: Bx_corr | G5: By_corr | H5: Bz_corr | J5: Ix | K5: Jx | L5: Iy | M5: Jy | N5: PI
A6: ='[1]PI vs x'!B53 -> -0.068 | B6: ='DF raw data'!M11 -> -8.1289909e-06 | C6: ='DF raw data'!N11 -> -4.332428e-06 | D6: ='DF raw data'!O11 -> -1.2870461e-05 | F6: =(1-$G$1*($B$2-$G$2))*B6 -> -8.14115187e-06 | G6: =(1-$G$1*($B$2-$G$2))*C6*$M$2/$M$1 -> -4.34891422e-06 | H6: =(1-$G$1*($B$2-$G$2))*D6 -> -1.288971521e-05 | J6: =F6*$B$1 -> -4.071878519e-06 | K6: =J6*$B$1 -> -2.03659076e-06 | L6: =G6*$B$1 -> -2.175152936e-06 | M6: =L6*$B$1 -> -1.087924493e-06 | N6: =(J6^2+L6)^2*$B$1 -> 2.366366078e-12
A7: =A6+$B$1 -> 0.43216 | B7: ='DF raw data'!M12 -> -8.4237545e-06 | C7: ='DF raw data'!N12 -> 3.8297121e-06 | D7: ='DF raw data'!O12 -> -1.1806992e-05 | F7: =(1-$G$1*($B$2-$G$2))*B7 -> -8.436356437e-06 | G7: =(1-$G$1*($B$2-$G$2))*C7*$M$2/$M$1 -> 3.844285331e-06 | H7: -1.182465526e-05 | J7: =F7*$B$1+J6 -> -8.291406555e-06 | K7: =J7*$B$1+K6 -> -6.183620663e-06 | L7: =G7*$B$1+L6 -> -2.523951848e-07 | M7: =L7*$B$1+M6 -> -1.214162468e-06 | N7: =(J7^2+L7^2)*$B$1+N6 -> 3.678293885e-11
A8: =A7+$B$1 -> 0.93232 | B8: ='DF raw data'!M13 -> -8.5844222e-06 | C8: ='DF raw data'!N13 -> 8.4601688e-06 | D8: ='DF raw data'!O13 -> -9.7125348e-06 | F8: -8.597264496e-06 | G8: 8.492362342e-06 | H8: -9.727064752e-06 | J8: =F8*$B$1+J7 -> -1.259141437e-05 | K8: =J8*$B$1+K7 -> -1.248134247e-05 | L8: =G8*$B$1+L7 -> 3.995144764e-06 | M8: =L8*$B$1+M7 -> 7.840491369e-07 | N8: =(J8^2+L8^2)*$B$1+N7 -> 1.240633083e-10
A9: 1.43248 | B9: ='DF raw data'!M14 -> -8.3614141e-06 | C9: ='DF raw data'!N14 -> 2.9018593e-06 | D9: ='DF raw data'!O14 -> -6.2133226e-06 | F9: -8.373922775e-06 | G9: 2.912901766e-06 | H9: -6.222617731e-06 | J9: -1.677971558e-05 | K9: -2.087388502e-05 | L9: 5.452061711e-06 | M9: 3.510952322e-06 | N9: 2.797550297e-10
A10: 1.93264 | B10: ='DF raw data'!M15 -> -8.459072e-06 | C10: ='DF raw data'!N15 -> 6.3801726e-06 | D10: ='DF raw data'!O15 -> -1.0372065e-06 | F10: -8.471726772e-06 | G10: 6.404451117e-06 | H10: -1.038758161e-06 | J10: -2.101693444e-05 | K10: -3.138571495e-05 | L10: 8.655311982e-06 | M10: 7.839993163e-06 | N10: 5.381506693e-10
A11: 2.4328 | B11: ='DF raw data'!M16 -> -8.5316278e-06 | C11: ='DF raw data'!N16 -> 8.7239541e-06 | D11: ='DF raw data'!O16 -> 1.5308427e-06 | F11: -8.544391115e-06 | G11: 8.757151426e-06 | H11: 1.533132841e-06 | J11: -2.52904971e-05 | K11: -4.403500998e-05 | L11: 1.303528884e-05 | M11: 1.435972323e-05 | N11: 9.430441932e-10
A12: 2.93296 | B12: ='DF raw data'!M17 -> -7.921597e-06 | C12: ='DF raw data'!N17 -> -7.8873281e-06 | D12: ='DF raw data'!O17 -> 1.7727028e-06 | F12: -7.933447709e-06 | G12: -7.917341807e-06 | H12: 1.775354763e-06 | J12: -2.925849031e-05 | K12: -5.866893649e-05 | L12: 9.075351161e-06 | M12: 1.889885087e-05 | N12: 1.412404967e-09
A13: 3.43312 | B13: ='DF raw data'!M18 -> -8.2333863e-06 | C13: ='DF raw data'!N18 -> 1.0629661e-06 | D13: ='DF raw data'!O18 -> 4.0557675e-06 | F13: -8.245703446e-06 | G13: 1.067011013e-06 | H13: 4.061834928e-06 | J13: -3.338266134e-05 | K13: -7.536560839e-05 | L13: 9.609027389e-06 | M13: 2.3704902e-05 | N13: 2.015965788e-09
A14: 3.93328 | B14: ='DF raw data'!M19 -> -7.8738813e-06 | C14: ='DF raw data'!N19 -> -8.4861495e-06 | D14: ='DF raw data'!O19 -> 4.9057958e-06 | F14: -7.885660626e-06 | G14: -8.518441906e-06 | H14: 4.913134871e-06 | J14: -3.732675336e-05 | K14: -9.403495735e-05 | L14: 5.348443485e-06 | M14: 2.63799795e-05 | N14: 2.727139473e-09
A15: 4.43344 | B15: ='DF raw data'!M20 -> -7.9993624e-06 | C15: ='DF raw data'!N20 -> -5.1892976e-06 | D15: ='DF raw data'!O20 -> 3.6821323e-06 | F15: -8.011329446e-06 | G15: -5.209044472e-06 | H15: 3.68764077e-06 | J15: -4.13336999e-05 | K15: -0.0001147084207 | L15: 2.743087802e-06 | M15: 2.775196229e-05 | N15: 3.585413672e-09
A16: 4.9336 | B16: ='DF raw data'!M21 -> -8.7530934e-06 | C16: ='DF raw data'!N21 -> 1.4222488e-05 | D16: ='DF raw data'!O21 -> -2.738471e-06 | F16: -8.766188028e-06 | G16: 1.427660894e-05 | H16: -2.742567753e-06 | J16: -4.57181965e-05 | K16: -0.0001375748339 | L16: 9.883676528e-06 | M16: 3.269538195e-05 | N16: 4.679684003e-09
A17: 5.43376 | B17: ='DF raw data'!M22 -> -8.3273044e-06 | C17: ='DF raw data'!N22 -> 1.5729248e-06 | D17: ='DF raw data'!O22 -> -8.2749075e-06 | F17: -8.339762047e-06 | G17: 1.578910262e-06 | H17: -8.287286762e-06 | J17: -4.988941189e-05 | K17: -0.0001625275221 | L17: 1.067338428e-05 | M17: 3.803378183e-05 | N17: 5.981537738e-09
A18: 5.93392 | B18: ='DF raw data'!M23 -> -7.9993624e-06 | C18: ='DF raw data'!N23 -> -5.8198743e-06 | D18: ='DF raw data'!O23 -> 9.4949371e-07 | F18: -8.011329446e-06 | G18: -5.84202071e-06 | H18: 9.509141526e-07 | J18: -5.389635842e-05 | K18: -0.0001894843247 | L18: 7.751439206e-06 | M18: 4.191074166e-05 | N18: 7.464463253e-09
A19: 6.43408 | B19: ='DF raw data'!M24 -> -8.4509957e-06 | C19: ='DF raw data'!N24 -> 7.8769581e-06 | D19: ='DF raw data'!O24 -> 9.13245e-06 | F19: -8.46363839e-06 | G19: 7.906932346e-06 | H19: 9.146112145e-06 | J19: -5.81295318e-05 | K19: -0.0002185583914 | L19: 1.170617049e-05 | M19: 4.776569989e-05 | N19: 9.223064273e-09
A20: 6.93424 | B20: ='DF raw data'!M25 -> -8.155097e-06 | C20: ='DF raw data'!N25 -> -7.5991574e-07 | D20: ='DF raw data'!O25 -> 5.8338296e-06 | F20: -8.167297025e-06 | G20: -7.628074529e-07 | H20: 5.842557009e-06 | J20: -6.221448708e-05 | K20: -0.0002496755892 | L20: 1.132464471e-05 | M20: 5.342983419e-05 | N20: 1.122314909e-08
A21: 7.4344 | B21: ='DF raw data'!M26 -> -7.8860903e-06 | C21: ='DF raw data'!N26 -> -9.5642408e-06 | D21: ='DF raw data'!O26 -> -3.2078722e-06 | F21: -7.897887891e-06 | G21: -9.600635675e-06 | H21: -3.212671177e-06 | J21: -6.616469469e-05 | K21: -0.0002827685229 | L21: 6.522790774e-06 | M21: 5.669227323e-05 | N21: 1.343401315e-08
A22: 7.93456 | B22: ='DF raw data'!M27 -> -8.2409242e-06 | C22: ='DF raw data'!N27 -> 6.7349556e-06 | D22: ='DF raw data'!O27 -> -6.4464007e-06 | F22: -8.253252623e-06 | G22: 6.760584175e-06 | H22: -6.456044515e-06 | J22: -7.029264152e-05 | K22: -0.0003179260905 | L22: 9.904164555e-06 | M22: 6.164594017e-05 | N22: 1.595439337e-08
A23: 8.43472 | B23: ='DF raw data'!M28 -> -7.2925613e-06 | C23: ='DF raw data'!N28 -> 1.1429901e-07 | D23: ='DF raw data'!O28 -> -2.3963059e-07 | F23: =(1-$G$1*($B$2-$G$2))*B23 -> -7.303470972e-06 | G23: 1.147339528e-07 | H23: -2.399890774e-07 | J23: -7.394554556e-05 | K23: -0.0003549106946 | L23: 9.961549889e-06 | M23: 6.662830896e-05 | N23: 1.873887222e-08
A24: 8.93488 | B24: ='DF raw data'!M29 -> -4.567577e-06 | C24: ='DF raw data'!N29 -> -1.0612712e-05 | D24: ='DF raw data'!O29 -> 2.6453592e-06 | F24: -4.574410095e-06 | G24: -1.065309663e-05 | H24: 2.649316657e-06 | J24: -7.623348252e-05 | K24: -0.0003930396332 | L24: 4.633297078e-06 | M24: 6.894569883e-05 | N24: 2.165631115e-08
A25: 9.43504 | B25: ='DF raw data'!M30 -> -5.5526453e-07 | C25: ='DF raw data'!N30 -> -5.2528089e-06 | D25: ='DF raw data'!O30 -> -1.8674078e-06 | F25: -5.560952057e-07 | G25: -5.272797452e-06 | H25: -1.870201442e-06 | J25: -7.651161909e-05 | K25: -0.0004313076846 | L25: 1.996054705e-06 | M25: 6.994404555e-05 | N25: 2.458625447e-08
A26: 9.9352 | B26: ='DF raw data'!M31 -> 9.8480228e-08 | C26: ='DF raw data'!N31 -> -1.8706969e-06 | D26: ='DF raw data'!O31 -> -2.0891646e-06 | F26: 9.862755442e-08 | G26: -1.877815476e-06 | H26: -2.09228999e-06 | J26: -7.646228954e-05 | K26: -0.0004695510633 | L26: 1.056846516e-06 | M26: 7.04726379e-05 | N26: 2.751098941e-08
A27: 10.43536 | B27: ='DF raw data'!M32 -> -2.4221806e-06 | C27: ='DF raw data'!N32 -> 1.0636332e-06 | D27: ='DF raw data'!O32 -> 3.1527627e-06 | F27: -2.425804182e-06 | G27: 1.067680651e-06 | H27: 3.157479233e-06 | J27: -7.767557976e-05 | K27: -0.0005084012813 | L27: 1.590857671e-06 | M27: 7.126832128e-05 | N27: 3.052996844e-08
A28: 10.93552 | B28: ='DF raw data'!M33 -> -1.7048877e-06 | C28: ='DF raw data'!N33 -> -5.3196559e-06 | D28: ='DF raw data'!O33 -> 4.5830125e-06 | F28: -1.707438212e-06 | G28: -5.339898825e-06 | H28: 4.589868687e-06 | J28: -7.852957205e-05 | K28: -0.000547678632 | L28: -1.079946126e-06 | M28: 7.072817542e-05 | N28: 3.361498531e-08
A29: 11.43568 | B29: ='DF raw data'!M34 -> 5.1797178e-06 | C29: ='DF raw data'!N34 -> -3.5272848e-08 | D29: ='DF raw data'!O34 -> 3.7060397e-07 | F29: 5.187466658e-06 | G29: -3.540707202e-08 | H29: 3.711583935e-07 | J29: -7.593500873e-05 | K29: -0.000585658286 | L29: -1.097655327e-06 | M29: 7.017917214e-05 | N29: 3.649957328e-08
A30: 11.93584 | B30: ='DF raw data'!M35 -> 1.0169439e-05 | C30: ='DF raw data'!N35 -> -2.4532401e-06 | D30: ='DF raw data'!O35 -> -5.9140334e-06 | F30: 1.018465248e-05 | G30: -2.462575432e-06 | H30: -5.922880794e-06 | J30: -7.084105294e-05 | K30: -0.0006210901471 | L30: -2.329337055e-06 | M30: 6.901413091e-05 | N30: 3.90123174e-08
A31: 12.436 | B31: ='DF raw data'!M36 -> 8.2418483e-06 | C31: ='DF raw data'!N36 -> 2.8583622e-06 | D31: ='DF raw data'!O36 -> -5.4850284e-06 | F31: 8.254178105e-06 | G31: 2.869239146e-06 | H31: -5.493234002e-06 | J31: -6.671264322e-05 | K31: -0.0006544571427 | L31: -8.942584036e-07 | M31: 6.856685863e-05 | N31: 4.123871785e-08
A32: 12.93616 | B32: ='DF raw data'!M37 -> 6.4070337e-06 | C32: ='DF raw data'!N37 -> 1.8608293e-07 | D32: ='DF raw data'!O37 -> 2.4055582e-06 | F32: 6.416618622e-06 | G32: 1.867910327e-07 | H32: 2.409156915e-06 | J32: -6.350330725e-05 | K32: -0.0006862189568 | L32: -8.008330006e-07 | M32: 6.8166314e-05 | N32: 4.325601886e-08
A33: 13.43632 | B33: ='DF raw data'!M38 -> 8.5868742e-06 | C33: ='DF raw data'!N38 -> 2.5517465e-06 | D33: ='DF raw data'!O38 -> 8.1630888e-06 | F33: 8.599720164e-06 | G33: 2.561456679e-06 | H33: 8.175300781e-06 | J33: -5.920207121e-05 | K33: -0.0007158294648 | L33: 4.803051721e-07 | M33: 6.840654343e-05 | N33: 4.500913765e-08
A34: 13.93648 | B34: ='DF raw data'!M39 -> 7.7159275e-06 | C34: ='DF raw data'!N39 -> 7.6466631e-06 | D34: ='DF raw data'!O39 -> 6.761325e-06 | F34: 7.727470528e-06 | G34: 7.675761002e-06 | H34: 6.771439942e-06 | J34: -5.533709956e-05 | K34: -0.0007435068685 | L34: 4.319413795e-06 | M34: 7.056694144e-05 | N34: 4.655005654e-08
A35: 14.43664 | B35: ='DF raw data'!M40 -> 2.5932388e-06 | C35: ='DF raw data'!N40 -> -3.5839018e-06 | D35: ='DF raw data'!O40 -> 1.2625636e-06 | F35: 2.597118285e-06 | G35: -3.597539647e-06 | H35: 1.264452395e-06 | J35: -5.403812487e-05 | K35: -0.000770534577 | L35: 2.520068365e-06 | M35: 7.182737883e-05 | N35: 4.801375962e-08
A36: 14.9368 | B36: ='DF raw data'!M41 -> -3.0273293e-06 | C36: ='DF raw data'!N41 -> -4.7483209e-06 | D36: ='DF raw data'!O41 -> 7.9017291e-06 | F36: -3.031858185e-06 | G36: -4.76638972e-06 | H36: 7.913550087e-06 | J36: -5.555453906e-05 | K36: -0.0007983207353 | L36: 1.361108828e-07 | M36: 7.189545605e-05 | N36: 4.95574161e-08
A37: 15.43696 | B37: ='DF raw data'!M42 -> -5.9568993e-06 | C37: ='DF raw data'!N42 -> -7.3642937e-06 | D37: ='DF raw data'!O42 -> 7.4435043e-06 | F37: -5.965810821e-06 | G37: -7.3923171e-06 | H37: 7.454639782e-06 | J37: -5.8538399e-05 | K37: -0.0008275993009 | L37: -3.561230438e-06 | M37: 7.011427103e-05 | N37: 5.127767967e-08
A38: 15.93712 | B38: ='DF raw data'!M43 -> -7.2745315e-06 | C38: ='DF raw data'!N43 -> -5.0391918e-06 | D38: ='DF raw data'!O43 -> 1.9477332e-06 | F38: -7.285414199e-06 | G38: -5.058367473e-06 | H38: 1.950647009e-06 | J38: -6.218227177e-05 | K38: -0.000858700386 | L38: -6.091223513e-06 | M38: 6.706768468e-05 | N38: 5.323017323e-08
A39: 16.43728 | B39: ='DF raw data'!M44 -> -3.481691e-06 | C39: ='DF raw data'!N44 -> 3.9009282e-07 | D39: ='DF raw data'!O44 -> -2.0502382e-06 | F39: -3.48689961e-06 | G39: 3.91577243e-07 | H39: -2.053305356e-06 | J39: -6.392627948e-05 | K39: -0.0008906737539 | L39: -5.895372239e-06 | M39: 6.41190553e-05 | N39: 5.529149496e-08
A40: 16.93744 | B40: ='DF raw data'!M45 -> 1.4986146e-06 | C40: ='DF raw data'!N45 -> 9.5085483e-08 | D40: ='DF raw data'!O45 -> 1.9297688e-06 | F40: 1.500856527e-06 | G40: 9.544731248e-08 | H40: 1.932655734e-06 | J40: -6.317561108e-05 | K40: -0.0009222716676 | L40: -5.847633312e-06 | M40: 6.119430302e-05 | N40: 5.730481534e-08
A41: 17.4376 | B41: ='DF raw data'!M46 -> 4.2415486e-06 | C41: ='DF raw data'!N46 -> -4.6678642e-06 | D41: ='DF raw data'!O46 -> 1.6844455e-06 | F41: 4.247893957e-06 | G41: -4.685626857e-06 | H41: 1.68696543e-06 | J41: -6.105098444e-05 | K41: -0.0009528069279 | L41: -8.191196441e-06 | M41: 5.709739421e-05 | N41: 5.920258163e-08
A42: 17.93776 | B42: ='DF raw data'!M47 -> 4.1733365e-06 | C42: ='DF raw data'!N47 -> -7.0094092e-07 | D42: ='DF raw data'!O47 -> -5.9583238e-07 | F42: 4.179579811e-06 | G42: -7.036082156e-07 | H42: -5.967237452e-07 | J42: -5.89605258e-05 | K42: -0.0009822966245 | L42: -8.543113126e-06 | M42: 5.282447075e-05 | N42: 6.097781371e-08
A43: 18.43792 | B43: ='DF raw data'!M48 -> 4.6707297e-07 | C43: ='DF raw data'!N48 -> 3.8994945e-06 | D43: ='DF raw data'!O48 -> 7.7452148e-07 | F43: 4.677717112e-07 | G43: 3.914333275e-06 | H43: 7.756801641e-07 | J43: -5.87265651e-05 | K43: -0.001011669303 | L43: -6.585320195e-06 | M43: 4.9530757e-05 | N43: 6.272446041e-08
A44: 18.93808 | B44: ='DF raw data'!M49 -> -3.1020243e-06 | C44: ='DF raw data'!N49 -> 2.2268514e-06 | D44: ='DF raw data'!O49 -> -3.7718985e-07 | F44: -3.106664928e-06 | G44: 2.235325254e-06 | H44: -3.77754126e-07 | J44: -6.028039463e-05 | K44: -0.001041819146 | L44: -5.467299916e-06 | M44: 4.679623228e-05 | N44: 6.455685526e-08
A45: 19.43824 | B45: ='DF raw data'!M50 -> -8.4041659e-07 | C45: ='DF raw data'!N50 -> -4.120946e-06 | D45: ='DF raw data'!O50 -> -1.15368e-06 | F45: -8.416738532e-07 | G45: -4.136627466e-06 | H45: -1.155405905e-06 | J45: -6.070136622e-05 | K45: -0.001072179541 | L45: -7.536275509e-06 | M45: 4.302688872e-05 | N45: 6.642817954e-08
A46: 19.9384 | B46: ='DF raw data'!M51 -> 2.0735972e-06 | C46: ='DF raw data'!N51 -> 4.3518121e-06 | D46: ='DF raw data'!O51 -> 4.4269432e-06 | F46: 2.076699301e-06 | G46: 4.368372082e-06 | H46: 4.433565907e-06 | J46: -5.96626843e-05 | K46: -0.001102020429 | L46: -5.351390529e-06 | M46: 4.035033723e-05 | N46: 6.822289031e-08
A47: 20.43856 | B47: ='DF raw data'!M52 -> 2.2854585e-06 | C47: ='DF raw data'!N52 -> 1.3382697e-05 | D47: ='DF raw data'!O52 -> 8.6911923e-06 | F47: 2.288877546e-06 | G47: 1.343362227e-05 | H47: 8.704194324e-06 | J47: -5.851787931e-05 | K47: -0.001131288732 | L47: 1.367569988e-06 | M47: 4.103434104e-05 | N47: 6.993654472e-08
A48: 20.93872 | B48: ='DF raw data'!M53 -> 1.8051665e-07 | C48: ='DF raw data'!N53 -> -1.0677157e-05 | D48: ='DF raw data'!O53 -> 2.2492925e-06 | F48: 1.807867029e-07 | G48: -1.071778686e-05 | H48: 2.252657442e-06 | J48: -5.842745703e-05 | K48: -0.001160511808 | L48: -3.99303829e-06 | M48: 3.9037183e-05 | N48: 7.165194952e-08
A49: 21.43888 | B49: ='DF raw data'!M54 -> -5.5873097e-06 | C49: ='DF raw data'!N54 -> 1.2015868e-05 | D49: ='DF raw data'!O54 -> 2.9850446e-06 | F49: -5.595668315e-06 | G49: 1.206159207e-05 | H49: 2.989510227e-06 | J49: -6.12261865e-05 | K49: -0.001191134698 | L49: 2.0396876e-06 | M49: 4.005735315e-05 | N49: 7.352895309e-08
A50: 21.93904 | B50: ='DF raw data'!M55 -> -8.1187172e-06 | C50: ='DF raw data'!N55 -> 7.7630111e-06 | D50: ='DF raw data'!O55 -> 9.2484506e-06 | F50: -8.130862801e-06 | G50: 7.792551742e-06 | H50: 9.262286282e-06 | J50: -6.529291883e-05 | K50: -0.001223791604 | L50: 5.937210279e-06 | M50: 4.302690825e-05 | N50: 7.56788487e-08
A51: 22.4392 | B51: ='DF raw data'!M56 -> -7.4401323e-06 | C51: ='DF raw data'!N56 -> -5.1687498e-06 | D51: ='DF raw data'!O56 -> 7.8514813e-06 | F51: -7.451262738e-06 | G51: -5.188418481e-06 | H51: 7.863227116e-06 | J51: -6.901974241e-05 | K51: -0.001258312519 | L51: 3.342170892e-06 | M51: 4.469852844e-05 | N51: 7.806706015e-08
A52: 22.93936 | B52: ='DF raw data'!M57 -> -3.2848473e-06 | C52: ='DF raw data'!N57 -> -1.1986563e-07 | D52: ='DF raw data'!O57 -> 2.2242705e-06 | F52: -3.289761432e-06 | G52: -1.203217555e-07 | H52: 2.227598009e-06 | J52: -7.066514948e-05 | K52: -0.0012936564 | L52: 3.281990762e-06 | M52: 4.634004894e-05 | N52: 8.057002825e-08
A53: 23.43952 | B53: ='DF raw data'!M58 -> 8.8065298e-07 | C53: ='DF raw data'!N58 -> 2.3245202e-06 | D53: ='DF raw data'!O58 -> -2.2342617e-06 | F53: 8.819704369e-07 | G53: 2.333365714e-06 | H53: -2.237604156e-06 | J53: -7.022402315e-05 | K53: -0.001328779647 | L53: 4.449046958e-06 | M53: 4.856528427e-05 | N53: 8.304642417e-08
A54: 23.93968 | B54: ='DF raw data'!M59 -> -6.9430081e-07 | C54: ='DF raw data'!N59 -> 5.7714778e-06 | D54: ='DF raw data'!O59 -> -1.0561822e-06 | F54: -6.95339484e-07 | G54: 5.793440046e-06 | H54: -1.057762249e-06 | J54: -7.057180415e-05 | K54: -0.001364076841 | L54: 7.346693931e-06 | M54: 5.22398067e-05 | N54: 8.556440639e-08
A55: 24.43984 | B55: ='DF raw data'!M60 -> -8.6817454e-06 | C55: ='DF raw data'!N60 -> 1.8779393e-06 | D55: ='DF raw data'!O60 -> -1.4398726e-06 | F55: -8.694733291e-06 | G55: 1.885085436e-06 | H55: -1.442026649e-06 | J55: -7.492056195e-05 | K55: -0.001401549109 | L55: 8.289538263e-06 | M55: 5.638590216e-05 | N55: 8.840621901e-08
A56: 24.94 | B56: ='DF raw data'!M61 -> -1.3607321e-05 | C56: ='DF raw data'!N61 -> -2.5789284e-06 | D56: ='DF raw data'!O61 -> 2.879827e-06 | F56: -1.362767755e-05 | G56: -2.588742015e-06 | H56: 2.884135221e-06 | J56: -8.173658115e-05 | K56: -0.001442430477 | L56: 6.994753057e-06 | M56: 5.988439785e-05 | N56: 9.177219341e-08
A57: 25.44016 | B57: ='DF raw data'!M62 -> -5.7904253e-06 | C57: ='DF raw data'!N62 -> -7.2738303e-06 | D57: ='DF raw data'!O62 -> 2.2295237e-06 | F57: -5.799087776e-06 | G57: -7.301509459e-06 | H57: 2.232859067e-06 | J57: -8.463705289e-05 | K57: -0.001484762546 | L57: 3.342830086e-06 | M57: 6.155634775e-05 | N57: 9.536064396e-08
A58: 25.94032 | B58: ='DF raw data'!M63 -> 2.3734322e-06 | C58: ='DF raw data'!N63 -> -1.0158125e-05 | D58: ='DF raw data'!O63 -> -2.8307738e-06 | F58: 2.376982855e-06 | G58: -1.019677979e-05 | H58: -2.835008638e-06 | J58: -8.344818115e-05 | K58: -0.001526499988 | L58: -1.757191292e-06 | M58: 6.067747095e-05 | N58: 9.884510196e-08
A59: 26.44048 | B59: ='DF raw data'!M64 -> 2.9187142e-06 | C59: ='DF raw data'!N64 -> -8.0837326e-06 | D59: ='DF raw data'!O64 -> -3.7025645e-06 | F59: 2.923080596e-06 | G59: -8.114493686e-06 | H59: -3.708103536e-06 | J59: -8.198617316e-05 | K59: -0.001567506192 | L59: -5.815736454e-06 | M59: 5.77686722e-05 | N59: 1.022239605e-07
A60: 26.94064 | B60: ='DF raw data'!M65 -> 7.7458407e-07 | C60: ='DF raw data'!N65 -> -1.1825831e-05 | D60: ='DF raw data'!O65 -> -4.9306675e-07 | F60: 7.757428478e-07 | G60: -1.187083192e-05 | H60: -4.938043779e-07 | J60: -8.159817762e-05 | K60: -0.001608318337 | L60: -1.175305175e-05 | M60: 5.189026584e-05 | N60: 1.056232464e-07
A61: 27.4408 | B61: ='DF raw data'!M66 -> -3.6727286e-06 | C61: ='DF raw data'!N66 -> -1.3723433e-05 | D61: ='DF raw data'!O66 -> 9.6187739e-07 | F61: -3.678223002e-06 | G61: -1.377565488e-05 | H61: 9.633163586e-07 | J61: -8.343787763e-05 | K61: -0.001650050626 | L61: -1.864308329e-05 | M61: 4.25657413e-05 | N61: 1.092791379e-07
A62: 27.94096 | B62: ='DF raw data'!M67 -> -1.9975193e-06 | C62: ='DF raw data'!N67 -> 5.5726714e-06 | D62: ='DF raw data'!O67 -> -5.9071795e-06 | F62: -2.000507589e-06 | G62: 5.593877127e-06 | H62: -5.916016641e-06 | J62: -8.443845151e-05 | K62: -0.001692283362 | L62: -1.584524971e-05 | M62: 3.464058121e-05 | N62: 1.129707808e-07
A63: 28.44112 | B63: ='DF raw data'!M68 -> 1.6482664e-06 | C63: ='DF raw data'!N68 -> -3.7804708e-07 | D63: ='DF raw data'!O68 -> -1.0078181e-05 | F63: 1.650732207e-06 | G63: -3.794856653e-07 | H63: -1.009325796e-05 | J63: -8.361282129e-05 | K63: -0.00173410315 | L63: -1.603505326e-05 | M63: 2.662048897e-05 | N63: 1.16596054e-07
A64: 28.94128 | B64: ='DF raw data'!M69 -> 2.9281875e-06 | C64: ='DF raw data'!N69 -> 6.2332361e-07 | D64: ='DF raw data'!O69 -> -5.1949069e-06 | F64: 2.932568069e-06 | G64: 6.256955478e-07 | H64: -5.202678481e-06 | J64: -8.214606804e-05 | K64: -0.001775189328 | L64: -1.572210537e-05 | M64: 1.875692075e-05 | N64: 1.200947537e-07
A65: 29.44144 | B65: ='DF raw data'!M70 -> 4.3371329e-06 | C65: ='DF raw data'!N70 -> -2.083113e-06 | D65: ='DF raw data'!O70 -> -1.2800052e-06 | F65: 4.343621251e-06 | G65: -2.091039885e-06 | H65: -1.281920088e-06 | J65: -7.997356244e-05 | K65: -0.001815188905 | L65: -1.676795988e-05 | M65: 1.037025793e-05 | N65: 1.234342896e-07
A66: 29.9416 | B66: ='DF raw data'!M71 -> 4.9117807e-06 | C66: ='DF raw data'!N71 -> -6.2569816e-06 | D66: ='DF raw data'!O71 -> 1.7998567e-06 | F66: 4.919128724e-06 | G66: -6.280791337e-06 | H66: 1.802549286e-06 | J66: -7.751321102e-05 | K66: -0.001853957912 | L66: -1.990936048e-05 | M66: 4.123921961e-07 | N66: 1.266376546e-07
A67: 30.44176 | B67: ='DF raw data'!M72 -> 6.14491e-06 | C67: ='DF raw data'!N72 -> -8.7613074e-07 | D67: ='DF raw data'!O72 -> 1.3698403e-06 | F67: 6.154102785e-06 | G67: -8.794646866e-07 | H67: 1.371889581e-06 | J67: -7.443517497e-05 | K67: -0.001891187409 | L67: -2.034923354e-05 | M67: -9.765480449e-06 | N67: 1.296159507e-07
A68: 30.94192 | B68: ='DF raw data'!M73 -> 8.5959546e-06 | C68: ='DF raw data'!N73 -> 8.9709274e-06 | D68: ='DF raw data'!O73 -> -8.4699843e-07 | F68: 8.608814148e-06 | G68: 9.005064535e-06 | H68: -8.482655397e-07 | J68: -7.012939048e-05 | K68: -0.001926263325 | L68: -1.584526046e-05 | M68: -1.769064592e-05 | N68: 1.322013796e-07
A69: 31.44208 | B69: ='DF raw data'!M74 -> 6.7458604e-06 | C69: ='DF raw data'!N74 -> 8.4288131e-06 | D69: ='DF raw data'!O74 -> 2.5435977e-06 | F69: 6.755952207e-06 | G69: 8.460887323e-06 | H69: 2.547402922e-06 | J69: -6.675033343e-05 | K69: -0.001959649172 | L69: -1.161346305e-05 | M69: -2.34992356e-05 | N69: 1.344973538e-07
A70: 31.94224 | B70: ='DF raw data'!M75 -> 1.8031279e-06 | C70: ='DF raw data'!N75 -> 1.0166836e-05 | D70: ='DF raw data'!O75 -> 4.8653342e-06 | F70: 1.805825379e-06 | G70: 1.020552393e-05 | H70: 4.87261274e-06 | J70: -6.58471318e-05 | K70: -0.001992583274 | L70: -6.509068202e-06 | M70: -2.675481115e-05 | N70: 1.366871607e-07
A71: 32.4424 | B71: ='DF raw data'!M76 -> 4.5445645e-07 | C71: ='DF raw data'!N76 -> 3.6848101e-06 | D71: ='DF raw data'!O76 -> -2.4780877e-07 | F71: 4.551363168e-07 | G71: =(1-$G$1*($B$2-$G$2))*C71*$M$2/$M$1 -> 3.698831935e-06 | H71: -2.481794919e-07 | J71: -6.561949082e-05 | K71: -0.002025403518 | L71: -4.659060422e-06 | M71: -2.908508681e-05 | N71: 1.388516653e-07
A72: =A71+$B$1 -> 32.94256 | B72: ='DF raw data'!M77 -> -9.9294255e-07 | C72: ='DF raw data'!N77 -> -7.3522856e-06 | D72: ='DF raw data'!O77 -> -5.2924192e-06 | F72: -9.944279921e-07 | G72: -7.380263306e-06 | H72: -5.300336659e-06 | J72: =F72*$B$1+J71 -> -6.611686393e-05 | K72: =J72*$B$1+K71 -> -0.002058472529 | L72: =G72*$B$1+L71 -> -8.350372917e-06 | M72: =L72*$B$1+M71 -> -3.326160933e-05 | N72: =(J72^2+L72^2)*$B$1+N71 -> 1.410729601e-07
A73: 33.44272 | B73: ='DF raw data'!M78 -> -2.9866785e-06 | C73: ='DF raw data'!N78 -> 1.5934726e-06 | D73: ='DF raw data'!O78 -> -4.1132776e-06 | F73: -2.991146571e-06 | G73: 1.599536253e-06 | H73: -4.119431063e-06 | J73: -6.76129158e-05 | K73: -0.002092289805 | L73: -7.550348865e-06 | M73: -3.703799182e-05 | N73: 1.433879578e-07
A74: 33.94288 | B74: ='DF raw data'!M79 -> -5.0702656e-06 | C74: ='DF raw data'!N79 -> 5.0377281e-07 | D74: ='DF raw data'!O79 -> 8.7987735e-07 | F74: -5.077850717e-06 | G74: 5.056898203e-07 | H74: 8.811936465e-07 | J74: -7.015265361e-05 | K74: -0.002127377356 | L74: -7.297423044e-06 | M74: -4.068787093e-05 | N74: 1.458760773e-07
A75: 34.44304 | B75: ='DF raw data'!M80 -> -5.8254009e-06 | C75: ='DF raw data'!N80 -> -1.6492078e-06 | D75: ='DF raw data'!O80 -> 9.1894924e-07 | F75: -5.8341157e-06 | G75: -1.655483542e-06 | H75: 9.203239881e-07 | J75: -7.307064492e-05 | K75: -0.00216392437 | L75: -8.125429693e-06 | M75: -4.475188584e-05 | N75: 1.485796131e-07
A76: 34.9432 | B76: ='DF raw data'!M81 -> -3.8046271e-06 | C76: ='DF raw data'!N81 -> 3.9459269e-06 | D76: ='DF raw data'!O81 -> -2.7047979e-06 | F76: -3.810318822e-06 | G76: 3.960942364e-06 | H76: -2.708844278e-06 | J76: -7.497641398e-05 | K76: -0.002201424573 | L76: -6.14432476e-06 | M76: -4.782503132e-05 | N76: 1.514101262e-07
A77: 35.44336 | B77: ='DF raw data'!M82 -> -2.4700419e-06 | C77: ='DF raw data'!N82 -> 1.0211667e-05 | D77: ='DF raw data'!O82 -> -6.6548423e-06 | F77: -2.473737083e-06 | G77: 1.025052553e-05 | H77: -6.664797944e-06 | J77: -7.621367832e-05 | K77: -0.002239543606 | L77: -1.017421911e-06 | M77: -4.833390506e-05 | N77: 1.543158357e-07
A78: 35.94352 | B78: ='DF raw data'!M83 -> -3.4903057e-06 | C78: ='DF raw data'!N83 -> 4.1029707e-06 | D78: ='DF raw data'!O83 -> -3.1641437e-06 | F78: -3.495527197e-06 | G78: 4.118583764e-06 | H78: -3.168877259e-06 | J78: -7.796200121e-05 | K78: -0.002278537081 | L78: 1.042528945e-06 | M78: -4.781247378e-05 | N78: 1.573563886e-07
A79: 36.44368 | B79: ='DF raw data'!M84 -> -3.3753602e-06 | C79: ='DF raw data'!N84 -> -3.6059173e-06 | D79: ='DF raw data'!O84 -> 2.7746021e-06 | F79: -3.380409739e-06 | G79: -3.619638923e-06 | H79: 2.778752905e-06 | J79: -7.965274694e-05 | K79: -0.002318376199 | L79: -7.678696591e-07 | M79: -4.819653147e-05 | N79: 1.605299787e-07
A80: 36.94384 | B80: ='DF raw data'!M85 -> -2.2832668e-07 | C80: ='DF raw data'!N85 -> -7.1509439e-06 | D80: ='DF raw data'!O85 -> -4.6162896e-08 | F80: -2.286682567e-07 | G80: -7.178155439e-06 | H80: -4.623195569e-08 | J80: -7.976711766e-05 | K80: -0.00235827252 | L80: -4.358095883e-06 | M80: -5.037627671e-05 | N80: 1.637218928e-07
A81: 37.444 | B81: ='DF raw data'!M86 -> 1.7485291e-06 | C81: ='DF raw data'!N86 -> -9.7577104e-06 | D81: ='DF raw data'!O86 -> -1.3722498e-06 | F81: 1.7511449e-06 | G81: -9.794841486e-06 | H81: -1.374302686e-06 | J81: -7.889126502e-05 | K81: -0.002397730775 | L81: -9.257083801e-06 | M81: -5.500629974e-05 | N81: 1.66877665e-07
A82: 37.94416 | B82: ='DF raw data'!M87 -> 3.4538257e-07 | C82: ='DF raw data'!N87 -> -7.0393985e-06 | D82: ='DF raw data'!O87 -> 2.1582484e-06 | F82: 3.458992623e-07 | G82: -7.066185574e-06 | H82: 2.16147714e-06 | J82: -7.871826005e-05 | K82: -0.0024371025 | L82: -1.279130718e-05 | M82: -6.140399994e-05 | N82: 1.700587736e-07
A83: 38.44432 | B83: ='DF raw data'!M88 -> 9.2757563e-07 | C83: ='DF raw data'!N88 -> -2.6966111e-06 | D83: ='DF raw data'!O88 -> 3.7753068e-07 | F83: 9.289632831e-07 | G83: -2.706872534e-06 | H83: 3.780954659e-07 | J83: -7.825362977e-05 | K83: -0.002476241836 | L83: -1.414517654e-05 | M83: -6.847885144e-05 | N83: 1.732216437e-07
